Workbook

Sheet downloads (hidden)
J1: YDL 2018 Latest League Records | AC1: Basildon Beagles © | AG1: Basildon Beagles © | AL1: posn | AM1: clubname | AN1: bib | AO1: total | AP1: total | AQ1: r1 | AR1: r1 | AS1: r2 | AT1: r2 | AU1: r3 | AV1: r3 | AW1: r4 | AX1: r4
A2: clubname: | B2: Basildon Beagles © | J2: eventcode | K2: eventname | L2: name | M2: club | N2: perf | O2: venue | P2: monthday | Q2: year | T2: athlete | U2: agegroup | Y2: athlete | Z2: agegroup | AC2: 1 | AD2: - | AE2: - | AG2: 1 | AH2: - | AI2: - | AO2: league | AP2: match | AQ2: league | AR2: match | AS2: league | AT2: match | AU2: league | AV2: match | AW2: league | AX2: match
A3: AW_abbr: | B3: Bas/NEB | J3: LT13 | K3: 100m | L3: Marcus McLean + | M3: Sale Harriers | N3: 11 | O3: Ellesmere Port | P3: June 17th | Q3: 2018 | S3: 11 | T3: ADEGBITE Andrew | U3: U20 Men | V3: 11 | X3: 11 | Y3: ALATISE GRACE X | Z3: U17 Women | AA3: 11 | AD3: COWLEY Alistair X | AE3: Long Jump | AH3: - | AI3: - | AL3: 1 | AM3: Havering AC | AN3: 3 | AO3: 11 | AP3: 1207 | AQ3: 5 | AR3: 631 | AS3: 6 | AT3: 576 | AU3: 0 | AV3: 0 | AW3: 0 | AX3: 0
A4: agegroup: | B4: U20 Women | J4: LT16 | K4: 100m NS | L4: Marcus McLean + | M4: Sale Harriers | N4: 11 | O4: Ellesmere Port | P4: June 17th | Q4: 2018 | S4: 21 | T4: ADENIRAN Timi X | U4: U17 Men | V4: 11 | X4: 21 | Y4: ALDERMAN Robyn X | Z4: U17 Women | AA4: 11 | AD4: ELLIS Cameron X | AE4: Triple Jump | AH4: - | AI4: - | AL4: 2 | AM4: Basildon Beagles © | AN4: 1 | AO4: 11 | AP4: 1194.5 | AQ4: 6 | AR4: 633 | AS4: 5 | AT4: 561.5 | AU4: 0 | AV4: 0 | AW4: 0 | AX4: 0
A5: bib | B5: 1 | C5: 11 | J5: LT08 | K5: 200m | L5: Jona Efoloko | M5: Sale Harriers | N5: 22.2 | O5: Liverpool | P5: June 22nd | Q5: 2014 | S5: 31 | T5: ADEYEYE William | U5: U20 Men | V5: 11 | X5: 31 | Y5: ANDRE Elisa | Z5: U20 Women | AA5: 11 | AD5: - | AE5: - | AH5: DOUGLAS-WARD Isabelle X | AI5: 100m | AL5: 3 | AM5: Tonbridge AC | AN5: 6 | AO5: 6 | AP5: 939.7 | AQ5: 4 | AR5: 499.2 | AS5: 2 | AT5: 440.5 | AU5: 0 | AV5: 0 | AW5: 0 | AX5: 0
A6: 75/100 | B6: AWALA SHAW Dolita | C6: WHITEHEAD-SHAKES Jazmin | J6: LT18 | K6: 300m | L6: Amir Sultan-Edwards | M6: Blackheath & Bromley Harriers AC | N6: 35.4 | O6: Reading | P6: June 17th | Q6: 2018 | S6: 41 | T6: AKPOKAVI SENAM X | U6: U17 Men | V6: 11 | X6: 41 | Y6: ARTHUR VANNA X | Z6: U17 Women | AA6: 11 | AD6: - | AE6: - | AH6: - | AI6: - | AL6: 4 | AM6: Team ATIP © | AN6: 5 | AO6: 6 | AP6: 931.5 | AQ6: 3 | AR6: 490.5 | AS6: 3 | AT6: 441 | AU6: 0 | AV6: 0 | AW6: 0 | AX6: 0
A7: 100M NS | J7: LTD84 | K7: 800m | L7: Keelan Wilson | M7: Rotherham Harriers | N7: 00:01:59.700 | O7: Cleckheaton | P7: June 22nd | Q7: 2014 | S7: 51 | T7: AWALA-SHAW Joey X | U7: U17 Men | V7: 11 | X7: 51 | Y7: ASHLEY Beth X | Z7: U17 Women | AA7: 11 | AD7: - | AE7: - | AH7: RAMSDEN Emma X | AI7: 300m | AL7: 5 | AM7: Stevenage & North Herts AC | AN7: 4 | AO7: 5 | AP7: 841.2 | AQ7: 1 | AR7: 387.2 | AS7: 4 | AT7: 454 | AU7: 0 | AV7: 0 | AW7: 0 | AX7: 0
A8: 200 | B8: AWALA SHAW Dolita | C8: BAKARE Danielle | J8: LTD88 | K8: 800m NS | L8: Keelan Wilson | M8: Rotherham Harriers | N8: 00:01:59.700 | O8: Cleckheaton | P8: June 22nd | Q8: 2014 | S8: 61 | T8: BENNETT Sam | U8: U20 Men | V8: 11 | X8: 61 | Y8: ASHMEAD-SHOYE Abigail X | Z8: U17 Women | AA8: 11 | AC8: Croydon Harriers | AG8: Croydon Harriers | AL8: 6 | AM8: Croydon Harriers | AN8: 2 | AO8: 3 | AP8: 864 | AQ8: 2 | AR8: 424 | AS8: 1 | AT8: 440 | AU8: 0 | AV8: 0 | AW8: 0 | AX8: 0
A9: 400 | B9: REX Abby | C9: BURRELL Grace X | J9: LTD04 | K9: 1500m | L9: Mohamed Mohamud | M9: Herne Hill Harriers | N9: 00:04:13.600 | O9: Lee Valley | P9: June 21st | Q9: 2015 | S9: 71 | T9: BROADBENT Jack | U9: U20 Men | V9: 11 | X9: 71 | Y9: AWALA SHAW Dolita | Z9: U20 Women | AA9: 11 | AC9: 2 | AD9: ALADE Adeyanju X | AE9: 100m | AG9: 2 | AH9: OWOLABI Naomi X | AI9: 100m
A10: 800 | B10: REX Abby | J10: LT04 | K10: 80mH | L10: Joseph Harding | M10: Basildon AC | N10: 11 | O10: Gillingham | P10: April 22nd | Q10: 2017 | S10: 81 | T10: BROWN Isaac | U10: U20 Men | V10: 11 | X10: 81 | Y10: BADGER Eloise | Z10: U20 Women | AA10: 11 | AD10: PANTON Adrian X | AE10: 100m | AH10: BROWN Nayana X | AI10: 100m
A11: 800M NS | J11: LFH06 | K11: High Jump | L11: Steven Jones | M11: Liverpool Harriers & AC | N11: 1.87 | O11: Liverpool | P11: June 22nd | Q11: 2014 | S11: 91 | T11: CHAPMAN Harrison | U11: U20 Men | V11: 11 | X11: 91 | Y11: BAINSFAIR Kiera X | Z11: U17 Women | AA11: 11 | AD11: EDWARDS Sean X | AE11: 100m | AH11: REID Alisha X | AI11: 100m
A12: 1500 | J12: LFH04 | K12: Pole Vault | L12: Frankie Johnson | M12: Bedford & County AC | N12: 4.32 | O12: Lee Valley | P12: June 21st | Q12: 2015 | S12: 101 | T12: COWLEY Alistair X | U12: U17 Men | V12: 11 | X12: 101 | Y12: BAKARE Danielle | Z12: U20 Women | AA12: 11 | AD12: MASON Michael jr X | AE12: 200m | AH12: MAKUWA Rowan X | AI12: 200m
A13: Sp H | J13: LFW04 | K13: Long Jump | L13: Patrick Sylla | M13: Bournemouth A.C. | N13: 6.82 | O13: Kingston | P13: May 4th | Q13: 2013 | S13: 111 | T13: COX Mitchell | U13: U20 Men | V13: 11 | X13: 111 | Y13: BELL HANNAH X | Z13: U17 Women | AA13: 11 | AD13: SMITHEN Louis X | AE13: 200m | AH13: ZEPA Ines-Karel | AI13: 100m
A14: 3000 | J14: LFD06 | K14: Shot Put | L14: Thomas Hanson | M14: Cardiff AAC | N14: 15.49 | O14: Birmingham | P14: Sept 5th | Q14: 2015 | S14: 121 | T14: CROWNE Caleb | U14: U20 Men | V14: 11 | X14: 121 | Y14: BROOKS Millie X | Z14: U17 Women | AA14: 11 | AD14: DANCLAIR Daniel X | AE14: 100m | AH14: DAVIDS Chiamaka | AI14: 100m
A15: SChase | J15: LFD04 | K15: Discus | L15: Alfie Scopes | M15: Tonbridge AC | N15: 49.53 | O15: Reading | P15: May 31st | Q15: 2014 | S15: 131 | T15: DA SILVA Leonardo X | U15: U17 Men | V15: 11 | X15: 131 | Y15: BULLMAN Mae | Z15: U20 Women | AA15: 11 | AC15: Havering AC | AG15: Havering AC
A16: 400mH | B16: DAVIES Sophie | J16: LFD01 | K16: Hammer | L16: Jake Norris | M16: Windsor Slough Eton & Hounslow | N16: 59.79 | O16: Eton | P16: July 13th | Q16: 2013 | S16: 141 | T16: DODGE Owen X | U16: U17 Men | V16: 11 | X16: 141 | Y16: BURRELL Grace X | Z16: U17 Women | AA16: 11 | AC16: 3 | AD16: STEWART James | AE16: 800m | AG16: 3 | AH16: - | AI16: -
A17: Discus | J17: LFD07 | K17: Javelin | L17: Max Law | M17: Havering AC | N17: 61.4 | O17: Hornchurch | P17: June 19th | Q17: 2016 | S17: 151 | T17: DYOS Alex X | U17: U17 Men | V17: 11 | X17: 151 | Y17: CONDON Madeleine X | Z17: U17 Women | AA17: 11 | AD17: -es | AE17: -e0 | AH17: - | AI17: -
A18: Hammer | B18: MATTHEWS Devon | J18: LTR4 | K18: 4 x 100 Relay | L18: - | M18: Croydon Harriers | N18: 45.4 | O18: Hornchurch | P18: July 19th | Q18: 2014 | S18: 161 | T18: EAMES Joseph X | U18: U17 Men | V18: 11 | X18: 161 | Y18: COTTON Imogen X | Z18: U17 Women | AA18: 11 | AD18: -e0 | AE18: -eE | AH18: - | AI18: -
A19: Javelin | B19: MATTHEWS Devon | C19: DAVIES Sophie | J19: LTDR2 | K19: 4 X 300 Relay | L19: - | M19: Sale Harriers | N19: 00:02:33.400 | O19: Manchester | P19: June 18th | Q19: 2017 | S19: 171 | T19: EDOGRIAWERIE Yuki X | U19: U17 Men | V19: 11 | X19: 171 | Y19: DALLING SHERELLE X | Z19: U17 Women | AA19: 11 | AD19: -es | AE19: -es | AH19: - | AI19: -
A20: Shot | B20: MATTHEWS Devon | C20: AWALA SHAW Dolita | J20: LT11 | K20: 100m | L20: Kareem Jerome | M20: Havering AC | N20: 12 | O20: Basildon | P20: June 21st | Q20: 2015 | S20: 181 | T20: EFFAH JUDAH X | U20: U17 Men | V20: 11 | X20: 181 | Y20: DANIEL Ameila X | Z20: U17 Women | AA20: 11 | AD20: -e0 | AE20: -e0 | AH20: - | AI20: -
A21: Long J | J21: LT14 | K21: 100m NS | L21: Abraham Fobil | M21: Sale Harriers | N21: 12 | O21: Liverpool | P21: July 16th | Q21: 2016 | S21: 191 | T21: ELLIS Cameron X | U21: U17 Men | V21: 11 | X21: 191 | Y21: DAVIES Sophie | Z21: U20 Women | AA21: 11 | AD21: -e0 | AE21: -es | AH21: - | AI21: -
A22: Triple J | J22: LT06 | K22: 200m | L22: Abraham Fobil | M22: Sale Harriers | N22: 24.4 | O22: Liverpool | P22: July 16th | Q22: 2016 | S22: 201 | T22: ENUJIOFOR OBINNA X | U22: U17 Men | V22: 11 | X22: 201 | Y22: DONALDS HARISSA X | Z22: U17 Women | AA22: 11 | AC22: Stevenage & North Herts AC | AG22: Stevenage & North Herts AC
A23: High J | B23: AWALA SHAW Dolita | J23: LTD82 | K23: 800m | L23: Jaden Kennedy | M23: Herne Hill Harriers | N23: 00:02:09.500 | O23: Hornchurch | P23: June 19th | Q23: 2016 | S23: 211 | T23: FADAYIRO Theo | U23: U20 Men | V23: 11 | X23: 211 | Y23: DOUGLAS-WARD Isabelle X | Z23: U17 Women | AA23: 11 | AC23: 4 | AD23: - | AE23: - | AG23: 4 | AH23: - | AI23: -
A24: Pole V | J24: LTD86 | K24: 800m NS | L24: Jaden Kennedy | M24: Herne Hill Harriers | N24: 00:02:09.500 | O24: Hornchurch | P24: June 19th | Q24: 2016 | S24: 221 | T24: FISCHER Joe X | U24: U17 Men | V24: 11 | X24: 221 | Y24: GBOTAYE Tobi X | Z24: U17 Women | AA24: 10 | AD24: - | AE24: - | AH24: - | AI24: -
A25: r4x11/2: | B25: TONGE Myomi X | C25: BAKARE Danielle | J25: LTD02 | K25: 1500m | L25: Jaden Kennedy | M25: Herne Hill Harriers | N25: 00:04:28.600 | O25: Croydon | P25: July 16th | Q25: 2016 | S25: 231 | T25: FORREST OSHANE LEMAR X | U25: U17 Men | V25: 11 | X25: 231 | Y25: HARVEY Nichole | Z25: U20 Women | AA25: 11 | AD25: - | AE25: - | AH25: - | AI25: -
A26: r4x13/4: | C26: AWALA SHAW Dolita | J26: LT02 | K26: 75mH | L26: Sammy Ball | M26: Reading AC | N26: 11.6 | O26: Bedford | P26: July 16th | Q26: 2017 | S26: 241 | T26: HARDING Joseph X | U26: U17 Men | V26: 11 | X26: 241 | Y26: HEAD Katie | Z26: U20 Women | AA26: 11 | AD26: CANT William X | AE26: Sprint Hurdles | AH26: - | AI26: -
A27: r4x41/2: | B27: RIXSON Zoe X | C27: REX Hollie X | J27: LFH02 | K27: High Jump | L27: Luke Ball | M27: Yate | N27: 1.64 | O27: Yate | P27: May 20th | Q27: 2017 | S27: 251 | T27: HASTINGS Christopher | U27: U20 Men | V27: 11 | X27: 251 | Y27: HINMAN Grace X | Z27: U17 Women | AA27: 11 | AD27: - | AE27: - | AH27: - | AI27: -
A28: r4x43/4: | B28: REX Abby | C28: BURRELL Grace X | J28: LFW01 | K28: Long Jump | L28: Dante Clark | M28: Herne Hill Harriers | N28: 5.4 | O28: Portsmouth | P28: June 17th | Q28: 2018 | S28: 261 | T28: HENRY JEROME X | U28: U17 Men | V28: 11 | X28: 261 | Y28: HINSON Lottie X | Z28: U17 Women | AA28: 11 | AD28: - | AE28: - | AH28: - | AI28: -
A29: clubname: | B29: Croydon Harriers | J29: LFD09 | K29: Shot Put | L29: Sam Mace | M29: Walton A.C. | N29: 12.35 | O29: Sutton | P29: May 4th | Q29: 2013 | S29: 271 | T29: HILL George X | U29: U17 Men | V29: 11 | X29: 271 | Y29: HUDSON Fraya X | Z29: U17 Women | AA29: 11 | AC29: Team ATIP © | AG29: Team ATIP ©
A30: AW_abbr: | B30: Croy | J30: LFD10 | K30: Javelin | L30: Archie Goodliff | M30: Windsor Slough Eton & Hounslow | N30: 48.28 | O30: Eton | P30: July 18th | Q30: 2015 | S30: 281 | T30: HOUCHELL Matthew | U30: U20 Men | V30: 11 | X30: 281 | Y30: ISRAEL-OLUDIYA MISIMI X | Z30: U17 Women | AA30: 11 | AC30: 5 | AD30: - | AE30: - | AG30: 5 | AH30: - | AI30: Long Jump
A31: agegroup: | B31: U20 Women | J31: LTR2 | K31: 4 x 100 Relay | L31: - | M31: Croydon Harriers | N31: 51.3 | O31: Hornchurch | P31: July 19th | Q31: 2014 | S31: 291 | T31: HUDSON Garreth | U31: U20 Men | V31: 11 | X31: 291 | Y31: JOSHUA Blessing | Z31: U20 Women | AA31: 11 | AD31: - | AE31: - | AH31: - | AI31: Long Jump
A32: bib | B32: 2 | C32: 22 | J32: LT12 | K32: 100m | L32: Tyra Kambai-Annan + | M32: Team Hounslow | N32: 12.1 | O32: Dartford | P32: May 19th | Q32: 2018 | S32: 301 | T32: IKEJI Kenneth X | U32: U17 Men | V32: 11 | X32: 301 | Y32: KRISE Jessica X | Z32: U17 Women | AA32: 11 | AD32: - | AE32: - | AH32: - | AI32: -
A33: 75/100 | B33: ANSAH Davina | C33: DAKE Esinam | J33: LT15 | K33: 100m NS | L33: Tyra Kambai-Annan | M33: Team Hounslow | N33: 12.1 | O33: Dartford | P33: May 19th | Q33: 2018 | S33: 311 | T33: JAMES Chosen | U33: U20 Men | V33: 11 | X33: 311 | Y33: LAWRENCE Holly X | Z33: U17 Women | AA33: 11 | AD33: - | AE33: - | AH33: - | AI33: 100m
A34: 100M NS | J34: LT07 | K34: 200m | L34: Ashlyn Bland | M34: Gateshead Harriers | N34: 24.6 | O34: Preston | P34: June 22nd | Q34: 2013 | S34: 321 | T34: JEFIA Dennis | U34: U20 Men | V34: 11 | X34: 321 | Y34: LEAVER Zara X | Z34: U17 Women | AA34: 11 | AD34: - | AE34: 100m | AH34: - | AI34: 100m
A35: 200 | B35: SALAMI Tosin | C35: DAKE Esinam | J35: LT17 | K35: 300m | L35: Holly Mpassy | M35: Blackheath & Bromley Harriers A.C. | N35: 40.15 | O35: Birmingham | P35: Sept 2nd | Q35: 2017 | S35: 331 | T35: JOHNSON Karl | U35: U20 Men | V35: 11 | X35: 331 | Y35: LEWIS Ella X | Z35: U17 Women | AA35: 11 | AD35: NGASSA Sebastian X | AE35: 200m | AH35: - | AI35: -
A36: 400 | J36: LTD83 | K36: 800m | L36: Tilly Simpson | M36: Hallamshire Harriers | N36: 00:02:07.800 | O36: Rotherham | P36: June 21st | Q36: 2015 | S36: 341 | T36: JONES Max | U36: U20 Men | V36: 11 | X36: 341 | Y36: LUGG Rosie X | Z36: U17 Women | AA36: 11 | AC36: Tonbridge AC | AG36: Tonbridge AC
A37: 800 | B37: MOORE Jessica | J37: LTD87 | K37: 800m NS | L37: Tilly Simpson | M37: Hallamshire Harriers | N37: 00:02:07.800 | O37: Rotherham | P37: June 21st | Q37: 2015 | S37: 351 | T37: LE BLANC REMELL X | U37: U17 Men | V37: 11 | X37: 351 | Y37: MACAULAY SINEAD X | Z37: U17 Women | AA37: 11 | AC37: 6 | AD37: - | AE37: - | AG37: 6 | AH37: - | AI37: -
A38: 800M NS | J38: LTD03 | K38: 1500m | L38: Josie Czura | M38: C of Portsmouth | N38: 00:04:35.900 | O38: Guildford | P38: May 30th | Q38: 2015 | S38: 361 | T38: LEE James X | U38: U17 Men | V38: 11 | X38: 361 | Y38: MANANGU PRISCILLE X | Z38: U17 Women | AA38: 11 | AD38: - | AE38: - | AH38: - | AI38: -
A39: 1500 | B39: MOORE Jessica | J39: LT03 | K39: 75mH | L39: Niamh McGuigan | M39: Hillingdon AC | N39: 11.1 | O39: Uxbridge | P39: June 1st | Q39: 2013 | S39: 371 | T39: LILL Oliver X | U39: U17 Men | V39: 11 | X39: 371 | Y39: MATTHEWS Devon | Z39: U20 Women | AA39: 11 | AD39: - | AE39: - | AH39: - | AI39: -
A40: Sp H | B40: ARCHER Sonyce | J40: LFH01 | K40: High Jump | L40: Phoebe Harland | M40: Birchfield Harriers | N40: 1.73 | O40: Loughborough | P40: June 21st | Q40: 2015 | S40: 381 | T40: LUCAS Juls X | U40: U17 Men | V40: 11 | X40: 381 | Y40: MCGILL Leah | Z40: U20 Women | AA40: 11 | AD40: AKIOYE Tobi X | AE40: 100m | AH40: - | AI40: -
A41: 3000 | J41: LFH01 | K41: High Jump | L41: Amelia Bateman | M41: Gateshead Harriers | N41: 1.73 | O41: Hull | P41: July 18th | Q41: 2015 | S41: 391 | T41: MCGILL Daniel X | U41: U17 Men | V41: 11 | X41: 391 | Y41: MULLAN Olivia X | Z41: U17 Women | AA41: 11 | AD41: AKIOYE Tobi X | AE41: 200m | AH41: - | AI41: -
A42: SChase | J42: LFH05 | K42: Pole Vault | L42: Sophie Ashurst | M42: Sale Harriers | N42: 3.42 | O42: Birmingham | P42: Sept 2nd | Q42: 2017 | S42: 401 | T42: MCGILL Joshua X | U42: U17 Men | V42: 11 | X42: 401 | Y42: OKOYE Jasmine | Z42: U20 Women | AA42: 11 | AD42: BOTSIALAS George X | AE42: 100m | AH42: - | AI42: -
A43: 400mH | J43: LFW02 | K43: Long Jump | L43: Molly Palmer | M43: Charnwood AC | N43: 5.63 | O43: Rugby | P43: June 18th | Q43: 2017 | S43: 411 | T43: MERIDEW Luke X | U43: U17 Men | V43: 11 | X43: 411 | Y43: OKUGUNI ADA X | Z43: U17 Women | AA43: 11
A44: Discus | B44: ZEPA Ines-Karel | J44: LFD11 | K44: Shot Put | L44: Omolola Kuponiyi | M44: Havering AC | N44: 13.72 | O44: Bracknell | P44: April 21st | Q44: 2018 | S44: 421 | T44: MITCHELL Daniel | U44: U20 Men | V44: 11 | X44: 421 | Y44: OSEWA Gabrielle X | Z44: U17 Women | AA44: 11
A45: Hammer | J45: LFD05 | K45: Discus | L45: Sophie Mace | M45: Walton AC | N45: 39.94 | O45: Sutton | P45: May 4th | Q45: 2013 | S45: 431 | T45: MOHSAN Ramzan | U45: U20 Men | V45: 11 | X45: 431 | Y45: PERRY India X | Z45: U17 Women | AA45: 11
A46: Javelin | B46: GAYLE Rhiannon | J46: LFD02 | K46: Hammer | L46: Phoebe Baggott | M46: Wolverhampton & Bilston | N46: 55.15 | O46: Telford | P46: July 16th | Q46: 2016 | S46: 441 | T46: MOKUOLU Seth X | U46: U17 Men | V46: 11 | X46: 441 | Y46: PHIPPS Hannah X | Z46: U17 Women | AA46: 11
A47: Shot | B47: DAVIDS Chiamaka | C47: DAKE Esinam | J47: LFD08 | K47: Javelin | L47: Bethany Moule | M47: Neath Harriers | N47: 45.76 | O47: Gloucester | P47: Apr 23rd | Q47: 2016 | S47: 451 | T47: MORRIS Daniel X | U47: U17 Men | V47: 11 | X47: 451 | Y47: QUANSAH JENNIFER X | Z47: U17 Women | AA47: 11
A48: Long J | B48: ARCHER Sonyce | C48: OLUFEMI-KRAKUE Ola | J48: LTR3 | K48: 4 x 100 Relay | L48: - | M48: Enfield & Haringey AC | N48: 48.61 | O48: Lee Valley | P48: June 21st | Q48: 2015 | S48: 461 | T48: NWANGUMA CHIDI X | U48: U17 Men | V48: 11 | X48: 461 | Y48: RAMSDEN Emma X | Z48: U17 Women | AA48: 11
A49: Triple J | B49: ARCHER Sonyce | C49: OLUFEMI-KRAKUE Ola | J49: LTDR1 | K49: 4 X 300 Relay | L49: - | M49: Blackheath & Bromley Harriers AC | N49: 00:02:49.130 | O49: Bromley | P49: July 15th | Q49: 2017 | S49: 471 | T49: OGUNMOLA Emmanuel X | U49: U17 Men | V49: 11 | X49: 471 | Y49: RAPLEY Meg | Z49: U20 Women | AA49: 11
A50: High J | J50: LT09 | K50: 75m | L50: Tyra Khambai-Annan | M50: Team Hounslow | N50: 9.67 | O50: Battersea Park | P50: June 18th | Q50: 2017 | S50: 481 | T50: OKE EMMANUEL X | U50: U17 Men | V50: 11 | X50: 481 | Y50: REX Abby | Z50: U20 Women | AA50: 11
A51: Pole V | J51: LT10 | K51: 75m NS | L51: Tyra Khambai-Annan | M51: Team Hounslow | N51: 9.67 | O51: Battersea Park | P51: June 18th | Q51: 2017 | S51: 491 | T51: OLADIPUPO KEWA X | U51: U17 Men | V51: 11 | X51: 491 | Y51: REX Hollie X | Z51: U17 Women | AA51: 11
A52: r4x11/2: | B52: DAKE Esinam | C52: ANSAH Davina | J52: LT05 | K52: 150m | L52: Alicia Regis | M52: Enfield & Haringey AC | N52: 18.7 | O52: Tooting Bec | P52: July 19th | Q52: 2014 | S52: 501 | T52: OLANIYAN Richard X | U52: U17 Men | V52: 11 | X52: 501 | Y52: RIXSON Zoe X | Z52: U17 Women | AA52: 11
A53: r4x13/4: | B53: GAYLE Rhiannon | C53: SALAMI Tosin | J53: LTD81 | K53: 800m | L53: Elizabeth Wilkinson | M53: City of Sheffield | N53: 00:02:20.100 | O53: Doncaster | P53: May 31st | Q53: 2014 | S53: 511 | T53: OLIHA OGIE X | U53: U17 Men | V53: 11 | X53: 511 | Y53: SCOTT Keirra X | Z53: U17 Women | AA53: 11
A54: r4x41/2: | B54: SINGH Antara X | C54: MOORE Jessica | J54: LTD85 | K54: 800m NS | L54: Elizabeth Wilkinson | M54: City of Sheffield | N54: 00:02:20.100 | O54: Doncaster | P54: May 31st | Q54: 2014 | S54: 521 | T54: OSHIYEMI Malik X | U54: U17 Men | V54: 11 | X54: 521 | Y54: SESAY Ayesha | Z54: U20 Women | AA54: 11
A55: r4x43/4: | B55: OLUFEMI-KRAKUE Ola | C55: GAYLE Rhiannon | J55: LTD01 | K55: 1200m | L55: Keeley Hodgkinson | M55: Leigh Harriers | N55: 00:03:43.200 | O55: Litherland | P55: July 19th | Q55: 2014 | S55: 531 | T55: OSUNSAMI Mayowa | U55: U20 Men | V55: 11 | X55: 531 | Y55: SHORT Katy | Z55: U20 Women | AA55: 11
A56: clubname: | B56: Havering AC | J56: LT01 | K56: 70mH | L56: Lia Bonsu | M56: Croydon Harriers | N56: 10.9 | O56: Reading | P56: June 17th | Q56: 2018 | S56: 541 | T56: OSUNSAMI Rotimi | U56: U20 Men | V56: 11 | X56: 541 | Y56: SIBBONS Aleeya X | Z56: U17 Women | AA56: 11
A57: AW_abbr: | B57: Have | J57: LFH03 | K57: High Jump | L57: Jade Curtis | M57: Ashford AC | N57: 1.6 | O57: Kingston | P57: July 19th | Q57: 2014 | S57: 551 | T57: OYINBO-COKER Emmanuel X | U57: U17 Men | V57: 11 | X57: 551 | Y57: THOMPSON Zoe | Z57: U20 Women | AA57: 11
A58: agegroup: | B58: U20 Women | J58: LFW03 | K58: Long Jump | L58: Ore Adamson | M58: Herne Hill Harriers | N58: 5.16 | O58: Reading | P58: May 31st | Q58: 2014 | S58: 561 | T58: PASCALL-MENZIE JOEL X | U58: U17 Men | V58: 11 | X58: 561 | Y58: THORPE Summer X | Z58: U17 Women | AA58: 11
A59: bib | B59: 3 | C59: 33 | J59: LFD03 | K59: Shot Put | L59: Meghan Porterfield | M59: VP City of Glasgow | N59: 12.19 | O59: Grangemouth | P59: April 22nd | Q59: 2018 | S59: 571 | T59: PIESIE KWAME X | U59: U17 Men | V59: 11 | X59: 571 | Y59: TONGE Myomi X | Z59: U17 Women | AA59: 11
A60: 75/100 | B60: NASH Holly | J60: LFD12 | K60: Javelin | L60: Hannah Lewington | M60: Swindon Harriers | N60: 38 | O60: Braunton | P60: April 21st | Q60: 2018 | S60: 581 | T60: RASHBROOK Jamie X | U60: U17 Men | V60: 11 | X60: 581 | Y60: VANDERPUIJE JUDITH X | Z60: U17 Women | AA60: 11
A61: 100M NS | J61: LTR1 | K61: 4 x 100 Relay | L61: - | M61: Croydon Harriers | N61: 52.2 | O61: Hornchurch | P61: July 19th | Q61: 2014 | S61: 591 | T61: REAN William X | U61: U17 Men | V61: 11 | X61: 591 | Y61: WETHERIDGE Sophie X | Z61: U17 Women | AA61: 11
A62: 200 | B62: CHRISTIE Keturah | C62: NASH Holly | J62: LTR1 | K62: 4 x 100 Relay | L62: - | M62: Thames Valley Harriers | N62: 52.2 | O62: Guildford | P62: May 30th | Q62: 2015 | S62: 601 | T62: REGIS-FINDLAY Leo X | U62: U17 Men | V62: 11 | X62: 601 | Y62: WHITEHEAD-SHAKES Jazmin | Z62: U20 Women | AA62: 11
A63: 400 | B63: DAWSON Katie | J63: UT05 | K63: 100m | L63: Rio Mitcham | M63: Birchfield Harriers | N63: 10.3 | O63: Nottingham | P63: April 30th | Q63: 2017 | S63: 611 | T63: RILEY Daniel X | U63: U17 Men | V63: 11 | X63: 611 | Y63: WILLIAMS Zoe X | Z63: U17 Women | AA63: 11
A64: 800 | B64: MITCHELL Jessica | J64: UT17 | K64: 200m | L64: Charlie Dobson | M64: Shaftesbury Barnet Harriers | N64: 20.74 | O64: Reading | P64: April 29th | Q64: 2018 | S64: 621 | T64: ROLLE Sean | U64: U20 Men | V64: 11 | X64: 621 | Y64: WOOD Tia | Z64: U20 Women | AA64: 11
A65: 800M NS | J65: UT09 | K65: 400m | L65: Jack Crosby | M65: Middlesbrough A.C. (Mandale) | N65: 48 | O65: Doncaster | P65: June 2nd | Q65: 2013 | S65: 631 | T65: SAMPSON JEVANE-DREW X | U65: U17 Men | V65: 11 | Y65: athlete | Z65: agegroup
A66: 1500 | B66: O'NEILL Kate | C66: RAND Sophie | J66: UTD81 | K66: 800m | L66: Theo Blundell | M66: Birchfield Harriers | N66: 00:01:51.500 | O66: Birmingham | P66: Sept 8th | Q66: 2013 | S66: 641 | T66: SAUNDERS Billy X | U66: U17 Men | V66: 11 | X66: 12 | Y66: ADEBAKIN Cymayung X | Z66: U17 Women | AA66: 21
A67: Sp H | B67: HUGHES Anandamayi | C67: PURDIE Isabella | J67: UTD01 | K67: 1500m | L67: Josh Kerr | M67: Team Edinburgh | N67: 00:03:48.300 | O67: Manchester | P67: May 16th | Q67: 2015 | S67: 651 | T67: SAUNDERS Jack X | U67: U17 Men | V67: 11 | X67: 22 | Y67: ANSAH Davina | Z67: U20 Women | AA67: 21
A68: 3000 | J68: UTD06 | K68: 3000m | L68: Abel Tsegay | M68: Invicta's Paddock | N68: 00:08:27.300 | O68: Ashford | P68: June 29th | Q68: 2014 | S68: 661 | T68: SAVAGE Luke X | U68: U17 Men | V68: 11 | X68: 32 | Y68: ARCHER Sonyce | Z68: U20 Women | AA68: 21
A69: SChase | J69: UT16 | K69: 110mH | L69: Tre Thomas | M69: Charnwood AC | N69: 13.6 | O69: Nottingham | P69: May 27th | Q69: 2018 | S69: 671 | T69: SCOTT Kaish X | U69: U17 Men | V69: 11 | X69: 42 | Y69: AVBULIMEN Pheobe | Z69: U20 Women | AA69: 21
A70: 400mH | J70: UT01 | K70: 400mH | L70: Jacob Paul | M70: Windsor Slough Eton & Hounslow | N70: 52.03 | O70: Basildon | P70: April 28th | Q70: 2013 | S70: 681 | T70: SCOTT Reece | U70: U20 Men | V70: 11 | X70: 52 | Y70: BOWLEY Kayla X | Z70: U17 Women | AA70: 21
A71: Discus | B71: RAND Sophie | J71: UTD11 | K71: 2000m S/C | L71: Jarmaine Coleman | M71: Preston Harriers | N71: 00:05:59.090 | O71: Manchester | P71: June 2nd | Q71: 2013 | S71: 691 | T71: SEKI Femi | U71: U20 Men | V71: 11 | X71: 62 | Y71: BROWN Nayana X | Z71: U17 Women | AA71: 21
A72: Hammer | B72: GILL Philippa | J72: UFH03 | K72: High Jump | L72: Chris Kandu | M72: Enfield & Haringey | N72: 2.14 | O72: Bromley | P72: June 2nd | Q72: 2013 | S72: 701 | T72: SHANKLAND Jack X | U72: U17 Men | V72: 11 | X72: 72 | Y72: BRYAN Toni X | Z72: U17 Women | AA72: 21
A73: Javelin | B73: GILL Philippa | C73: O'NEILL Kate | J73: UFH05 | K73: Pole Vault | L73: Adam Hague | M73: City of Sheffield | N73: 5.25 | O73: Birmingham | P73: Sept 6th | Q73: 2015 | S73: 711 | T73: SHIELDS Michael | U73: U20 Men | V73: 11 | X73: 82 | Y73: CHUKWU Jennifer X | Z73: U17 Women | AA73: 21
A74: Shot | B74: GILL Philippa | C74: HUGHES Anandamayi | J74: UFW01 | K74: Long Jump | L74: Michael Causer | M74: St. Helens Sutton A.C. | N74: 7.37 | O74: Salford | P74: June 2nd | Q74: 2013 | S74: 721 | T74: SMITH Harrison | U74: U20 Men | V74: 11 | X74: 92 | Y74: CRAWFORD Kyrra-Rhianne | Z74: U20 Women | AA74: 21
A75: Long J | B75: HUGHES Anandamayi | C75: PURDIE Isabella | J75: UFW05 | K75: Triple Jump | L75: Montel Nevers | M75: Notts A.C. | N75: 14.76 | O75: Abingdon | P75: June 30th | Q75: 2013 | S75: 731 | T75: ST VALCHIKWE Jeramie X | U75: U17 Men | V75: 11 | X75: 102 | Y75: DACOSTA Glalys X | Z75: U17 Women | AA75: 21
A76: Triple J | B76: PURDIE Isabella | C76: NASH Holly | J76: UFD11 | K76: Shot Put | L76: George Evans | M76: Shaftesbury Barnet Harriers | N76: 17.79 | O76: Hendon | P76: June 26th | Q76: 2016 | S76: 741 | T76: STUART Samuel X | U76: U17 Men | V76: 11 | X76: 112 | Y76: DAKE Esinam | Z76: U20 Women | AA76: 21
A77: High J | B77: CHRISTIE Keturah | C77: HUGHES Anandamayi | J77: UFD15 | K77: Discus | L77: Nick Percy | M77: Shaftesbury Barnet Harriers | N77: 60.75 | O77: Basildon | P77: April 28th | Q77: 2013 | S77: 751 | T77: STYLES Xander | U77: U20 Men | V77: 11 | X77: 122 | Y77: DAKE Zoe X | Z77: U17 Women | AA77: 21
A78: Pole V | J78: UFD01 | K78: Hammer | L78: Jake Norris | M78: Windsor Slough Eton & Hounslow | N78: 76.97 | O78: Bromley | P78: May 28th | Q78: 2017 | S78: 761 | T78: TAY SELASI X | U78: U17 Men | V78: 11 | X78: 132 | Y78: DAVIDS Chiamaka | Z78: U20 Women | AA78: 21
A79: r4x11/2: | B79: PURDIE Isabella | C79: HUGHES Anandamayi | J79: UFD05 | K79: Javelin | L79: James Whiteaker | M79: Blackheath & Bromley Harriers A.C. | N79: 73.4 | O79: Norwich | P79: April 30th | Q79: 2017 | S79: 771 | T79: THOMAS-SENGATI Mark | U79: U20 Men | V79: 11 | X79: 142 | Y79: DRIVER Megan X | Z79: U17 Women | AA79: 21
A80: r4x13/4: | B80: CHRISTIE Keturah | C80: NASH Holly | J80: UTR4 | K80: 4 x 100 Relay | L80: - | M80: Croydon Harriers | N80: 41.11 | O80: Croydon | P80: May 28th | Q80: 2017 | S80: 781 | T80: WALKER Jess X | U80: U17 Men | V80: 11 | X80: 152 | Y80: GAYLE Rhiannon | Z80: U20 Women | AA80: 21
A81: r4x41/2: | B81: DAWSON Katie | C81: O'NEILL Kate | J81: UTDR4 | K81: 4 X 400 Relay | L81: - | M81: Liverpool Harriers | N81: 00:03:20.800 | O81: Meadowbank | P81: June 30th | Q81: 2013 | S81: 791 | T81: WILLIAMS Clement X | U81: U17 Men | V81: 11 | X81: 162 | Y81: GORDON Chanice | Z81: U20 Women | AA81: 21
A82: r4x43/4: | B82: RAND Sophie | C82: MITCHELL Jessica | J82: UT06 | K82: 100m | L82: Raphael Bouju | M82: Team Bedfordshire | N82: 10.62 | O82: Reading | P82: April 29th | Q82: 2018 | S82: 801 | T82: WITHERS Gus | U82: U20 Men | V82: 11 | X82: 172 | Y82: GORDON Kiera-Grace X | Z82: U17 Women | AA82: 21
A83: clubname: | B83: Stevenage & North Herts AC | J83: UT18 | K83: 200m | L83: Ryan Gorman | M83: Notts AC | N83: 21.64 | O83: Birmingham | P83: April 27th | Q83: 2014 | S83: 811 | T83: WRIGHT James X | U83: U17 Men | V83: 11 | X83: 182 | Y83: HOOSANG-ROBINSON Naomi | Z83: U20 Women | AA83: 21
A84: AW_abbr: | B84: SNH | J84: UT10 | K84: 400m | L84: Joshua Pearson | M84: Windsor Slough Eton & Hounslow | N84: 48.88 | O84: Reading | P84: April 29th | Q84: 2018 | T84: athlete | U84: agegroup | X84: 192 | Y84: HOWARD Cassandra X | Z84: U17 Women | AA84: 21
A85: agegroup: | B85: U20 Women | J85: UTD82 | K85: 800m | L85: Ben Read | M85: Wakefield | N85: 00:01:55.500 | O85: Stretford | P85: June 29th | Q85: 2014 | S85: 12 | T85: ADEGOKE Nathanael X | U85: U17 Men | V85: 21 | X85: 202 | Y85: HOWARD Chloe | Z85: U20 Women | AA85: 21
A86: bib | B86: 4 | C86: 44 | J86: UTD02 | K86: 1500m | L86: Josh Kerr | M86: Team Edinburgh | N86: 00:03:56.700 | O86: Stretford | P86: June 29th | Q86: 2014 | S86: 22 | T86: AHOUZAN Chris-Collins | U86: U20 Men | V86: 21 | X86: 212 | Y86: LARGIE-POLEON Racheal X | Z86: U17 Women | AA86: 21
A87: 75/100 | B87: PICKARD Abigail | C87: BROWN Rebecca | J87: UTD05 | K87: 3000m | L87: Isaac Akers | M87: Rugby & Northants | N87: 00:08:49.230 | O87: Birmingham | P87: May 16th | Q87: 2015 | S87: 32 | T87: AIMIA Tim | U87: U20 Men | V87: 21 | X87: 222 | Y87: MAKUWA Rowan X | Z87: U17 Women | AA87: 21
A88: 100M NS | J88: UT15 | K88: 100mH | L88: Tre Thomas | M88: Charnwood AC | N88: 12.8 | O88: Banbury | P88: May 1st | Q88: 2016 | S88: 42 | T88: AJEH Chuks | U88: U20 Men | V88: 21 | X88: 232 | Y88: MCCARTHY Marcavia X | Z88: U17 Women | AA88: 21
A89: 200 | J89: UT02 | K89: 400mH | L89: Bailey Stickings | M89: Blackheath & Bromley Harriers A.C. | N89: 54.05 | O89: Birmingham | P89: Sept 7th | Q89: 2014 | S89: 52 | T89: ALADE Adeyanju X | U89: U17 Men | V89: 21 | X89: 242 | Y89: MOORE Jessica | Z89: U20 Women | AA89: 21
A90: 400 | J90: UTD12 | K90: 1500m S/C | L90: Chey Blatchford Kemp | M90: Reading AC | N90: 00:04:22.400 | O90: Eton | P90: May 1st | Q90: 2016 | S90: 62 | T90: ALLICOCK Rawle X | U90: U17 Men | V90: 21 | X90: 252 | Y90: OCANSEY Jade X | Z90: U17 Women | AA90: 21
A91: 800 | J91: UFH04 | K91: High Jump | L91: Joel Khan | M91: Rugby & Northants | N91: 2.08 | O91: Stoke on Trent | P91: June 26th | Q91: 2016 | S91: 72 | T91: BLAIR Zachary X | U91: U17 Men | V91: 21 | X91: 262 | Y91: OLUFEMI-KRAKUE Ola | Z91: U20 Women | AA91: 21
A92: 800M NS | J92: UFH06 | K92: Pole Vault | L92: Frankie Johnson | M92: Bedford & County | N92: 4.8 | O92: Bedford | P92: June 26th | Q92: 2016 | S92: 82 | T92: CROCKETT Ryan X | U92: U17 Men | V92: 21 | X92: 272 | Y92: OWOLABI Naomi X | Z92: U17 Women | AA92: 21
A93: 1500 | J93: UFW02 | K93: Long Jump | L93: Joel McFarlane | M93: Team Forth Valley | N93: 6.97 | O93: Leeds | P93: May 28th | Q93: 2017 | S93: 92 | T93: DACOSTA Dylan | U93: U20 Men | V93: 21 | X93: 282 | Y93: PIPPIM Ella X | Z93: U17 Women | AA93: 21
A94: Sp H | J94: UFW06 | K94: Triple Jump | L94: Stefan Amokwandoh | M94: Blackheath & Bromley Harriers A.C. | N94: 14.62 | O94: Birmingham | P94: Sept 8th | Q94: 2013 | S94: 102 | T94: DANCLAIR Daniel X | U94: U17 Men | V94: 21 | X94: 292 | Y94: REID Alisha X | Z94: U17 Women | AA94: 21
A95: 3000 | J95: UFD12 | K95: Shot Put | L95: Daniel Cartwright | M95: Birchfield Harriers | N95: 17.58 | O95: Milton Keynes | P95: April 18th | Q95: 2015 | S95: 112 | T95: DANIEL Cameron Ayo | U95: U20 Men | V95: 21 | X95: 302 | Y95: SALAMI Tosin | Z95: U20 Women | AA95: 21
A96: SChase | B96: DUKE Charlotte | J96: UFD16 | K96: Discus | L96: James Tomlinson | M96: West Wales | N96: 57.43 | O96: Newport | P96: May 29th | Q96: 2016 | S96: 122 | T96: EDWARDS Sean X | U96: U17 Men | V96: 20 | X96: 312 | Y96: SEY Marcia X | Z96: U17 Women | AA96: 21
A97: 400mH | J97: UFD02 | K97: Hammer | L97: Jake Norris | M97: Windsor Slough Eton & Hounslow | N97: 73.25 | O97: Lee Valley | P97: May 16th | Q97: 2015 | S97: 132 | T97: ENNIS Jack X | U97: U17 Men | V97: 21 | X97: 322 | Y97: SINGH Antara X | Z97: U17 Women | AA97: 21
A98: Discus | J98: UFD06 | K98: Javelin | L98: George Davis | M98: City of York A.C. | N98: 69.96 | O98: Spinkhill | P98: April 27th | Q98: 2014 | S98: 142 | T98: FABUSIWA Anthony X | U98: U17 Men | V98: 21 | X98: 332 | Y98: WILLIAMS Zindzi X | Z98: U17 Women | AA98: 21
A99: Hammer | J99: UTR2 | K99: 4 x 100 Relay | L99: - | M99: Croydon Harriers | N99: 42.74 | O99: Stevenage | P99: May 27th | Q99: 2018 | S99: 152 | T99: FLANAGAN Isaac X | U99: U17 Men | V99: 21 | X99: 342 | Y99: ZEPA Ines-Karel | Z99: U20 Women | AA99: 21
A100: Javelin | J100: UTDR2 | K100: 4 X 400 Relay | L100: - | M100: Blackheath & Bromley Harriers A.C. | N100: 00:03:26.490 | O100: Birmingham | P100: Sept 7th | Q100: 2014 | S100: 162 | T100: FRANCIS-DWYER Micah | U100: U20 Men | V100: 21 | Y100: athlete | Z100: agegroup
A101: Shot | B101: BROWN Rebecca | C101: PICKARD Abigail | J101: UT07 | K101: 100m | L101: Dina Asher-Smith | M101: Blackheath & Bromley Harriers A.C. | N101: 11.49 | O101: Norwich | P101: April 27th | Q101: 2014 | S101: 172 | T101: GBEYO Ange X | U101: U17 Men | V101: 21 | X101: 13 | Y101: ADAMS Elizabeth | Z101: U20 Women | AA101: 31
A102: Long J | B102: PICKARD Abigail | C102: BROWN Rebecca | J102: UT19 | K102: 200m | L102: Dina Asher-Smith | M102: Blackheath & Bromley Harriers A.C. | N102: 23.08 | O102: Norwich | P102: April 27th | Q102: 2014 | S102: 182 | T102: GLAVE Romell | U102: U20 Men | V102: 21 | X102: 23 | Y102: ADENIJI Alexandrea X | Z102: U17 Women | AA102: 31
A103: Triple J | B103: PICKARD Abigail | C103: BROWN Rebecca | J103: UT11 | K103: 400m | L103: Lina Nielson | M103: Enfield & Haringey A.C. | N103: 54.38 | O103: Stevenage | P103: April 18th | Q103: 2015 | S103: 192 | T103: GRANT Tyresse X | U103: U17 Men | V103: 21 | X103: 33 | Y103: AGNIMEL Esther X | Z103: U17 Women | AA103: 31
A104: High J | J104: UTD83 | K104: 800m | L104: Katy-Ann McDonald | M104: Blackheath & Bromley Harriers A.C. | N104: 00:02:08.220 | O104: Birmingham | P104: Sept 3rd | Q104: 2017 | S104: 202 | T104: HALLUMS Soul X | U104: U17 Men | V104: 21 | X104: 43 | Y104: AJAYI Temitope X | Z104: U17 Women | AA104: 31
A105: Pole V | B105: PICKARD Abigail | J105: UTD03 | K105: 1500m | L105: Niamh Bridson-Hubbard | M105: Blackheath & Bromley Harriers A.C. | N105: 00:04:29.900 | O105: Hendon | P105: June 26th | Q105: 2016 | S105: 212 | T105: HILL Luke X | U105: U17 Men | V105: 21 | X105: 53 | Y105: AKINOLA Rachel X | Z105: U17 Women | AA105: 31
A106: r4x11/2: | J106: UTD08 | K106: 3000m | L106: Victoria Weir | M106: Team DC | N106: 00:09:37.560 | O106: Yeovil | P106: July 24th | Q106: 2016 | S106: 222 | T106: INNISS Tyvon X | U106: U17 Men | V106: 21 | X106: 63 | Y106: AKPOTOR Omesiri X | Z106: U17 Women | AA106: 31
A107: r4x13/4: | J107: UT14 | K107: 100mH | L107: Isabella Hilditch | M107: Blackheath & Bromley Harriers A. C | N107: 13.85 | O107: Reading | P107: April 29th | Q107: 2018 | S107: 232 | T107: JOHNSON-FISHER Tyrese | U107: U20 Men | V107: 21 | X107: 73 | Y107: ANDERSON Ayesha X | Z107: U17 Women | AA107: 31
A108: r4x41/2: | J108: UT03 | K108: 400mH | L108: Shona Richards | M108: Windsor Slough Eton & Hounslow | N108: 57.91 | O108: Norwich | P108: April 27th | Q108: 2014 | S108: 242 | T108: KESTERTON Neal | U108: U20 Men | V108: 21 | X108: 83 | Y108: APAU Amma X | Z108: U17 Women | AA108: 31
A109: r4x43/4: | J109: UTD10 | K109: 1500m S/C | L109: Aimee Pratt | M109: Sale Harriers | N109: 00:04:51.700 | O109: Blackburn | P109: May 1st | Q109: 2016 | S109: 252 | T109: KINLOCK Derek X | U109: U17 Men | V109: 21 | X109: 93 | Y109: BARKER Catherine | Z109: U20 Women | AA109: 31
A110: clubname: | B110: Team ATIP © | J110: UFH07 | K110: High Jump | L110: Ada'oro Chigbo | M110: Team Avon | N110: 1.8 | O110: Yate | P110: April 18th | Q110: 2015 | S110: 262 | T110: LAWRENCE Dane | U110: U20 Men | V110: 21 | X110: 103 | Y110: BATH Lily X | Z110: U17 Women | AA110: 31
A111: AW_abbr: | B111: ATIP | J111: UFH01 | K111: Pole Vault | L111: Abigail Roberts | M111: City of Sheffield | N111: 3.95 | O111: Preston | P111: June 28th | Q111: 2015 | S111: 272 | T111: LONG Jonathan X | U111: U17 Men | V111: 21 | X111: 113 | Y111: BATH Molly X | Z111: U17 Women | AA111: 31
A112: agegroup: | B112: U20 Women | J112: UFW03 | K112: Long Jump | L112: Eleanor Broome | M112: Rugby & Northants | N112: 6.26 | O112: Worcester | P112: May 29th | Q112: 2016 | S112: 282 | T112: MAGINN Matthew X | U112: U17 Men | V112: 21 | X112: 123 | Y112: BONNING Elize X | Z112: U17 Women | AA112: 31
A113: bib | B113: 5 | C113: 55 | J113: UFW07 | K113: Triple Jump | L113: Emily Gargan | M113: Gateshead Harriers | N113: 12.68 | O113: Hull | P113: April 30th | Q113: 2017 | S113: 292 | T113: MARSHALL Nick X | U113: U17 Men | V113: 21 | X113: 133 | Y113: BRADLEY Charlotte X | Z113: U17 Women | AA113: 31
A114: 75/100 | B114: SULLIVAN Grace | C114: SAXBY ELLA X | J114: UFD07 | K114: Shot Put | L114: Adele Nicoll | M114: Birchfield Harriers | N114: 14.9 | O114: Wolverhampton | P114: July 26th | Q114: 2015 | S114: 302 | T114: MASON Michael jr X | U114: U17 Men | V114: 21 | X114: 143 | Y114: BROWN Rosie X | Z114: U17 Women | AA114: 31
A115: 100M NS | J115: UFD13 | K115: Discus | L115: Amy Holder | M115: Windsor Slough Eton & Hounslow | N115: 51.89 | O115: Stevenage | P115: April 18th | Q115: 2015 | S115: 312 | T115: MAUGE Damani X | U115: U17 Men | V115: 21 | X115: 153 | Y115: CHAPMAN Chloe X | Z115: U17 Women | AA115: 31
A116: 200 | B116: SCRIVENS HANNAH X | J116: UFD03 | K116: Hammer | L116: Kimberley Reed | M116: Team Edinburgh | N116: 60.48 | O116: Edinburgh | P116: April 27th | Q116: 2014 | S116: 322 | T116: NAJORKA Valentin X | U116: U17 Men | V116: 21 | X116: 163 | Y116: CHRISTIE Keturah | Z116: U20 Women | AA116: 31
A117: 400 | B117: LEE FREYA X | J117: UFD09 | K117: Javelin | L117: Emma Hamplett | M117: Birchfield Harriers | N117: 48.94 | O117: Wolverhampton | P117: June 25th | Q117: 2017 | S117: 332 | T117: O'DONGO Jordan | U117: U20 Men | V117: 21 | X117: 173 | Y117: COOPER Ann X | Z117: U17 Women | AA117: 31
A118: 800 | J118: UTR3 | K118: 4 x 100 Relay | L118: - | M118: Blackheath & Bromley Harriers A.C. | N118: 46.43 | O118: Bromley | P118: June 1st | Q118: 2014 | S118: 342 | T118: OGUNLANA Olalekan | U118: U20 Men | V118: 21 | X118: 183 | Y118: CRACKNELL Poppi-Redd X | Z118: U17 Women | AA118: 31
A119: 800M NS | J119: UTDR3 | K119: 4 X 400 Relay | L119: - | M119: Enfield & Haringey A.C. | N119: 00:03:49.690 | O119: Hendon | P119: June 28th | Q119: 2015 | S119: 352 | T119: OPARA Malachi X | U119: U17 Men | V119: 21 | X119: 193 | Y119: DAVIES Emily X | Z119: U17 Women | AA119: 31
A120: 1500 | J120: UT08 | K120: 100m | L120: Gina Akpe-Moses | M120: Birchfield Harriers | N120: 11.85 | O120: Birmingham | P120: May 16th | Q120: 2015 | S120: 362 | T120: OPPONG KYEI Verter | U120: U20 Men | V120: 21 | X120: 203 | Y120: DAWSON Katie | Z120: U20 Women | AA120: 31
A121: Sp H | J121: UT20 | K121: 200m | L121: Charlotte McLennaghan | M121: Notts AC | N121: 23.92 | O121: Birmingham | P121: April 27th | Q121: 2014 | S121: 372 | T121: OSPINA Israel X | U121: U17 Men | V121: 21 | X121: 213 | Y121: DOOLEY Shannon | Z121: U20 Women | AA121: 31
A122: 3000 | J122: UT12 | K122: 300m | L122: Cheriece Hylton | M122: Blackheath & Bromley Harriers A.C. | N122: 38.47 | O122: Birmingham | P122: Sept 8th | Q122: 2013 | S122: 382 | T122: PANTON Adrian X | U122: U17 Men | V122: 21 | X122: 223 | Y122: DOUGLAS Tyra X | Z122: U17 Women | AA122: 31
A123: SChase | J123: UTD84 | K123: 800m | L123: Katy-Ann McDonald | M123: Blackheath & Bromley Harriers A.C. | N123: 00:02:06.800 | O123: Bedford | P123: Sept 4th | Q123: 2016 | S123: 392 | T123: PREEST Oliver X | U123: U17 Men | V123: 21 | X123: 233 | Y123: DUFFY Freya X | Z123: U17 Women | AA123: 31
A124: 400mH | J124: UTD04 | K124: 1500m | L124: Sabrina Sinha | M124: Cambridge Harriers | N124: 00:04:31 | O124: Mile End | P124: April 27th | Q124: 2014 | S124: 402 | T124: RODRIQUES Ezra | U124: U20 Men | V124: 21 | X124: 243 | Y124: DUKELOW Grace X | Z124: U17 Women | AA124: 31
A125: Discus | J125: UTD07 | K125: 3000m | L125: Claudia Lance-Jones | M125: Guildford & Godalming AC | N125: 00:09:56 | O125: Guildford | P125: April 30th | Q125: 2017 | S125: 412 | T125: RYAN-COKER Jamal X | U125: U17 Men | V125: 21 | X125: 253 | Y125: ELLIS Poppy X | Z125: U17 Women | AA125: 31
A126: Hammer | J126: UT13 | K126: 80mH | L126: Alicia Barrett | M126: Chesterfield | N126: 11.2 | O126: Grimsby | P126: June 29th | Q126: 2014 | S126: 422 | T126: SHEW Adam X | U126: U17 Men | V126: 21 | X126: 263 | Y126: ESHO Teshanne X | Z126: U17 Women | AA126: 31
A127: Javelin | J127: UT04 | K127: 300mH | L127: Abigail Bowers | M127: Border Olympians | N127: 43.2 | O127: Banbury | P127: June 1st | Q127: 2014 | S127: 432 | T127: SMITHEN Louis X | U127: U17 Men | V127: 21 | X127: 273 | Y127: GANIYU Zainab | Z127: U20 Women | AA127: 31
A128: Shot | J128: UTD09 | K128: 1500m S/C | L128: Holly Page | M128: Dartford Harriers | N128: 00:04:59.500 | O128: Dartford | P128: May 1st | Q128: 2016 | S128: 442 | T128: SPENCER Jacob | U128: U20 Men | V128: 21 | X128: 283 | Y128: GILL Philippa | Z128: U20 Women | AA128: 31
A129: Long J | B129: SULLIVAN Grace | J129: UFH08 | K129: High Jump | L129: Morgan Lake | M129: Windsor Slough Eton & Hounslow | N129: 1.8 | O129: Allianz Park | P129: July 28th | Q129: 2013 | S129: 452 | T129: TAMBLING Robbie X | U129: U17 Men | V129: 21 | X129: 293 | Y129: GRIFFITHS Grace X | Z129: U17 Women | AA129: 31
A130: Triple J | B130: SULLIVAN Grace | J130: UFH02 | K130: Pole Vault | L130: Molly Caudery | M130: Team DC | N130: 4.06 | O130: Yeovil | P130: July 24th | Q130: 2016 | S130: 462 | T130: TENDO Tyrese X | U130: U17 Men | V130: 21 | X130: 303 | Y130: HOLLOWAY Sophia X | Z130: U17 Women | AA130: 31
A131: High J | J131: UFW04 | K131: Long Jump | L131: Holly Mills | M131: Blackheath & Bromley Harriers A.C. | N131: 6.17 | O131: Eton | P131: May 1st | Q131: 2016 | S131: 472 | T131: THOMAS Emmanuel | U131: U20 Men | V131: 21 | X131: 313 | Y131: HUGHES Anandamayi | Z131: U20 Women | AA131: 31
A132: Pole V | J132: UFW08 | K132: Triple Jump | L132: Jazz Sears | M132: Shaftesbury Barnet Harriers | N132: 12.45 | O132: Reading | P132: April 29th | Q132: 2018 | S132: 482 | T132: VANANATHAN Nithipan | U132: U20 Men | V132: 21 | X132: 323 | Y132: IGBINOSA-IGHILE Mary X | Z132: U17 Women | AA132: 31
A133: r4x11/2: | C133: SULLIVAN Grace | J133: UFD08 | K133: Shot Put | L133: Serena Vincent | M133: City of Portsmouth | N133: 15.55 | O133: Kingsmeadow | P133: May 27th | Q133: 2018 | S133: 492 | T133: VAUGHAN Reuben | U133: U20 Men | V133: 21 | X133: 333 | Y133: INGRAM Chloe X | Z133: U17 Women | AA133: 31
A134: r4x13/4: | B134: LEE FREYA X | C134: MILLARD Alexandra X | J134: UFD14 | K134: Discus | L134: Georgie Taylor | M134: Havering AC | N134: 45.41 | O134: Welwyn | P134: June 2nd | Q134: 2013 | S134: 502 | T134: WIAFE Alexander | U134: U20 Men | V134: 21 | X134: 343 | Y134: JAMES Emily | Z134: U20 Women | AA134: 31
A135: r4x41/2: | J135: UFD04 | K135: Hammer | L135: Katie Head | M135: Basildon Beagles | N135: 61.76 | O135: Sutcliffe Park | P135: May 29th | Q135: 2016 | S135: 512 | T135: WILLIAMS Samir | U135: U20 Men | V135: 21 | X135: 353 | Y135: JAMES Jessica X | Z135: U17 Women | AA135: 31
A136: r4x43/4: | J136: UFD10 | K136: Javelin | L136: Emma Hamplett | M136: Cannock & Stafford | N136: 57.14 | O136: Loughborough | P136: June 1st | Q136: 2014 | T136: athlete | U136: agegroup | X136: 363 | Y136: KAVANAGH Jade X | Z136: U17 Women | AA136: 31
A137: clubname: | B137: Tonbridge AC | J137: UTR1 | K137: 4 x 100 Relay | L137: - | M137: Blackheath & Bromley Harriers A.C. | N137: 46.71 | O137: Birmingham | P137: Sept 8th | Q137: 2013 | S137: 13 | T137: ADDISON Elliott | U137: U20 Men | V137: 31 | X137: 373 | Y137: KILNER Amy X | Z137: U17 Women | AA137: 31
A138: AW_abbr: | B138: Ton | J138: UTDR1 | K138: 4 X 300 Relay | L138: - | M138: Enfield & Haringey AC | N138: 00:02:45.970 | O138: Lee Valley | P138: May 16th | Q138: 2015 | S138: 23 | T138: ADENIRAN Nathanael X | U138: U17 Men | V138: 31 | X138: 383 | Y138: KING Ella X | Z138: U17 Women | AA138: 31
A139: agegroup: | B139: U20 Women | J139: UFW05 | K139: Triple Jump | L139: Jordan Walklett | M139: Team DC | N139: 14.76 | O139: Cardiff | P139: June 25th | Q139: 2017 | S139: 33 | T139: AGNIMEL Matthew | U139: U20 Men | V139: 31 | X139: 393 | Y139: MENSAH Vanessa X | Z139: U17 Women | AA139: 31
A140: bib | B140: 6 | C140: 66 | S140: 43 | T140: AKINYEBO Richard X | U140: U17 Men | V140: 31 | X140: 403 | Y140: MITCHELL Jessica | Z140: U20 Women | AA140: 31
A141: 75/100 | B141: ROOT Asha | C141: VINE Isabelle | S141: 53 | T141: ATKINS Samuel | U141: U20 Men | V141: 31 | X141: 413 | Y141: MOODY Robyn X | Z141: U17 Women | AA141: 31
A142: 100M NS | S142: 63 | T142: BARNACLE George X | U142: U17 Men | V142: 31 | X142: 423 | Y142: MWANZA Lydia X | Z142: U17 Women | AA142: 31
A143: 200 | B143: ROOT Asha | C143: VINE Isabelle | S143: 73 | T143: BERRETT Louis X | U143: U17 Men | V143: 31 | X143: 433 | Y143: NASH Holly | Z143: U20 Women | AA143: 31
A144: 400 | C144: EBBAGE Kirsty Ann X | S144: 83 | T144: BRINTON-QUINN Peter X | U144: U17 Men | V144: 31 | X144: 443 | Y144: NEWSON Grace X | Z144: U17 Women | AA144: 31
A145: 800 | S145: 93 | T145: CHAPLIN Henry X | U145: U17 Men | V145: 31 | X145: 453 | Y145: NICHOLLS Holly X | Z145: U17 Women | AA145: 31
A146: 800M NS | S146: 103 | T146: CHESTER Luke X | U146: U17 Men | V146: 31 | X146: 463 | Y146: OKPALAUKO Chimdi | Z146: U20 Women | AA146: 31
A147: 1500 | B147: HESLOP Elizabeth X | C147: KINGSTON Lucy X | S147: 113 | T147: CHRISTIE Kimathi X | U147: U17 Men | V147: 31 | X147: 473 | Y147: O'NEILL Kate | Z147: U20 Women | AA147: 31
A148: Sp H | B148: VINE Isabelle | S148: 123 | T148: COOMBS Ethan X | U148: U17 Men | V148: 31 | X148: 483 | Y148: PANCHAL Hannah X | Z148: U17 Women | AA148: 31
A149: 3000 | S149: 133 | T149: CORDERY Elliot | U149: U20 Men | V149: 31 | X149: 493 | Y149: PHILLIPS Georgia | Z149: U20 Women | AA149: 31
A150: SChase | S150: 143 | T150: DAVIS Ben | U150: U20 Men | V150: 31 | X150: 503 | Y150: PRIESTLEY Lucy X | Z150: U17 Women | AA150: 31
A151: 400mH | S151: 153 | T151: DEBENHAM Lewis | U151: U20 Men | V151: 31 | X151: 513 | Y151: PURDIE Isabella | Z151: U20 Women | AA151: 31
A152: Discus | B152: LAQERETABUA Una | S152: 163 | T152: DEBENHAM Reece X | U152: U17 Men | V152: 31 | X152: 523 | Y152: RAFFERTY Katie X | Z152: U17 Women | AA152: 31
A153: Hammer | S153: 173 | T153: DUNCAN Jordon | U153: U20 Men | V153: 31 | X153: 533 | Y153: RAND Sophie | Z153: U20 Women | AA153: 31
A154: Javelin | B154: LAQERETABUA Una | C154: VINE Isabelle | S154: 183 | T154: EDWARDS Matthew X | U154: U17 Men | V154: 31 | X154: 543 | Y154: RUSHWORTH Charlotte X | Z154: U17 Women | AA154: 31
A155: Shot | S155: 193 | T155: FENNESSEY John | U155: U20 Men | V155: 31 | X155: 553 | Y155: SANWO Olatomiwa | Z155: U20 Women | AA155: 31
A156: Long J | B156: LAQERETABUA Una | S156: 203 | T156: FOX Billy X | U156: U17 Men | V156: 31 | X156: 563 | Y156: SHIPTON Abigail | Z156: U20 Women | AA156: 31
A157: Triple J | S157: 213 | T157: FRESHWATER Aaron X | U157: U17 Men | V157: 31 | X157: 573 | Y157: SWEETMAN Molly X | Z157: U17 Women | AA157: 31
A158: High J | S158: 223 | T158: FRIEND Alexander X | U158: U17 Men | V158: 31 | X158: 583 | Y158: THATCHER-GRAY Adelaide X | Z158: U17 Women | AA158: 31
A159: Pole V | B159: LAQERETABUA Una | S159: 233 | T159: HARRIOTT Reece X | U159: U17 Men | V159: 31 | X159: 593 | Y159: THATCHER-GRAY Elysha | Z159: U20 Women | AA159: 31
A160: r4x11/2: | B160: VINE Isabelle | C160: HESLOP Elizabeth X | S160: 243 | T160: HARRY Tayo X | U160: U17 Men | V160: 31 | X160: 603 | Y160: THOMSON Angelica X | Z160: U17 Women | AA160: 31
A161: r4x13/4: | B161: RIXON Maisie X | C161: ALI Sohaila X | S161: 253 | T161: HOGAN-O'NEILL Joseph X | U161: U17 Men | V161: 31 | X161: 613 | Y161: WADDAMS Josie | Z161: U20 Women | AA161: 31
A162: r4x41/2: | B162: ROOT Asha | C162: O'HARA Jessica X | S162: 263 | T162: HUTTON Hal X | U162: U17 Men | V162: 31 | X162: 623 | Y162: WALLIS Sandra | Z162: U20 Women | AA162: 31
A163: r4x43/4: | B163: KINGSTON Lucy X | C163: O'BRIEN Rebekah X | S163: 273 | T163: IDOWU Tobi X | U163: U17 Men | V163: 31 | X163: 633 | Y163: WHITE Sophie X | Z163: U17 Women | AA163: 31
A164: clubname: | B164: Basildon Beagles © | S164: 283 | T164: JARVIS Dominic X | U164: U17 Men | V164: 31 | X164: 643 | Y164: WRIGHT Alice X | Z164: U17 Women | AA164: 31
A165: AW_abbr: | B165: Bas/NEB | S165: 293 | T165: JONES Harry X | U165: U17 Men | V165: 31 | X165: 653 | Y165: WRIGHT Charlotte X | Z165: U17 Women | AA165: 31
A166: agegroup: | B166: U20 Men | S166: 303 | T166: JORDAN Ayden X | U166: U17 Men | V166: 31 | Y166: athlete | Z166: agegroup
A167: bib | B167: 1 | C167: 11 | S167: 313 | T167: KEEVIL Thomas | U167: U20 Men | V167: 31 | X167: 14 | Y167: ALDRIDGE Lauren | Z167: U20 Women | AA167: 41
A168: 75/100 | B168: JAMES Chosen | C168: ELLIS Cameron X | S168: 323 | T168: LAUGHLIN Edward X | U168: U17 Men | V168: 31 | X168: 24 | Y168: ANDREWS Connie X | Z168: U17 Women | AA168: 41
A169: 100M NS | S169: 333 | T169: LAW Max X | U169: U17 Men | V169: 31 | X169: 34 | Y169: ASTILL Molly | Z169: U20 Women | AA169: 41
A170: 200 | B170: OSUNSAMI Mayowa | C170: JAMES Chosen | S170: 343 | T170: LAY Henry X | U170: U17 Men | V170: 31 | X170: 44 | Y170: BATES Rhianna | Z170: U20 Women | AA170: 41
A171: 400 | B171: CHAPMAN Harrison | C171: BROWN Isaac | S171: 353 | T171: LONG Jake X | U171: U17 Men | V171: 31 | X171: 54 | Y171: BEDDALL Rebecca | Z171: U20 Women | AA171: 41
A172: 800 | B172: RASHBROOK Jamie X | S172: 363 | T172: MCCREE Alex | U172: U20 Men | V172: 31 | X172: 64 | Y172: BENNETT Olivia | Z172: U20 Women | AA172: 40
A173: 800M NS | S173: 373 | T173: MCDONNELL Euan X | U173: U17 Men | V173: 31 | X173: 74 | Y173: BROWN Eliza X | Z173: U17 Women | AA173: 41
A174: 1500 | B174: BROWN Isaac | S174: 383 | T174: MILTON Thomas X | U174: U17 Men | V174: 31 | X174: 84 | Y174: BROWN Rebecca | Z174: U20 Women | AA174: 41
A175: Sp H | B175: ADEYEYE William | S175: 393 | T175: MOORE Robert X | U175: U17 Men | V175: 31 | X175: 94 | Y175: DAVIES Molly X | Z175: U17 Women | AA175: 41
A176: 3000 | B176: SMITH Harrison | S176: 403 | T176: ODOTEI Samuel X | U176: U17 Men | V176: 31 | X176: 104 | Y176: DUKE Charlotte | Z176: U20 Women | AA176: 41
A177: SChase | S177: 413 | T177: O'HARA Kieran | U177: U20 Men | V177: 31 | X177: 114 | Y177: GARDNER Molly X | Z177: U17 Women | AA177: 41
A178: 400mH | S178: 423 | T178: OKOH Phil X | U178: U17 Men | V178: 31 | X178: 124 | Y178: HARLEY Bethany | Z178: U20 Women | AA178: 41
A179: Discus | B179: STUART Samuel X | S179: 433 | T179: OKPALAUKO Somto X | U179: U17 Men | V179: 31 | X179: 134 | Y179: HETHERINGTON Christa X | Z179: U17 Women | AA179: 41
A180: Hammer | S180: 443 | T180: OLUSESAN Benedict X | U180: U17 Men | V180: 31 | X180: 144 | Y180: HURLEY Madeline X | Z180: U17 Women | AA180: 41
A181: Javelin | S181: 453 | T181: PAGET Calum X | U181: U17 Men | V181: 31 | X181: 154 | Y181: JONES Erin X | Z181: U17 Women | AA181: 41
A182: Shot | B182: HENRY JEROME X | S182: 463 | T182: PEEL Richard | U182: U20 Men | V182: 31 | X182: 164 | Y182: JULIAN Lottie X | Z182: U17 Women | AA182: 41
A183: Long J | B183: ELLIS Cameron X | S183: 473 | T183: RAY Oliver X | U183: U17 Men | V183: 31 | X183: 174 | Y183: LEVY Alisha | Z183: U20 Women | AA183: 41
A184: Triple J | B184: FADAYIRO Theo | C184: ADEGBITE Andrew | S184: 483 | T184: RHODES Dylan X | U184: U17 Men | V184: 31 | X184: 184 | Y184: LINDSAY Olivia X | Z184: U17 Women | AA184: 41
A185: High J | B185: FADAYIRO Theo | S185: 493 | T185: RIDDELL Kieran | U185: U20 Men | V185: 31 | X185: 194 | Y185: MAINSTONE Danielle X | Z185: U17 Women | AA185: 41
A186: Pole V | S186: 503 | T186: RYAN John X | U186: U17 Men | V186: 31 | X186: 204 | Y186: MEE Grace | Z186: U20 Women | AA186: 41
A187: r4x11/2: | B187: ADEGBITE Andrew | C187: JAMES Chosen | S187: 513 | T187: SAVILL Charles X | U187: U17 Men | V187: 31 | X187: 214 | Y187: NWOSU Jennifer | Z187: U20 Women | AA187: 40
A188: r4x13/4: | B188: ADEYEYE William | C188: OSUNSAMI Mayowa | S188: 523 | T188: SCOTCHMER Jack X | U188: U17 Men | V188: 31 | X188: 224 | Y188: OLIVER Erin | Z188: U20 Women | AA188: 41
A189: r4x41/2: | B189: BROWN Isaac | C189: RASHBROOK Jamie X | S189: 533 | T189: SOULSBY Luke | U189: U20 Men | V189: 31 | X189: 234 | Y189: PICKARD Abigail | Z189: U20 Women | AA189: 41
A190: r4x43/4: | B190: CHAPMAN Harrison | C190: OSUNSAMI Mayowa | S190: 543 | T190: STEWART James | U190: U20 Men | V190: 31 | X190: 244 | Y190: PYBUS Shona | Z190: U20 Women | AA190: 41
A191: clubname: | B191: Croydon Harriers | S191: 553 | T191: TAYLOR Shandell | U191: U20 Men | V191: 31 | X191: 254 | Y191: RAYMONT Lizzie X | Z191: U17 Women | AA191: 41
A192: AW_abbr: | B192: Croy | S192: 563 | T192: THOMAS Jamal X | U192: U17 Men | V192: 31 | X192: 264 | Y192: RHODES Aisla X | Z192: U17 Women | AA192: 41
A193: agegroup: | B193: U20 Men | S193: 573 | T193: TOMY Kester X | U193: U17 Men | V193: 31 | X193: 274 | Y193: ROYCE Amelia | Z193: U20 Women | AA193: 41
A194: bib | B194: 2 | C194: 22 | S194: 583 | T194: VARANAUSKAS Harry X | U194: U17 Men | V194: 31 | X194: 284 | Y194: SAUNDERS Emily | Z194: U20 Women | AA194: 41
A195: 75/100 | B195: FRANCIS-DWYER Micah | C195: DANIEL Cameron Ayo | S195: 593 | T195: WOODS Oliver X | U195: U17 Men | V195: 31 | X195: 294 | Y195: SHEPHARD-GAZELY Georgia X | Z195: U17 Women | AA195: 41
A196: 100M NS | S196: 603 | T196: ZABULIONIS Lukas X | U196: U17 Men | V196: 31 | X196: 304 | Y196: SIJUWADE Petra X | Z196: U17 Women | AA196: 41
A197: 200 | B197: DACOSTA Dylan | C197: OSPINA Israel X | T197: athlete | U197: agegroup | X197: 314 | Y197: TAYLOR Libby X | Z197: U17 Women | AA197: 41
A198: 400 | B198: VANANATHAN Nithipan | S198: 14 | T198: ADDISON Toby | U198: U20 Men | V198: 40 | X198: 324 | Y198: TAYLOR Lucy X | Z198: U17 Women | AA198: 41
A199: 800 | B199: AIMIA Tim | C199: TAMBLING Robbie X | S199: 24 | T199: BAINES DYLAN X | U199: U17 Men | V199: 41 | X199: 334 | Y199: THOMPSON Zoe | Z199: U20 Women | AA199: 41
A200: 800M NS | S200: 34 | T200: BENNET Henry X | U200: U17 Men | V200: 41 | X200: 344 | Y200: UZOKWE Lisa-marie X | Z200: U17 Women | AA200: 41
... 449 more rows

Sheet Declarations (hidden)
D1: A | F1: AA | G1: A | H1: BA | I1: B | J1: CA | K1: C | L1: DA | M1: D | N1: EA | O1: E | P1: FA | Q1: F | R1: GA | S1: G
D2: 1 | E2: 11 | F2: 2 | G2: 22 | H2: 3 | I2: 33 | J2: 4 | K2: 44 | L2: 5 | M2: 55 | N2: 6 | O2: 66 | P2: 7 | Q2: 77 | R2: 8 | S2: 88
B3: ="'UAG Women'!" -> 'UAG Women'! | C3: U20 Women
B4: B | C4: 75 / 100 | D4: =IFERROR(IF(INDIRECT(CONCATENATE($B$3,D$1,MATCH(D$2,INDIRECT(CONCATENATE($B$3,E$1,$B4,4,":",E$1,$B4,74)),0)+3))="-",D128,INDIRECT(CONCATENATE($B$3,D$1,MATCH(D$2,INDIRECT(CONCATENATE($B$3,E$1,$B4,4,":",E$1,$B4,74)),0)+3))),D128) -> AWALA SHAW Dolita | E4: =IFERROR(IF(INDIRECT(CONCATENATE($B$3,D$1,MATCH(E$2,INDIRECT(CONCATENATE($B$3,E$1,$B4,4,":",E$1,$B4,74)),0)+3))="-",E128,INDIRECT(CONCATENATE($B$3,D$1,MATCH(E$2,INDIRECT(CONCATENATE($B$3,E$1,$B4,4,":",E$1,$B4,74)),0)+3))),E128) -> WHITEHEAD-SHAKES Jazmin | F4: =IFERROR(IF(INDIRECT(CONCATENATE($B$3,F$1,MATCH(F$2,INDIRECT(CONCATENATE($B$3,G$1,$B4,4,":",G$1,$B4,74)),0)+3))="-",F128,INDIRECT(CONCATENATE($B$3,F$1,MATCH(F$2,INDIRECT(CONCATENATE($B$3,G$1,$B4,4,":",G$1,$B4,74)),0)+3))),F128) -> ANSAH Davina | G4: =IFERROR(IF(INDIRECT(CONCATENATE($B$3,F$1,MATCH(G$2,INDIRECT(CONCATENATE($B$3,G$1,$B4,4,":",G$1,$B4,74)),0)+3))="-",G128,INDIRECT(CONCATENATE($B$3,F$1,MATCH(G$2,INDIRECT(CONCATENATE($B$3,G$1,$B4,4,":",G$1,$B4,74)),0)+3))),G128) -> DAKE Esinam | H4: =IFERROR(IF(INDIRECT(CONCATENATE($B$3,H$1,MATCH(H$2,INDIRECT(CONCATENATE($B$3,I$1,$B4,4,":",I$1,$B4,74)),0)+3))="-",H128,INDIRECT(CONCATENATE($B$3,H$1,MATCH(H$2,INDIRECT(CONCATENATE($B$3,I$1,$B4,4,":",I$1,$B4,74)),0)+3))),H128) -> NASH Holly | I4: =IFERROR(IF(INDIRECT(CONCATENATE($B$3,H$1,MATCH(I$2,INDIRECT(CONCATENATE($B$3,I$1,$B4,4,":",I$1,$B4,74)),0)+3))="-",I128,INDIRECT(CONCATENATE($B$3,H$1,MATCH(I$2,INDIRECT(CONCATENATE($B$3,I$1,$B4,4,":",I$1,$B4,74)),0)+3))),I128) -> 0 | J4: =IFERROR(IF(INDIRECT(CONCATENATE($B$3,J$1,MATCH(J$2,INDIRECT(CONCATENATE($B$3,K$1,$B4,4,":",K$1,$B4,74)),0)+3))="-",J128,INDIRECT(CONCATENATE($B$3,J$1,MATCH(J$2,INDIRECT(CONCATENATE($B$3,K$1,$B4,4,":",K$1,$B4,74)),0)+3))),J128) -> PICKARD Abigail | K4: =IFERROR(IF(INDIRECT(CONCATENATE($B$3,J$1,MATCH(K$2,INDIRECT(CONCATENATE($B$3,K$1,$B4,4,":",K$1,$B4,74)),0)+3))="-",K128,INDIRECT(CONCATENATE($B$3,J$1,MATCH(K$2,INDIRECT(CONCATENATE($B$3,K$1,$B4,4,":",K$1,$B4,74)),0)+3))),K128) -> BROWN Rebecca | L4: =IFERROR(IF(INDIRECT(CONCATENATE($B$3,L$1,MATCH(L$2,INDIRECT(CONCATENATE($B$3,M$1,$B4,4,":",M$1,$B4,74)),0)+3))="-",L128,INDIRECT(CONCATENATE($B$3,L$1,MATCH(L$2,INDIRECT(CONCATENATE($B$3,M$1,$B4,4,":",M$1,$B4,74)),0)+3))),L128) -> SULLIVAN Grace | M4: =IFERROR(IF(INDIRECT(CONCATENATE($B$3,L$1,MATCH(M$2,INDIRECT(CONCATENATE($B$3,M$1,$B4,4,":",M$1,$B4,74)),0)+3))="-",M128,INDIRECT(CONCATENATE($B$3,L$1,MATCH(M$2,INDIRECT(CONCATENATE($B$3,M$1,$B4,4,":",M$1,$B4,74)),0)+3))),M128) -> SAXBY ELLA X | N4: =IFERROR(IF(INDIRECT(CONCATENATE($B$3,N$1,MATCH(N$2,INDIRECT(CONCATENATE($B$3,O$1,$B4,4,":",O$1,$B4,74)),0)+3))="-",N128,INDIRECT(CONCATENATE($B$3,N$1,MATCH(N$2,INDIRECT(CONCATENATE($B$3,O$1,$B4,4,":",O$1,$B4,74)),0)+3))),N128) -> ROOT Asha | O4: =IFERROR(IF(INDIRECT(CONCATENATE($B$3,N$1,MATCH(O$2,INDIRECT(CONCATENATE($B$3,O$1,$B4,4,":",O$1,$B4,74)),0)+3))="-",O128,INDIRECT(CONCATENATE($B$3,N$1,MATCH(O$2,INDIRECT(CONCATENATE($B$3,O$1,$B4,4,":",O$1,$B4,74)),0)+3))),O128) -> VINE Isabelle | P4: =IFERROR(IF(INDIRECT(CONCATENATE($B$3,P$1,MATCH(P$2,INDIRECT(CONCATENATE($B$3,Q$1,$B4,4,":",Q$1,$B4,74)),0)+3))="-",P128,INDIRECT(CONCATENATE($B$3,P$1,MATCH(P$2,INDIRECT(CONCATENATE($B$3,Q$1,$B4,4,":",Q$1,$B4,74)),0)+3))),P128) ->  | Q4: =IFERROR(IF(INDIRECT(CONCATENATE($B$3,P$1,MATCH(Q$2,INDIRECT(CONCATENATE($B$3,Q$1,$B4,4,":",Q$1,$B4,74)),0)+3))="-",Q128,INDIRECT(CONCATENATE($B$3,P$1,MATCH(Q$2,INDIRECT(CONCATENATE($B$3,Q$1,$B4,4,":",Q$1,$B4,74)),0)+3))),Q128) ->  | R4: =IFERROR(IF(INDIRECT(CONCATENATE($B$3,R$1,MATCH(R$2,INDIRECT(CONCATENATE($B$3,S$1,$B4,4,":",S$1,$B4,74)),0)+3))="-",R128,INDIRECT(CONCATENATE($B$3,R$1,MATCH(R$2,INDIRECT(CONCATENATE($B$3,S$1,$B4,4,":",S$1,$B4,74)),0)+3))),R128) ->  | S4: =IFERROR(IF(INDIRECT(CONCATENATE($B$3,R$1,MATCH(S$2,INDIRECT(CONCATENATE($B$3,S$1,$B4,4,":",S$1,$B4,74)),0)+3))="-",S128,INDIRECT(CONCATENATE($B$3,R$1,MATCH(S$2,INDIRECT(CONCATENATE($B$3,S$1,$B4,4,":",S$1,$B4,74)),0)+3))),S128) ->  | Y4: =SUM(IF(FREQUENCY(MATCH(E4:E101,E4:E101,0),MATCH(E4:E101,E4:E101,0))>0,1)) -> 27 | Z4: 44 | AA4: 33 | AB4: 41 | AC4: 34 | AD4: 24 | AE4: 18 | AF4: 28 | AG4: 22 | AH4: 32 | AI4: 28 | AL4: =SUM(IF(FREQUENCY(MATCH(R4:R101,R4:R101,0),MATCH(R4:R101,R4:R101,0))>0,1)) ->  | AM4: =SUM(IF(FREQUENCY(MATCH(S4:S101,S4:S101,0),MATCH(S4:S101,S4:S101,0))>0,1)) -> 
B5: C | C5: 75 / 100 NS | D5: 0 | E5: 0 | F5: 0 | G5: 0 | H5: 0 | I5: 0 | J5: 0 | K5: 0 | L5: 0 | M5: 0 | N5: 0 | O5: 0
B6: D | C6: 150 / 200 | D6: AWALA SHAW Dolita | E6: BAKARE Danielle | F6: SALAMI Tosin | G6: DAKE Esinam | H6: CHRISTIE Keturah | I6: NASH Holly | J6: DUKE Charlotte | K6: 0 | L6: SCRIVENS HANNAH X | M6: 0 | N6: ROOT Asha | O6: VINE Isabelle
B7: E | C7: 300 / 400 | D7: REX Abby | E7: BURRELL Grace X | F7: 0 | G7: 0 | H7: DAWSON Katie | I7: 0 | J7: DUKE Charlotte | K7: 0 | L7: LEE FREYA X | M7: 0 | N7: 0 | O7: EBBAGE Kirsty Ann X
B8: F | C8: 800 | D8: REX Abby | E8: 0 | F8: MOORE Jessica | G8: 0 | H8: MITCHELL Jessica | I8: 0 | J8: 0 | K8: 0 | L8: 0 | M8: 0 | N8: 0 | O8: 0
B9: G | C9: 800 NS | D9: 0 | E9: 0 | F9: 0 | G9: 0 | H9: 0 | I9: 0 | J9: 0 | K9: 0 | L9: 0 | M9: 0 | N9: 0 | O9: 0
B10: H | C10: 1200 / 1500 | D10: 0 | E10: 0 | F10: MOORE Jessica | G10: 0 | H10: O'NEILL Kate | I10: RAND Sophie | J10: 0 | K10: 0 | L10: 0 | M10: 0 | N10: HESLOP Elizabeth X | O10: KINGSTON Lucy X
B11: I | C11: Sprint Hurdles | D11: 0 | E11: 0 | F11: ARCHER Sonyce | G11: 0 | H11: HUGHES Anandamayi | I11: PURDIE Isabella | J11: 0 | K11: 0 | L11: 0 | M11: 0 | N11: VINE Isabelle | O11: 0
B12: J | C12: 3000 | D12: 0 | E12: 0 | F12: 0 | G12: 0 | H12: 0 | I12: 0 | J12: 0 | K12: 0 | L12: 0 | M12: 0 | N12: 0 | O12: 0
B13: K | C13: Steeplechase | D13: 0 | E13: 0 | F13: 0 | G13: 0 | H13: 0 | I13: 0 | J13: DUKE Charlotte | K13: 0 | L13: 0 | M13: 0 | N13: 0 | O13: 0
B14: L | C14: Distance Hurdles | D14: DAVIES Sophie | E14: 0 | F14: 0 | G14: 0 | H14: 0 | I14: 0 | J14: 0 | K14: 0 | L14: 0 | M14: 0 | N14: 0 | O14: 0
B15: M | C15: Discus | D15: 0 | E15: 0 | F15: ZEPA Ines-Karel | G15: 0 | H15: RAND Sophie | I15: 0 | J15: 0 | K15: 0 | L15: 0 | M15: 0 | N15: LAQERETABUA Una | O15: 0
B16: N | C16: Hammer | D16: MATTHEWS Devon | E16: 0 | F16: 0 | G16: 0 | H16: GILL Philippa | I16: 0 | J16: 0 | K16: 0 | L16: 0 | M16: 0 | N16: 0 | O16: 0
B17: O | C17: Javelin | D17: MATTHEWS Devon | E17: DAVIES Sophie | F17: GAYLE Rhiannon | G17: 0 | H17: GILL Philippa | I17: O'NEILL Kate | J17: 0 | K17: 0 | L17: 0 | M17: 0 | N17: LAQERETABUA Una | O17: VINE Isabelle
B18: P | C18: Shot | D18: MATTHEWS Devon | E18: AWALA SHAW Dolita | F18: DAVIDS Chiamaka | G18: DAKE Esinam | H18: GILL Philippa | I18: HUGHES Anandamayi | J18: BROWN Rebecca | K18: PICKARD Abigail | L18: 0 | M18: 0 | N18: 0 | O18: 0
B19: Q | C19: Long Jump | D19: 0 | E19: 0 | F19: OLUFEMI-KRAKUE Ola | G19: ARCHER Sonyce | H19: HUGHES Anandamayi | I19: PURDIE Isabella | J19: PICKARD Abigail | K19: BROWN Rebecca | L19: SULLIVAN Grace | M19: 0 | N19: LAQERETABUA Una | O19: 0
B20: R | C20: Triple Jump | D20: 0 | E20: 0 | F20: ARCHER Sonyce | G20: OLUFEMI-KRAKUE Ola | H20: PURDIE Isabella | I20: NASH Holly | J20: PICKARD Abigail | K20: BROWN Rebecca | L20: SULLIVAN Grace | M20: 0 | N20: 0 | O20: 0
B21: S | C21: High Jump | D21: AWALA SHAW Dolita | E21: 0 | F21: 0 | G21: 0 | H21: CHRISTIE Keturah | I21: HUGHES Anandamayi | J21: 0 | K21: 0 | L21: 0 | M21: 0 | N21: 0 | O21: 0
B22: T | C22: Pole Vault | D22: 0 | E22: 0 | F22: 0 | G22: 0 | H22: 0 | I22: 0 | J22: PICKARD Abigail | K22: 0 | L22: 0 | M22: 0 | N22: LAQERETABUA Una | O22: 0
B23: U | C23: 4x100 Relay | D23: =IFERROR(IF(INDIRECT(CONCATENATE($B$3,D$1,MATCH($D$2,INDIRECT(CONCATENATE($B$3,E$1,$B23,4,":",E$1,$B23,74)),0)+3))="-",D147,INDIRECT(CONCATENATE($B$3,D$1,MATCH($D$2,INDIRECT(CONCATENATE($B$3,E$1,$B23,4,":",E$1,$B23,74)),0)+3))),D147) -> TONGE Myomi X | E23: =IFERROR(IF(INDIRECT(CONCATENATE($B$3,D$1,MATCH($F$2,INDIRECT(CONCATENATE($B$3,E$1,$B23,4,":",E$1,$B23,74)),0)+3))="-",E147,INDIRECT(CONCATENATE($B$3,D$1,MATCH($F$2,INDIRECT(CONCATENATE($B$3,E$1,$B23,4,":",E$1,$B23,74)),0)+3))),E147) -> BAKARE Danielle | F23: =IFERROR(IF(INDIRECT(CONCATENATE($B$3,F$1,MATCH($D$2,INDIRECT(CONCATENATE($B$3,G$1,$B23,4,":",G$1,$B23,74)),0)+3))="-",F147,INDIRECT(CONCATENATE($B$3,F$1,MATCH($D$2,INDIRECT(CONCATENATE($B$3,G$1,$B23,4,":",G$1,$B23,74)),0)+3))),F147) -> DAKE Esinam | G23: =IFERROR(IF(INDIRECT(CONCATENATE($B$3,F$1,MATCH($F$2,INDIRECT(CONCATENATE($B$3,G$1,$B23,4,":",G$1,$B23,74)),0)+3))="-",G147,INDIRECT(CONCATENATE($B$3,F$1,MATCH($F$2,INDIRECT(CONCATENATE($B$3,G$1,$B23,4,":",G$1,$B23,74)),0)+3))),G147) -> ANSAH Davina | H23: =IFERROR(IF(INDIRECT(CONCATENATE($B$3,H$1,MATCH($D$2,INDIRECT(CONCATENATE($B$3,I$1,$B23,4,":",I$1,$B23,74)),0)+3))="-",H147,INDIRECT(CONCATENATE($B$3,H$1,MATCH($D$2,INDIRECT(CONCATENATE($B$3,I$1,$B23,4,":",I$1,$B23,74)),0)+3))),H147) -> PURDIE Isabella | I23: =IFERROR(IF(INDIRECT(CONCATENATE($B$3,H$1,MATCH($F$2,INDIRECT(CONCATENATE($B$3,I$1,$B23,4,":",I$1,$B23,74)),0)+3))="-",I147,INDIRECT(CONCATENATE($B$3,H$1,MATCH($F$2,INDIRECT(CONCATENATE($B$3,I$1,$B23,4,":",I$1,$B23,74)),0)+3))),I147) -> HUGHES Anandamayi | J23: =IFERROR(IF(INDIRECT(CONCATENATE($B$3,J$1,MATCH($D$2,INDIRECT(CONCATENATE($B$3,K$1,$B23,4,":",K$1,$B23,74)),0)+3))="-",J147,INDIRECT(CONCATENATE($B$3,J$1,MATCH($D$2,INDIRECT(CONCATENATE($B$3,K$1,$B23,4,":",K$1,$B23,74)),0)+3))),J147) -> PICKARD Abigail | K23: =IFERROR(IF(INDIRECT(CONCATENATE($B$3,J$1,MATCH($F$2,INDIRECT(CONCATENATE($B$3,K$1,$B23,4,":",K$1,$B23,74)),0)+3))="-",K147,INDIRECT(CONCATENATE($B$3,J$1,MATCH($F$2,INDIRECT(CONCATENATE($B$3,K$1,$B23,4,":",K$1,$B23,74)),0)+3))),K147) -> BROWN Rebecca | L23: =IFERROR(IF(INDIRECT(CONCATENATE($B$3,L$1,MATCH($D$2,INDIRECT(CONCATENATE($B$3,M$1,$B23,4,":",M$1,$B23,74)),0)+3))="-",L147,INDIRECT(CONCATENATE($B$3,L$1,MATCH($D$2,INDIRECT(CONCATENATE($B$3,M$1,$B23,4,":",M$1,$B23,74)),0)+3))),L147) -> 0 | M23: =IFERROR(IF(INDIRECT(CONCATENATE($B$3,L$1,MATCH($F$2,INDIRECT(CONCATENATE($B$3,M$1,$B23,4,":",M$1,$B23,74)),0)+3))="-",M147,INDIRECT(CONCATENATE($B$3,L$1,MATCH($F$2,INDIRECT(CONCATENATE($B$3,M$1,$B23,4,":",M$1,$B23,74)),0)+3))),M147) -> SULLIVAN Grace | N23: =IFERROR(IF(INDIRECT(CONCATENATE($B$3,N$1,MATCH($D$2,INDIRECT(CONCATENATE($B$3,O$1,$B23,4,":",O$1,$B23,74)),0)+3))="-",N147,INDIRECT(CONCATENATE($B$3,N$1,MATCH($D$2,INDIRECT(CONCATENATE($B$3,O$1,$B23,4,":",O$1,$B23,74)),0)+3))),N147) -> VINE Isabelle | O23: =IFERROR(IF(INDIRECT(CONCATENATE($B$3,N$1,MATCH($F$2,INDIRECT(CONCATENATE($B$3,O$1,$B23,4,":",O$1,$B23,74)),0)+3))="-",O147,INDIRECT(CONCATENATE($B$3,N$1,MATCH($F$2,INDIRECT(CONCATENATE($B$3,O$1,$B23,4,":",O$1,$B23,74)),0)+3))),O147) -> HESLOP Elizabeth X | P23: =IFERROR(IF(INDIRECT(CONCATENATE($B$3,P$1,MATCH($D$2,INDIRECT(CONCATENATE($B$3,Q$1,$B23,4,":",Q$1,$B23,74)),0)+3))="-",P147,INDIRECT(CONCATENATE($B$3,P$1,MATCH($D$2,INDIRECT(CONCATENATE($B$3,Q$1,$B23,4,":",Q$1,$B23,74)),0)+3))),P147) ->  | Q23: =IFERROR(IF(INDIRECT(CONCATENATE($B$3,P$1,MATCH($F$2,INDIRECT(CONCATENATE($B$3,Q$1,$B23,4,":",Q$1,$B23,74)),0)+3))="-",Q147,INDIRECT(CONCATENATE($B$3,P$1,MATCH($F$2,INDIRECT(CONCATENATE($B$3,Q$1,$B23,4,":",Q$1,$B23,74)),0)+3))),Q147) ->  | R23: =IFERROR(IF(INDIRECT(CONCATENATE($B$3,R$1,MATCH($D$2,INDIRECT(CONCATENATE($B$3,S$1,$B23,4,":",S$1,$B23,74)),0)+3))="-",R147,INDIRECT(CONCATENATE($B$3,R$1,MATCH($D$2,INDIRECT(CONCATENATE($B$3,S$1,$B23,4,":",S$1,$B23,74)),0)+3))),R147) ->  | S23: =IFERROR(IF(INDIRECT(CONCATENATE($B$3,R$1,MATCH($F$2,INDIRECT(CONCATENATE($B$3,S$1,$B23,4,":",S$1,$B23,74)),0)+3))="-",S147,INDIRECT(CONCATENATE($B$3,R$1,MATCH($F$2,INDIRECT(CONCATENATE($B$3,S$1,$B23,4,":",S$1,$B23,74)),0)+3))),S147) -> 
B24: U | C24: 4x100 Relay | D24: =IFERROR(IF(INDIRECT(CONCATENATE($B$3,D$1,MATCH($H$2,INDIRECT(CONCATENATE($B$3,E$1,$B24,4,":",E$1,$B24,74)),0)+3))="-",D148,INDIRECT(CONCATENATE($B$3,D$1,MATCH($H$2,INDIRECT(CONCATENATE($B$3,E$1,$B24,4,":",E$1,$B24,74)),0)+3))),D148) -> 0 | E24: =IFERROR(IF(INDIRECT(CONCATENATE($B$3,D$1,MATCH($J$2,INDIRECT(CONCATENATE($B$3,E$1,$B24,4,":",E$1,$B24,74)),0)+3))="-",E148,INDIRECT(CONCATENATE($B$3,D$1,MATCH($J$2,INDIRECT(CONCATENATE($B$3,E$1,$B24,4,":",E$1,$B24,74)),0)+3))),E148) -> AWALA SHAW Dolita | F24: =IFERROR(IF(INDIRECT(CONCATENATE($B$3,F$1,MATCH($H$2,INDIRECT(CONCATENATE($B$3,G$1,$B24,4,":",G$1,$B24,74)),0)+3))="-",F148,INDIRECT(CONCATENATE($B$3,F$1,MATCH($H$2,INDIRECT(CONCATENATE($B$3,G$1,$B24,4,":",G$1,$B24,74)),0)+3))),F148) -> GAYLE Rhiannon | G24: =IFERROR(IF(INDIRECT(CONCATENATE($B$3,F$1,MATCH($J$2,INDIRECT(CONCATENATE($B$3,G$1,$B24,4,":",G$1,$B24,74)),0)+3))="-",G148,INDIRECT(CONCATENATE($B$3,F$1,MATCH($J$2,INDIRECT(CONCATENATE($B$3,G$1,$B24,4,":",G$1,$B24,74)),0)+3))),G148) -> SALAMI Tosin | H24: =IFERROR(IF(INDIRECT(CONCATENATE($B$3,H$1,MATCH($H$2,INDIRECT(CONCATENATE($B$3,I$1,$B24,4,":",I$1,$B24,74)),0)+3))="-",H148,INDIRECT(CONCATENATE($B$3,H$1,MATCH($H$2,INDIRECT(CONCATENATE($B$3,I$1,$B24,4,":",I$1,$B24,74)),0)+3))),H148) -> CHRISTIE Keturah | I24: =IFERROR(IF(INDIRECT(CONCATENATE($B$3,H$1,MATCH($J$2,INDIRECT(CONCATENATE($B$3,I$1,$B24,4,":",I$1,$B24,74)),0)+3))="-",I148,INDIRECT(CONCATENATE($B$3,H$1,MATCH($J$2,INDIRECT(CONCATENATE($B$3,I$1,$B24,4,":",I$1,$B24,74)),0)+3))),I148) -> NASH Holly | J24: =IFERROR(IF(INDIRECT(CONCATENATE($B$3,J$1,MATCH($H$2,INDIRECT(CONCATENATE($B$3,K$1,$B24,4,":",K$1,$B24,74)),0)+3))="-",J148,INDIRECT(CONCATENATE($B$3,J$1,MATCH($H$2,INDIRECT(CONCATENATE($B$3,K$1,$B24,4,":",K$1,$B24,74)),0)+3))),J148) -> RAYMONT Lizzie X | K24: =IFERROR(IF(INDIRECT(CONCATENATE($B$3,J$1,MATCH($J$2,INDIRECT(CONCATENATE($B$3,K$1,$B24,4,":",K$1,$B24,74)),0)+3))="-",K148,INDIRECT(CONCATENATE($B$3,J$1,MATCH($J$2,INDIRECT(CONCATENATE($B$3,K$1,$B24,4,":",K$1,$B24,74)),0)+3))),K148) -> UZOKWE Lisa-Marie | L24: =IFERROR(IF(INDIRECT(CONCATENATE($B$3,L$1,MATCH($H$2,INDIRECT(CONCATENATE($B$3,M$1,$B24,4,":",M$1,$B24,74)),0)+3))="-",L148,INDIRECT(CONCATENATE($B$3,L$1,MATCH($H$2,INDIRECT(CONCATENATE($B$3,M$1,$B24,4,":",M$1,$B24,74)),0)+3))),L148) -> LEE FREYA X | M24: =IFERROR(IF(INDIRECT(CONCATENATE($B$3,L$1,MATCH($J$2,INDIRECT(CONCATENATE($B$3,M$1,$B24,4,":",M$1,$B24,74)),0)+3))="-",M148,INDIRECT(CONCATENATE($B$3,L$1,MATCH($J$2,INDIRECT(CONCATENATE($B$3,M$1,$B24,4,":",M$1,$B24,74)),0)+3))),M148) -> MILLARD Alexandra X | N24: =IFERROR(IF(INDIRECT(CONCATENATE($B$3,N$1,MATCH($H$2,INDIRECT(CONCATENATE($B$3,O$1,$B24,4,":",O$1,$B24,74)),0)+3))="-",N148,INDIRECT(CONCATENATE($B$3,N$1,MATCH($H$2,INDIRECT(CONCATENATE($B$3,O$1,$B24,4,":",O$1,$B24,74)),0)+3))),N148) -> RIXON Maisie X | O24: =IFERROR(IF(INDIRECT(CONCATENATE($B$3,N$1,MATCH($J$2,INDIRECT(CONCATENATE($B$3,O$1,$B24,4,":",O$1,$B24,74)),0)+3))="-",O148,INDIRECT(CONCATENATE($B$3,N$1,MATCH($J$2,INDIRECT(CONCATENATE($B$3,O$1,$B24,4,":",O$1,$B24,74)),0)+3))),O148) -> ALI Sohaila X | P24: =IFERROR(IF(INDIRECT(CONCATENATE($B$3,P$1,MATCH($H$2,INDIRECT(CONCATENATE($B$3,Q$1,$B24,4,":",Q$1,$B24,74)),0)+3))="-",P148,INDIRECT(CONCATENATE($B$3,P$1,MATCH($H$2,INDIRECT(CONCATENATE($B$3,Q$1,$B24,4,":",Q$1,$B24,74)),0)+3))),P148) ->  | Q24: =IFERROR(IF(INDIRECT(CONCATENATE($B$3,P$1,MATCH($J$2,INDIRECT(CONCATENATE($B$3,Q$1,$B24,4,":",Q$1,$B24,74)),0)+3))="-",Q148,INDIRECT(CONCATENATE($B$3,P$1,MATCH($J$2,INDIRECT(CONCATENATE($B$3,Q$1,$B24,4,":",Q$1,$B24,74)),0)+3))),Q148) ->  | R24: =IFERROR(IF(INDIRECT(CONCATENATE($B$3,R$1,MATCH($H$2,INDIRECT(CONCATENATE($B$3,S$1,$B24,4,":",S$1,$B24,74)),0)+3))="-",R148,INDIRECT(CONCATENATE($B$3,R$1,MATCH($H$2,INDIRECT(CONCATENATE($B$3,S$1,$B24,4,":",S$1,$B24,74)),0)+3))),R148) ->  | S24: =IFERROR(IF(INDIRECT(CONCATENATE($B$3,R$1,MATCH($J$2,INDIRECT(CONCATENATE($B$3,S$1,$B24,4,":",S$1,$B24,74)),0)+3))="-",S148,INDIRECT(CONCATENATE($B$3,R$1,MATCH($J$2,INDIRECT(CONCATENATE($B$3,S$1,$B24,4,":",S$1,$B24,74)),0)+3))),S148) -> 
B25: V | C25: 4x400 (300) | D25: =IFERROR(IF(INDIRECT(CONCATENATE($B$3,D$1,MATCH($D$2,INDIRECT(CONCATENATE($B$3,E$1,$B25,4,":",E$1,$B25,74)),0)+3))="-",D149,INDIRECT(CONCATENATE($B$3,D$1,MATCH($D$2,INDIRECT(CONCATENATE($B$3,E$1,$B25,4,":",E$1,$B25,74)),0)+3))),D149) -> RIXSON Zoe X | E25: =IFERROR(IF(INDIRECT(CONCATENATE($B$3,D$1,MATCH($F$2,INDIRECT(CONCATENATE($B$3,E$1,$B25,4,":",E$1,$B25,74)),0)+3))="-",E149,INDIRECT(CONCATENATE($B$3,D$1,MATCH($F$2,INDIRECT(CONCATENATE($B$3,E$1,$B25,4,":",E$1,$B25,74)),0)+3))),E149) -> REX Hollie X | F25: =IFERROR(IF(INDIRECT(CONCATENATE($B$3,F$1,MATCH($D$2,INDIRECT(CONCATENATE($B$3,G$1,$B25,4,":",G$1,$B25,74)),0)+3))="-",F149,INDIRECT(CONCATENATE($B$3,F$1,MATCH($D$2,INDIRECT(CONCATENATE($B$3,G$1,$B25,4,":",G$1,$B25,74)),0)+3))),F149) -> SINGH Antara X | G25: =IFERROR(IF(INDIRECT(CONCATENATE($B$3,F$1,MATCH($F$2,INDIRECT(CONCATENATE($B$3,G$1,$B25,4,":",G$1,$B25,74)),0)+3))="-",G149,INDIRECT(CONCATENATE($B$3,F$1,MATCH($F$2,INDIRECT(CONCATENATE($B$3,G$1,$B25,4,":",G$1,$B25,74)),0)+3))),G149) -> MOORE Jessica | H25: =IFERROR(IF(INDIRECT(CONCATENATE($B$3,H$1,MATCH($D$2,INDIRECT(CONCATENATE($B$3,I$1,$B25,4,":",I$1,$B25,74)),0)+3))="-",H149,INDIRECT(CONCATENATE($B$3,H$1,MATCH($D$2,INDIRECT(CONCATENATE($B$3,I$1,$B25,4,":",I$1,$B25,74)),0)+3))),H149) -> DAWSON Katie | I25: =IFERROR(IF(INDIRECT(CONCATENATE($B$3,H$1,MATCH($F$2,INDIRECT(CONCATENATE($B$3,I$1,$B25,4,":",I$1,$B25,74)),0)+3))="-",I149,INDIRECT(CONCATENATE($B$3,H$1,MATCH($F$2,INDIRECT(CONCATENATE($B$3,I$1,$B25,4,":",I$1,$B25,74)),0)+3))),I149) -> O'NEILL Kate | J25: =IFERROR(IF(INDIRECT(CONCATENATE($B$3,J$1,MATCH($D$2,INDIRECT(CONCATENATE($B$3,K$1,$B25,4,":",K$1,$B25,74)),0)+3))="-",J149,INDIRECT(CONCATENATE($B$3,J$1,MATCH($D$2,INDIRECT(CONCATENATE($B$3,K$1,$B25,4,":",K$1,$B25,74)),0)+3))),J149) -> 0 | K25: =IFERROR(IF(INDIRECT(CONCATENATE($B$3,J$1,MATCH($F$2,INDIRECT(CONCATENATE($B$3,K$1,$B25,4,":",K$1,$B25,74)),0)+3))="-",K149,INDIRECT(CONCATENATE($B$3,J$1,MATCH($F$2,INDIRECT(CONCATENATE($B$3,K$1,$B25,4,":",K$1,$B25,74)),0)+3))),K149) -> 0 | L25: =IFERROR(IF(INDIRECT(CONCATENATE($B$3,L$1,MATCH($D$2,INDIRECT(CONCATENATE($B$3,M$1,$B25,4,":",M$1,$B25,74)),0)+3))="-",L149,INDIRECT(CONCATENATE($B$3,L$1,MATCH($D$2,INDIRECT(CONCATENATE($B$3,M$1,$B25,4,":",M$1,$B25,74)),0)+3))),L149) -> 0 | M25: =IFERROR(IF(INDIRECT(CONCATENATE($B$3,L$1,MATCH($F$2,INDIRECT(CONCATENATE($B$3,M$1,$B25,4,":",M$1,$B25,74)),0)+3))="-",M149,INDIRECT(CONCATENATE($B$3,L$1,MATCH($F$2,INDIRECT(CONCATENATE($B$3,M$1,$B25,4,":",M$1,$B25,74)),0)+3))),M149) -> 0 | N25: =IFERROR(IF(INDIRECT(CONCATENATE($B$3,N$1,MATCH($D$2,INDIRECT(CONCATENATE($B$3,O$1,$B25,4,":",O$1,$B25,74)),0)+3))="-",N149,INDIRECT(CONCATENATE($B$3,N$1,MATCH($D$2,INDIRECT(CONCATENATE($B$3,O$1,$B25,4,":",O$1,$B25,74)),0)+3))),N149) -> ROOT Asha | O25: =IFERROR(IF(INDIRECT(CONCATENATE($B$3,N$1,MATCH($F$2,INDIRECT(CONCATENATE($B$3,O$1,$B25,4,":",O$1,$B25,74)),0)+3))="-",O149,INDIRECT(CONCATENATE($B$3,N$1,MATCH($F$2,INDIRECT(CONCATENATE($B$3,O$1,$B25,4,":",O$1,$B25,74)),0)+3))),O149) -> O'HARA Jessica X | P25: =IFERROR(IF(INDIRECT(CONCATENATE($B$3,P$1,MATCH($D$2,INDIRECT(CONCATENATE($B$3,Q$1,$B25,4,":",Q$1,$B25,74)),0)+3))="-",P149,INDIRECT(CONCATENATE($B$3,P$1,MATCH($D$2,INDIRECT(CONCATENATE($B$3,Q$1,$B25,4,":",Q$1,$B25,74)),0)+3))),P149) ->  | Q25: =IFERROR(IF(INDIRECT(CONCATENATE($B$3,P$1,MATCH($F$2,INDIRECT(CONCATENATE($B$3,Q$1,$B25,4,":",Q$1,$B25,74)),0)+3))="-",Q149,INDIRECT(CONCATENATE($B$3,P$1,MATCH($F$2,INDIRECT(CONCATENATE($B$3,Q$1,$B25,4,":",Q$1,$B25,74)),0)+3))),Q149) ->  | R25: =IFERROR(IF(INDIRECT(CONCATENATE($B$3,R$1,MATCH($D$2,INDIRECT(CONCATENATE($B$3,S$1,$B25,4,":",S$1,$B25,74)),0)+3))="-",R149,INDIRECT(CONCATENATE($B$3,R$1,MATCH($D$2,INDIRECT(CONCATENATE($B$3,S$1,$B25,4,":",S$1,$B25,74)),0)+3))),R149) ->  | S25: =IFERROR(IF(INDIRECT(CONCATENATE($B$3,R$1,MATCH($F$2,INDIRECT(CONCATENATE($B$3,S$1,$B25,4,":",S$1,$B25,74)),0)+3))="-",S149,INDIRECT(CONCATENATE($B$3,R$1,MATCH($F$2,INDIRECT(CONCATENATE($B$3,S$1,$B25,4,":",S$1,$B25,74)),0)+3))),S149) -> 
B26: V | C26: 4x400 (300) | D26: =IFERROR(IF(INDIRECT(CONCATENATE($B$3,D$1,MATCH($H$2,INDIRECT(CONCATENATE($B$3,E$1,$B26,4,":",E$1,$B26,74)),0)+3))="-",D150,INDIRECT(CONCATENATE($B$3,D$1,MATCH($H$2,INDIRECT(CONCATENATE($B$3,E$1,$B26,4,":",E$1,$B26,74)),0)+3))),D150) -> REX Abby | E26: =IFERROR(IF(INDIRECT(CONCATENATE($B$3,D$1,MATCH($J$2,INDIRECT(CONCATENATE($B$3,E$1,$B26,4,":",E$1,$B26,74)),0)+3))="-",E150,INDIRECT(CONCATENATE($B$3,D$1,MATCH($J$2,INDIRECT(CONCATENATE($B$3,E$1,$B26,4,":",E$1,$B26,74)),0)+3))),E150) -> BURRELL Grace X | F26: =IFERROR(IF(INDIRECT(CONCATENATE($B$3,F$1,MATCH($H$2,INDIRECT(CONCATENATE($B$3,G$1,$B26,4,":",G$1,$B26,74)),0)+3))="-",F150,INDIRECT(CONCATENATE($B$3,F$1,MATCH($H$2,INDIRECT(CONCATENATE($B$3,G$1,$B26,4,":",G$1,$B26,74)),0)+3))),F150) -> OLUFEMI-KRAKUE Ola | G26: =IFERROR(IF(INDIRECT(CONCATENATE($B$3,F$1,MATCH($J$2,INDIRECT(CONCATENATE($B$3,G$1,$B26,4,":",G$1,$B26,74)),0)+3))="-",G150,INDIRECT(CONCATENATE($B$3,F$1,MATCH($J$2,INDIRECT(CONCATENATE($B$3,G$1,$B26,4,":",G$1,$B26,74)),0)+3))),G150) -> GAYLE Rhiannon | H26: =IFERROR(IF(INDIRECT(CONCATENATE($B$3,H$1,MATCH($H$2,INDIRECT(CONCATENATE($B$3,I$1,$B26,4,":",I$1,$B26,74)),0)+3))="-",H150,INDIRECT(CONCATENATE($B$3,H$1,MATCH($H$2,INDIRECT(CONCATENATE($B$3,I$1,$B26,4,":",I$1,$B26,74)),0)+3))),H150) -> RAND Sophie | I26: =IFERROR(IF(INDIRECT(CONCATENATE($B$3,H$1,MATCH($J$2,INDIRECT(CONCATENATE($B$3,I$1,$B26,4,":",I$1,$B26,74)),0)+3))="-",I150,INDIRECT(CONCATENATE($B$3,H$1,MATCH($J$2,INDIRECT(CONCATENATE($B$3,I$1,$B26,4,":",I$1,$B26,74)),0)+3))),I150) -> MITCHELL Jessica | J26: =IFERROR(IF(INDIRECT(CONCATENATE($B$3,J$1,MATCH($H$2,INDIRECT(CONCATENATE($B$3,K$1,$B26,4,":",K$1,$B26,74)),0)+3))="-",J150,INDIRECT(CONCATENATE($B$3,J$1,MATCH($H$2,INDIRECT(CONCATENATE($B$3,K$1,$B26,4,":",K$1,$B26,74)),0)+3))),J150) -> 0 | K26: =IFERROR(IF(INDIRECT(CONCATENATE($B$3,J$1,MATCH($J$2,INDIRECT(CONCATENATE($B$3,K$1,$B26,4,":",K$1,$B26,74)),0)+3))="-",K150,INDIRECT(CONCATENATE($B$3,J$1,MATCH($J$2,INDIRECT(CONCATENATE($B$3,K$1,$B26,4,":",K$1,$B26,74)),0)+3))),K150) -> 0 | L26: =IFERROR(IF(INDIRECT(CONCATENATE($B$3,L$1,MATCH($H$2,INDIRECT(CONCATENATE($B$3,M$1,$B26,4,":",M$1,$B26,74)),0)+3))="-",L150,INDIRECT(CONCATENATE($B$3,L$1,MATCH($H$2,INDIRECT(CONCATENATE($B$3,M$1,$B26,4,":",M$1,$B26,74)),0)+3))),L150) -> 0 | M26: =IFERROR(IF(INDIRECT(CONCATENATE($B$3,L$1,MATCH($J$2,INDIRECT(CONCATENATE($B$3,M$1,$B26,4,":",M$1,$B26,74)),0)+3))="-",M150,INDIRECT(CONCATENATE($B$3,L$1,MATCH($J$2,INDIRECT(CONCATENATE($B$3,M$1,$B26,4,":",M$1,$B26,74)),0)+3))),M150) -> 0 | N26: =IFERROR(IF(INDIRECT(CONCATENATE($B$3,N$1,MATCH($H$2,INDIRECT(CONCATENATE($B$3,O$1,$B26,4,":",O$1,$B26,74)),0)+3))="-",N150,INDIRECT(CONCATENATE($B$3,N$1,MATCH($H$2,INDIRECT(CONCATENATE($B$3,O$1,$B26,4,":",O$1,$B26,74)),0)+3))),N150) -> KINGSTON Lucy X | O26: =IFERROR(IF(INDIRECT(CONCATENATE($B$3,N$1,MATCH($J$2,INDIRECT(CONCATENATE($B$3,O$1,$B26,4,":",O$1,$B26,74)),0)+3))="-",O150,INDIRECT(CONCATENATE($B$3,N$1,MATCH($J$2,INDIRECT(CONCATENATE($B$3,O$1,$B26,4,":",O$1,$B26,74)),0)+3))),O150) -> O'BRIEN Rebekah X | P26: =IFERROR(IF(INDIRECT(CONCATENATE($B$3,P$1,MATCH($H$2,INDIRECT(CONCATENATE($B$3,Q$1,$B26,4,":",Q$1,$B26,74)),0)+3))="-",P150,INDIRECT(CONCATENATE($B$3,P$1,MATCH($H$2,INDIRECT(CONCATENATE($B$3,Q$1,$B26,4,":",Q$1,$B26,74)),0)+3))),P150) ->  | Q26: =IFERROR(IF(INDIRECT(CONCATENATE($B$3,P$1,MATCH($J$2,INDIRECT(CONCATENATE($B$3,Q$1,$B26,4,":",Q$1,$B26,74)),0)+3))="-",Q150,INDIRECT(CONCATENATE($B$3,P$1,MATCH($J$2,INDIRECT(CONCATENATE($B$3,Q$1,$B26,4,":",Q$1,$B26,74)),0)+3))),Q150) ->  | R26: =IFERROR(IF(INDIRECT(CONCATENATE($B$3,R$1,MATCH($H$2,INDIRECT(CONCATENATE($B$3,S$1,$B26,4,":",S$1,$B26,74)),0)+3))="-",R150,INDIRECT(CONCATENATE($B$3,R$1,MATCH($H$2,INDIRECT(CONCATENATE($B$3,S$1,$B26,4,":",S$1,$B26,74)),0)+3))),R150) ->  | S26: =IFERROR(IF(INDIRECT(CONCATENATE($B$3,R$1,MATCH($J$2,INDIRECT(CONCATENATE($B$3,S$1,$B26,4,":",S$1,$B26,74)),0)+3))="-",S150,INDIRECT(CONCATENATE($B$3,R$1,MATCH($J$2,INDIRECT(CONCATENATE($B$3,S$1,$B26,4,":",S$1,$B26,74)),0)+3))),S150) -> 
C28: U17 Women | D28: =IF(MatchDay!$C$2="UPPER","A",1) -> A | E28: =IF(MatchDay!$C$2="UPPER","AA",11) -> AA | F28: =IF(MatchDay!$C$2="UPPER","B",2) -> B | G28: =IF(MatchDay!$C$2="UPPER","BB",22) -> BB | H28: =IF(MatchDay!$C$2="UPPER","C",3) -> C | I28: =IF(MatchDay!$C$2="UPPER","CC",33) -> CC | J28: =IF(MatchDay!$C$2="UPPER","D",4) -> D | K28: =IF(MatchDay!$C$2="UPPER","DD",44) -> DD | L28: =IF(MatchDay!$C$2="UPPER","E",5) -> E | M28: =IF(MatchDay!$C$2="UPPER","EE",55) -> EE | N28: =IF(MatchDay!$C$2="UPPER","F",6) -> F | O28: =IF(MatchDay!$C$2="UPPER","FF",66) -> FF | P28: G | Q28: GG | R28: H | S28: HH
B29: B | C29: 75 / 100 | D29: =IFERROR(IF(INDIRECT(CONCATENATE($B$3,D$1,MATCH(D$28,INDIRECT(CONCATENATE($B$3,E$1,$B29,35,":",E$1,$B29,74)),0)+34))="-",D176,INDIRECT(CONCATENATE($B$3,D$1,MATCH(D$28,INDIRECT(CONCATENATE($B$3,E$1,$B29,35,":",E$1,$B29,74)),0)+34))),D176) -> SIBBONS Aleeya | E29: =IFERROR(IF(INDIRECT(CONCATENATE($B$3,D$1,MATCH(E$28,INDIRECT(CONCATENATE($B$3,E$1,$B29,35,":",E$1,$B29,74)),0)+34))="-",E176,INDIRECT(CONCATENATE($B$3,D$1,MATCH(E$28,INDIRECT(CONCATENATE($B$3,E$1,$B29,35,":",E$1,$B29,74)),0)+34))),E176) -> BELL HANNAH | F29: =IFERROR(IF(INDIRECT(CONCATENATE($B$3,F$1,MATCH(F$28,INDIRECT(CONCATENATE($B$3,G$1,$B29,35,":",G$1,$B29,74)),0)+34))="-",F176,INDIRECT(CONCATENATE($B$3,F$1,MATCH(F$28,INDIRECT(CONCATENATE($B$3,G$1,$B29,35,":",G$1,$B29,74)),0)+34))),F176) -> BRYAN Toni | G29: =IFERROR(IF(INDIRECT(CONCATENATE($B$3,F$1,MATCH(G$28,INDIRECT(CONCATENATE($B$3,G$1,$B29,35,":",G$1,$B29,74)),0)+34))="-",G176,INDIRECT(CONCATENATE($B$3,F$1,MATCH(G$28,INDIRECT(CONCATENATE($B$3,G$1,$B29,35,":",G$1,$B29,74)),0)+34))),G176) -> PIPPIM Ella | H29: =IFERROR(IF(INDIRECT(CONCATENATE($B$3,H$1,MATCH(H$28,INDIRECT(CONCATENATE($B$3,I$1,$B29,35,":",I$1,$B29,74)),0)+34))="-",H176,INDIRECT(CONCATENATE($B$3,H$1,MATCH(H$28,INDIRECT(CONCATENATE($B$3,I$1,$B29,35,":",I$1,$B29,74)),0)+34))),H176) -> AGNIMEL Esther | I29: =IFERROR(IF(INDIRECT(CONCATENATE($B$3,H$1,MATCH(I$28,INDIRECT(CONCATENATE($B$3,I$1,$B29,35,":",I$1,$B29,74)),0)+34))="-",I176,INDIRECT(CONCATENATE($B$3,H$1,MATCH(I$28,INDIRECT(CONCATENATE($B$3,I$1,$B29,35,":",I$1,$B29,74)),0)+34))),I176) -> ANDERSON Ayesha | J29: =IFERROR(IF(INDIRECT(CONCATENATE($B$3,J$1,MATCH(J$28,INDIRECT(CONCATENATE($B$3,K$1,$B29,35,":",K$1,$B29,74)),0)+34))="-",J176,INDIRECT(CONCATENATE($B$3,J$1,MATCH(J$28,INDIRECT(CONCATENATE($B$3,K$1,$B29,35,":",K$1,$B29,74)),0)+34))),J176) -> HETHERINGTON Christa | K29: =IFERROR(IF(INDIRECT(CONCATENATE($B$3,J$1,MATCH(K$28,INDIRECT(CONCATENATE($B$3,K$1,$B29,35,":",K$1,$B29,74)),0)+34))="-",K176,INDIRECT(CONCATENATE($B$3,J$1,MATCH(K$28,INDIRECT(CONCATENATE($B$3,K$1,$B29,35,":",K$1,$B29,74)),0)+34))),K176) -> UZOKWE Lisa-Marie | L29: =IFERROR(IF(INDIRECT(CONCATENATE($B$3,L$1,MATCH(L$28,INDIRECT(CONCATENATE($B$3,M$1,$B29,35,":",M$1,$B29,74)),0)+34))="-",L176,INDIRECT(CONCATENATE($B$3,L$1,MATCH(L$28,INDIRECT(CONCATENATE($B$3,M$1,$B29,35,":",M$1,$B29,74)),0)+34))),L176) -> GARCIA Kimberley | M29: =IFERROR(IF(INDIRECT(CONCATENATE($B$3,L$1,MATCH(M$28,INDIRECT(CONCATENATE($B$3,M$1,$B29,35,":",M$1,$B29,74)),0)+34))="-",M176,INDIRECT(CONCATENATE($B$3,L$1,MATCH(M$28,INDIRECT(CONCATENATE($B$3,M$1,$B29,35,":",M$1,$B29,74)),0)+34))),M176) -> SCRIVENS HANNAH | N29: =IFERROR(IF(INDIRECT(CONCATENATE($B$3,N$1,MATCH(N$28,INDIRECT(CONCATENATE($B$3,O$1,$B29,35,":",O$1,$B29,74)),0)+34))="-",N176,INDIRECT(CONCATENATE($B$3,N$1,MATCH(N$28,INDIRECT(CONCATENATE($B$3,O$1,$B29,35,":",O$1,$B29,74)),0)+34))),N176) -> RIXON Maisie | O29: =IFERROR(IF(INDIRECT(CONCATENATE($B$3,N$1,MATCH(O$28,INDIRECT(CONCATENATE($B$3,O$1,$B29,35,":",O$1,$B29,74)),0)+34))="-",O176,INDIRECT(CONCATENATE($B$3,N$1,MATCH(O$28,INDIRECT(CONCATENATE($B$3,O$1,$B29,35,":",O$1,$B29,74)),0)+34))),O176) -> O'HARA Jessica | P29: =IFERROR(IF(INDIRECT(CONCATENATE($B$3,P$1,MATCH(P$28,INDIRECT(CONCATENATE($B$3,Q$1,$B29,35,":",Q$1,$B29,74)),0)+34))="-",P176,INDIRECT(CONCATENATE($B$3,P$1,MATCH(P$28,INDIRECT(CONCATENATE($B$3,Q$1,$B29,35,":",Q$1,$B29,74)),0)+34))),P176) ->  | Q29: =IFERROR(IF(INDIRECT(CONCATENATE($B$3,P$1,MATCH(Q$28,INDIRECT(CONCATENATE($B$3,Q$1,$B29,35,":",Q$1,$B29,74)),0)+34))="-",Q176,INDIRECT(CONCATENATE($B$3,P$1,MATCH(Q$28,INDIRECT(CONCATENATE($B$3,Q$1,$B29,35,":",Q$1,$B29,74)),0)+34))),Q176) ->  | R29: =IFERROR(IF(INDIRECT(CONCATENATE($B$3,R$1,MATCH(R$28,INDIRECT(CONCATENATE($B$3,S$1,$B29,35,":",S$1,$B29,74)),0)+34))="-",R176,INDIRECT(CONCATENATE($B$3,R$1,MATCH(R$28,INDIRECT(CONCATENATE($B$3,S$1,$B29,35,":",S$1,$B29,74)),0)+34))),R176) ->  | S29: =IFERROR(IF(INDIRECT(CONCATENATE($B$3,R$1,MATCH(S$28,INDIRECT(CONCATENATE($B$3,S$1,$B29,35,":",S$1,$B29,74)),0)+34))="-",S176,INDIRECT(CONCATENATE($B$3,R$1,MATCH(S$28,INDIRECT(CONCATENATE($B$3,S$1,$B29,35,":",S$1,$B29,74)),0)+34))),S176) -> 
B30: C | C30: 75 / 100 NS | D30: =IFERROR(IF(INDIRECT(CONCATENATE($B$3,D$1,MATCH(D$28,INDIRECT(CONCATENATE($B$3,E$1,$B30,35,":",E$1,$B30,74)),0)+34))="-",D177,INDIRECT(CONCATENATE($B$3,D$1,MATCH(D$28,INDIRECT(CONCATENATE($B$3,E$1,$B30,35,":",E$1,$B30,74)),0)+34))),D177) -> 0 | E30: =IFERROR(IF(INDIRECT(CONCATENATE($B$3,D$1,MATCH(E$28,INDIRECT(CONCATENATE($B$3,E$1,$B30,35,":",E$1,$B30,74)),0)+34))="-",E177,INDIRECT(CONCATENATE($B$3,D$1,MATCH(E$28,INDIRECT(CONCATENATE($B$3,E$1,$B30,35,":",E$1,$B30,74)),0)+34))),E177) -> 0 | F30: =IFERROR(IF(INDIRECT(CONCATENATE($B$3,F$1,MATCH(F$28,INDIRECT(CONCATENATE($B$3,G$1,$B30,35,":",G$1,$B30,74)),0)+34))="-",F177,INDIRECT(CONCATENATE($B$3,F$1,MATCH(F$28,INDIRECT(CONCATENATE($B$3,G$1,$B30,35,":",G$1,$B30,74)),0)+34))),F177) -> 0 | G30: =IFERROR(IF(INDIRECT(CONCATENATE($B$3,F$1,MATCH(G$28,INDIRECT(CONCATENATE($B$3,G$1,$B30,35,":",G$1,$B30,74)),0)+34))="-",G177,INDIRECT(CONCATENATE($B$3,F$1,MATCH(G$28,INDIRECT(CONCATENATE($B$3,G$1,$B30,35,":",G$1,$B30,74)),0)+34))),G177) -> 0 | H30: =IFERROR(IF(INDIRECT(CONCATENATE($B$3,H$1,MATCH(H$28,INDIRECT(CONCATENATE($B$3,I$1,$B30,35,":",I$1,$B30,74)),0)+34))="-",H177,INDIRECT(CONCATENATE($B$3,H$1,MATCH(H$28,INDIRECT(CONCATENATE($B$3,I$1,$B30,35,":",I$1,$B30,74)),0)+34))),H177) -> 0 | I30: =IFERROR(IF(INDIRECT(CONCATENATE($B$3,H$1,MATCH(I$28,INDIRECT(CONCATENATE($B$3,I$1,$B30,35,":",I$1,$B30,74)),0)+34))="-",I177,INDIRECT(CONCATENATE($B$3,H$1,MATCH(I$28,INDIRECT(CONCATENATE($B$3,I$1,$B30,35,":",I$1,$B30,74)),0)+34))),I177) -> 0 | J30: =IFERROR(IF(INDIRECT(CONCATENATE($B$3,J$1,MATCH(J$28,INDIRECT(CONCATENATE($B$3,K$1,$B30,35,":",K$1,$B30,74)),0)+34))="-",J177,INDIRECT(CONCATENATE($B$3,J$1,MATCH(J$28,INDIRECT(CONCATENATE($B$3,K$1,$B30,35,":",K$1,$B30,74)),0)+34))),J177) -> 0 | K30: =IFERROR(IF(INDIRECT(CONCATENATE($B$3,J$1,MATCH(K$28,INDIRECT(CONCATENATE($B$3,K$1,$B30,35,":",K$1,$B30,74)),0)+34))="-",K177,INDIRECT(CONCATENATE($B$3,J$1,MATCH(K$28,INDIRECT(CONCATENATE($B$3,K$1,$B30,35,":",K$1,$B30,74)),0)+34))),K177) -> 0 | L30: =IFERROR(IF(INDIRECT(CONCATENATE($B$3,L$1,MATCH(L$28,INDIRECT(CONCATENATE($B$3,M$1,$B30,35,":",M$1,$B30,74)),0)+34))="-",L177,INDIRECT(CONCATENATE($B$3,L$1,MATCH(L$28,INDIRECT(CONCATENATE($B$3,M$1,$B30,35,":",M$1,$B30,74)),0)+34))),L177) -> 0 | M30: =IFERROR(IF(INDIRECT(CONCATENATE($B$3,L$1,MATCH(M$28,INDIRECT(CONCATENATE($B$3,M$1,$B30,35,":",M$1,$B30,74)),0)+34))="-",M177,INDIRECT(CONCATENATE($B$3,L$1,MATCH(M$28,INDIRECT(CONCATENATE($B$3,M$1,$B30,35,":",M$1,$B30,74)),0)+34))),M177) -> 0 | N30: =IFERROR(IF(INDIRECT(CONCATENATE($B$3,N$1,MATCH(N$28,INDIRECT(CONCATENATE($B$3,O$1,$B30,35,":",O$1,$B30,74)),0)+34))="-",N177,INDIRECT(CONCATENATE($B$3,N$1,MATCH(N$28,INDIRECT(CONCATENATE($B$3,O$1,$B30,35,":",O$1,$B30,74)),0)+34))),N177) -> 0 | O30: =IFERROR(IF(INDIRECT(CONCATENATE($B$3,N$1,MATCH(O$28,INDIRECT(CONCATENATE($B$3,O$1,$B30,35,":",O$1,$B30,74)),0)+34))="-",O177,INDIRECT(CONCATENATE($B$3,N$1,MATCH(O$28,INDIRECT(CONCATENATE($B$3,O$1,$B30,35,":",O$1,$B30,74)),0)+34))),O177) -> 0 | P30: =IFERROR(IF(INDIRECT(CONCATENATE($B$3,P$1,MATCH(P$28,INDIRECT(CONCATENATE($B$3,Q$1,$B30,35,":",Q$1,$B30,74)),0)+34))="-",P177,INDIRECT(CONCATENATE($B$3,P$1,MATCH(P$28,INDIRECT(CONCATENATE($B$3,Q$1,$B30,35,":",Q$1,$B30,74)),0)+34))),P177) ->  | Q30: =IFERROR(IF(INDIRECT(CONCATENATE($B$3,P$1,MATCH(Q$28,INDIRECT(CONCATENATE($B$3,Q$1,$B30,35,":",Q$1,$B30,74)),0)+34))="-",Q177,INDIRECT(CONCATENATE($B$3,P$1,MATCH(Q$28,INDIRECT(CONCATENATE($B$3,Q$1,$B30,35,":",Q$1,$B30,74)),0)+34))),Q177) ->  | R30: =IFERROR(IF(INDIRECT(CONCATENATE($B$3,R$1,MATCH(R$28,INDIRECT(CONCATENATE($B$3,S$1,$B30,35,":",S$1,$B30,74)),0)+34))="-",R177,INDIRECT(CONCATENATE($B$3,R$1,MATCH(R$28,INDIRECT(CONCATENATE($B$3,S$1,$B30,35,":",S$1,$B30,74)),0)+34))),R177) ->  | S30: =IFERROR(IF(INDIRECT(CONCATENATE($B$3,R$1,MATCH(S$28,INDIRECT(CONCATENATE($B$3,S$1,$B30,35,":",S$1,$B30,74)),0)+34))="-",S177,INDIRECT(CONCATENATE($B$3,R$1,MATCH(S$28,INDIRECT(CONCATENATE($B$3,S$1,$B30,35,":",S$1,$B30,74)),0)+34))),S177) -> 
B31: D | C31: 150 / 200 | D31: =IFERROR(IF(INDIRECT(CONCATENATE($B$3,D$1,MATCH(D$28,INDIRECT(CONCATENATE($B$3,E$1,$B31,35,":",E$1,$B31,74)),0)+34))="-",D178,INDIRECT(CONCATENATE($B$3,D$1,MATCH(D$28,INDIRECT(CONCATENATE($B$3,E$1,$B31,35,":",E$1,$B31,74)),0)+34))),D178) -> TONGE Myomi | E31: =IFERROR(IF(INDIRECT(CONCATENATE($B$3,D$1,MATCH(E$28,INDIRECT(CONCATENATE($B$3,E$1,$B31,35,":",E$1,$B31,74)),0)+34))="-",E178,INDIRECT(CONCATENATE($B$3,D$1,MATCH(E$28,INDIRECT(CONCATENATE($B$3,E$1,$B31,35,":",E$1,$B31,74)),0)+34))),E178) -> 0 | F31: =IFERROR(IF(INDIRECT(CONCATENATE($B$3,F$1,MATCH(F$28,INDIRECT(CONCATENATE($B$3,G$1,$B31,35,":",G$1,$B31,74)),0)+34))="-",F178,INDIRECT(CONCATENATE($B$3,F$1,MATCH(F$28,INDIRECT(CONCATENATE($B$3,G$1,$B31,35,":",G$1,$B31,74)),0)+34))),F178) -> BOWLEY Kayla | G31: LARGIE-POLEON Racheal | H31: ANDERSON Ayesha | I31: MOODY Robyn | J31: 0 | K31: 0 | L31: GARCIA Kimberley | M31: NKEREUWEN DJAMILLA | N31: O'HARA Jessica | O31: 0
B32: E | C32: 300 / 400 | D32: RIXSON Zoe | E32: 0 | F32: DAKE Zoe | G32: DACOSTA Glalys | H32: WRIGHT Charlotte | I32: KILNER Amy | J32: UZOKWE Lisa-marie | K32: RAYMONT Lizzie | L32: SAXBY ELLA | M32: NKEREUWEN DJAMILLA | N32: O'HARA Jessica | O32: BURGESS Katie
B33: F | C33: 800 | D33: BURRELL Grace | E33: 0 | F33: SINGH Antara | G33: 0 | H33: WRIGHT Charlotte | I33: KILNER Amy | J33: 0 | K33: 0 | L33: LEE FREYA | M33: 0 | N33: BURGESS Katie | O33: KINGSTON Lucy
B34: G | C34: 800 NS | D34: 0 | E34: 0 | F34: 0 | G34: 0 | H34: 0 | I34: 0 | J34: 0 | K34: 0 | L34: 0 | M34: 0 | N34: 0 | O34: 0
B35: H | C35: 1200 / 1500 | D35: REX Hollie | E35: 0 | F35: 0 | G35: 0 | H35: SWEETMAN Molly | I35: 0 | J35: RAYMONT Lizzie | K35: 0 | L35: MACKEY Ciara | M35: 0 | N35: GOODGE Katie | O35: 0
B36: I | C36: Sprint Hurdles | D36: VANDERPUIJE JUDITH | E36: SIBBONS Aleeya | F36: LARGIE-POLEON Racheal | G36: CHUKWU Jennifer | H36: 0 | I36: 0 | J36: HETHERINGTON Christa | K36: 0 | L36: MACEY LAUREN | M36: 0 | N36: O'BRIEN Rebekah | O36: ALI Sohaila
B37: J | C37: 3000 | D37: HUDSON Fraya | E37: 0 | F37: 0 | G37: 0 | H37: DUKELOW Grace | I37: 0 | J37: 0 | K37: 0 | L37: 0 | M37: 0 | N37: 0 | O37: 0
B38: K | C38: Steeplechase | D38: BURRELL Grace | E38: 0 | F38: 0 | G38: 0 | H38: 0 | I38: 0 | J38: 0 | K38: 0 | L38: MACKEY Ciara | M38: 0 | N38: HESLOP Elizabeth | O38: 0
B39: L | C39: Distance Hurdles | D39: BAINSFAIR Kiera | E39: VANDERPUIJE JUDITH | F39: CHUKWU Jennifer | G39: 0 | H39: 0 | I39: 0 | J39: 0 | K39: 0 | L39: MACEY LAUREN | M39: 0 | N39: O'BRIEN Rebekah | O39: ALI Sohaila
B40: M | C40: Discus | D40: RIXSON Zoe | E40: ALATISE GRACE | F40: OWOLABI Naomi | G40: BROWN Nayana | H40: ADENIJI Alexandrea | I40: MOODY Robyn | J40: TAYLOR Libby | K40: 0 | L40: RYDER Rebecca | M40: 0 | N40: EBBAGE Kirsty Ann | O40: NIKHWAI Elle
B41: N | C41: Hammer | D41: 0 | E41: 0 | F41: DACOSTA Glalys | G41: 0 | H41: ADENIJI Alexandrea | I41: 0 | J41: TAYLOR Libby | K41: 0 | L41: RYDER Rebecca | M41: TAYLOR Sophie | N41: EBBAGE Kirsty Ann | O41: NIKHWAI Elle
B42: O | C42: Javelin | D42: REX Hollie | E42: 0 | F42: DAKE Zoe | G42: 0 | H42: THATCHER-GRAY Adelaide | I42: 0 | J42: SHEPHARD-GAZELY Georgia | K42: 0 | L42: MACEY LAUREN | M42: 0 | N42: ALI Sohaila | O42: 0
B43: P | C43: Shot | D43: RIXSON Zoe | E43: ALATISE GRACE | F43: OWOLABI Naomi | G43: 0 | H43: ADENIJI Alexandrea | I43: 0 | J43: TAYLOR Libby | K43: 0 | L43: RYDER Rebecca | M43: SADLER REEVES YASMIN | N43: EBBAGE Kirsty Ann | O43: RIXON Maisie
B44: Q | C44: Long Jump | D44: VANDERPUIJE JUDITH | E44: SIBBONS Aleeya | F44: 0 | G44: 0 | H44: ANDERSON Ayesha | I44: 0 | J44: 0 | K44: 0 | L44: SAXBY ELLA | M44: SADLER REEVES YASMIN | N44: 0 | O44: 0
B45: R | C45: Triple Jump | D45: KRISE Jessica | E45: 0 | F45: LARGIE-POLEON Racheal | G45: 0 | H45: KILNER Amy | I45: 0 | J45: 0 | K45: 0 | L45: SADLER REEVES YASMIN | M45: 0 | N45: 0 | O45: 0
B46: S | C46: High Jump | D46: KRISE Jessica | E46: BELL HANNAH | F46: DACOSTA Glalys | G46: 0 | H46: 0 | I46: 0 | J46: 0 | K46: 0 | L46: LEE FREYA | M46: 0 | N46: O'BRIEN Rebekah | O46: RIXON Maisie
B47: T | C47: Pole Vault | D47: 0 | E47: =IFERROR(IF(INDIRECT(CONCATENATE($B$3,D$1,MATCH(E$28,INDIRECT(CONCATENATE($B$3,E$1,$B47,35,":",E$1,$B47,74)),0)+34))="-",E194,INDIRECT(CONCATENATE($B$3,D$1,MATCH(E$28,INDIRECT(CONCATENATE($B$3,E$1,$B47,35,":",E$1,$B47,74)),0)+34))),E194) -> 0 | F47: 0 | G47: 0 | H47: 0 | I47: 0 | J47: 0 | K47: 0 | L47: 0 | M47: 0 | N47: 0 | O47: 0
B48: U | C48: 4x100 Relay | D48: =IFERROR(IF(INDIRECT(CONCATENATE($B$3,D$1,MATCH($D$28,INDIRECT(CONCATENATE($B$3,E$1,$B48,35,":",E$1,$B48,74)),0)+34))="-",D195,INDIRECT(CONCATENATE($B$3,D$1,MATCH($D$28,INDIRECT(CONCATENATE($B$3,E$1,$B48,35,":",E$1,$B48,74)),0)+34))),D195) -> ALATISE GRACE | E48: =IFERROR(IF(INDIRECT(CONCATENATE($B$3,D$1,MATCH($F$28,INDIRECT(CONCATENATE($B$3,E$1,$B48,35,":",E$1,$B48,74)),0)+34))="-",E195,INDIRECT(CONCATENATE($B$3,D$1,MATCH($F$28,INDIRECT(CONCATENATE($B$3,E$1,$B48,35,":",E$1,$B48,74)),0)+34))),E195) -> VANDERPUIJE JUDITH | F48: =IFERROR(IF(INDIRECT(CONCATENATE($B$3,F$1,MATCH($D$28,INDIRECT(CONCATENATE($B$3,G$1,$B48,35,":",G$1,$B48,74)),0)+34))="-",F195,INDIRECT(CONCATENATE($B$3,F$1,MATCH($D$28,INDIRECT(CONCATENATE($B$3,G$1,$B48,35,":",G$1,$B48,74)),0)+34))),F195) -> PIPPIM Ella | G48: =IFERROR(IF(INDIRECT(CONCATENATE($B$3,F$1,MATCH($F$28,INDIRECT(CONCATENATE($B$3,G$1,$B48,35,":",G$1,$B48,74)),0)+34))="-",G195,INDIRECT(CONCATENATE($B$3,F$1,MATCH($F$28,INDIRECT(CONCATENATE($B$3,G$1,$B48,35,":",G$1,$B48,74)),0)+34))),G195) -> BOWLEY Kayla | H48: =IFERROR(IF(INDIRECT(CONCATENATE($B$3,H$1,MATCH($D$28,INDIRECT(CONCATENATE($B$3,I$1,$B48,35,":",I$1,$B48,74)),0)+34))="-",H195,INDIRECT(CONCATENATE($B$3,H$1,MATCH($D$28,INDIRECT(CONCATENATE($B$3,I$1,$B48,35,":",I$1,$B48,74)),0)+34))),H195) -> WRIGHT Charlotte | I48: =IFERROR(IF(INDIRECT(CONCATENATE($B$3,H$1,MATCH($F$28,INDIRECT(CONCATENATE($B$3,I$1,$B48,35,":",I$1,$B48,74)),0)+34))="-",I195,INDIRECT(CONCATENATE($B$3,H$1,MATCH($F$28,INDIRECT(CONCATENATE($B$3,I$1,$B48,35,":",I$1,$B48,74)),0)+34))),I195) -> AGNIMEL Esther | J48: =IFERROR(IF(INDIRECT(CONCATENATE($B$3,J$1,MATCH($D$28,INDIRECT(CONCATENATE($B$3,K$1,$B48,35,":",K$1,$B48,74)),0)+34))="-",J195,INDIRECT(CONCATENATE($B$3,J$1,MATCH($D$28,INDIRECT(CONCATENATE($B$3,K$1,$B48,35,":",K$1,$B48,74)),0)+34))),J195) -> 0 | K48: =IFERROR(IF(INDIRECT(CONCATENATE($B$3,J$1,MATCH($F$28,INDIRECT(CONCATENATE($B$3,K$1,$B48,35,":",K$1,$B48,74)),0)+34))="-",K195,INDIRECT(CONCATENATE($B$3,J$1,MATCH($F$28,INDIRECT(CONCATENATE($B$3,K$1,$B48,35,":",K$1,$B48,74)),0)+34))),K195) -> 0 | L48: =IFERROR(IF(INDIRECT(CONCATENATE($B$3,L$1,MATCH($D$28,INDIRECT(CONCATENATE($B$3,M$1,$B48,35,":",M$1,$B48,74)),0)+34))="-",L195,INDIRECT(CONCATENATE($B$3,L$1,MATCH($D$28,INDIRECT(CONCATENATE($B$3,M$1,$B48,35,":",M$1,$B48,74)),0)+34))),L195) -> SCRIVENS HANNAH | M48: =IFERROR(IF(INDIRECT(CONCATENATE($B$3,L$1,MATCH($F$28,INDIRECT(CONCATENATE($B$3,M$1,$B48,35,":",M$1,$B48,74)),0)+34))="-",M195,INDIRECT(CONCATENATE($B$3,L$1,MATCH($F$28,INDIRECT(CONCATENATE($B$3,M$1,$B48,35,":",M$1,$B48,74)),0)+34))),M195) -> SADLER REEVES YASMIN | N48: =IFERROR(IF(INDIRECT(CONCATENATE($B$3,N$1,MATCH($D$28,INDIRECT(CONCATENATE($B$3,O$1,$B48,35,":",O$1,$B48,74)),0)+34))="-",N195,INDIRECT(CONCATENATE($B$3,N$1,MATCH($D$28,INDIRECT(CONCATENATE($B$3,O$1,$B48,35,":",O$1,$B48,74)),0)+34))),N195) -> 0 | O48: =IFERROR(IF(INDIRECT(CONCATENATE($B$3,N$1,MATCH($F$28,INDIRECT(CONCATENATE($B$3,O$1,$B48,35,":",O$1,$B48,74)),0)+34))="-",O195,INDIRECT(CONCATENATE($B$3,N$1,MATCH($F$28,INDIRECT(CONCATENATE($B$3,O$1,$B48,35,":",O$1,$B48,74)),0)+34))),O195) -> 0 | P48: =IFERROR(IF(INDIRECT(CONCATENATE($B$3,P$1,MATCH($D$28,INDIRECT(CONCATENATE($B$3,Q$1,$B48,35,":",Q$1,$B48,74)),0)+34))="-",P195,INDIRECT(CONCATENATE($B$3,P$1,MATCH($D$28,INDIRECT(CONCATENATE($B$3,Q$1,$B48,35,":",Q$1,$B48,74)),0)+34))),P195) ->  | Q48: =IFERROR(IF(INDIRECT(CONCATENATE($B$3,P$1,MATCH($F$28,INDIRECT(CONCATENATE($B$3,Q$1,$B48,35,":",Q$1,$B48,74)),0)+34))="-",Q195,INDIRECT(CONCATENATE($B$3,P$1,MATCH($F$28,INDIRECT(CONCATENATE($B$3,Q$1,$B48,35,":",Q$1,$B48,74)),0)+34))),Q195) ->  | R48: =IFERROR(IF(INDIRECT(CONCATENATE($B$3,R$1,MATCH($D$28,INDIRECT(CONCATENATE($B$3,S$1,$B48,35,":",S$1,$B48,74)),0)+34))="-",R195,INDIRECT(CONCATENATE($B$3,R$1,MATCH($D$28,INDIRECT(CONCATENATE($B$3,S$1,$B48,35,":",S$1,$B48,74)),0)+34))),R195) ->  | S48: =IFERROR(IF(INDIRECT(CONCATENATE($B$3,R$1,MATCH($F$28,INDIRECT(CONCATENATE($B$3,S$1,$B48,35,":",S$1,$B48,74)),0)+34))="-",S195,INDIRECT(CONCATENATE($B$3,R$1,MATCH($F$28,INDIRECT(CONCATENATE($B$3,S$1,$B48,35,":",S$1,$B48,74)),0)+34))),S195) -> 
B49: U | C49: 4x100 Relay | D49: =IFERROR(IF(INDIRECT(CONCATENATE($B$3,D$1,MATCH($H$28,INDIRECT(CONCATENATE($B$3,E$1,$B49,35,":",E$1,$B49,74)),0)+34))="-",D196,INDIRECT(CONCATENATE($B$3,D$1,MATCH($H$28,INDIRECT(CONCATENATE($B$3,E$1,$B49,35,":",E$1,$B49,74)),0)+34))),D196) -> BELL HANNAH | E49: =IFERROR(IF(INDIRECT(CONCATENATE($B$3,D$1,MATCH($J$28,INDIRECT(CONCATENATE($B$3,E$1,$B49,35,":",E$1,$B49,74)),0)+34))="-",E196,INDIRECT(CONCATENATE($B$3,D$1,MATCH($J$28,INDIRECT(CONCATENATE($B$3,E$1,$B49,35,":",E$1,$B49,74)),0)+34))),E196) -> SIBBONS Aleeya | F49: =IFERROR(IF(INDIRECT(CONCATENATE($B$3,F$1,MATCH($H$28,INDIRECT(CONCATENATE($B$3,G$1,$B49,35,":",G$1,$B49,74)),0)+34))="-",F196,INDIRECT(CONCATENATE($B$3,F$1,MATCH($H$28,INDIRECT(CONCATENATE($B$3,G$1,$B49,35,":",G$1,$B49,74)),0)+34))),F196) -> BRYAN Toni | G49: =IFERROR(IF(INDIRECT(CONCATENATE($B$3,F$1,MATCH($J$28,INDIRECT(CONCATENATE($B$3,G$1,$B49,35,":",G$1,$B49,74)),0)+34))="-",G196,INDIRECT(CONCATENATE($B$3,F$1,MATCH($J$28,INDIRECT(CONCATENATE($B$3,G$1,$B49,35,":",G$1,$B49,74)),0)+34))),G196) -> LARGIE-POLEON Racheal | H49: =IFERROR(IF(INDIRECT(CONCATENATE($B$3,H$1,MATCH($H$28,INDIRECT(CONCATENATE($B$3,I$1,$B49,35,":",I$1,$B49,74)),0)+34))="-",H196,INDIRECT(CONCATENATE($B$3,H$1,MATCH($H$28,INDIRECT(CONCATENATE($B$3,I$1,$B49,35,":",I$1,$B49,74)),0)+34))),H196) -> ANDERSON Ayesha | I49: =IFERROR(IF(INDIRECT(CONCATENATE($B$3,H$1,MATCH($J$28,INDIRECT(CONCATENATE($B$3,I$1,$B49,35,":",I$1,$B49,74)),0)+34))="-",I196,INDIRECT(CONCATENATE($B$3,H$1,MATCH($J$28,INDIRECT(CONCATENATE($B$3,I$1,$B49,35,":",I$1,$B49,74)),0)+34))),I196) -> SWEETMAN Molly | J49: =IFERROR(IF(INDIRECT(CONCATENATE($B$3,J$1,MATCH($H$28,INDIRECT(CONCATENATE($B$3,K$1,$B49,35,":",K$1,$B49,74)),0)+34))="-",J196,INDIRECT(CONCATENATE($B$3,J$1,MATCH($H$28,INDIRECT(CONCATENATE($B$3,K$1,$B49,35,":",K$1,$B49,74)),0)+34))),J196) -> 0 | K49: =IFERROR(IF(INDIRECT(CONCATENATE($B$3,J$1,MATCH($J$28,INDIRECT(CONCATENATE($B$3,K$1,$B49,35,":",K$1,$B49,74)),0)+34))="-",K196,INDIRECT(CONCATENATE($B$3,J$1,MATCH($J$28,INDIRECT(CONCATENATE($B$3,K$1,$B49,35,":",K$1,$B49,74)),0)+34))),K196) -> 0 | L49: =IFERROR(IF(INDIRECT(CONCATENATE($B$3,L$1,MATCH($H$28,INDIRECT(CONCATENATE($B$3,M$1,$B49,35,":",M$1,$B49,74)),0)+34))="-",L196,INDIRECT(CONCATENATE($B$3,L$1,MATCH($H$28,INDIRECT(CONCATENATE($B$3,M$1,$B49,35,":",M$1,$B49,74)),0)+34))),L196) -> GARCIA Kimberley | M49: =IFERROR(IF(INDIRECT(CONCATENATE($B$3,L$1,MATCH($J$28,INDIRECT(CONCATENATE($B$3,M$1,$B49,35,":",M$1,$B49,74)),0)+34))="-",M196,INDIRECT(CONCATENATE($B$3,L$1,MATCH($J$28,INDIRECT(CONCATENATE($B$3,M$1,$B49,35,":",M$1,$B49,74)),0)+34))),M196) -> NKEREUWEN DJAMILLA | N49: =IFERROR(IF(INDIRECT(CONCATENATE($B$3,N$1,MATCH($H$28,INDIRECT(CONCATENATE($B$3,O$1,$B49,35,":",O$1,$B49,74)),0)+34))="-",N196,INDIRECT(CONCATENATE($B$3,N$1,MATCH($H$28,INDIRECT(CONCATENATE($B$3,O$1,$B49,35,":",O$1,$B49,74)),0)+34))),N196) -> 0 | O49: =IFERROR(IF(INDIRECT(CONCATENATE($B$3,N$1,MATCH($J$28,INDIRECT(CONCATENATE($B$3,O$1,$B49,35,":",O$1,$B49,74)),0)+34))="-",O196,INDIRECT(CONCATENATE($B$3,N$1,MATCH($J$28,INDIRECT(CONCATENATE($B$3,O$1,$B49,35,":",O$1,$B49,74)),0)+34))),O196) -> 0 | P49: =IFERROR(IF(INDIRECT(CONCATENATE($B$3,P$1,MATCH($H$28,INDIRECT(CONCATENATE($B$3,Q$1,$B49,35,":",Q$1,$B49,74)),0)+34))="-",P196,INDIRECT(CONCATENATE($B$3,P$1,MATCH($H$28,INDIRECT(CONCATENATE($B$3,Q$1,$B49,35,":",Q$1,$B49,74)),0)+34))),P196) ->  | Q49: =IFERROR(IF(INDIRECT(CONCATENATE($B$3,P$1,MATCH($J$28,INDIRECT(CONCATENATE($B$3,Q$1,$B49,35,":",Q$1,$B49,74)),0)+34))="-",Q196,INDIRECT(CONCATENATE($B$3,P$1,MATCH($J$28,INDIRECT(CONCATENATE($B$3,Q$1,$B49,35,":",Q$1,$B49,74)),0)+34))),Q196) ->  | R49: =IFERROR(IF(INDIRECT(CONCATENATE($B$3,R$1,MATCH($H$28,INDIRECT(CONCATENATE($B$3,S$1,$B49,35,":",S$1,$B49,74)),0)+34))="-",R196,INDIRECT(CONCATENATE($B$3,R$1,MATCH($H$28,INDIRECT(CONCATENATE($B$3,S$1,$B49,35,":",S$1,$B49,74)),0)+34))),R196) ->  | S49: =IFERROR(IF(INDIRECT(CONCATENATE($B$3,R$1,MATCH($J$28,INDIRECT(CONCATENATE($B$3,S$1,$B49,35,":",S$1,$B49,74)),0)+34))="-",S196,INDIRECT(CONCATENATE($B$3,R$1,MATCH($J$28,INDIRECT(CONCATENATE($B$3,S$1,$B49,35,":",S$1,$B49,74)),0)+34))),S196) -> 
B50: V | C50: 4x400 (300) | D50: =IFERROR(IF(INDIRECT(CONCATENATE($B$3,D$1,MATCH($D$28,INDIRECT(CONCATENATE($B$3,E$1,$B50,35,":",E$1,$B50,74)),0)+34))="-",D197,INDIRECT(CONCATENATE($B$3,D$1,MATCH($D$28,INDIRECT(CONCATENATE($B$3,E$1,$B50,35,":",E$1,$B50,74)),0)+34))),D197) -> VANDERPUIJE JUDITH | E50: =IFERROR(IF(INDIRECT(CONCATENATE($B$3,D$1,MATCH($F$28,INDIRECT(CONCATENATE($B$3,E$1,$B50,35,":",E$1,$B50,74)),0)+34))="-",E197,INDIRECT(CONCATENATE($B$3,D$1,MATCH($F$28,INDIRECT(CONCATENATE($B$3,E$1,$B50,35,":",E$1,$B50,74)),0)+34))),E197) -> BELL HANNAH | F50: =IFERROR(IF(INDIRECT(CONCATENATE($B$3,F$1,MATCH($D$28,INDIRECT(CONCATENATE($B$3,G$1,$B50,35,":",G$1,$B50,74)),0)+34))="-",F197,INDIRECT(CONCATENATE($B$3,F$1,MATCH($D$28,INDIRECT(CONCATENATE($B$3,G$1,$B50,35,":",G$1,$B50,74)),0)+34))),F197) -> MAKUWA Rowan | G50: =IFERROR(IF(INDIRECT(CONCATENATE($B$3,F$1,MATCH($F$28,INDIRECT(CONCATENATE($B$3,G$1,$B50,35,":",G$1,$B50,74)),0)+34))="-",G197,INDIRECT(CONCATENATE($B$3,F$1,MATCH($F$28,INDIRECT(CONCATENATE($B$3,G$1,$B50,35,":",G$1,$B50,74)),0)+34))),G197) -> DAKE Zoe | H50: =IFERROR(IF(INDIRECT(CONCATENATE($B$3,H$1,MATCH($D$28,INDIRECT(CONCATENATE($B$3,I$1,$B50,35,":",I$1,$B50,74)),0)+34))="-",H197,INDIRECT(CONCATENATE($B$3,H$1,MATCH($D$28,INDIRECT(CONCATENATE($B$3,I$1,$B50,35,":",I$1,$B50,74)),0)+34))),H197) -> WRIGHT Charlotte | I50: =IFERROR(IF(INDIRECT(CONCATENATE($B$3,H$1,MATCH($F$28,INDIRECT(CONCATENATE($B$3,I$1,$B50,35,":",I$1,$B50,74)),0)+34))="-",I197,INDIRECT(CONCATENATE($B$3,H$1,MATCH($F$28,INDIRECT(CONCATENATE($B$3,I$1,$B50,35,":",I$1,$B50,74)),0)+34))),I197) -> KILNER Amy | J50: =IFERROR(IF(INDIRECT(CONCATENATE($B$3,J$1,MATCH($D$28,INDIRECT(CONCATENATE($B$3,K$1,$B50,35,":",K$1,$B50,74)),0)+34))="-",J197,INDIRECT(CONCATENATE($B$3,J$1,MATCH($D$28,INDIRECT(CONCATENATE($B$3,K$1,$B50,35,":",K$1,$B50,74)),0)+34))),J197) -> 0 | K50: =IFERROR(IF(INDIRECT(CONCATENATE($B$3,J$1,MATCH($F$28,INDIRECT(CONCATENATE($B$3,K$1,$B50,35,":",K$1,$B50,74)),0)+34))="-",K197,INDIRECT(CONCATENATE($B$3,J$1,MATCH($F$28,INDIRECT(CONCATENATE($B$3,K$1,$B50,35,":",K$1,$B50,74)),0)+34))),K197) -> 0 | L50: =IFERROR(IF(INDIRECT(CONCATENATE($B$3,L$1,MATCH($D$28,INDIRECT(CONCATENATE($B$3,M$1,$B50,35,":",M$1,$B50,74)),0)+34))="-",L197,INDIRECT(CONCATENATE($B$3,L$1,MATCH($D$28,INDIRECT(CONCATENATE($B$3,M$1,$B50,35,":",M$1,$B50,74)),0)+34))),L197) -> SCRIVENS HANNAH | M50: =IFERROR(IF(INDIRECT(CONCATENATE($B$3,L$1,MATCH($F$28,INDIRECT(CONCATENATE($B$3,M$1,$B50,35,":",M$1,$B50,74)),0)+34))="-",M197,INDIRECT(CONCATENATE($B$3,L$1,MATCH($F$28,INDIRECT(CONCATENATE($B$3,M$1,$B50,35,":",M$1,$B50,74)),0)+34))),M197) -> NKEREUWEN DJAMILLA | N50: =IFERROR(IF(INDIRECT(CONCATENATE($B$3,N$1,MATCH($D$28,INDIRECT(CONCATENATE($B$3,O$1,$B50,35,":",O$1,$B50,74)),0)+34))="-",N197,INDIRECT(CONCATENATE($B$3,N$1,MATCH($D$28,INDIRECT(CONCATENATE($B$3,O$1,$B50,35,":",O$1,$B50,74)),0)+34))),N197) -> 0 | O50: =IFERROR(IF(INDIRECT(CONCATENATE($B$3,N$1,MATCH($F$28,INDIRECT(CONCATENATE($B$3,O$1,$B50,35,":",O$1,$B50,74)),0)+34))="-",O197,INDIRECT(CONCATENATE($B$3,N$1,MATCH($F$28,INDIRECT(CONCATENATE($B$3,O$1,$B50,35,":",O$1,$B50,74)),0)+34))),O197) -> 0 | P50: =IFERROR(IF(INDIRECT(CONCATENATE($B$3,P$1,MATCH($D$28,INDIRECT(CONCATENATE($B$3,Q$1,$B50,35,":",Q$1,$B50,74)),0)+34))="-",P197,INDIRECT(CONCATENATE($B$3,P$1,MATCH($D$28,INDIRECT(CONCATENATE($B$3,Q$1,$B50,35,":",Q$1,$B50,74)),0)+34))),P197) ->  | Q50: =IFERROR(IF(INDIRECT(CONCATENATE($B$3,P$1,MATCH($F$28,INDIRECT(CONCATENATE($B$3,Q$1,$B50,35,":",Q$1,$B50,74)),0)+34))="-",Q197,INDIRECT(CONCATENATE($B$3,P$1,MATCH($F$28,INDIRECT(CONCATENATE($B$3,Q$1,$B50,35,":",Q$1,$B50,74)),0)+34))),Q197) ->  | R50: =IFERROR(IF(INDIRECT(CONCATENATE($B$3,R$1,MATCH($D$28,INDIRECT(CONCATENATE($B$3,S$1,$B50,35,":",S$1,$B50,74)),0)+34))="-",R197,INDIRECT(CONCATENATE($B$3,R$1,MATCH($D$28,INDIRECT(CONCATENATE($B$3,S$1,$B50,35,":",S$1,$B50,74)),0)+34))),R197) ->  | S50: =IFERROR(IF(INDIRECT(CONCATENATE($B$3,R$1,MATCH($F$28,INDIRECT(CONCATENATE($B$3,S$1,$B50,35,":",S$1,$B50,74)),0)+34))="-",S197,INDIRECT(CONCATENATE($B$3,R$1,MATCH($F$28,INDIRECT(CONCATENATE($B$3,S$1,$B50,35,":",S$1,$B50,74)),0)+34))),S197) -> 
B51: V | C51: 4x400 (300) | D51: =IFERROR(IF(INDIRECT(CONCATENATE($B$3,D$1,MATCH($H$28,INDIRECT(CONCATENATE($B$3,E$1,$B51,35,":",E$1,$B51,74)),0)+34))="-",D198,INDIRECT(CONCATENATE($B$3,D$1,MATCH($H$28,INDIRECT(CONCATENATE($B$3,E$1,$B51,35,":",E$1,$B51,74)),0)+34))),D198) -> HUDSON Fraya | E51: =IFERROR(IF(INDIRECT(CONCATENATE($B$3,D$1,MATCH($J$28,INDIRECT(CONCATENATE($B$3,E$1,$B51,35,":",E$1,$B51,74)),0)+34))="-",E198,INDIRECT(CONCATENATE($B$3,D$1,MATCH($J$28,INDIRECT(CONCATENATE($B$3,E$1,$B51,35,":",E$1,$B51,74)),0)+34))),E198) -> TONGE Myomi | F51: =IFERROR(IF(INDIRECT(CONCATENATE($B$3,F$1,MATCH($H$28,INDIRECT(CONCATENATE($B$3,G$1,$B51,35,":",G$1,$B51,74)),0)+34))="-",F198,INDIRECT(CONCATENATE($B$3,F$1,MATCH($H$28,INDIRECT(CONCATENATE($B$3,G$1,$B51,35,":",G$1,$B51,74)),0)+34))),F198) -> CHUKWU Jennifer | G51: =IFERROR(IF(INDIRECT(CONCATENATE($B$3,F$1,MATCH($J$28,INDIRECT(CONCATENATE($B$3,G$1,$B51,35,":",G$1,$B51,74)),0)+34))="-",G198,INDIRECT(CONCATENATE($B$3,F$1,MATCH($J$28,INDIRECT(CONCATENATE($B$3,G$1,$B51,35,":",G$1,$B51,74)),0)+34))),G198) -> DACOSTA Glalys | H51: =IFERROR(IF(INDIRECT(CONCATENATE($B$3,H$1,MATCH($H$28,INDIRECT(CONCATENATE($B$3,I$1,$B51,35,":",I$1,$B51,74)),0)+34))="-",H198,INDIRECT(CONCATENATE($B$3,H$1,MATCH($H$28,INDIRECT(CONCATENATE($B$3,I$1,$B51,35,":",I$1,$B51,74)),0)+34))),H198) -> MOODY Robyn | I51: =IFERROR(IF(INDIRECT(CONCATENATE($B$3,H$1,MATCH($J$28,INDIRECT(CONCATENATE($B$3,I$1,$B51,35,":",I$1,$B51,74)),0)+34))="-",I198,INDIRECT(CONCATENATE($B$3,H$1,MATCH($J$28,INDIRECT(CONCATENATE($B$3,I$1,$B51,35,":",I$1,$B51,74)),0)+34))),I198) -> SWEETMAN Molly | J51: =IFERROR(IF(INDIRECT(CONCATENATE($B$3,J$1,MATCH($H$28,INDIRECT(CONCATENATE($B$3,K$1,$B51,35,":",K$1,$B51,74)),0)+34))="-",J198,INDIRECT(CONCATENATE($B$3,J$1,MATCH($H$28,INDIRECT(CONCATENATE($B$3,K$1,$B51,35,":",K$1,$B51,74)),0)+34))),J198) -> 0 | K51: =IFERROR(IF(INDIRECT(CONCATENATE($B$3,J$1,MATCH($J$28,INDIRECT(CONCATENATE($B$3,K$1,$B51,35,":",K$1,$B51,74)),0)+34))="-",K198,INDIRECT(CONCATENATE($B$3,J$1,MATCH($J$28,INDIRECT(CONCATENATE($B$3,K$1,$B51,35,":",K$1,$B51,74)),0)+34))),K198) -> 0 | L51: =IFERROR(IF(INDIRECT(CONCATENATE($B$3,L$1,MATCH($H$28,INDIRECT(CONCATENATE($B$3,M$1,$B51,35,":",M$1,$B51,74)),0)+34))="-",L198,INDIRECT(CONCATENATE($B$3,L$1,MATCH($H$28,INDIRECT(CONCATENATE($B$3,M$1,$B51,35,":",M$1,$B51,74)),0)+34))),L198) -> MACEY LAUREN | M51: =IFERROR(IF(INDIRECT(CONCATENATE($B$3,L$1,MATCH($J$28,INDIRECT(CONCATENATE($B$3,M$1,$B51,35,":",M$1,$B51,74)),0)+34))="-",M198,INDIRECT(CONCATENATE($B$3,L$1,MATCH($J$28,INDIRECT(CONCATENATE($B$3,M$1,$B51,35,":",M$1,$B51,74)),0)+34))),M198) -> SAXBY ELLA | N51: =IFERROR(IF(INDIRECT(CONCATENATE($B$3,N$1,MATCH($H$28,INDIRECT(CONCATENATE($B$3,O$1,$B51,35,":",O$1,$B51,74)),0)+34))="-",N198,INDIRECT(CONCATENATE($B$3,N$1,MATCH($H$28,INDIRECT(CONCATENATE($B$3,O$1,$B51,35,":",O$1,$B51,74)),0)+34))),N198) -> 0 | O51: =IFERROR(IF(INDIRECT(CONCATENATE($B$3,N$1,MATCH($J$28,INDIRECT(CONCATENATE($B$3,O$1,$B51,35,":",O$1,$B51,74)),0)+34))="-",O198,INDIRECT(CONCATENATE($B$3,N$1,MATCH($J$28,INDIRECT(CONCATENATE($B$3,O$1,$B51,35,":",O$1,$B51,74)),0)+34))),O198) -> 0 | P51: =IFERROR(IF(INDIRECT(CONCATENATE($B$3,P$1,MATCH($H$28,INDIRECT(CONCATENATE($B$3,Q$1,$B51,35,":",Q$1,$B51,74)),0)+34))="-",P198,INDIRECT(CONCATENATE($B$3,P$1,MATCH($H$28,INDIRECT(CONCATENATE($B$3,Q$1,$B51,35,":",Q$1,$B51,74)),0)+34))),P198) ->  | Q51: =IFERROR(IF(INDIRECT(CONCATENATE($B$3,P$1,MATCH($J$28,INDIRECT(CONCATENATE($B$3,Q$1,$B51,35,":",Q$1,$B51,74)),0)+34))="-",Q198,INDIRECT(CONCATENATE($B$3,P$1,MATCH($J$28,INDIRECT(CONCATENATE($B$3,Q$1,$B51,35,":",Q$1,$B51,74)),0)+34))),Q198) ->  | R51: =IFERROR(IF(INDIRECT(CONCATENATE($B$3,R$1,MATCH($H$28,INDIRECT(CONCATENATE($B$3,S$1,$B51,35,":",S$1,$B51,74)),0)+34))="-",R198,INDIRECT(CONCATENATE($B$3,R$1,MATCH($H$28,INDIRECT(CONCATENATE($B$3,S$1,$B51,35,":",S$1,$B51,74)),0)+34))),R198) ->  | S51: =IFERROR(IF(INDIRECT(CONCATENATE($B$3,R$1,MATCH($J$28,INDIRECT(CONCATENATE($B$3,S$1,$B51,35,":",S$1,$B51,74)),0)+34))="-",S198,INDIRECT(CONCATENATE($B$3,R$1,MATCH($J$28,INDIRECT(CONCATENATE($B$3,S$1,$B51,35,":",S$1,$B51,74)),0)+34))),S198) -> 
B53: ="'UAG Men'!" -> 'UAG Men'! | C53: U20 Men
B54: B | C54: 75 / 100 | D54: =IFERROR(IF(INDIRECT(CONCATENATE($B$53,D$1,MATCH(D$2,INDIRECT(CONCATENATE($B$53,E$1,$B54,4,":",E$1,$B54,74)),0)+3))="-",D104,INDIRECT(CONCATENATE($B$53,D$1,MATCH(D$2,INDIRECT(CONCATENATE($B$53,E$1,$B54,4,":",E$1,$B54,74)),0)+3))),D104) -> JAMES Chosen | E54: =IFERROR(IF(INDIRECT(CONCATENATE($B$53,D$1,MATCH(E$2,INDIRECT(CONCATENATE($B$53,E$1,$B54,4,":",E$1,$B54,74)),0)+3))="-",E104,INDIRECT(CONCATENATE($B$53,D$1,MATCH(E$2,INDIRECT(CONCATENATE($B$53,E$1,$B54,4,":",E$1,$B54,74)),0)+3))),E104) -> ELLIS Cameron X | F54: =IFERROR(IF(INDIRECT(CONCATENATE($B$53,F$1,MATCH(F$2,INDIRECT(CONCATENATE($B$53,G$1,$B54,4,":",G$1,$B54,74)),0)+3))="-",F104,INDIRECT(CONCATENATE($B$53,F$1,MATCH(F$2,INDIRECT(CONCATENATE($B$53,G$1,$B54,4,":",G$1,$B54,74)),0)+3))),F104) -> FRANCIS-DWYER Micah | G54: =IFERROR(IF(INDIRECT(CONCATENATE($B$53,F$1,MATCH(G$2,INDIRECT(CONCATENATE($B$53,G$1,$B54,4,":",G$1,$B54,74)),0)+3))="-",G104,INDIRECT(CONCATENATE($B$53,F$1,MATCH(G$2,INDIRECT(CONCATENATE($B$53,G$1,$B54,4,":",G$1,$B54,74)),0)+3))),G104) -> DANIEL Cameron Ayo | H54: =IFERROR(IF(INDIRECT(CONCATENATE($B$53,H$1,MATCH(H$2,INDIRECT(CONCATENATE($B$53,I$1,$B54,4,":",I$1,$B54,74)),0)+3))="-",H104,INDIRECT(CONCATENATE($B$53,H$1,MATCH(H$2,INDIRECT(CONCATENATE($B$53,I$1,$B54,4,":",I$1,$B54,74)),0)+3))),H104) -> ADDISON Elliott | I54: =IFERROR(IF(INDIRECT(CONCATENATE($B$53,H$1,MATCH(I$2,INDIRECT(CONCATENATE($B$53,I$1,$B54,4,":",I$1,$B54,74)),0)+3))="-",I104,INDIRECT(CONCATENATE($B$53,H$1,MATCH(I$2,INDIRECT(CONCATENATE($B$53,I$1,$B54,4,":",I$1,$B54,74)),0)+3))),I104) -> FRESHWATER Aaron X | J54: =IFERROR(IF(INDIRECT(CONCATENATE($B$53,J$1,MATCH(J$2,INDIRECT(CONCATENATE($B$53,K$1,$B54,4,":",K$1,$B54,74)),0)+3))="-",J104,INDIRECT(CONCATENATE($B$53,J$1,MATCH(J$2,INDIRECT(CONCATENATE($B$53,K$1,$B54,4,":",K$1,$B54,74)),0)+3))),J104) -> HORLESTON Joshua X | K54: =IFERROR(IF(INDIRECT(CONCATENATE($B$53,J$1,MATCH(K$2,INDIRECT(CONCATENATE($B$53,K$1,$B54,4,":",K$1,$B54,74)),0)+3))="-",K104,INDIRECT(CONCATENATE($B$53,J$1,MATCH(K$2,INDIRECT(CONCATENATE($B$53,K$1,$B54,4,":",K$1,$B54,74)),0)+3))),K104) -> MORRIS Brent | L54: =IFERROR(IF(INDIRECT(CONCATENATE($B$53,L$1,MATCH(L$2,INDIRECT(CONCATENATE($B$53,M$1,$B54,4,":",M$1,$B54,74)),0)+3))="-",L104,INDIRECT(CONCATENATE($B$53,L$1,MATCH(L$2,INDIRECT(CONCATENATE($B$53,M$1,$B54,4,":",M$1,$B54,74)),0)+3))),L104) -> DOUGAL BARNABY | M54: =IFERROR(IF(INDIRECT(CONCATENATE($B$53,L$1,MATCH(M$2,INDIRECT(CONCATENATE($B$53,M$1,$B54,4,":",M$1,$B54,74)),0)+3))="-",M104,INDIRECT(CONCATENATE($B$53,L$1,MATCH(M$2,INDIRECT(CONCATENATE($B$53,M$1,$B54,4,":",M$1,$B54,74)),0)+3))),M104) -> 0 | N54: =IFERROR(IF(INDIRECT(CONCATENATE($B$53,N$1,MATCH(N$2,INDIRECT(CONCATENATE($B$53,O$1,$B54,4,":",O$1,$B54,74)),0)+3))="-",N104,INDIRECT(CONCATENATE($B$53,N$1,MATCH(N$2,INDIRECT(CONCATENATE($B$53,O$1,$B54,4,":",O$1,$B54,74)),0)+3))),N104) -> RIGBY Callum | O54: =IFERROR(IF(INDIRECT(CONCATENATE($B$53,N$1,MATCH(O$2,INDIRECT(CONCATENATE($B$53,O$1,$B54,4,":",O$1,$B54,74)),0)+3))="-",O104,INDIRECT(CONCATENATE($B$53,N$1,MATCH(O$2,INDIRECT(CONCATENATE($B$53,O$1,$B54,4,":",O$1,$B54,74)),0)+3))),O104) -> NORMAN Oscar | P54: =IFERROR(IF(INDIRECT(CONCATENATE($B$53,P$1,MATCH(P$2,INDIRECT(CONCATENATE($B$53,Q$1,$B54,4,":",Q$1,$B54,74)),0)+3))="-",P104,INDIRECT(CONCATENATE($B$53,P$1,MATCH(P$2,INDIRECT(CONCATENATE($B$53,Q$1,$B54,4,":",Q$1,$B54,74)),0)+3))),P104) ->  | Q54: =IFERROR(IF(INDIRECT(CONCATENATE($B$53,P$1,MATCH(Q$2,INDIRECT(CONCATENATE($B$53,Q$1,$B54,4,":",Q$1,$B54,74)),0)+3))="-",Q104,INDIRECT(CONCATENATE($B$53,P$1,MATCH(Q$2,INDIRECT(CONCATENATE($B$53,Q$1,$B54,4,":",Q$1,$B54,74)),0)+3))),Q104) ->  | R54: =IFERROR(IF(INDIRECT(CONCATENATE($B$53,R$1,MATCH(R$2,INDIRECT(CONCATENATE($B$53,S$1,$B54,4,":",S$1,$B54,74)),0)+3))="-",R104,INDIRECT(CONCATENATE($B$53,R$1,MATCH(R$2,INDIRECT(CONCATENATE($B$53,S$1,$B54,4,":",S$1,$B54,74)),0)+3))),R104) ->  | S54: =IFERROR(IF(INDIRECT(CONCATENATE($B$53,R$1,MATCH(S$2,INDIRECT(CONCATENATE($B$53,S$1,$B54,4,":",S$1,$B54,74)),0)+3))="-",S104,INDIRECT(CONCATENATE($B$53,R$1,MATCH(S$2,INDIRECT(CONCATENATE($B$53,S$1,$B54,4,":",S$1,$B54,74)),0)+3))),S104) -> 
B55: C | C55: 75 / 100 NS | D55: 0 | E55: 0 | F55: 0 | G55: 0 | H55: 0 | I55: 0 | J55: 0 | K55: 0 | L55: 0 | M55: 0 | N55: 0 | O55: 0
B56: D | C56: 150 / 200 | D56: OSUNSAMI Mayowa | E56: JAMES Chosen | F56: DACOSTA Dylan | G56: OSPINA Israel X | H56: ADDISON Elliott | I56: DUNCAN Jordon | J56: MORRIS Brent | K56: BWALYA Semba X | L56: DOUGAL BARNABY | M56: NGASSA Sebastian X | N56: FULLBROOK David | O56: RIGBY Callum
B57: E | C57: 300 / 400 | D57: CHAPMAN Harrison | E57: BROWN Isaac | F57: VANANATHAN Nithipan | G57: 0 | H57: DEBENHAM Lewis | I57: O'HARA Kieran | J57: MORRIS Brent | K57: STOCKER Michael | L57: HAMBROOK Matt | M57: TREMAIN HARRISON | N57: CRICK Samuel | O57: SEAL Toby
B58: F | C58: 800 | D58: RASHBROOK Jamie X | E58: 0 | F58: AIMIA Tim | G58: TAMBLING Robbie X | H58: DAVIS Ben | I58: CORDERY Elliot | J58: 0 | K58: 0 | L58: TREMAIN HARRISON | M58: 0 | N58: CRICK Samuel | O58: 0
B59: G | C59: 800 NS | D59: 0 | E59: 0 | F59: 0 | G59: 0 | H59: 0 | I59: 0 | J59: 0 | K59: 0 | L59: 0 | M59: 0 | N59: 0 | O59: 0
B60: H | C60: 1200 / 1500 | D60: BROWN Isaac | E60: 0 | F60: FLANAGAN Isaac X | G60: 0 | H60: KEEVIL Thomas | I60: O'HARA Kieran | J60: 0 | K60: 0 | L60: YOUNG HARRY | M60: TREMAIN HARRISON | N60: GOODGE Jamie | O60: PITCAIRN-KNOWLES Bede
B61: I | C61: Sprint Hurdles | D61: ADEYEYE William | E61: 0 | F61: RODRIQUES Ezra | G61: 0 | H61: 0 | I61: 0 | J61: 0 | K61: 0 | L61: FARRALL KONRAD | M61: 0 | N61: 0 | O61: 0
B62: J | C62: 3000 | D62: SMITH Harrison | E62: 0 | F62: 0 | G62: 0 | H62: ATKINS Samuel | I62: STEWART James | J62: 0 | K62: 0 | L62: 0 | M62: 0 | N62: PITCAIRN-KNOWLES Bede | O62: 0
B63: K | C63: Steeplechase | D63: 0 | E63: 0 | F63: 0 | G63: 0 | H63: ATKINS Samuel | I63: KEEVIL Thomas | J63: 0 | K63: 0 | L63: 0 | M63: 0 | N63: 0 | O63: 0
B64: L | C64: Distance Hurdles | D64: 0 | E64: 0 | F64: RODRIQUES Ezra | G64: 0 | H64: 0 | I64: 0 | J64: 0 | K64: 0 | L64: FARRALL KONRAD | M64: 0 | N64: NORMAN Oscar | O64: 0
B65: M | C65: Discus | D65: STUART Samuel X | E65: 0 | F65: VAUGHAN Reuben | G65: WIAFE Alexander | H65: DAVIS Ben | I65: 0 | J65: METCALFE Euan | K65: JOPP Oscar | L65: CRAWFORD KIAN | M65: FARRALL KONRAD | N65: SCOPES Alfie | O65: SEAL Toby
B66: N | C66: Hammer | D66: 0 | E66: 0 | F66: INNISS Tyvon X | G66: 0 | H66: THOMAS Jamal X | I66: 0 | J66: 0 | K66: 0 | L66: CRAWFORD KIAN | M66: 0 | N66: NICHOLSON Joseph | O66: 0
B67: O | C67: Javelin | D67: 0 | E67: 0 | F67: VAUGHAN Reuben | G67: DACOSTA Dylan | H67: KEEVIL Thomas | I67: 0 | J67: STOCKER Michael | K67: 0 | L67: CRAWFORD KIAN | M67: 0 | N67: RIGBY Callum | O67: FULLBROOK David
B68: P | C68: Shot | D68: HENRY JEROME X | E68: 0 | F68: WIAFE Alexander | G68: VAUGHAN Reuben | H68: ATKINS Samuel | I68: 0 | J68: METCALFE Euan | K68: 0 | L68: FARRALL KONRAD | M68: 0 | N68: SCOPES Alfie | O68: 0
B69: Q | C69: Long Jump | D69: ELLIS Cameron X | E69: 0 | F69: 0 | G69: 0 | H69: TAYLOR Shandell | I69: 0 | J69: JOPP Oscar | K69: 0 | L69: SMITH Benjamin X | M69: 0 | N69: FULLBROOK David | O69: SEAL Toby
B70: R | C70: Triple Jump | D70: FADAYIRO Theo | E70: ADEGBITE Andrew | F70: 0 | G70: 0 | H70: TAYLOR Shandell | I70: 0 | J70: ODEJIMI-RILEY Nile X | K70: 0 | L70: 0 | M70: 0 | N70: NORMAN Oscar | O70: 0
B71: S | C71: High Jump | D71: FADAYIRO Theo | E71: 0 | F71: ALLICOCK Rawle X | G71: 0 | H71: TAYLOR Shandell | I71: 0 | J71: JOPP Oscar | K71: 0 | L71: CRAWFORD KIAN | M71: 0 | N71: FULLBROOK David | O71: SEAL Toby
B72: T | C72: Pole Vault | D72: 0 | E72: 0 | F72: THOMAS Emmanuel | G72: 0 | H72: 0 | I72: 0 | J72: JOPP Oscar | K72: STOCKER Michael | L72: 0 | M72: 0 | N72: 0 | O72: 0
B73: U | C73: 4x100 Relay | D73: =IFERROR(IF(INDIRECT(CONCATENATE($B$53,D$1,MATCH($D$2,INDIRECT(CONCATENATE($B$53,E$1,$B73,4,":",E$1,$B73,74)),0)+3))="-",D123,INDIRECT(CONCATENATE($B$53,D$1,MATCH($D$2,INDIRECT(CONCATENATE($B$53,E$1,$B73,4,":",E$1,$B73,74)),0)+3))),D123) -> ADEGBITE Andrew | E73: =IFERROR(IF(INDIRECT(CONCATENATE($B$53,D$1,MATCH($F$2,INDIRECT(CONCATENATE($B$53,E$1,$B73,4,":",E$1,$B73,74)),0)+3))="-",E123,INDIRECT(CONCATENATE($B$53,D$1,MATCH($F$2,INDIRECT(CONCATENATE($B$53,E$1,$B73,4,":",E$1,$B73,74)),0)+3))),E123) -> JAMES Chosen | F73: =IFERROR(IF(INDIRECT(CONCATENATE($B$53,F$1,MATCH($D$2,INDIRECT(CONCATENATE($B$53,G$1,$B73,4,":",G$1,$B73,74)),0)+3))="-",F123,INDIRECT(CONCATENATE($B$53,F$1,MATCH($D$2,INDIRECT(CONCATENATE($B$53,G$1,$B73,4,":",G$1,$B73,74)),0)+3))),F123) -> DANIEL Cameron Ayo | G73: =IFERROR(IF(INDIRECT(CONCATENATE($B$53,F$1,MATCH($F$2,INDIRECT(CONCATENATE($B$53,G$1,$B73,4,":",G$1,$B73,74)),0)+3))="-",G123,INDIRECT(CONCATENATE($B$53,F$1,MATCH($F$2,INDIRECT(CONCATENATE($B$53,G$1,$B73,4,":",G$1,$B73,74)),0)+3))),G123) -> OSPINA Israel X | H73: =IFERROR(IF(INDIRECT(CONCATENATE($B$53,H$1,MATCH($D$2,INDIRECT(CONCATENATE($B$53,I$1,$B73,4,":",I$1,$B73,74)),0)+3))="-",H123,INDIRECT(CONCATENATE($B$53,H$1,MATCH($D$2,INDIRECT(CONCATENATE($B$53,I$1,$B73,4,":",I$1,$B73,74)),0)+3))),H123) -> DEBENHAM Lewis | I73: =IFERROR(IF(INDIRECT(CONCATENATE($B$53,H$1,MATCH($F$2,INDIRECT(CONCATENATE($B$53,I$1,$B73,4,":",I$1,$B73,74)),0)+3))="-",I123,INDIRECT(CONCATENATE($B$53,H$1,MATCH($F$2,INDIRECT(CONCATENATE($B$53,I$1,$B73,4,":",I$1,$B73,74)),0)+3))),I123) -> ADDISON Elliott | J73: =IFERROR(IF(INDIRECT(CONCATENATE($B$53,J$1,MATCH($D$2,INDIRECT(CONCATENATE($B$53,K$1,$B73,4,":",K$1,$B73,74)),0)+3))="-",J123,INDIRECT(CONCATENATE($B$53,J$1,MATCH($D$2,INDIRECT(CONCATENATE($B$53,K$1,$B73,4,":",K$1,$B73,74)),0)+3))),J123) -> MORRIS Brent | K73: =IFERROR(IF(INDIRECT(CONCATENATE($B$53,J$1,MATCH($F$2,INDIRECT(CONCATENATE($B$53,K$1,$B73,4,":",K$1,$B73,74)),0)+3))="-",K123,INDIRECT(CONCATENATE($B$53,J$1,MATCH($F$2,INDIRECT(CONCATENATE($B$53,K$1,$B73,4,":",K$1,$B73,74)),0)+3))),K123) -> JOPP Oscar | L73: =IFERROR(IF(INDIRECT(CONCATENATE($B$53,L$1,MATCH($D$2,INDIRECT(CONCATENATE($B$53,M$1,$B73,4,":",M$1,$B73,74)),0)+3))="-",L123,INDIRECT(CONCATENATE($B$53,L$1,MATCH($D$2,INDIRECT(CONCATENATE($B$53,M$1,$B73,4,":",M$1,$B73,74)),0)+3))),L123) -> FARRALL KONRAD | M73: =IFERROR(IF(INDIRECT(CONCATENATE($B$53,L$1,MATCH($F$2,INDIRECT(CONCATENATE($B$53,M$1,$B73,4,":",M$1,$B73,74)),0)+3))="-",M123,INDIRECT(CONCATENATE($B$53,L$1,MATCH($F$2,INDIRECT(CONCATENATE($B$53,M$1,$B73,4,":",M$1,$B73,74)),0)+3))),M123) -> DOUGAL BARNABY | N73: =IFERROR(IF(INDIRECT(CONCATENATE($B$53,N$1,MATCH($D$2,INDIRECT(CONCATENATE($B$53,O$1,$B73,4,":",O$1,$B73,74)),0)+3))="-",N123,INDIRECT(CONCATENATE($B$53,N$1,MATCH($D$2,INDIRECT(CONCATENATE($B$53,O$1,$B73,4,":",O$1,$B73,74)),0)+3))),N123) -> RIGBY Callum | O73: =IFERROR(IF(INDIRECT(CONCATENATE($B$53,N$1,MATCH($F$2,INDIRECT(CONCATENATE($B$53,O$1,$B73,4,":",O$1,$B73,74)),0)+3))="-",O123,INDIRECT(CONCATENATE($B$53,N$1,MATCH($F$2,INDIRECT(CONCATENATE($B$53,O$1,$B73,4,":",O$1,$B73,74)),0)+3))),O123) -> NORMAN Oscar | P73: =IFERROR(IF(INDIRECT(CONCATENATE($B$53,P$1,MATCH($D$2,INDIRECT(CONCATENATE($B$53,Q$1,$B73,4,":",Q$1,$B73,74)),0)+3))="-",P123,INDIRECT(CONCATENATE($B$53,P$1,MATCH($D$2,INDIRECT(CONCATENATE($B$53,Q$1,$B73,4,":",Q$1,$B73,74)),0)+3))),P123) ->  | Q73: =IFERROR(IF(INDIRECT(CONCATENATE($B$53,P$1,MATCH($F$2,INDIRECT(CONCATENATE($B$53,Q$1,$B73,4,":",Q$1,$B73,74)),0)+3))="-",Q123,INDIRECT(CONCATENATE($B$53,P$1,MATCH($F$2,INDIRECT(CONCATENATE($B$53,Q$1,$B73,4,":",Q$1,$B73,74)),0)+3))),Q123) ->  | R73: =IFERROR(IF(INDIRECT(CONCATENATE($B$53,R$1,MATCH($D$2,INDIRECT(CONCATENATE($B$53,S$1,$B73,4,":",S$1,$B73,74)),0)+3))="-",R123,INDIRECT(CONCATENATE($B$53,R$1,MATCH($D$2,INDIRECT(CONCATENATE($B$53,S$1,$B73,4,":",S$1,$B73,74)),0)+3))),R123) ->  | S73: =IFERROR(IF(INDIRECT(CONCATENATE($B$53,R$1,MATCH($F$2,INDIRECT(CONCATENATE($B$53,S$1,$B73,4,":",S$1,$B73,74)),0)+3))="-",S123,INDIRECT(CONCATENATE($B$53,R$1,MATCH($F$2,INDIRECT(CONCATENATE($B$53,S$1,$B73,4,":",S$1,$B73,74)),0)+3))),S123) -> 
B74: U | C74: 4x100 Relay | D74: =IFERROR(IF(INDIRECT(CONCATENATE($B$53,D$1,MATCH($H$2,INDIRECT(CONCATENATE($B$53,E$1,$B74,4,":",E$1,$B74,74)),0)+3))="-",D124,INDIRECT(CONCATENATE($B$53,D$1,MATCH($H$2,INDIRECT(CONCATENATE($B$53,E$1,$B74,4,":",E$1,$B74,74)),0)+3))),D124) -> ADEYEYE William | E74: =IFERROR(IF(INDIRECT(CONCATENATE($B$53,D$1,MATCH($J$2,INDIRECT(CONCATENATE($B$53,E$1,$B74,4,":",E$1,$B74,74)),0)+3))="-",E124,INDIRECT(CONCATENATE($B$53,D$1,MATCH($J$2,INDIRECT(CONCATENATE($B$53,E$1,$B74,4,":",E$1,$B74,74)),0)+3))),E124) -> OSUNSAMI Mayowa | F74: =IFERROR(IF(INDIRECT(CONCATENATE($B$53,F$1,MATCH($H$2,INDIRECT(CONCATENATE($B$53,G$1,$B74,4,":",G$1,$B74,74)),0)+3))="-",F124,INDIRECT(CONCATENATE($B$53,F$1,MATCH($H$2,INDIRECT(CONCATENATE($B$53,G$1,$B74,4,":",G$1,$B74,74)),0)+3))),F124) -> FRANCIS-DWYER Micah | G74: =IFERROR(IF(INDIRECT(CONCATENATE($B$53,F$1,MATCH($J$2,INDIRECT(CONCATENATE($B$53,G$1,$B74,4,":",G$1,$B74,74)),0)+3))="-",G124,INDIRECT(CONCATENATE($B$53,F$1,MATCH($J$2,INDIRECT(CONCATENATE($B$53,G$1,$B74,4,":",G$1,$B74,74)),0)+3))),G124) -> DACOSTA Dylan | H74: =IFERROR(IF(INDIRECT(CONCATENATE($B$53,H$1,MATCH($H$2,INDIRECT(CONCATENATE($B$53,I$1,$B74,4,":",I$1,$B74,74)),0)+3))="-",H124,INDIRECT(CONCATENATE($B$53,H$1,MATCH($H$2,INDIRECT(CONCATENATE($B$53,I$1,$B74,4,":",I$1,$B74,74)),0)+3))),H124) -> HARRIOTT Reece X | I74: =IFERROR(IF(INDIRECT(CONCATENATE($B$53,H$1,MATCH($J$2,INDIRECT(CONCATENATE($B$53,I$1,$B74,4,":",I$1,$B74,74)),0)+3))="-",I124,INDIRECT(CONCATENATE($B$53,H$1,MATCH($J$2,INDIRECT(CONCATENATE($B$53,I$1,$B74,4,":",I$1,$B74,74)),0)+3))),I124) -> TAYLOR Shandell | J74: =IFERROR(IF(INDIRECT(CONCATENATE($B$53,J$1,MATCH($H$2,INDIRECT(CONCATENATE($B$53,K$1,$B74,4,":",K$1,$B74,74)),0)+3))="-",J124,INDIRECT(CONCATENATE($B$53,J$1,MATCH($H$2,INDIRECT(CONCATENATE($B$53,K$1,$B74,4,":",K$1,$B74,74)),0)+3))),J124) -> STOCKER Michael | K74: =IFERROR(IF(INDIRECT(CONCATENATE($B$53,J$1,MATCH($J$2,INDIRECT(CONCATENATE($B$53,K$1,$B74,4,":",K$1,$B74,74)),0)+3))="-",K124,INDIRECT(CONCATENATE($B$53,J$1,MATCH($J$2,INDIRECT(CONCATENATE($B$53,K$1,$B74,4,":",K$1,$B74,74)),0)+3))),K124) -> ODEJIMI-RILEY Nile X | L74: =IFERROR(IF(INDIRECT(CONCATENATE($B$53,L$1,MATCH($H$2,INDIRECT(CONCATENATE($B$53,M$1,$B74,4,":",M$1,$B74,74)),0)+3))="-",L124,INDIRECT(CONCATENATE($B$53,L$1,MATCH($H$2,INDIRECT(CONCATENATE($B$53,M$1,$B74,4,":",M$1,$B74,74)),0)+3))),L124) -> HAMBROOK Matt | M74: =IFERROR(IF(INDIRECT(CONCATENATE($B$53,L$1,MATCH($J$2,INDIRECT(CONCATENATE($B$53,M$1,$B74,4,":",M$1,$B74,74)),0)+3))="-",M124,INDIRECT(CONCATENATE($B$53,L$1,MATCH($J$2,INDIRECT(CONCATENATE($B$53,M$1,$B74,4,":",M$1,$B74,74)),0)+3))),M124) -> CRAWFORD KIAN | N74: =IFERROR(IF(INDIRECT(CONCATENATE($B$53,N$1,MATCH($H$2,INDIRECT(CONCATENATE($B$53,O$1,$B74,4,":",O$1,$B74,74)),0)+3))="-",N124,INDIRECT(CONCATENATE($B$53,N$1,MATCH($H$2,INDIRECT(CONCATENATE($B$53,O$1,$B74,4,":",O$1,$B74,74)),0)+3))),N124) -> CRICK Samuel | O74: =IFERROR(IF(INDIRECT(CONCATENATE($B$53,N$1,MATCH($J$2,INDIRECT(CONCATENATE($B$53,O$1,$B74,4,":",O$1,$B74,74)),0)+3))="-",O124,INDIRECT(CONCATENATE($B$53,N$1,MATCH($J$2,INDIRECT(CONCATENATE($B$53,O$1,$B74,4,":",O$1,$B74,74)),0)+3))),O124) -> FULLBROOK David | P74: =IFERROR(IF(INDIRECT(CONCATENATE($B$53,P$1,MATCH($H$2,INDIRECT(CONCATENATE($B$53,Q$1,$B74,4,":",Q$1,$B74,74)),0)+3))="-",P124,INDIRECT(CONCATENATE($B$53,P$1,MATCH($H$2,INDIRECT(CONCATENATE($B$53,Q$1,$B74,4,":",Q$1,$B74,74)),0)+3))),P124) ->  | Q74: =IFERROR(IF(INDIRECT(CONCATENATE($B$53,P$1,MATCH($J$2,INDIRECT(CONCATENATE($B$53,Q$1,$B74,4,":",Q$1,$B74,74)),0)+3))="-",Q124,INDIRECT(CONCATENATE($B$53,P$1,MATCH($J$2,INDIRECT(CONCATENATE($B$53,Q$1,$B74,4,":",Q$1,$B74,74)),0)+3))),Q124) ->  | R74: =IFERROR(IF(INDIRECT(CONCATENATE($B$53,R$1,MATCH($H$2,INDIRECT(CONCATENATE($B$53,S$1,$B74,4,":",S$1,$B74,74)),0)+3))="-",R124,INDIRECT(CONCATENATE($B$53,R$1,MATCH($H$2,INDIRECT(CONCATENATE($B$53,S$1,$B74,4,":",S$1,$B74,74)),0)+3))),R124) ->  | S74: =IFERROR(IF(INDIRECT(CONCATENATE($B$53,R$1,MATCH($J$2,INDIRECT(CONCATENATE($B$53,S$1,$B74,4,":",S$1,$B74,74)),0)+3))="-",S124,INDIRECT(CONCATENATE($B$53,R$1,MATCH($J$2,INDIRECT(CONCATENATE($B$53,S$1,$B74,4,":",S$1,$B74,74)),0)+3))),S124) -> 
B75: V | C75: 4x400 (300) | D75: =IFERROR(IF(INDIRECT(CONCATENATE($B$53,D$1,MATCH($D$2,INDIRECT(CONCATENATE($B$53,E$1,$B75,4,":",E$1,$B75,74)),0)+3))="-",D125,INDIRECT(CONCATENATE($B$53,D$1,MATCH($D$2,INDIRECT(CONCATENATE($B$53,E$1,$B75,4,":",E$1,$B75,74)),0)+3))),D125) -> BROWN Isaac | E75: =IFERROR(IF(INDIRECT(CONCATENATE($B$53,D$1,MATCH($F$2,INDIRECT(CONCATENATE($B$53,E$1,$B75,4,":",E$1,$B75,74)),0)+3))="-",E125,INDIRECT(CONCATENATE($B$53,D$1,MATCH($F$2,INDIRECT(CONCATENATE($B$53,E$1,$B75,4,":",E$1,$B75,74)),0)+3))),E125) -> RASHBROOK Jamie X | F75: =IFERROR(IF(INDIRECT(CONCATENATE($B$53,F$1,MATCH($D$2,INDIRECT(CONCATENATE($B$53,G$1,$B75,4,":",G$1,$B75,74)),0)+3))="-",F125,INDIRECT(CONCATENATE($B$53,F$1,MATCH($D$2,INDIRECT(CONCATENATE($B$53,G$1,$B75,4,":",G$1,$B75,74)),0)+3))),F125) -> AHOUZAN Chris-Collins | G75: =IFERROR(IF(INDIRECT(CONCATENATE($B$53,F$1,MATCH($F$2,INDIRECT(CONCATENATE($B$53,G$1,$B75,4,":",G$1,$B75,74)),0)+3))="-",G125,INDIRECT(CONCATENATE($B$53,F$1,MATCH($F$2,INDIRECT(CONCATENATE($B$53,G$1,$B75,4,":",G$1,$B75,74)),0)+3))),G125) -> WILLIAMS Samir | H75: =IFERROR(IF(INDIRECT(CONCATENATE($B$53,H$1,MATCH($D$2,INDIRECT(CONCATENATE($B$53,I$1,$B75,4,":",I$1,$B75,74)),0)+3))="-",H125,INDIRECT(CONCATENATE($B$53,H$1,MATCH($D$2,INDIRECT(CONCATENATE($B$53,I$1,$B75,4,":",I$1,$B75,74)),0)+3))),H125) -> CORDERY Elliot | I75: =IFERROR(IF(INDIRECT(CONCATENATE($B$53,H$1,MATCH($F$2,INDIRECT(CONCATENATE($B$53,I$1,$B75,4,":",I$1,$B75,74)),0)+3))="-",I125,INDIRECT(CONCATENATE($B$53,H$1,MATCH($F$2,INDIRECT(CONCATENATE($B$53,I$1,$B75,4,":",I$1,$B75,74)),0)+3))),I125) -> KEEVIL Thomas | J75: =IFERROR(IF(INDIRECT(CONCATENATE($B$53,J$1,MATCH($D$2,INDIRECT(CONCATENATE($B$53,K$1,$B75,4,":",K$1,$B75,74)),0)+3))="-",J125,INDIRECT(CONCATENATE($B$53,J$1,MATCH($D$2,INDIRECT(CONCATENATE($B$53,K$1,$B75,4,":",K$1,$B75,74)),0)+3))),J125) -> 0 | K75: =IFERROR(IF(INDIRECT(CONCATENATE($B$53,J$1,MATCH($F$2,INDIRECT(CONCATENATE($B$53,K$1,$B75,4,":",K$1,$B75,74)),0)+3))="-",K125,INDIRECT(CONCATENATE($B$53,J$1,MATCH($F$2,INDIRECT(CONCATENATE($B$53,K$1,$B75,4,":",K$1,$B75,74)),0)+3))),K125) -> 0 | L75: =IFERROR(IF(INDIRECT(CONCATENATE($B$53,L$1,MATCH($D$2,INDIRECT(CONCATENATE($B$53,M$1,$B75,4,":",M$1,$B75,74)),0)+3))="-",L125,INDIRECT(CONCATENATE($B$53,L$1,MATCH($D$2,INDIRECT(CONCATENATE($B$53,M$1,$B75,4,":",M$1,$B75,74)),0)+3))),L125) -> HAMBROOK Matt | M75: =IFERROR(IF(INDIRECT(CONCATENATE($B$53,L$1,MATCH($F$2,INDIRECT(CONCATENATE($B$53,M$1,$B75,4,":",M$1,$B75,74)),0)+3))="-",M125,INDIRECT(CONCATENATE($B$53,L$1,MATCH($F$2,INDIRECT(CONCATENATE($B$53,M$1,$B75,4,":",M$1,$B75,74)),0)+3))),M125) -> DOUGAL BARNABY | N75: =IFERROR(IF(INDIRECT(CONCATENATE($B$53,N$1,MATCH($D$2,INDIRECT(CONCATENATE($B$53,O$1,$B75,4,":",O$1,$B75,74)),0)+3))="-",N125,INDIRECT(CONCATENATE($B$53,N$1,MATCH($D$2,INDIRECT(CONCATENATE($B$53,O$1,$B75,4,":",O$1,$B75,74)),0)+3))),N125) -> 0 | O75: =IFERROR(IF(INDIRECT(CONCATENATE($B$53,N$1,MATCH($F$2,INDIRECT(CONCATENATE($B$53,O$1,$B75,4,":",O$1,$B75,74)),0)+3))="-",O125,INDIRECT(CONCATENATE($B$53,N$1,MATCH($F$2,INDIRECT(CONCATENATE($B$53,O$1,$B75,4,":",O$1,$B75,74)),0)+3))),O125) -> 0 | P75: =IFERROR(IF(INDIRECT(CONCATENATE($B$53,P$1,MATCH($D$2,INDIRECT(CONCATENATE($B$53,Q$1,$B75,4,":",Q$1,$B75,74)),0)+3))="-",P125,INDIRECT(CONCATENATE($B$53,P$1,MATCH($D$2,INDIRECT(CONCATENATE($B$53,Q$1,$B75,4,":",Q$1,$B75,74)),0)+3))),P125) ->  | Q75: =IFERROR(IF(INDIRECT(CONCATENATE($B$53,P$1,MATCH($F$2,INDIRECT(CONCATENATE($B$53,Q$1,$B75,4,":",Q$1,$B75,74)),0)+3))="-",Q125,INDIRECT(CONCATENATE($B$53,P$1,MATCH($F$2,INDIRECT(CONCATENATE($B$53,Q$1,$B75,4,":",Q$1,$B75,74)),0)+3))),Q125) ->  | R75: =IFERROR(IF(INDIRECT(CONCATENATE($B$53,R$1,MATCH($D$2,INDIRECT(CONCATENATE($B$53,S$1,$B75,4,":",S$1,$B75,74)),0)+3))="-",R125,INDIRECT(CONCATENATE($B$53,R$1,MATCH($D$2,INDIRECT(CONCATENATE($B$53,S$1,$B75,4,":",S$1,$B75,74)),0)+3))),R125) ->  | S75: =IFERROR(IF(INDIRECT(CONCATENATE($B$53,R$1,MATCH($F$2,INDIRECT(CONCATENATE($B$53,S$1,$B75,4,":",S$1,$B75,74)),0)+3))="-",S125,INDIRECT(CONCATENATE($B$53,R$1,MATCH($F$2,INDIRECT(CONCATENATE($B$53,S$1,$B75,4,":",S$1,$B75,74)),0)+3))),S125) -> 
B76: V | C76: 4x400 (300) | D76: =IFERROR(IF(INDIRECT(CONCATENATE($B$53,D$1,MATCH($H$2,INDIRECT(CONCATENATE($B$53,E$1,$B76,4,":",E$1,$B76,74)),0)+3))="-",D126,INDIRECT(CONCATENATE($B$53,D$1,MATCH($H$2,INDIRECT(CONCATENATE($B$53,E$1,$B76,4,":",E$1,$B76,74)),0)+3))),D126) -> CHAPMAN Harrison | E76: =IFERROR(IF(INDIRECT(CONCATENATE($B$53,D$1,MATCH($J$2,INDIRECT(CONCATENATE($B$53,E$1,$B76,4,":",E$1,$B76,74)),0)+3))="-",E126,INDIRECT(CONCATENATE($B$53,D$1,MATCH($J$2,INDIRECT(CONCATENATE($B$53,E$1,$B76,4,":",E$1,$B76,74)),0)+3))),E126) -> OSUNSAMI Mayowa | F76: =IFERROR(IF(INDIRECT(CONCATENATE($B$53,F$1,MATCH($H$2,INDIRECT(CONCATENATE($B$53,G$1,$B76,4,":",G$1,$B76,74)),0)+3))="-",F126,INDIRECT(CONCATENATE($B$53,F$1,MATCH($H$2,INDIRECT(CONCATENATE($B$53,G$1,$B76,4,":",G$1,$B76,74)),0)+3))),F126) -> AIMIA Tim | G76: =IFERROR(IF(INDIRECT(CONCATENATE($B$53,F$1,MATCH($J$2,INDIRECT(CONCATENATE($B$53,G$1,$B76,4,":",G$1,$B76,74)),0)+3))="-",G126,INDIRECT(CONCATENATE($B$53,F$1,MATCH($J$2,INDIRECT(CONCATENATE($B$53,G$1,$B76,4,":",G$1,$B76,74)),0)+3))),G126) -> HALLUMS Soul X | H76: =IFERROR(IF(INDIRECT(CONCATENATE($B$53,H$1,MATCH($H$2,INDIRECT(CONCATENATE($B$53,I$1,$B76,4,":",I$1,$B76,74)),0)+3))="-",H126,INDIRECT(CONCATENATE($B$53,H$1,MATCH($H$2,INDIRECT(CONCATENATE($B$53,I$1,$B76,4,":",I$1,$B76,74)),0)+3))),H126) -> DEBENHAM Lewis | I76: =IFERROR(IF(INDIRECT(CONCATENATE($B$53,H$1,MATCH($J$2,INDIRECT(CONCATENATE($B$53,I$1,$B76,4,":",I$1,$B76,74)),0)+3))="-",I126,INDIRECT(CONCATENATE($B$53,H$1,MATCH($J$2,INDIRECT(CONCATENATE($B$53,I$1,$B76,4,":",I$1,$B76,74)),0)+3))),I126) -> DAVIS Ben | J76: =IFERROR(IF(INDIRECT(CONCATENATE($B$53,J$1,MATCH($H$2,INDIRECT(CONCATENATE($B$53,K$1,$B76,4,":",K$1,$B76,74)),0)+3))="-",J126,INDIRECT(CONCATENATE($B$53,J$1,MATCH($H$2,INDIRECT(CONCATENATE($B$53,K$1,$B76,4,":",K$1,$B76,74)),0)+3))),J126) -> 0 | K76: =IFERROR(IF(INDIRECT(CONCATENATE($B$53,J$1,MATCH($J$2,INDIRECT(CONCATENATE($B$53,K$1,$B76,4,":",K$1,$B76,74)),0)+3))="-",K126,INDIRECT(CONCATENATE($B$53,J$1,MATCH($J$2,INDIRECT(CONCATENATE($B$53,K$1,$B76,4,":",K$1,$B76,74)),0)+3))),K126) -> 0 | L76: =IFERROR(IF(INDIRECT(CONCATENATE($B$53,L$1,MATCH($H$2,INDIRECT(CONCATENATE($B$53,M$1,$B76,4,":",M$1,$B76,74)),0)+3))="-",L126,INDIRECT(CONCATENATE($B$53,L$1,MATCH($H$2,INDIRECT(CONCATENATE($B$53,M$1,$B76,4,":",M$1,$B76,74)),0)+3))),L126) -> TREMAIN HARRISON | M76: =IFERROR(IF(INDIRECT(CONCATENATE($B$53,L$1,MATCH($J$2,INDIRECT(CONCATENATE($B$53,M$1,$B76,4,":",M$1,$B76,74)),0)+3))="-",M126,INDIRECT(CONCATENATE($B$53,L$1,MATCH($J$2,INDIRECT(CONCATENATE($B$53,M$1,$B76,4,":",M$1,$B76,74)),0)+3))),M126) -> GOODMAN Jake X | N76: =IFERROR(IF(INDIRECT(CONCATENATE($B$53,N$1,MATCH($H$2,INDIRECT(CONCATENATE($B$53,O$1,$B76,4,":",O$1,$B76,74)),0)+3))="-",N126,INDIRECT(CONCATENATE($B$53,N$1,MATCH($H$2,INDIRECT(CONCATENATE($B$53,O$1,$B76,4,":",O$1,$B76,74)),0)+3))),N126) -> 0 | O76: =IFERROR(IF(INDIRECT(CONCATENATE($B$53,N$1,MATCH($J$2,INDIRECT(CONCATENATE($B$53,O$1,$B76,4,":",O$1,$B76,74)),0)+3))="-",O126,INDIRECT(CONCATENATE($B$53,N$1,MATCH($J$2,INDIRECT(CONCATENATE($B$53,O$1,$B76,4,":",O$1,$B76,74)),0)+3))),O126) -> 0 | P76: =IFERROR(IF(INDIRECT(CONCATENATE($B$53,P$1,MATCH($H$2,INDIRECT(CONCATENATE($B$53,Q$1,$B76,4,":",Q$1,$B76,74)),0)+3))="-",P126,INDIRECT(CONCATENATE($B$53,P$1,MATCH($H$2,INDIRECT(CONCATENATE($B$53,Q$1,$B76,4,":",Q$1,$B76,74)),0)+3))),P126) ->  | Q76: =IFERROR(IF(INDIRECT(CONCATENATE($B$53,P$1,MATCH($J$2,INDIRECT(CONCATENATE($B$53,Q$1,$B76,4,":",Q$1,$B76,74)),0)+3))="-",Q126,INDIRECT(CONCATENATE($B$53,P$1,MATCH($J$2,INDIRECT(CONCATENATE($B$53,Q$1,$B76,4,":",Q$1,$B76,74)),0)+3))),Q126) ->  | R76: =IFERROR(IF(INDIRECT(CONCATENATE($B$53,R$1,MATCH($H$2,INDIRECT(CONCATENATE($B$53,S$1,$B76,4,":",S$1,$B76,74)),0)+3))="-",R126,INDIRECT(CONCATENATE($B$53,R$1,MATCH($H$2,INDIRECT(CONCATENATE($B$53,S$1,$B76,4,":",S$1,$B76,74)),0)+3))),R126) ->  | S76: =IFERROR(IF(INDIRECT(CONCATENATE($B$53,R$1,MATCH($J$2,INDIRECT(CONCATENATE($B$53,S$1,$B76,4,":",S$1,$B76,74)),0)+3))="-",S126,INDIRECT(CONCATENATE($B$53,R$1,MATCH($J$2,INDIRECT(CONCATENATE($B$53,S$1,$B76,4,":",S$1,$B76,74)),0)+3))),S126) -> 
C78: U17 Men | D78: =IF(MatchDay!$C$2="UPPER","A",1) -> A | E78: =IF(MatchDay!$C$2="UPPER","AA",11) -> AA | F78: =IF(MatchDay!$C$2="UPPER","B",2) -> B | G78: =IF(MatchDay!$C$2="UPPER","BB",22) -> BB | H78: =IF(MatchDay!$C$2="UPPER","C",3) -> C | I78: =IF(MatchDay!$C$2="UPPER","CC",33) -> CC | J78: =IF(MatchDay!$C$2="UPPER","D",4) -> D | K78: =IF(MatchDay!$C$2="UPPER","DD",44) -> DD | L78: =IF(MatchDay!$C$2="UPPER","E",5) -> E | M78: =IF(MatchDay!$C$2="UPPER","EE",55) -> EE | N78: =IF(MatchDay!$C$2="UPPER","F",6) -> F | O78: =IF(MatchDay!$C$2="UPPER","FF",66) -> FF | P78: G | Q78: GG | R78: H | S78: HH
B79: B | C79: 75 / 100 | D79: =IFERROR(IF(INDIRECT(CONCATENATE($B$53,D$1,MATCH(D$78,INDIRECT(CONCATENATE($B$53,E$1,$B79,35,":",E$1,$B79,74)),0)+34))="-",D152,INDIRECT(CONCATENATE($B$53,D$1,MATCH(D$78,INDIRECT(CONCATENATE($B$53,E$1,$B79,35,":",E$1,$B79,74)),0)+34))),D152) -> HARDING Joseph | E79: =IFERROR(IF(INDIRECT(CONCATENATE($B$53,D$1,MATCH(E$78,INDIRECT(CONCATENATE($B$53,E$1,$B79,35,":",E$1,$B79,74)),0)+34))="-",E152,INDIRECT(CONCATENATE($B$53,D$1,MATCH(E$78,INDIRECT(CONCATENATE($B$53,E$1,$B79,35,":",E$1,$B79,74)),0)+34))),E152) -> PASCALL-MENZIE JOEL | F79: =IFERROR(IF(INDIRECT(CONCATENATE($B$53,F$1,MATCH(F$78,INDIRECT(CONCATENATE($B$53,G$1,$B79,35,":",G$1,$B79,74)),0)+34))="-",F152,INDIRECT(CONCATENATE($B$53,F$1,MATCH(F$78,INDIRECT(CONCATENATE($B$53,G$1,$B79,35,":",G$1,$B79,74)),0)+34))),F152) -> KINLOCK Derek | G79: =IFERROR(IF(INDIRECT(CONCATENATE($B$53,F$1,MATCH(G$78,INDIRECT(CONCATENATE($B$53,G$1,$B79,35,":",G$1,$B79,74)),0)+34))="-",G152,INDIRECT(CONCATENATE($B$53,F$1,MATCH(G$78,INDIRECT(CONCATENATE($B$53,G$1,$B79,35,":",G$1,$B79,74)),0)+34))),G152) -> SMITHEN Louis | H79: =IFERROR(IF(INDIRECT(CONCATENATE($B$53,H$1,MATCH(H$78,INDIRECT(CONCATENATE($B$53,I$1,$B79,35,":",I$1,$B79,74)),0)+34))="-",H152,INDIRECT(CONCATENATE($B$53,H$1,MATCH(H$78,INDIRECT(CONCATENATE($B$53,I$1,$B79,35,":",I$1,$B79,74)),0)+34))),H152) -> AKINYEBO Richard | I79: =IFERROR(IF(INDIRECT(CONCATENATE($B$53,H$1,MATCH(I$78,INDIRECT(CONCATENATE($B$53,I$1,$B79,35,":",I$1,$B79,74)),0)+34))="-",I152,INDIRECT(CONCATENATE($B$53,H$1,MATCH(I$78,INDIRECT(CONCATENATE($B$53,I$1,$B79,35,":",I$1,$B79,74)),0)+34))),I152) -> IDOWU Tobi | J79: =IFERROR(IF(INDIRECT(CONCATENATE($B$53,J$1,MATCH(J$78,INDIRECT(CONCATENATE($B$53,K$1,$B79,35,":",K$1,$B79,74)),0)+34))="-",J152,INDIRECT(CONCATENATE($B$53,J$1,MATCH(J$78,INDIRECT(CONCATENATE($B$53,K$1,$B79,35,":",K$1,$B79,74)),0)+34))),J152) -> BWALYA Semba | K79: =IFERROR(IF(INDIRECT(CONCATENATE($B$53,J$1,MATCH(K$78,INDIRECT(CONCATENATE($B$53,K$1,$B79,35,":",K$1,$B79,74)),0)+34))="-",K152,INDIRECT(CONCATENATE($B$53,J$1,MATCH(K$78,INDIRECT(CONCATENATE($B$53,K$1,$B79,35,":",K$1,$B79,74)),0)+34))),K152) -> ROACHE Josh | L79: =IFERROR(IF(INDIRECT(CONCATENATE($B$53,L$1,MATCH(L$78,INDIRECT(CONCATENATE($B$53,M$1,$B79,35,":",M$1,$B79,74)),0)+34))="-",L152,INDIRECT(CONCATENATE($B$53,L$1,MATCH(L$78,INDIRECT(CONCATENATE($B$53,M$1,$B79,35,":",M$1,$B79,74)),0)+34))),L152) -> GOODMAN Jake | M79: =IFERROR(IF(INDIRECT(CONCATENATE($B$53,L$1,MATCH(M$78,INDIRECT(CONCATENATE($B$53,M$1,$B79,35,":",M$1,$B79,74)),0)+34))="-",M152,INDIRECT(CONCATENATE($B$53,L$1,MATCH(M$78,INDIRECT(CONCATENATE($B$53,M$1,$B79,35,":",M$1,$B79,74)),0)+34))),M152) -> NGASSA Sebastian | N79: =IFERROR(IF(INDIRECT(CONCATENATE($B$53,N$1,MATCH(N$78,INDIRECT(CONCATENATE($B$53,O$1,$B79,35,":",O$1,$B79,74)),0)+34))="-",N152,INDIRECT(CONCATENATE($B$53,N$1,MATCH(N$78,INDIRECT(CONCATENATE($B$53,O$1,$B79,35,":",O$1,$B79,74)),0)+34))),N152) -> SMITH George | O79: =IFERROR(IF(INDIRECT(CONCATENATE($B$53,N$1,MATCH(O$78,INDIRECT(CONCATENATE($B$53,O$1,$B79,35,":",O$1,$B79,74)),0)+34))="-",O152,INDIRECT(CONCATENATE($B$53,N$1,MATCH(O$78,INDIRECT(CONCATENATE($B$53,O$1,$B79,35,":",O$1,$B79,74)),0)+34))),O152) -> WHITE Guy | P79: =IFERROR(IF(INDIRECT(CONCATENATE($B$53,P$1,MATCH(P$78,INDIRECT(CONCATENATE($B$53,Q$1,$B79,35,":",Q$1,$B79,74)),0)+34))="-",P152,INDIRECT(CONCATENATE($B$53,P$1,MATCH(P$78,INDIRECT(CONCATENATE($B$53,Q$1,$B79,35,":",Q$1,$B79,74)),0)+34))),P152) ->  | Q79: =IFERROR(IF(INDIRECT(CONCATENATE($B$53,P$1,MATCH(Q$78,INDIRECT(CONCATENATE($B$53,Q$1,$B79,35,":",Q$1,$B79,74)),0)+34))="-",Q152,INDIRECT(CONCATENATE($B$53,P$1,MATCH(Q$78,INDIRECT(CONCATENATE($B$53,Q$1,$B79,35,":",Q$1,$B79,74)),0)+34))),Q152) ->  | R79: =IFERROR(IF(INDIRECT(CONCATENATE($B$53,R$1,MATCH(R$78,INDIRECT(CONCATENATE($B$53,S$1,$B79,35,":",S$1,$B79,74)),0)+34))="-",R152,INDIRECT(CONCATENATE($B$53,R$1,MATCH(R$78,INDIRECT(CONCATENATE($B$53,S$1,$B79,35,":",S$1,$B79,74)),0)+34))),R152) ->  | S79: =IFERROR(IF(INDIRECT(CONCATENATE($B$53,R$1,MATCH(S$78,INDIRECT(CONCATENATE($B$53,S$1,$B79,35,":",S$1,$B79,74)),0)+34))="-",S152,INDIRECT(CONCATENATE($B$53,R$1,MATCH(S$78,INDIRECT(CONCATENATE($B$53,S$1,$B79,35,":",S$1,$B79,74)),0)+34))),S152) -> 
B80: C | C80: 75 / 100 NS | D80: =IFERROR(IF(INDIRECT(CONCATENATE($B$53,D$1,MATCH(D$78,INDIRECT(CONCATENATE($B$53,E$1,$B80,35,":",E$1,$B80,74)),0)+34))="-",D153,INDIRECT(CONCATENATE($B$53,D$1,MATCH(D$78,INDIRECT(CONCATENATE($B$53,E$1,$B80,35,":",E$1,$B80,74)),0)+34))),D153) -> 0 | E80: =IFERROR(IF(INDIRECT(CONCATENATE($B$53,D$1,MATCH(E$78,INDIRECT(CONCATENATE($B$53,E$1,$B80,35,":",E$1,$B80,74)),0)+34))="-",E153,INDIRECT(CONCATENATE($B$53,D$1,MATCH(E$78,INDIRECT(CONCATENATE($B$53,E$1,$B80,35,":",E$1,$B80,74)),0)+34))),E153) -> 0 | F80: =IFERROR(IF(INDIRECT(CONCATENATE($B$53,F$1,MATCH(F$78,INDIRECT(CONCATENATE($B$53,G$1,$B80,35,":",G$1,$B80,74)),0)+34))="-",F153,INDIRECT(CONCATENATE($B$53,F$1,MATCH(F$78,INDIRECT(CONCATENATE($B$53,G$1,$B80,35,":",G$1,$B80,74)),0)+34))),F153) -> 0 | G80: =IFERROR(IF(INDIRECT(CONCATENATE($B$53,F$1,MATCH(G$78,INDIRECT(CONCATENATE($B$53,G$1,$B80,35,":",G$1,$B80,74)),0)+34))="-",G153,INDIRECT(CONCATENATE($B$53,F$1,MATCH(G$78,INDIRECT(CONCATENATE($B$53,G$1,$B80,35,":",G$1,$B80,74)),0)+34))),G153) -> 0 | H80: =IFERROR(IF(INDIRECT(CONCATENATE($B$53,H$1,MATCH(H$78,INDIRECT(CONCATENATE($B$53,I$1,$B80,35,":",I$1,$B80,74)),0)+34))="-",H153,INDIRECT(CONCATENATE($B$53,H$1,MATCH(H$78,INDIRECT(CONCATENATE($B$53,I$1,$B80,35,":",I$1,$B80,74)),0)+34))),H153) -> 0 | I80: =IFERROR(IF(INDIRECT(CONCATENATE($B$53,H$1,MATCH(I$78,INDIRECT(CONCATENATE($B$53,I$1,$B80,35,":",I$1,$B80,74)),0)+34))="-",I153,INDIRECT(CONCATENATE($B$53,H$1,MATCH(I$78,INDIRECT(CONCATENATE($B$53,I$1,$B80,35,":",I$1,$B80,74)),0)+34))),I153) -> 0 | J80: =IFERROR(IF(INDIRECT(CONCATENATE($B$53,J$1,MATCH(J$78,INDIRECT(CONCATENATE($B$53,K$1,$B80,35,":",K$1,$B80,74)),0)+34))="-",J153,INDIRECT(CONCATENATE($B$53,J$1,MATCH(J$78,INDIRECT(CONCATENATE($B$53,K$1,$B80,35,":",K$1,$B80,74)),0)+34))),J153) -> 0 | K80: =IFERROR(IF(INDIRECT(CONCATENATE($B$53,J$1,MATCH(K$78,INDIRECT(CONCATENATE($B$53,K$1,$B80,35,":",K$1,$B80,74)),0)+34))="-",K153,INDIRECT(CONCATENATE($B$53,J$1,MATCH(K$78,INDIRECT(CONCATENATE($B$53,K$1,$B80,35,":",K$1,$B80,74)),0)+34))),K153) -> 0 | L80: =IFERROR(IF(INDIRECT(CONCATENATE($B$53,L$1,MATCH(L$78,INDIRECT(CONCATENATE($B$53,M$1,$B80,35,":",M$1,$B80,74)),0)+34))="-",L153,INDIRECT(CONCATENATE($B$53,L$1,MATCH(L$78,INDIRECT(CONCATENATE($B$53,M$1,$B80,35,":",M$1,$B80,74)),0)+34))),L153) -> 0 | M80: =IFERROR(IF(INDIRECT(CONCATENATE($B$53,L$1,MATCH(M$78,INDIRECT(CONCATENATE($B$53,M$1,$B80,35,":",M$1,$B80,74)),0)+34))="-",M153,INDIRECT(CONCATENATE($B$53,L$1,MATCH(M$78,INDIRECT(CONCATENATE($B$53,M$1,$B80,35,":",M$1,$B80,74)),0)+34))),M153) -> 0 | N80: =IFERROR(IF(INDIRECT(CONCATENATE($B$53,N$1,MATCH(N$78,INDIRECT(CONCATENATE($B$53,O$1,$B80,35,":",O$1,$B80,74)),0)+34))="-",N153,INDIRECT(CONCATENATE($B$53,N$1,MATCH(N$78,INDIRECT(CONCATENATE($B$53,O$1,$B80,35,":",O$1,$B80,74)),0)+34))),N153) -> 0 | O80: =IFERROR(IF(INDIRECT(CONCATENATE($B$53,N$1,MATCH(O$78,INDIRECT(CONCATENATE($B$53,O$1,$B80,35,":",O$1,$B80,74)),0)+34))="-",O153,INDIRECT(CONCATENATE($B$53,N$1,MATCH(O$78,INDIRECT(CONCATENATE($B$53,O$1,$B80,35,":",O$1,$B80,74)),0)+34))),O153) -> 0 | P80: =IFERROR(IF(INDIRECT(CONCATENATE($B$53,P$1,MATCH(P$78,INDIRECT(CONCATENATE($B$53,Q$1,$B80,35,":",Q$1,$B80,74)),0)+34))="-",P153,INDIRECT(CONCATENATE($B$53,P$1,MATCH(P$78,INDIRECT(CONCATENATE($B$53,Q$1,$B80,35,":",Q$1,$B80,74)),0)+34))),P153) ->  | Q80: =IFERROR(IF(INDIRECT(CONCATENATE($B$53,P$1,MATCH(Q$78,INDIRECT(CONCATENATE($B$53,Q$1,$B80,35,":",Q$1,$B80,74)),0)+34))="-",Q153,INDIRECT(CONCATENATE($B$53,P$1,MATCH(Q$78,INDIRECT(CONCATENATE($B$53,Q$1,$B80,35,":",Q$1,$B80,74)),0)+34))),Q153) ->  | R80: =IFERROR(IF(INDIRECT(CONCATENATE($B$53,R$1,MATCH(R$78,INDIRECT(CONCATENATE($B$53,S$1,$B80,35,":",S$1,$B80,74)),0)+34))="-",R153,INDIRECT(CONCATENATE($B$53,R$1,MATCH(R$78,INDIRECT(CONCATENATE($B$53,S$1,$B80,35,":",S$1,$B80,74)),0)+34))),R153) ->  | S80: =IFERROR(IF(INDIRECT(CONCATENATE($B$53,R$1,MATCH(S$78,INDIRECT(CONCATENATE($B$53,S$1,$B80,35,":",S$1,$B80,74)),0)+34))="-",S153,INDIRECT(CONCATENATE($B$53,R$1,MATCH(S$78,INDIRECT(CONCATENATE($B$53,S$1,$B80,35,":",S$1,$B80,74)),0)+34))),S153) -> 
B81: D | C81: 150 / 200 | D81: PASCALL-MENZIE JOEL | E81: EFFAH JUDAH | F81: KINLOCK Derek | G81: PREEST Oliver | H81: HARRIOTT Reece | I81: OKPALAUKO Somto | J81: HORLESTON Joshua | K81: OWEN Oliver | L81: NEAL CONNOR | M81: GOODMAN Jake | N81: STURGEON Rory | O81: AKIOYE Tobi
B82: E | C82: 300 / 400 | D82: OSHIYEMI Malik | E82: 0 | F82: 0 | G82: 0 | H82: HARRIOTT Reece | I82: OKPALAUKO Somto | J82: PRICE Adam | K82: OWEN Oliver | L82: NEAL CONNOR | M82: SMITH Benjamin | N82: KINGSTON James | O82: SEATON Daniel
B83: F | C83: 800 | D83: HILL George | E83: COWLEY Alistair | F83: BLAIR Zachary | G83: SHEW Adam | H83: FRIEND Alexander | I83: BERRETT Louis | J83: 0 | K83: 0 | L83: SEERY JACK | M83: SMITH Benjamin | N83: EMM Toby | O83: GORDON Fraser
B84: G | C84: 800 NS | D84: 0 | E84: 0 | F84: 0 | G84: 0 | H84: 0 | I84: 0 | J84: 0 | K84: 0 | L84: 0 | M84: 0 | N84: 0 | O84: 0
B85: H | C85: 1200 / 1500 | D85: RASHBROOK Jamie | E85: 0 | F85: CROCKETT Ryan | G85: CROCKETT Ryan | H85: BERRETT Louis | I85: 0 | J85: 0 | K85: 0 | L85: BRISLEY Charlie | M85: 0 | N85: KINGSTON James | O85: SEATON Daniel
B86: I | C86: Sprint Hurdles | D86: HARDING Joseph | E86: 0 | F86: 0 | G86: 0 | H86: 0 | I86: 0 | J86: ROACHE Josh | K86: ODEJIMI-RILEY Nile | L86: SEERY GEORGE | M86: 0 | N86: BOTSIALAS George | O86: 0
B87: J | C87: 3000 | D87: MCGILL Daniel | E87: 0 | F87: HALLUMS Soul | G87: MAGINN Matthew | H87: JONES Harry | I87: CHESTER Luke | J87: 0 | K87: 0 | L87: 0 | M87: 0 | N87: GORDON Fraser | O87: BEGHEIN Lucas
B88: K | C88: Steeplechase | D88: DYOS Alex | E88: 0 | F88: 0 | G88: 0 | H88: JONES Harry | I88: BERRETT Louis | J88: 0 | K88: 0 | L88: 0 | M88: 0 | N88: 0 | O88: 0
B89: L | C89: Distance Hurdles | D89: 0 | E89: 0 | F89: 0 | G89: 0 | H89: 0 | I89: 0 | J89: 0 | K89: 0 | L89: 0 | M89: 0 | N89: BROOKS Felix | O89: BOTSIALAS George
B90: M | C90: Discus | D90: IKEJI Kenneth | E90: ST VALCHIKWE Jeramie | F90: TENDO Tyrese | G90: 0 | H90: MILTON Thomas | I90: BRINTON-QUINN Peter | J90: CANT William | K90: 0 | L90: SEERY GEORGE | M90: 0 | N90: GHOSH Arjun | O90: 0
B91: N | C91: Hammer | D91: IKEJI Kenneth | E91: 0 | F91: TENDO Tyrese | G91: SMITHEN Louis | H91: MILTON Thomas | I91: FRESHWATER Aaron | J91: 0 | K91: 0 | L91: 0 | M91: 0 | N91: GHOSH Arjun | O91: WHITE Guy
B92: O | C92: Javelin | D92: ST VALCHIKWE Jeramie | E92: 0 | F92: CROCKETT Ryan | G92: 0 | H92: BRINTON-QUINN Peter | I92: CHESTER Luke | J92: EVANS Joel | K92: 0 | L92: ELPHICK Spencer | M92: SEERY GEORGE | N92: EMM Toby | O92: 0
B93: P | C93: Shot | D93: IKEJI Kenneth | E93: ST VALCHIKWE Jeramie | F93: TENDO Tyrese | G93: 0 | H93: MILTON Thomas | I93: THOMAS Jamal | J93: OWEN Oliver | K93: HARRISON Glenn | L93: 0 | M93: 0 | N93: GHOSH Arjun | O93: WHITE Guy
B94: Q | C94: Long Jump | D94: FISCHER Joe | E94: OKE EMMANUEL | F94: ENNIS Jack | G94: PANTON Adrian | H94: IDOWU Tobi | I94: OLUSESAN Benedict | J94: ROACHE Josh | K94: PRICE Adam | L94: NEAL CONNOR | M94: SMITH Benjamin | N94: STURGEON Rory | O94: 0
B95: R | C95: Triple Jump | D95: OKE EMMANUEL | E95: 0 | F95: OSPINA Israel | G95: 0 | H95: OLUSESAN Benedict | I95: CHRISTIE Kimathi | J95: PRICE Adam | K95: RILEY Nile-Odejimi | L95: SEERY JACK | M95: 0 | N95: STURGEON Rory | O95: SMITH George
B96: S | C96: High Jump | D96: HENRY JEROME | E96: 0 | F96: ENNIS Jack | G96: ALLICOCK Rawle | H96: THOMAS Jamal | I96: CHRISTIE Kimathi | J96: CANT William | K96: RILEY Nile-Odejimi | L96: 0 | M96: 0 | N96: 0 | O96: 0
B97: T | C97: Pole Vault | D97: =IFERROR(IF(INDIRECT(CONCATENATE($B$53,D$1,MATCH(D$78,INDIRECT(CONCATENATE($B$53,E$1,$B97,35,":",E$1,$B97,74)),0)+34))="-",D170,INDIRECT(CONCATENATE($B$53,D$1,MATCH(D$78,INDIRECT(CONCATENATE($B$53,E$1,$B97,35,":",E$1,$B97,74)),0)+34))),D170) -> 0 | E97: =IFERROR(IF(INDIRECT(CONCATENATE($B$53,D$1,MATCH(E$78,INDIRECT(CONCATENATE($B$53,E$1,$B97,35,":",E$1,$B97,74)),0)+34))="-",E170,INDIRECT(CONCATENATE($B$53,D$1,MATCH(E$78,INDIRECT(CONCATENATE($B$53,E$1,$B97,35,":",E$1,$B97,74)),0)+34))),E170) -> 0 | F97: =IFERROR(IF(INDIRECT(CONCATENATE($B$53,F$1,MATCH(F$78,INDIRECT(CONCATENATE($B$53,G$1,$B97,35,":",G$1,$B97,74)),0)+34))="-",F170,INDIRECT(CONCATENATE($B$53,F$1,MATCH(F$78,INDIRECT(CONCATENATE($B$53,G$1,$B97,35,":",G$1,$B97,74)),0)+34))),F170) -> CROCKETT Ryan | G97: =IFERROR(IF(INDIRECT(CONCATENATE($B$53,F$1,MATCH(G$78,INDIRECT(CONCATENATE($B$53,G$1,$B97,35,":",G$1,$B97,74)),0)+34))="-",G170,INDIRECT(CONCATENATE($B$53,F$1,MATCH(G$78,INDIRECT(CONCATENATE($B$53,G$1,$B97,35,":",G$1,$B97,74)),0)+34))),G170) -> 0 | H97: =IFERROR(IF(INDIRECT(CONCATENATE($B$53,H$1,MATCH(H$78,INDIRECT(CONCATENATE($B$53,I$1,$B97,35,":",I$1,$B97,74)),0)+34))="-",H170,INDIRECT(CONCATENATE($B$53,H$1,MATCH(H$78,INDIRECT(CONCATENATE($B$53,I$1,$B97,35,":",I$1,$B97,74)),0)+34))),H170) -> BRINTON-QUINN Peter | I97: =IFERROR(IF(INDIRECT(CONCATENATE($B$53,H$1,MATCH(I$78,INDIRECT(CONCATENATE($B$53,I$1,$B97,35,":",I$1,$B97,74)),0)+34))="-",I170,INDIRECT(CONCATENATE($B$53,H$1,MATCH(I$78,INDIRECT(CONCATENATE($B$53,I$1,$B97,35,":",I$1,$B97,74)),0)+34))),I170) -> DEBENHAM Reece | J97: =IFERROR(IF(INDIRECT(CONCATENATE($B$53,J$1,MATCH(J$78,INDIRECT(CONCATENATE($B$53,K$1,$B97,35,":",K$1,$B97,74)),0)+34))="-",J170,INDIRECT(CONCATENATE($B$53,J$1,MATCH(J$78,INDIRECT(CONCATENATE($B$53,K$1,$B97,35,":",K$1,$B97,74)),0)+34))),J170) -> 0 | K97: =IFERROR(IF(INDIRECT(CONCATENATE($B$53,J$1,MATCH(K$78,INDIRECT(CONCATENATE($B$53,K$1,$B97,35,":",K$1,$B97,74)),0)+34))="-",K170,INDIRECT(CONCATENATE($B$53,J$1,MATCH(K$78,INDIRECT(CONCATENATE($B$53,K$1,$B97,35,":",K$1,$B97,74)),0)+34))),K170) -> 0 | L97: =IFERROR(IF(INDIRECT(CONCATENATE($B$53,L$1,MATCH(L$78,INDIRECT(CONCATENATE($B$53,M$1,$B97,35,":",M$1,$B97,74)),0)+34))="-",L170,INDIRECT(CONCATENATE($B$53,L$1,MATCH(L$78,INDIRECT(CONCATENATE($B$53,M$1,$B97,35,":",M$1,$B97,74)),0)+34))),L170) -> GILBY Alfie | M97: =IFERROR(IF(INDIRECT(CONCATENATE($B$53,L$1,MATCH(M$78,INDIRECT(CONCATENATE($B$53,M$1,$B97,35,":",M$1,$B97,74)),0)+34))="-",M170,INDIRECT(CONCATENATE($B$53,L$1,MATCH(M$78,INDIRECT(CONCATENATE($B$53,M$1,$B97,35,":",M$1,$B97,74)),0)+34))),M170) -> 0 | N97: =IFERROR(IF(INDIRECT(CONCATENATE($B$53,N$1,MATCH(N$78,INDIRECT(CONCATENATE($B$53,O$1,$B97,35,":",O$1,$B97,74)),0)+34))="-",N170,INDIRECT(CONCATENATE($B$53,N$1,MATCH(N$78,INDIRECT(CONCATENATE($B$53,O$1,$B97,35,":",O$1,$B97,74)),0)+34))),N170) -> BROOKS Felix | O97: =IFERROR(IF(INDIRECT(CONCATENATE($B$53,N$1,MATCH(O$78,INDIRECT(CONCATENATE($B$53,O$1,$B97,35,":",O$1,$B97,74)),0)+34))="-",O170,INDIRECT(CONCATENATE($B$53,N$1,MATCH(O$78,INDIRECT(CONCATENATE($B$53,O$1,$B97,35,":",O$1,$B97,74)),0)+34))),O170) -> 0 | P97: =IFERROR(IF(INDIRECT(CONCATENATE($B$53,P$1,MATCH(P$78,INDIRECT(CONCATENATE($B$53,Q$1,$B97,35,":",Q$1,$B97,74)),0)+34))="-",P170,INDIRECT(CONCATENATE($B$53,P$1,MATCH(P$78,INDIRECT(CONCATENATE($B$53,Q$1,$B97,35,":",Q$1,$B97,74)),0)+34))),P170) ->  | Q97: =IFERROR(IF(INDIRECT(CONCATENATE($B$53,P$1,MATCH(Q$78,INDIRECT(CONCATENATE($B$53,Q$1,$B97,35,":",Q$1,$B97,74)),0)+34))="-",Q170,INDIRECT(CONCATENATE($B$53,P$1,MATCH(Q$78,INDIRECT(CONCATENATE($B$53,Q$1,$B97,35,":",Q$1,$B97,74)),0)+34))),Q170) ->  | R97: =IFERROR(IF(INDIRECT(CONCATENATE($B$53,R$1,MATCH(R$78,INDIRECT(CONCATENATE($B$53,S$1,$B97,35,":",S$1,$B97,74)),0)+34))="-",R170,INDIRECT(CONCATENATE($B$53,R$1,MATCH(R$78,INDIRECT(CONCATENATE($B$53,S$1,$B97,35,":",S$1,$B97,74)),0)+34))),R170) ->  | S97: =IFERROR(IF(INDIRECT(CONCATENATE($B$53,R$1,MATCH(S$78,INDIRECT(CONCATENATE($B$53,S$1,$B97,35,":",S$1,$B97,74)),0)+34))="-",S170,INDIRECT(CONCATENATE($B$53,R$1,MATCH(S$78,INDIRECT(CONCATENATE($B$53,S$1,$B97,35,":",S$1,$B97,74)),0)+34))),S170) -> 
B98: U | C98: 4x100 Relay | D98: =IFERROR(IF(INDIRECT(CONCATENATE($B$53,D$1,MATCH($D$28,INDIRECT(CONCATENATE($B$53,E$1,$B98,35,":",E$1,$B98,74)),0)+34))="-",D171,INDIRECT(CONCATENATE($B$53,D$1,MATCH($D$28,INDIRECT(CONCATENATE($B$53,E$1,$B98,35,":",E$1,$B98,74)),0)+34))),D171) -> EFFAH JUDAH | E98: =IFERROR(IF(INDIRECT(CONCATENATE($B$53,D$1,MATCH($F$28,INDIRECT(CONCATENATE($B$53,E$1,$B98,35,":",E$1,$B98,74)),0)+34))="-",E171,INDIRECT(CONCATENATE($B$53,D$1,MATCH($F$28,INDIRECT(CONCATENATE($B$53,E$1,$B98,35,":",E$1,$B98,74)),0)+34))),E171) -> PASCALL-MENZIE JOEL | F98: =IFERROR(IF(INDIRECT(CONCATENATE($B$53,F$1,MATCH($D$28,INDIRECT(CONCATENATE($B$53,G$1,$B98,35,":",G$1,$B98,74)),0)+34))="-",F171,INDIRECT(CONCATENATE($B$53,F$1,MATCH($D$28,INDIRECT(CONCATENATE($B$53,G$1,$B98,35,":",G$1,$B98,74)),0)+34))),F171) -> KINLOCK Derek | G98: =IFERROR(IF(INDIRECT(CONCATENATE($B$53,F$1,MATCH($F$28,INDIRECT(CONCATENATE($B$53,G$1,$B98,35,":",G$1,$B98,74)),0)+34))="-",G171,INDIRECT(CONCATENATE($B$53,F$1,MATCH($F$28,INDIRECT(CONCATENATE($B$53,G$1,$B98,35,":",G$1,$B98,74)),0)+34))),G171) -> PREEST Oliver | H98: =IFERROR(IF(INDIRECT(CONCATENATE($B$53,H$1,MATCH($D$28,INDIRECT(CONCATENATE($B$53,I$1,$B98,35,":",I$1,$B98,74)),0)+34))="-",H171,INDIRECT(CONCATENATE($B$53,H$1,MATCH($D$28,INDIRECT(CONCATENATE($B$53,I$1,$B98,35,":",I$1,$B98,74)),0)+34))),H171) -> THOMAS Jamal | I98: =IFERROR(IF(INDIRECT(CONCATENATE($B$53,H$1,MATCH($F$28,INDIRECT(CONCATENATE($B$53,I$1,$B98,35,":",I$1,$B98,74)),0)+34))="-",I171,INDIRECT(CONCATENATE($B$53,H$1,MATCH($F$28,INDIRECT(CONCATENATE($B$53,I$1,$B98,35,":",I$1,$B98,74)),0)+34))),I171) -> IDOWU Tobi | J98: =IFERROR(IF(INDIRECT(CONCATENATE($B$53,J$1,MATCH($D$28,INDIRECT(CONCATENATE($B$53,K$1,$B98,35,":",K$1,$B98,74)),0)+34))="-",J171,INDIRECT(CONCATENATE($B$53,J$1,MATCH($D$28,INDIRECT(CONCATENATE($B$53,K$1,$B98,35,":",K$1,$B98,74)),0)+34))),J171) -> BWALYA Semba | K98: =IFERROR(IF(INDIRECT(CONCATENATE($B$53,J$1,MATCH($F$28,INDIRECT(CONCATENATE($B$53,K$1,$B98,35,":",K$1,$B98,74)),0)+34))="-",K171,INDIRECT(CONCATENATE($B$53,J$1,MATCH($F$28,INDIRECT(CONCATENATE($B$53,K$1,$B98,35,":",K$1,$B98,74)),0)+34))),K171) -> HORLESTON Joshua | L98: =IFERROR(IF(INDIRECT(CONCATENATE($B$53,L$1,MATCH($D$28,INDIRECT(CONCATENATE($B$53,M$1,$B98,35,":",M$1,$B98,74)),0)+34))="-",L171,INDIRECT(CONCATENATE($B$53,L$1,MATCH($D$28,INDIRECT(CONCATENATE($B$53,M$1,$B98,35,":",M$1,$B98,74)),0)+34))),L171) -> NEAL CONNOR | M98: =IFERROR(IF(INDIRECT(CONCATENATE($B$53,L$1,MATCH($F$28,INDIRECT(CONCATENATE($B$53,M$1,$B98,35,":",M$1,$B98,74)),0)+34))="-",M171,INDIRECT(CONCATENATE($B$53,L$1,MATCH($F$28,INDIRECT(CONCATENATE($B$53,M$1,$B98,35,":",M$1,$B98,74)),0)+34))),M171) -> SEERY JACK | N98: =IFERROR(IF(INDIRECT(CONCATENATE($B$53,N$1,MATCH($D$28,INDIRECT(CONCATENATE($B$53,O$1,$B98,35,":",O$1,$B98,74)),0)+34))="-",N171,INDIRECT(CONCATENATE($B$53,N$1,MATCH($D$28,INDIRECT(CONCATENATE($B$53,O$1,$B98,35,":",O$1,$B98,74)),0)+34))),N171) -> SMITH George | O98: =IFERROR(IF(INDIRECT(CONCATENATE($B$53,N$1,MATCH($F$28,INDIRECT(CONCATENATE($B$53,O$1,$B98,35,":",O$1,$B98,74)),0)+34))="-",O171,INDIRECT(CONCATENATE($B$53,N$1,MATCH($F$28,INDIRECT(CONCATENATE($B$53,O$1,$B98,35,":",O$1,$B98,74)),0)+34))),O171) -> WHITE Guy | P98: =IFERROR(IF(INDIRECT(CONCATENATE($B$53,P$1,MATCH($D$28,INDIRECT(CONCATENATE($B$53,Q$1,$B98,35,":",Q$1,$B98,74)),0)+34))="-",P171,INDIRECT(CONCATENATE($B$53,P$1,MATCH($D$28,INDIRECT(CONCATENATE($B$53,Q$1,$B98,35,":",Q$1,$B98,74)),0)+34))),P171) ->  | Q98: =IFERROR(IF(INDIRECT(CONCATENATE($B$53,P$1,MATCH($F$28,INDIRECT(CONCATENATE($B$53,Q$1,$B98,35,":",Q$1,$B98,74)),0)+34))="-",Q171,INDIRECT(CONCATENATE($B$53,P$1,MATCH($F$28,INDIRECT(CONCATENATE($B$53,Q$1,$B98,35,":",Q$1,$B98,74)),0)+34))),Q171) ->  | R98: =IFERROR(IF(INDIRECT(CONCATENATE($B$53,R$1,MATCH($D$28,INDIRECT(CONCATENATE($B$53,S$1,$B98,35,":",S$1,$B98,74)),0)+34))="-",R171,INDIRECT(CONCATENATE($B$53,R$1,MATCH($D$28,INDIRECT(CONCATENATE($B$53,S$1,$B98,35,":",S$1,$B98,74)),0)+34))),R171) ->  | S98: =IFERROR(IF(INDIRECT(CONCATENATE($B$53,R$1,MATCH($F$28,INDIRECT(CONCATENATE($B$53,S$1,$B98,35,":",S$1,$B98,74)),0)+34))="-",S171,INDIRECT(CONCATENATE($B$53,R$1,MATCH($F$28,INDIRECT(CONCATENATE($B$53,S$1,$B98,35,":",S$1,$B98,74)),0)+34))),S171) -> 
B99: U | C99: 4x100 Relay | D99: =IFERROR(IF(INDIRECT(CONCATENATE($B$53,D$1,MATCH($H$28,INDIRECT(CONCATENATE($B$53,E$1,$B99,35,":",E$1,$B99,74)),0)+34))="-",D172,INDIRECT(CONCATENATE($B$53,D$1,MATCH($H$28,INDIRECT(CONCATENATE($B$53,E$1,$B99,35,":",E$1,$B99,74)),0)+34))),D172) -> ELLIS Cameron | E99: =IFERROR(IF(INDIRECT(CONCATENATE($B$53,D$1,MATCH($J$28,INDIRECT(CONCATENATE($B$53,E$1,$B99,35,":",E$1,$B99,74)),0)+34))="-",E172,INDIRECT(CONCATENATE($B$53,D$1,MATCH($J$28,INDIRECT(CONCATENATE($B$53,E$1,$B99,35,":",E$1,$B99,74)),0)+34))),E172) -> HARDING Joseph | F99: =IFERROR(IF(INDIRECT(CONCATENATE($B$53,F$1,MATCH($H$28,INDIRECT(CONCATENATE($B$53,G$1,$B99,35,":",G$1,$B99,74)),0)+34))="-",F172,INDIRECT(CONCATENATE($B$53,F$1,MATCH($H$28,INDIRECT(CONCATENATE($B$53,G$1,$B99,35,":",G$1,$B99,74)),0)+34))),F172) -> SMITHEN Louis | G99: =IFERROR(IF(INDIRECT(CONCATENATE($B$53,F$1,MATCH($J$28,INDIRECT(CONCATENATE($B$53,G$1,$B99,35,":",G$1,$B99,74)),0)+34))="-",G172,INDIRECT(CONCATENATE($B$53,F$1,MATCH($J$28,INDIRECT(CONCATENATE($B$53,G$1,$B99,35,":",G$1,$B99,74)),0)+34))),G172) -> INNISS Tyvon | H99: =IFERROR(IF(INDIRECT(CONCATENATE($B$53,H$1,MATCH($H$28,INDIRECT(CONCATENATE($B$53,I$1,$B99,35,":",I$1,$B99,74)),0)+34))="-",H172,INDIRECT(CONCATENATE($B$53,H$1,MATCH($H$28,INDIRECT(CONCATENATE($B$53,I$1,$B99,35,":",I$1,$B99,74)),0)+34))),H172) -> FRESHWATER Aaron | I99: =IFERROR(IF(INDIRECT(CONCATENATE($B$53,H$1,MATCH($J$28,INDIRECT(CONCATENATE($B$53,I$1,$B99,35,":",I$1,$B99,74)),0)+34))="-",I172,INDIRECT(CONCATENATE($B$53,H$1,MATCH($J$28,INDIRECT(CONCATENATE($B$53,I$1,$B99,35,":",I$1,$B99,74)),0)+34))),I172) -> AKINYEBO Richard | J99: =IFERROR(IF(INDIRECT(CONCATENATE($B$53,J$1,MATCH($H$28,INDIRECT(CONCATENATE($B$53,K$1,$B99,35,":",K$1,$B99,74)),0)+34))="-",J172,INDIRECT(CONCATENATE($B$53,J$1,MATCH($H$28,INDIRECT(CONCATENATE($B$53,K$1,$B99,35,":",K$1,$B99,74)),0)+34))),J172) -> EVANS Joel | K99: =IFERROR(IF(INDIRECT(CONCATENATE($B$53,J$1,MATCH($J$28,INDIRECT(CONCATENATE($B$53,K$1,$B99,35,":",K$1,$B99,74)),0)+34))="-",K172,INDIRECT(CONCATENATE($B$53,J$1,MATCH($J$28,INDIRECT(CONCATENATE($B$53,K$1,$B99,35,":",K$1,$B99,74)),0)+34))),K172) -> OWEN Oliver | L99: =IFERROR(IF(INDIRECT(CONCATENATE($B$53,L$1,MATCH($H$28,INDIRECT(CONCATENATE($B$53,M$1,$B99,35,":",M$1,$B99,74)),0)+34))="-",L172,INDIRECT(CONCATENATE($B$53,L$1,MATCH($H$28,INDIRECT(CONCATENATE($B$53,M$1,$B99,35,":",M$1,$B99,74)),0)+34))),L172) -> GOODMAN Jake | M99: =IFERROR(IF(INDIRECT(CONCATENATE($B$53,L$1,MATCH($J$28,INDIRECT(CONCATENATE($B$53,M$1,$B99,35,":",M$1,$B99,74)),0)+34))="-",M172,INDIRECT(CONCATENATE($B$53,L$1,MATCH($J$28,INDIRECT(CONCATENATE($B$53,M$1,$B99,35,":",M$1,$B99,74)),0)+34))),M172) -> NGASSA Sebastian | N99: =IFERROR(IF(INDIRECT(CONCATENATE($B$53,N$1,MATCH($H$28,INDIRECT(CONCATENATE($B$53,O$1,$B99,35,":",O$1,$B99,74)),0)+34))="-",N172,INDIRECT(CONCATENATE($B$53,N$1,MATCH($H$28,INDIRECT(CONCATENATE($B$53,O$1,$B99,35,":",O$1,$B99,74)),0)+34))),N172) -> STURGEON Rory | O99: =IFERROR(IF(INDIRECT(CONCATENATE($B$53,N$1,MATCH($J$28,INDIRECT(CONCATENATE($B$53,O$1,$B99,35,":",O$1,$B99,74)),0)+34))="-",O172,INDIRECT(CONCATENATE($B$53,N$1,MATCH($J$28,INDIRECT(CONCATENATE($B$53,O$1,$B99,35,":",O$1,$B99,74)),0)+34))),O172) -> BROOKS Felix | P99: =IFERROR(IF(INDIRECT(CONCATENATE($B$53,P$1,MATCH($H$28,INDIRECT(CONCATENATE($B$53,Q$1,$B99,35,":",Q$1,$B99,74)),0)+34))="-",P172,INDIRECT(CONCATENATE($B$53,P$1,MATCH($H$28,INDIRECT(CONCATENATE($B$53,Q$1,$B99,35,":",Q$1,$B99,74)),0)+34))),P172) ->  | Q99: =IFERROR(IF(INDIRECT(CONCATENATE($B$53,P$1,MATCH($J$28,INDIRECT(CONCATENATE($B$53,Q$1,$B99,35,":",Q$1,$B99,74)),0)+34))="-",Q172,INDIRECT(CONCATENATE($B$53,P$1,MATCH($J$28,INDIRECT(CONCATENATE($B$53,Q$1,$B99,35,":",Q$1,$B99,74)),0)+34))),Q172) ->  | R99: =IFERROR(IF(INDIRECT(CONCATENATE($B$53,R$1,MATCH($H$28,INDIRECT(CONCATENATE($B$53,S$1,$B99,35,":",S$1,$B99,74)),0)+34))="-",R172,INDIRECT(CONCATENATE($B$53,R$1,MATCH($H$28,INDIRECT(CONCATENATE($B$53,S$1,$B99,35,":",S$1,$B99,74)),0)+34))),R172) ->  | S99: =IFERROR(IF(INDIRECT(CONCATENATE($B$53,R$1,MATCH($J$28,INDIRECT(CONCATENATE($B$53,S$1,$B99,35,":",S$1,$B99,74)),0)+34))="-",S172,INDIRECT(CONCATENATE($B$53,R$1,MATCH($J$28,INDIRECT(CONCATENATE($B$53,S$1,$B99,35,":",S$1,$B99,74)),0)+34))),S172) -> 
B100: V | C100: 4x400 (300) | D100: =IFERROR(IF(INDIRECT(CONCATENATE($B$53,D$1,MATCH($D$28,INDIRECT(CONCATENATE($B$53,E$1,$B100,35,":",E$1,$B100,74)),0)+34))="-",D173,INDIRECT(CONCATENATE($B$53,D$1,MATCH($D$28,INDIRECT(CONCATENATE($B$53,E$1,$B100,35,":",E$1,$B100,74)),0)+34))),D173) -> OSHIYEMI Malik | E100: =IFERROR(IF(INDIRECT(CONCATENATE($B$53,D$1,MATCH($F$28,INDIRECT(CONCATENATE($B$53,E$1,$B100,35,":",E$1,$B100,74)),0)+34))="-",E173,INDIRECT(CONCATENATE($B$53,D$1,MATCH($F$28,INDIRECT(CONCATENATE($B$53,E$1,$B100,35,":",E$1,$B100,74)),0)+34))),E173) -> DYOS Alex | F100: =IFERROR(IF(INDIRECT(CONCATENATE($B$53,F$1,MATCH($D$28,INDIRECT(CONCATENATE($B$53,G$1,$B100,35,":",G$1,$B100,74)),0)+34))="-",F173,INDIRECT(CONCATENATE($B$53,F$1,MATCH($D$28,INDIRECT(CONCATENATE($B$53,G$1,$B100,35,":",G$1,$B100,74)),0)+34))),F173) -> BLAIR Zachary | G100: =IFERROR(IF(INDIRECT(CONCATENATE($B$53,F$1,MATCH($F$28,INDIRECT(CONCATENATE($B$53,G$1,$B100,35,":",G$1,$B100,74)),0)+34))="-",G173,INDIRECT(CONCATENATE($B$53,F$1,MATCH($F$28,INDIRECT(CONCATENATE($B$53,G$1,$B100,35,":",G$1,$B100,74)),0)+34))),G173) -> SMITHEN Louis | H100: =IFERROR(IF(INDIRECT(CONCATENATE($B$53,H$1,MATCH($D$28,INDIRECT(CONCATENATE($B$53,I$1,$B100,35,":",I$1,$B100,74)),0)+34))="-",H173,INDIRECT(CONCATENATE($B$53,H$1,MATCH($D$28,INDIRECT(CONCATENATE($B$53,I$1,$B100,35,":",I$1,$B100,74)),0)+34))),H173) -> FRIEND Alexander | I100: =IFERROR(IF(INDIRECT(CONCATENATE($B$53,H$1,MATCH($F$28,INDIRECT(CONCATENATE($B$53,I$1,$B100,35,":",I$1,$B100,74)),0)+34))="-",I173,INDIRECT(CONCATENATE($B$53,H$1,MATCH($F$28,INDIRECT(CONCATENATE($B$53,I$1,$B100,35,":",I$1,$B100,74)),0)+34))),I173) -> CHRISTIE Kimathi | J100: =IFERROR(IF(INDIRECT(CONCATENATE($B$53,J$1,MATCH($D$28,INDIRECT(CONCATENATE($B$53,K$1,$B100,35,":",K$1,$B100,74)),0)+34))="-",J173,INDIRECT(CONCATENATE($B$53,J$1,MATCH($D$28,INDIRECT(CONCATENATE($B$53,K$1,$B100,35,":",K$1,$B100,74)),0)+34))),J173) -> 0 | K100: =IFERROR(IF(INDIRECT(CONCATENATE($B$53,J$1,MATCH($F$28,INDIRECT(CONCATENATE($B$53,K$1,$B100,35,":",K$1,$B100,74)),0)+34))="-",K173,INDIRECT(CONCATENATE($B$53,J$1,MATCH($F$28,INDIRECT(CONCATENATE($B$53,K$1,$B100,35,":",K$1,$B100,74)),0)+34))),K173) -> 0 | L100: =IFERROR(IF(INDIRECT(CONCATENATE($B$53,L$1,MATCH($D$28,INDIRECT(CONCATENATE($B$53,M$1,$B100,35,":",M$1,$B100,74)),0)+34))="-",L173,INDIRECT(CONCATENATE($B$53,L$1,MATCH($D$28,INDIRECT(CONCATENATE($B$53,M$1,$B100,35,":",M$1,$B100,74)),0)+34))),L173) -> SEERY JACK | M100: =IFERROR(IF(INDIRECT(CONCATENATE($B$53,L$1,MATCH($F$28,INDIRECT(CONCATENATE($B$53,M$1,$B100,35,":",M$1,$B100,74)),0)+34))="-",M173,INDIRECT(CONCATENATE($B$53,L$1,MATCH($F$28,INDIRECT(CONCATENATE($B$53,M$1,$B100,35,":",M$1,$B100,74)),0)+34))),M173) -> SEERY GEORGE | N100: =IFERROR(IF(INDIRECT(CONCATENATE($B$53,N$1,MATCH($D$28,INDIRECT(CONCATENATE($B$53,O$1,$B100,35,":",O$1,$B100,74)),0)+34))="-",N173,INDIRECT(CONCATENATE($B$53,N$1,MATCH($D$28,INDIRECT(CONCATENATE($B$53,O$1,$B100,35,":",O$1,$B100,74)),0)+34))),N173) -> KINGSTON James | O100: =IFERROR(IF(INDIRECT(CONCATENATE($B$53,N$1,MATCH($F$28,INDIRECT(CONCATENATE($B$53,O$1,$B100,35,":",O$1,$B100,74)),0)+34))="-",O173,INDIRECT(CONCATENATE($B$53,N$1,MATCH($F$28,INDIRECT(CONCATENATE($B$53,O$1,$B100,35,":",O$1,$B100,74)),0)+34))),O173) -> SEATON Daniel | P100: =IFERROR(IF(INDIRECT(CONCATENATE($B$53,P$1,MATCH($D$28,INDIRECT(CONCATENATE($B$53,Q$1,$B100,35,":",Q$1,$B100,74)),0)+34))="-",P173,INDIRECT(CONCATENATE($B$53,P$1,MATCH($D$28,INDIRECT(CONCATENATE($B$53,Q$1,$B100,35,":",Q$1,$B100,74)),0)+34))),P173) ->  | Q100: =IFERROR(IF(INDIRECT(CONCATENATE($B$53,P$1,MATCH($F$28,INDIRECT(CONCATENATE($B$53,Q$1,$B100,35,":",Q$1,$B100,74)),0)+34))="-",Q173,INDIRECT(CONCATENATE($B$53,P$1,MATCH($F$28,INDIRECT(CONCATENATE($B$53,Q$1,$B100,35,":",Q$1,$B100,74)),0)+34))),Q173) ->  | R100: =IFERROR(IF(INDIRECT(CONCATENATE($B$53,R$1,MATCH($D$28,INDIRECT(CONCATENATE($B$53,S$1,$B100,35,":",S$1,$B100,74)),0)+34))="-",R173,INDIRECT(CONCATENATE($B$53,R$1,MATCH($D$28,INDIRECT(CONCATENATE($B$53,S$1,$B100,35,":",S$1,$B100,74)),0)+34))),R173) ->  | S100: =IFERROR(IF(INDIRECT(CONCATENATE($B$53,R$1,MATCH($F$28,INDIRECT(CONCATENATE($B$53,S$1,$B100,35,":",S$1,$B100,74)),0)+34))="-",S173,INDIRECT(CONCATENATE($B$53,R$1,MATCH($F$28,INDIRECT(CONCATENATE($B$53,S$1,$B100,35,":",S$1,$B100,74)),0)+34))),S173) -> 
B101: V | C101: 4x400 (300) | D101: =IFERROR(IF(INDIRECT(CONCATENATE($B$53,D$1,MATCH($H$28,INDIRECT(CONCATENATE($B$53,E$1,$B101,35,":",E$1,$B101,74)),0)+34))="-",D174,INDIRECT(CONCATENATE($B$53,D$1,MATCH($H$28,INDIRECT(CONCATENATE($B$53,E$1,$B101,35,":",E$1,$B101,74)),0)+34))),D174) -> COWLEY Alistair | E101: =IFERROR(IF(INDIRECT(CONCATENATE($B$53,D$1,MATCH($J$28,INDIRECT(CONCATENATE($B$53,E$1,$B101,35,":",E$1,$B101,74)),0)+34))="-",E174,INDIRECT(CONCATENATE($B$53,D$1,MATCH($J$28,INDIRECT(CONCATENATE($B$53,E$1,$B101,35,":",E$1,$B101,74)),0)+34))),E174) -> HILL George | F101: =IFERROR(IF(INDIRECT(CONCATENATE($B$53,F$1,MATCH($H$28,INDIRECT(CONCATENATE($B$53,G$1,$B101,35,":",G$1,$B101,74)),0)+34))="-",F174,INDIRECT(CONCATENATE($B$53,F$1,MATCH($H$28,INDIRECT(CONCATENATE($B$53,G$1,$B101,35,":",G$1,$B101,74)),0)+34))),F174) -> TAMBLING Robbie | G101: =IFERROR(IF(INDIRECT(CONCATENATE($B$53,F$1,MATCH($J$28,INDIRECT(CONCATENATE($B$53,G$1,$B101,35,":",G$1,$B101,74)),0)+34))="-",G174,INDIRECT(CONCATENATE($B$53,F$1,MATCH($J$28,INDIRECT(CONCATENATE($B$53,G$1,$B101,35,":",G$1,$B101,74)),0)+34))),G174) -> OSPINA Israel | H101: =IFERROR(IF(INDIRECT(CONCATENATE($B$53,H$1,MATCH($H$28,INDIRECT(CONCATENATE($B$53,I$1,$B101,35,":",I$1,$B101,74)),0)+34))="-",H174,INDIRECT(CONCATENATE($B$53,H$1,MATCH($H$28,INDIRECT(CONCATENATE($B$53,I$1,$B101,35,":",I$1,$B101,74)),0)+34))),H174) -> OKPALAUKO Somto | I101: =IFERROR(IF(INDIRECT(CONCATENATE($B$53,H$1,MATCH($J$28,INDIRECT(CONCATENATE($B$53,I$1,$B101,35,":",I$1,$B101,74)),0)+34))="-",I174,INDIRECT(CONCATENATE($B$53,H$1,MATCH($J$28,INDIRECT(CONCATENATE($B$53,I$1,$B101,35,":",I$1,$B101,74)),0)+34))),I174) -> HARRIOTT Reece | J101: =IFERROR(IF(INDIRECT(CONCATENATE($B$53,J$1,MATCH($H$28,INDIRECT(CONCATENATE($B$53,K$1,$B101,35,":",K$1,$B101,74)),0)+34))="-",J174,INDIRECT(CONCATENATE($B$53,J$1,MATCH($H$28,INDIRECT(CONCATENATE($B$53,K$1,$B101,35,":",K$1,$B101,74)),0)+34))),J174) -> 0 | K101: =IFERROR(IF(INDIRECT(CONCATENATE($B$53,J$1,MATCH($J$28,INDIRECT(CONCATENATE($B$53,K$1,$B101,35,":",K$1,$B101,74)),0)+34))="-",K174,INDIRECT(CONCATENATE($B$53,J$1,MATCH($J$28,INDIRECT(CONCATENATE($B$53,K$1,$B101,35,":",K$1,$B101,74)),0)+34))),K174) -> 0 | L101: =IFERROR(IF(INDIRECT(CONCATENATE($B$53,L$1,MATCH($H$28,INDIRECT(CONCATENATE($B$53,M$1,$B101,35,":",M$1,$B101,74)),0)+34))="-",L174,INDIRECT(CONCATENATE($B$53,L$1,MATCH($H$28,INDIRECT(CONCATENATE($B$53,M$1,$B101,35,":",M$1,$B101,74)),0)+34))),L174) -> SMITH Benjamin | M101: =IFERROR(IF(INDIRECT(CONCATENATE($B$53,L$1,MATCH($J$28,INDIRECT(CONCATENATE($B$53,M$1,$B101,35,":",M$1,$B101,74)),0)+34))="-",M174,INDIRECT(CONCATENATE($B$53,L$1,MATCH($J$28,INDIRECT(CONCATENATE($B$53,M$1,$B101,35,":",M$1,$B101,74)),0)+34))),M174) -> NEAL CONNOR | N101: =IFERROR(IF(INDIRECT(CONCATENATE($B$53,N$1,MATCH($H$28,INDIRECT(CONCATENATE($B$53,O$1,$B101,35,":",O$1,$B101,74)),0)+34))="-",N174,INDIRECT(CONCATENATE($B$53,N$1,MATCH($H$28,INDIRECT(CONCATENATE($B$53,O$1,$B101,35,":",O$1,$B101,74)),0)+34))),N174) -> GORDON Fraser | O101: =IFERROR(IF(INDIRECT(CONCATENATE($B$53,N$1,MATCH($J$28,INDIRECT(CONCATENATE($B$53,O$1,$B101,35,":",O$1,$B101,74)),0)+34))="-",O174,INDIRECT(CONCATENATE($B$53,N$1,MATCH($J$28,INDIRECT(CONCATENATE($B$53,O$1,$B101,35,":",O$1,$B101,74)),0)+34))),O174) -> BEGHEIN Lucas | P101: =IFERROR(IF(INDIRECT(CONCATENATE($B$53,P$1,MATCH($H$28,INDIRECT(CONCATENATE($B$53,Q$1,$B101,35,":",Q$1,$B101,74)),0)+34))="-",P174,INDIRECT(CONCATENATE($B$53,P$1,MATCH($H$28,INDIRECT(CONCATENATE($B$53,Q$1,$B101,35,":",Q$1,$B101,74)),0)+34))),P174) ->  | Q101: =IFERROR(IF(INDIRECT(CONCATENATE($B$53,P$1,MATCH($J$28,INDIRECT(CONCATENATE($B$53,Q$1,$B101,35,":",Q$1,$B101,74)),0)+34))="-",Q174,INDIRECT(CONCATENATE($B$53,P$1,MATCH($J$28,INDIRECT(CONCATENATE($B$53,Q$1,$B101,35,":",Q$1,$B101,74)),0)+34))),Q174) ->  | R101: =IFERROR(IF(INDIRECT(CONCATENATE($B$53,R$1,MATCH($H$28,INDIRECT(CONCATENATE($B$53,S$1,$B101,35,":",S$1,$B101,74)),0)+34))="-",R174,INDIRECT(CONCATENATE($B$53,R$1,MATCH($H$28,INDIRECT(CONCATENATE($B$53,S$1,$B101,35,":",S$1,$B101,74)),0)+34))),R174) ->  | S101: =IFERROR(IF(INDIRECT(CONCATENATE($B$53,R$1,MATCH($J$28,INDIRECT(CONCATENATE($B$53,S$1,$B101,35,":",S$1,$B101,74)),0)+34))="-",S174,INDIRECT(CONCATENATE($B$53,R$1,MATCH($J$28,INDIRECT(CONCATENATE($B$53,S$1,$B101,35,":",S$1,$B101,74)),0)+34))),S174) -> 
A102: downloads!$
A103: B | B103: C | C103: u20m | D103: =IFERROR(IF(MatchDay!$U$2=5,141,IF(MatchDay!$U$2=6,168,IF(MatchDay!$U$2=7,195,IF(MatchDay!$U$2=8,222)))),"") -> 168 | E103: =D103 -> 168 | F103: =D103+27 -> 195 | G103: =F103 -> 195 | H103: =F103+27 -> 222 | I103: =H103 -> 222 | J103: =H103+27 -> 249 | K103: =J103 -> 249 | L103: =J103+27 -> 276 | M103: =L103 -> 276 | N103: =IF(MatchDay!$U$2>5,L103+27,"") -> 303 | O103: =N103 -> 303 | P103: =IF(MatchDay!$U$2>6,N103+27,"") ->  | Q103: =P103 ->  | R103: =IF(MatchDay!$U$2=8,P103+27,"") ->  | S103: =R103 -> 
A104: 6 | B104: 0 | C104: =INDIRECT(CONCATENATE($A$102,"A",$A104)) -> 75/100 | D104: =IFERROR(INDIRECT(CONCATENATE($A$102,$A$103,D$103+$B104)),"") -> JAMES Chosen | E104: =IFERROR(INDIRECT(CONCATENATE($A$102,$B$103,E$103+$B104)),"") -> ELLIS Cameron X | F104: =IFERROR(INDIRECT(CONCATENATE($A$102,$A$103,F$103+$B104)),"") -> FRANCIS-DWYER Micah | G104: =IFERROR(INDIRECT(CONCATENATE($A$102,$B$103,G$103+$B104)),"") -> DANIEL Cameron Ayo | H104: =IFERROR(INDIRECT(CONCATENATE($A$102,$A$103,H$103+$B104)),"") -> ADDISON Elliott | I104: =IFERROR(INDIRECT(CONCATENATE($A$102,$B$103,I$103+$B104)),"") -> FRESHWATER Aaron X | J104: =IFERROR(INDIRECT(CONCATENATE($A$102,$A$103,J$103+$B104)),"") -> HORLESTON Joshua X | K104: =IFERROR(INDIRECT(CONCATENATE($A$102,$B$103,K$103+$B104)),"") -> MORRIS Brent | L104: =IFERROR(INDIRECT(CONCATENATE($A$102,$A$103,L$103+$B104)),"") -> DOUGAL BARNABY | M104: =IFERROR(INDIRECT(CONCATENATE($A$102,$B$103,M$103+$B104)),"") -> 0 | N104: =IFERROR(INDIRECT(CONCATENATE($A$102,$A$103,N$103+$B104)),"") -> RIGBY Callum | O104: =IFERROR(INDIRECT(CONCATENATE($A$102,$B$103,O$103+$B104)),"") -> NORMAN Oscar | P104: =IFERROR(INDIRECT(CONCATENATE($A$102,$A$103,P$103+$B104)),"") ->  | Q104: =IFERROR(INDIRECT(CONCATENATE($A$102,$B$103,Q$103+$B104)),"") ->  | R104: =IFERROR(INDIRECT(CONCATENATE($A$102,$A$103,R$103+$B104)),"") ->  | S104: =IFERROR(INDIRECT(CONCATENATE($A$102,$B$103,S$103+$B104)),"") -> 
A105: 7 | B105: 1 | C105: =INDIRECT(CONCATENATE($A$102,"A",$A105)) -> 100M NS | D105: =IFERROR(INDIRECT(CONCATENATE($A$102,$A$103,D$103+$B105)),"") -> 0 | E105: =IFERROR(INDIRECT(CONCATENATE($A$102,$B$103,E$103+$B105)),"") -> 0 | F105: 0 | G105: 0 | H105: 0 | I105: 0 | J105: 0 | K105: 0 | L105: 0 | M105: 0 | N105: 0 | O105: 0
A106: 8 | B106: 2 | C106: 200 | D106: OSUNSAMI Mayowa | E106: JAMES Chosen | F106: DACOSTA Dylan | G106: OSPINA Israel X | H106: ADDISON Elliott | I106: DUNCAN Jordon | J106: MORRIS Brent | K106: 0 | L106: DOUGAL BARNABY | M106: NGASSA Sebastian X | N106: FULLBROOK David | O106: RIGBY Callum
A107: 9 | B107: 3 | C107: 400 | D107: CHAPMAN Harrison | E107: BROWN Isaac | F107: VANANATHAN Nithipan | G107: 0 | H107: DEBENHAM Lewis | I107: O'HARA Kieran | J107: MORRIS Brent | K107: 0 | L107: HAMBROOK Matt | M107: DOUGAL BARNABY | N107: CRICK Samuel | O107: SEAL Toby
A108: 10 | B108: 4 | C108: 800 | D108: RASHBROOK Jamie X | E108: 0 | F108: AIMIA Tim | G108: TAMBLING Robbie X | H108: DAVIS Ben | I108: CORDERY Elliot | J108: 0 | K108: 0 | L108: TREMAIN HARRISON | M108: 0 | N108: CRICK Samuel | O108: 0
A109: 11 | B109: 5 | C109: 800M NS | D109: 0 | E109: 0 | F109: 0 | G109: 0 | H109: 0 | I109: 0 | J109: 0 | K109: 0 | L109: 0 | M109: 0 | N109: 0 | O109: 0
A110: 12 | B110: 6 | C110: 1500 | D110: BROWN Isaac | E110: 0 | F110: FLANAGAN Isaac X | G110: 0 | H110: KEEVIL Thomas | I110: O'HARA Kieran | J110: 0 | K110: 0 | L110: YOUNG HARRY | M110: TREMAIN HARRISON | N110: GOODGE Jamie | O110: PITCAIRN-KNOWLES Bede
A111: 13 | B111: 7 | C111: Sp H | D111: ADEYEYE William | E111: 0 | F111: RODRIQUES Ezra | G111: 0 | H111: 0 | I111: 0 | J111: 0 | K111: 0 | L111: FARRALL KONRAD | M111: 0 | N111: 0 | O111: 0
A112: 14 | B112: 8 | C112: 3000 | D112: SMITH Harrison | E112: 0 | F112: 0 | G112: 0 | H112: ATKINS Samuel | I112: STEWART James | J112: 0 | K112: 0 | L112: 0 | M112: 0 | N112: PITCAIRN-KNOWLES Bede | O112: 0
A113: 15 | B113: 9 | C113: SChase | D113: 0 | E113: 0 | F113: 0 | G113: 0 | H113: ATKINS Samuel | I113: KEEVIL Thomas | J113: 0 | K113: 0 | L113: 0 | M113: 0 | N113: 0 | O113: 0
A114: 16 | B114: 10 | C114: 400mH | D114: 0 | E114: =IFERROR(INDIRECT(CONCATENATE($A$102,$B$103,E$103+$B114)),"") -> 0 | F114: RODRIQUES Ezra | G114: 0 | H114: 0 | I114: 0 | J114: 0 | K114: 0 | L114: FARRALL KONRAD | M114: 0 | N114: NORMAN Oscar | O114: 0
A115: 17 | B115: 11 | C115: Discus | D115: STUART Samuel X | E115: 0 | F115: VAUGHAN Reuben | G115: WIAFE Alexander | H115: DAVIS Ben | I115: 0 | J115: METCALFE Euan | K115: JOPP Oscar | L115: CRAWFORD KIAN | M115: FARRALL KONRAD | N115: SCOPES Alfie | O115: SEAL Toby
A116: 18 | B116: 12 | C116: Hammer | D116: 0 | E116: 0 | F116: INNISS Tyvon X | G116: 0 | H116: THOMAS Jamal X | I116: 0 | J116: 0 | K116: 0 | L116: CRAWFORD KIAN | M116: 0 | N116: NICHOLSON Joseph | O116: 0
A117: 19 | B117: 13 | C117: Javelin | D117: 0 | E117: 0 | F117: VAUGHAN Reuben | G117: DACOSTA Dylan | H117: KEEVIL Thomas | I117: 0 | J117: STOCKER Michael | K117: 0 | L117: CRAWFORD KIAN | M117: 0 | N117: RIGBY Callum | O117: FULLBROOK David
A118: 20 | B118: 14 | C118: Shot | D118: HENRY JEROME X | E118: 0 | F118: WIAFE Alexander | G118: VAUGHAN Reuben | H118: ATKINS Samuel | I118: 0 | J118: METCALFE Euan | K118: 0 | L118: FARRALL KONRAD | M118: 0 | N118: SCOPES Alfie | O118: 0
A119: 21 | B119: 15 | C119: Long J | D119: ELLIS Cameron X | E119: 0 | F119: 0 | G119: 0 | H119: TAYLOR Shandell | I119: 0 | J119: JOPP Oscar | K119: 0 | L119: SMITH Benjamin X | M119: 0 | N119: FULLBROOK David | O119: SEAL Toby
A120: 22 | B120: 16 | C120: Triple J | D120: FADAYIRO Theo | E120: ADEGBITE Andrew | F120: 0 | G120: 0 | H120: TAYLOR Shandell | I120: 0 | J120: ODEJIMI-RILEY Nile X | K120: 0 | L120: 0 | M120: 0 | N120: NORMAN Oscar | O120: 0
A121: 23 | B121: 17 | C121: =INDIRECT(CONCATENATE($A$102,"A",$A121)) -> High J | D121: FADAYIRO Theo | E121: 0 | F121: ALLICOCK Rawle X | G121: 0 | H121: TAYLOR Shandell | I121: 0 | J121: JOPP Oscar | K121: 0 | L121: CRAWFORD KIAN | M121: 0 | N121: FULLBROOK David | O121: SEAL Toby
A122: 24 | B122: 18 | C122: Pole V | D122: 0 | E122: 0 | F122: THOMAS Emmanuel | G122: 0 | H122: 0 | I122: 0 | J122: JOPP Oscar | K122: STOCKER Michael | L122: 0 | M122: 0 | N122: 0 | O122: 0
A123: 25 | B123: 19 | C123: r4x11/2: | D123: ADEGBITE Andrew | E123: JAMES Chosen | F123: DANIEL Cameron Ayo | G123: OSPINA Israel X | H123: DEBENHAM Lewis | I123: ADDISON Elliott | J123: MORRIS Brent | K123: JOPP Oscar | L123: FARRALL KONRAD | M123: DOUGAL BARNABY | N123: RIGBY Callum | O123: NORMAN Oscar
A124: 26 | B124: 20 | C124: r4x13/4: | D124: ADEYEYE William | E124: =IFERROR(INDIRECT(CONCATENATE($A$102,$B$103,E$103+$B124)),"") -> OSUNSAMI Mayowa | F124: FRANCIS-DWYER Micah | G124: DACOSTA Dylan | H124: HARRIOTT Reece X | I124: TAYLOR Shandell | J124: STOCKER Michael | K124: ODEJIMI-RILEY Nile X | L124: HAMBROOK Matt | M124: CRAWFORD KIAN | N124: CRICK Samuel | O124: FULLBROOK David
A125: 27 | B125: 21 | C125: r4x41/2: | D125: =IFERROR(INDIRECT(CONCATENATE($A$102,$A$103,D$103+$B125)),"") -> BROWN Isaac | E125: RASHBROOK Jamie X | F125: AHOUZAN Chris-Collins | G125: WILLIAMS Samir | H125: CORDERY Elliot | I125: KEEVIL Thomas | J125: 0 | K125: 0 | L125: HAMBROOK Matt | M125: DOUGAL BARNABY | N125: 0 | O125: 0
A126: 28 | B126: 22 | C126: r4x43/4: | D126: CHAPMAN Harrison | E126: OSUNSAMI Mayowa | F126: AIMIA Tim | G126: HALLUMS Soul X | H126: DEBENHAM Lewis | I126: DAVIS Ben | J126: 0 | K126: 0 | L126: TREMAIN HARRISON | M126: GOODMAN Jake X | N126: 0 | O126: 0
C127: U20w | D127: 6 | E127: =D127 -> 6 | F127: =D127+27 -> 33 | G127: =F127 -> 33 | H127: =F127+27 -> 60 | I127: =H127 -> 60 | J127: =H127+27 -> 87 | K127: =J127 -> 87 | L127: =J127+27 -> 114 | M127: =L127 -> 114 | N127: =IF(MatchDay!$U$2>5,L127+27,"") -> 141 | O127: =N127 -> 141 | P127: =IF(MatchDay!$U$2>6,N127+27,"") ->  | Q127: =P127 ->  | R127: =IF(MatchDay!$U$2=8,P127+27,"") ->  | S127: =R127 -> 
A128: 6 | B128: 0 | C128: =INDIRECT(CONCATENATE($A$102,"A",$A128)) -> 75/100 | D128: =IFERROR(INDIRECT(CONCATENATE($A$102,$A$103,D$127+$B128)),"") -> AWALA SHAW Dolita | E128: =IFERROR(INDIRECT(CONCATENATE($A$102,$B$103,E$127+$B128)),"") -> WHITEHEAD-SHAKES Jazmin | F128: =IFERROR(INDIRECT(CONCATENATE($A$102,$A$103,F$127+$B128)),"") -> ANSAH Davina | G128: =IFERROR(INDIRECT(CONCATENATE($A$102,$B$103,G$127+$B128)),"") -> DAKE Esinam | H128: =IFERROR(INDIRECT(CONCATENATE($A$102,$A$103,H$127+$B128)),"") -> NASH Holly | I128: =IFERROR(INDIRECT(CONCATENATE($A$102,$B$103,I$127+$B128)),"") -> 0 | J128: =IFERROR(INDIRECT(CONCATENATE($A$102,$A$103,J$127+$B128)),"") -> PICKARD Abigail | K128: =IFERROR(INDIRECT(CONCATENATE($A$102,$B$103,K$127+$B128)),"") -> BROWN Rebecca | L128: =IFERROR(INDIRECT(CONCATENATE($A$102,$A$103,L$127+$B128)),"") -> SULLIVAN Grace | M128: =IFERROR(INDIRECT(CONCATENATE($A$102,$B$103,M$127+$B128)),"") -> SAXBY ELLA X | N128: =IFERROR(INDIRECT(CONCATENATE($A$102,$A$103,N$127+$B128)),"") -> ROOT Asha | O128: =IFERROR(INDIRECT(CONCATENATE($A$102,$B$103,O$127+$B128)),"") -> VINE Isabelle | P128: =IFERROR(INDIRECT(CONCATENATE($A$102,$A$103,P$127+$B128)),"") ->  | Q128: =IFERROR(INDIRECT(CONCATENATE($A$102,$B$103,Q$127+$B128)),"") ->  | R128: =IFERROR(INDIRECT(CONCATENATE($A$102,$A$103,R$127+$B128)),"") ->  | S128: =IFERROR(INDIRECT(CONCATENATE($A$102,$B$103,S$127+$B128)),"") -> 
A129: 7 | B129: 1 | C129: =INDIRECT(CONCATENATE($A$102,"A",$A129)) -> 100M NS | D129: =IFERROR(INDIRECT(CONCATENATE($A$102,$A$103,D$127+$B129)),"") -> 0 | E129: =IFERROR(INDIRECT(CONCATENATE($A$102,$B$103,E$127+$B129)),"") -> 0 | F129: 0 | G129: 0 | H129: 0 | I129: 0 | J129: 0 | K129: 0 | L129: 0 | M129: 0 | N129: 0 | O129: 0
A130: 8 | B130: 2 | C130: 200 | D130: AWALA SHAW Dolita | E130: BAKARE Danielle | F130: SALAMI Tosin | G130: DAKE Esinam | H130: CHRISTIE Keturah | I130: NASH Holly | J130: 0 | K130: 0 | L130: SCRIVENS HANNAH X | M130: 0 | N130: ROOT Asha | O130: VINE Isabelle
A131: 9 | B131: 3 | C131: 400 | D131: REX Abby | E131: BURRELL Grace X | F131: 0 | G131: 0 | H131: DAWSON Katie | I131: 0 | J131: 0 | K131: 0 | L131: LEE FREYA X | M131: 0 | N131: 0 | O131: EBBAGE Kirsty Ann X
A132: 10 | B132: 4 | C132: 800 | D132: REX Abby | E132: 0 | F132: MOORE Jessica | G132: 0 | H132: MITCHELL Jessica | I132: 0 | J132: 0 | K132: 0 | L132: 0 | M132: 0 | N132: 0 | O132: 0
A133: 11 | B133: 5 | C133: 800M NS | D133: 0 | E133: 0 | F133: 0 | G133: 0 | H133: 0 | I133: 0 | J133: 0 | K133: 0 | L133: 0 | M133: 0 | N133: 0 | O133: 0
A134: 12 | B134: 6 | C134: 1500 | D134: 0 | E134: 0 | F134: MOORE Jessica | G134: 0 | H134: O'NEILL Kate | I134: RAND Sophie | J134: 0 | K134: 0 | L134: 0 | M134: 0 | N134: HESLOP Elizabeth X | O134: KINGSTON Lucy X
A135: 13 | B135: 7 | C135: Sp H | D135: 0 | E135: 0 | F135: ARCHER Sonyce | G135: 0 | H135: HUGHES Anandamayi | I135: PURDIE Isabella | J135: 0 | K135: 0 | L135: 0 | M135: 0 | N135: VINE Isabelle | O135: 0
A136: 14 | B136: 8 | C136: 3000 | D136: 0 | E136: 0 | F136: 0 | G136: 0 | H136: 0 | I136: 0 | J136: 0 | K136: 0 | L136: 0 | M136: 0 | N136: 0 | O136: 0
A137: 15 | B137: 9 | C137: SChase | D137: 0 | E137: 0 | F137: 0 | G137: 0 | H137: 0 | I137: 0 | J137: DUKE Charlotte | K137: 0 | L137: 0 | M137: 0 | N137: 0 | O137: 0
A138: 16 | B138: 10 | C138: 400mH | D138: DAVIES Sophie | E138: 0 | F138: 0 | G138: 0 | H138: 0 | I138: 0 | J138: 0 | K138: 0 | L138: 0 | M138: 0 | N138: 0 | O138: 0
A139: 17 | B139: 11 | C139: Discus | D139: 0 | E139: 0 | F139: ZEPA Ines-Karel | G139: 0 | H139: RAND Sophie | I139: 0 | J139: 0 | K139: 0 | L139: 0 | M139: 0 | N139: LAQERETABUA Una | O139: 0
A140: 18 | B140: 12 | C140: Hammer | D140: MATTHEWS Devon | E140: 0 | F140: 0 | G140: 0 | H140: GILL Philippa | I140: 0 | J140: 0 | K140: 0 | L140: 0 | M140: 0 | N140: 0 | O140: 0
A141: 19 | B141: 13 | C141: Javelin | D141: MATTHEWS Devon | E141: DAVIES Sophie | F141: GAYLE Rhiannon | G141: 0 | H141: GILL Philippa | I141: O'NEILL Kate | J141: 0 | K141: 0 | L141: 0 | M141: 0 | N141: LAQERETABUA Una | O141: VINE Isabelle
A142: 20 | B142: 14 | C142: Shot | D142: MATTHEWS Devon | E142: AWALA SHAW Dolita | F142: DAVIDS Chiamaka | G142: DAKE Esinam | H142: GILL Philippa | I142: HUGHES Anandamayi | J142: BROWN Rebecca | K142: PICKARD Abigail | L142: 0 | M142: 0 | N142: 0 | O142: 0
A143: 21 | B143: 15 | C143: Long J | D143: 0 | E143: 0 | F143: ARCHER Sonyce | G143: OLUFEMI-KRAKUE Ola | H143: HUGHES Anandamayi | I143: PURDIE Isabella | J143: PICKARD Abigail | K143: BROWN Rebecca | L143: SULLIVAN Grace | M143: 0 | N143: LAQERETABUA Una | O143: 0
A144: 22 | B144: 16 | C144: Triple J | D144: 0 | E144: 0 | F144: ARCHER Sonyce | G144: OLUFEMI-KRAKUE Ola | H144: PURDIE Isabella | I144: NASH Holly | J144: PICKARD Abigail | K144: BROWN Rebecca | L144: SULLIVAN Grace | M144: 0 | N144: 0 | O144: 0
A145: 23 | B145: 17 | C145: =INDIRECT(CONCATENATE($A$102,"A",$A145)) -> High J | D145: AWALA SHAW Dolita | E145: 0 | F145: 0 | G145: 0 | H145: CHRISTIE Keturah | I145: HUGHES Anandamayi | J145: 0 | K145: 0 | L145: 0 | M145: 0 | N145: 0 | O145: 0
A146: 24 | B146: 18 | C146: Pole V | D146: 0 | E146: 0 | F146: 0 | G146: 0 | H146: 0 | I146: 0 | J146: PICKARD Abigail | K146: 0 | L146: 0 | M146: 0 | N146: LAQERETABUA Una | O146: 0 | R146: =IFERROR(INDIRECT(CONCATENATE($A$102,$A$103,R$127+$B146)),"") -> 
A147: 25 | B147: 19 | C147: r4x11/2: | D147: TONGE Myomi X | E147: BAKARE Danielle | F147: DAKE Esinam | G147: ANSAH Davina | H147: PURDIE Isabella | I147: HUGHES Anandamayi | J147: 0 | K147: 0 | L147: 0 | M147: SULLIVAN Grace | N147: VINE Isabelle | O147: HESLOP Elizabeth X | R147: =IFERROR(INDIRECT(CONCATENATE($A$102,$A$103,R$127+$B147)),"") -> 
A148: 26 | B148: 20 | C148: r4x13/4: | D148: =IFERROR(INDIRECT(CONCATENATE($A$102,$A$103,D$127+$B148)),"") -> 0 | E148: =IFERROR(INDIRECT(CONCATENATE($A$102,$B$103,E$127+$B148)),"") -> AWALA SHAW Dolita | F148: GAYLE Rhiannon | G148: SALAMI Tosin | H148: CHRISTIE Keturah | I148: NASH Holly | J148: 0 | K148: 0 | L148: LEE FREYA X | M148: MILLARD Alexandra X | N148: RIXON Maisie X | O148: ALI Sohaila X
A149: 27 | B149: 21 | C149: r4x41/2: | D149: RIXSON Zoe X | E149: REX Hollie X | F149: SINGH Antara X | G149: MOORE Jessica | H149: DAWSON Katie | I149: O'NEILL Kate | J149: 0 | K149: 0 | L149: 0 | M149: 0 | N149: ROOT Asha | O149: O'HARA Jessica X
A150: 28 | B150: 22 | C150: r4x43/4: | D150: REX Abby | E150: BURRELL Grace X | F150: OLUFEMI-KRAKUE Ola | G150: GAYLE Rhiannon | H150: RAND Sophie | I150: MITCHELL Jessica | J150: 0 | K150: 0 | L150: 0 | M150: 0 | N150: KINGSTON Lucy X | O150: O'BRIEN Rebekah X
C151: u17m | D151: =IFERROR(IF(MatchDay!$U$2=5,411,IF(MatchDay!$U$2=6,492,IF(MatchDay!$U$2=7,573,IF(MatchDay!$U$2=8,654)))),"") -> 492 | E151: =D151 -> 492 | F151: =D151+27 -> 519 | G151: =F151 -> 519 | H151: =F151+27 -> 546 | I151: =H151 -> 546 | J151: =H151+27 -> 573 | K151: =J151 -> 573 | L151: =J151+27 -> 600 | M151: =L151 -> 600 | N151: =IF(MatchDay!$U$2>5,L151+27,"") -> 627 | O151: =N151 -> 627 | P151: =IF(MatchDay!$U$2>6,N151+27,"") ->  | Q151: =P151 ->  | R151: =IF(MatchDay!$U$2=8,P151+27,"") ->  | S151: =R151 -> 
A152: 6 | B152: 0 | C152: =INDIRECT(CONCATENATE($A$102,"A",$A152)) -> 75/100 | D152: =IFERROR(INDIRECT(CONCATENATE($A$102,$A$103,D$151+$B152)),"") -> HARDING Joseph | E152: =IFERROR(INDIRECT(CONCATENATE($A$102,$B$103,E$151+$B152)),"") -> PASCALL-MENZIE JOEL | F152: =IFERROR(INDIRECT(CONCATENATE($A$102,$A$103,F$151+$B152)),"") -> KINLOCK Derek | G152: =IFERROR(INDIRECT(CONCATENATE($A$102,$B$103,G$151+$B152)),"") -> SMITHEN Louis | H152: =IFERROR(INDIRECT(CONCATENATE($A$102,$A$103,H$151+$B152)),"") -> AKINYEBO Richard | I152: =IFERROR(INDIRECT(CONCATENATE($A$102,$B$103,I$151+$B152)),"") -> IDOWU Tobi | J152: =IFERROR(INDIRECT(CONCATENATE($A$102,$A$103,J$151+$B152)),"") -> BWALYA Semba | K152: =IFERROR(INDIRECT(CONCATENATE($A$102,$B$103,K$151+$B152)),"") -> ROACHE Josh | L152: =IFERROR(INDIRECT(CONCATENATE($A$102,$A$103,L$151+$B152)),"") -> GOODMAN Jake | M152: =IFERROR(INDIRECT(CONCATENATE($A$102,$B$103,M$151+$B152)),"") -> NGASSA Sebastian | N152: =IFERROR(INDIRECT(CONCATENATE($A$102,$A$103,N$151+$B152)),"") -> SMITH George | O152: =IFERROR(INDIRECT(CONCATENATE($A$102,$B$103,O$151+$B152)),"") -> WHITE Guy | P152: =IFERROR(INDIRECT(CONCATENATE($A$102,$A$103,P$151+$B152)),"") ->  | Q152: =IFERROR(INDIRECT(CONCATENATE($A$102,$B$103,Q$151+$B152)),"") ->  | R152: =IFERROR(INDIRECT(CONCATENATE($A$102,$A$103,R$151+$B152)),"") ->  | S152: =IFERROR(INDIRECT(CONCATENATE($A$102,$B$103,S$151+$B152)),"") -> 
A153: 7 | B153: 1 | C153: =INDIRECT(CONCATENATE($A$102,"A",$A153)) -> 100M NS | D153: =IFERROR(INDIRECT(CONCATENATE($A$102,$A$103,D$151+$B153)),"") -> 0 | E153: =IFERROR(INDIRECT(CONCATENATE($A$102,$B$103,E$151+$B153)),"") -> 0 | F153: 0 | G153: 0 | H153: 0 | I153: 0 | J153: 0 | K153: 0 | L153: 0 | M153: 0 | N153: 0 | O153: 0
A154: 8 | B154: 2 | C154: 200 | D154: PASCALL-MENZIE JOEL | E154: EFFAH JUDAH | F154: KINLOCK Derek | G154: PREEST Oliver | H154: HARRIOTT Reece | I154: OKPALAUKO Somto | J154: HORLESTON Joshua | K154: OWEN Oliver | L154: NEAL CONNOR | M154: GOODMAN Jake | N154: STURGEON Rory | O154: AKIOYE Tobi
A155: 9 | B155: 3 | C155: 400 | D155: OSHIYEMI Malik | E155: 0 | F155: 0 | G155: 0 | H155: HARRIOTT Reece | I155: OKPALAUKO Somto | J155: PRICE Adam | K155: OWEN Oliver | L155: NEAL CONNOR | M155: SMITH Benjamin | N155: KINGSTON James | O155: SEATON Daniel
A156: 10 | B156: 4 | C156: 800 | D156: HILL George | E156: COWLEY Alistair | F156: BLAIR Zachary | G156: SHEW Adam | H156: FRIEND Alexander | I156: BERRETT Louis | J156: 0 | K156: 0 | L156: SEERY JACK | M156: SMITH Benjamin | N156: EMM Toby | O156: GORDON Fraser
A157: 11 | B157: 5 | C157: 800M NS | D157: 0 | E157: 0 | F157: 0 | G157: 0 | H157: 0 | I157: 0 | J157: 0 | K157: 0 | L157: 0 | M157: 0 | N157: 0 | O157: 0
A158: 12 | B158: 6 | C158: 1500 | D158: RASHBROOK Jamie | E158: 0 | F158: TAMBLING Robbie | G158: CROCKETT Ryan | H158: BERRETT Louis | I158: 0 | J158: 0 | K158: 0 | L158: BRISLEY Charlie | M158: 0 | N158: KINGSTON James | O158: SEATON Daniel
A159: 13 | B159: 7 | C159: Sp H | D159: HARDING Joseph | E159: 0 | F159: 0 | G159: 0 | H159: 0 | I159: 0 | J159: ROACHE Josh | K159: ODEJIMI-RILEY Nile | L159: SEERY GEORGE | M159: 0 | N159: BOTSIALAS George | O159: 0
A160: 14 | B160: 8 | C160: 3000 | D160: MCGILL Daniel | E160: 0 | F160: HALLUMS Soul | G160: MAGINN Matthew | H160: JONES Harry | I160: CHESTER Luke | J160: 0 | K160: 0 | L160: 0 | M160: 0 | N160: GORDON Fraser | O160: BEGHEIN Lucas
A161: 15 | B161: 9 | C161: SChase | D161: DYOS Alex | E161: 0 | F161: 0 | G161: 0 | H161: JONES Harry | I161: BERRETT Louis | J161: 0 | K161: 0 | L161: 0 | M161: 0 | N161: 0 | O161: 0
A162: 16 | B162: 10 | C162: 400mH | D162: 0 | E162: 0 | F162: 0 | G162: 0 | H162: 0 | I162: 0 | J162: 0 | K162: 0 | L162: 0 | M162: 0 | N162: BROOKS Felix | O162: BOTSIALAS George
A163: 17 | B163: 11 | C163: Discus | D163: IKEJI Kenneth | E163: ST VALCHIKWE Jeramie | F163: TENDO Tyrese | G163: 0 | H163: MILTON Thomas | I163: BRINTON-QUINN Peter | J163: CANT William | K163: 0 | L163: SEERY GEORGE | M163: 0 | N163: GHOSH Arjun | O163: 0
A164: 18 | B164: 12 | C164: Hammer | D164: IKEJI Kenneth | E164: 0 | F164: TENDO Tyrese | G164: SMITHEN Louis | H164: MILTON Thomas | I164: FRESHWATER Aaron | J164: 0 | K164: 0 | L164: 0 | M164: 0 | N164: GHOSH Arjun | O164: WHITE Guy
A165: 19 | B165: 13 | C165: Javelin | D165: ST VALCHIKWE Jeramie | E165: 0 | F165: CROCKETT Ryan | G165: 0 | H165: BRINTON-QUINN Peter | I165: CHESTER Luke | J165: EVANS Joel | K165: 0 | L165: ELPHICK Spencer | M165: SEERY GEORGE | N165: EMM Toby | O165: 0
A166: 20 | B166: 14 | C166: Shot | D166: IKEJI Kenneth | E166: ST VALCHIKWE Jeramie | F166: TENDO Tyrese | G166: 0 | H166: MILTON Thomas | I166: THOMAS Jamal | J166: OWEN Oliver | K166: HARRISON Glenn | L166: 0 | M166: 0 | N166: GHOSH Arjun | O166: WHITE Guy
A167: 21 | B167: 15 | C167: Long J | D167: FISCHER Joe | E167: OKE EMMANUEL | F167: ENNIS Jack | G167: PANTON Adrian | H167: IDOWU Tobi | I167: OLUSESAN Benedict | J167: ROACHE Josh | K167: HARRISON Glenn | L167: NEAL CONNOR | M167: SMITH Benjamin | N167: STURGEON Rory | O167: 0
A168: 22 | B168: 16 | C168: Triple J | D168: OKE EMMANUEL | E168: 0 | F168: OSPINA Israel | G168: 0 | H168: OLUSESAN Benedict | I168: CHRISTIE Kimathi | J168: PRICE Adam | K168: EVANS Joel | L168: SEERY JACK | M168: 0 | N168: STURGEON Rory | O168: SMITH George
A169: 23 | B169: 17 | C169: =INDIRECT(CONCATENATE($A$102,"A",$A169)) -> High J | D169: HENRY JEROME | E169: 0 | F169: ENNIS Jack | G169: ALLICOCK Rawle | H169: THOMAS Jamal | I169: CHRISTIE Kimathi | J169: HARRISON Glenn | K169: CANT William | L169: 0 | M169: 0 | N169: 0 | O169: 0
A170: 24 | B170: 18 | C170: Pole V | D170: 0 | E170: 0 | F170: CROCKETT Ryan | G170: 0 | H170: BRINTON-QUINN Peter | I170: DEBENHAM Reece | J170: 0 | K170: 0 | L170: GILBY Alfie | M170: 0 | N170: BROOKS Felix | O170: 0
A171: 25 | B171: 19 | C171: r4x11/2: | D171: EFFAH JUDAH | E171: PASCALL-MENZIE JOEL | F171: KINLOCK Derek | G171: PREEST Oliver | H171: THOMAS Jamal | I171: IDOWU Tobi | J171: BWALYA Semba | K171: HORLESTON Joshua | L171: NEAL CONNOR | M171: SEERY JACK | N171: SMITH George | O171: WHITE Guy
A172: 26 | B172: 20 | C172: r4x13/4: | D172: ELLIS Cameron | E172: HARDING Joseph | F172: SMITHEN Louis | G172: INNISS Tyvon | H172: FRESHWATER Aaron | I172: AKINYEBO Richard | J172: EVANS Joel | K172: OWEN Oliver | L172: GOODMAN Jake | M172: NGASSA Sebastian | N172: STURGEON Rory | O172: BROOKS Felix
A173: 27 | B173: 21 | C173: r4x41/2: | D173: OSHIYEMI Malik | E173: DYOS Alex | F173: BLAIR Zachary | G173: SMITHEN Louis | H173: FRIEND Alexander | I173: CHRISTIE Kimathi | J173: 0 | K173: 0 | L173: SEERY JACK | M173: SEERY GEORGE | N173: KINGSTON James | O173: SEATON Daniel
A174: 28 | B174: 22 | C174: r4x43/4: | D174: COWLEY Alistair | E174: HILL George | F174: TAMBLING Robbie | G174: OSPINA Israel | H174: OKPALAUKO Somto | I174: HARRIOTT Reece | J174: 0 | K174: 0 | L174: SMITH Benjamin | M174: NEAL CONNOR | N174: GORDON Fraser | O174: BEGHEIN Lucas
C175: u17w | D175: =IFERROR(IF(MatchDay!$U$2=5,276,IF(MatchDay!$U$2=6,330,IF(MatchDay!$U$2=7,384,IF(MatchDay!$U$2=8,438)))),"") -> 330 | E175: =D175 -> 330 | F175: =D175+27 -> 357 | G175: =F175 -> 357 | H175: =F175+27 -> 384 | I175: =H175 -> 384 | J175: =H175+27 -> 411 | K175: =J175 -> 411 | L175: =J175+27 -> 438 | M175: =L175 -> 438 | N175: =IF(MatchDay!$U$2>5,L175+27,"") -> 465 | O175: =N175 -> 465 | P175: =IF(MatchDay!$U$2>6,N175+27,"") ->  | Q175: =P175 ->  | R175: =IF(MatchDay!$U$2=8,P175+27,"") ->  | S175: =R175 -> 
A176: 6 | B176: 0 | C176: =INDIRECT(CONCATENATE($A$102,"A",$A176)) -> 75/100 | D176: =IFERROR(INDIRECT(CONCATENATE($A$102,$A$103,D$175+$B176)),"") -> SIBBONS Aleeya | E176: =IFERROR(INDIRECT(CONCATENATE($A$102,$B$103,E$175+$B176)),"") -> BELL HANNAH | F176: =IFERROR(INDIRECT(CONCATENATE($A$102,$A$103,F$175+$B176)),"") -> BRYAN Toni | G176: =IFERROR(INDIRECT(CONCATENATE($A$102,$B$103,G$175+$B176)),"") -> PIPPIM Ella | H176: =IFERROR(INDIRECT(CONCATENATE($A$102,$A$103,H$175+$B176)),"") -> AGNIMEL Esther | I176: =IFERROR(INDIRECT(CONCATENATE($A$102,$B$103,I$175+$B176)),"") -> ANDERSON Ayesha | J176: =IFERROR(INDIRECT(CONCATENATE($A$102,$A$103,J$175+$B176)),"") -> HETHERINGTON Christa | K176: =IFERROR(INDIRECT(CONCATENATE($A$102,$B$103,K$175+$B176)),"") -> 0 | L176: =IFERROR(INDIRECT(CONCATENATE($A$102,$A$103,L$175+$B176)),"") -> GARCIA Kimberley | M176: =IFERROR(INDIRECT(CONCATENATE($A$102,$B$103,M$175+$B176)),"") -> SCRIVENS HANNAH | N176: =IFERROR(INDIRECT(CONCATENATE($A$102,$A$103,N$175+$B176)),"") -> RIXON Maisie | O176: =IFERROR(INDIRECT(CONCATENATE($A$102,$B$103,O$175+$B176)),"") -> O'HARA Jessica | P176: =IFERROR(INDIRECT(CONCATENATE($A$102,$A$103,P$175+$B176)),"") ->  | Q176: =IFERROR(INDIRECT(CONCATENATE($A$102,$B$103,Q$175+$B176)),"") ->  | R176: =IFERROR(INDIRECT(CONCATENATE($A$102,$A$103,R$175+$B176)),"") ->  | S176: =IFERROR(INDIRECT(CONCATENATE($A$102,$B$103,S$175+$B176)),"") -> 
A177: 7 | B177: 1 | C177: =INDIRECT(CONCATENATE($A$102,"A",$A177)) -> 100M NS | D177: =IFERROR(INDIRECT(CONCATENATE($A$102,$A$103,D$175+$B177)),"") -> 0 | E177: =IFERROR(INDIRECT(CONCATENATE($A$102,$B$103,E$175+$B177)),"") -> 0 | F177: 0 | G177: 0 | H177: 0 | I177: 0 | J177: 0 | K177: 0 | L177: 0 | M177: 0 | N177: 0 | O177: 0 | P177: =IFERROR(INDIRECT(CONCATENATE($A$102,$A$103,P$175+$B177)),"") ->  | Q177: =IFERROR(INDIRECT(CONCATENATE($A$102,$B$103,Q$175+$B177)),"") -> 
A178: 8 | B178: 2 | C178: 200 | D178: TONGE Myomi | E178: 0 | F178: BOWLEY Kayla | G178: LARGIE-POLEON Racheal | H178: ANDERSON Ayesha | I178: MOODY Robyn | J178: 0 | K178: 0 | L178: GARCIA Kimberley | M178: NKEREUWEN DJAMILLA | N178: O'HARA Jessica | O178: 0
A179: 9 | B179: 3 | C179: 400 | D179: RIXSON Zoe | E179: 0 | F179: DAKE Zoe | G179: DACOSTA Glalys | H179: WRIGHT Charlotte | I179: KILNER Amy | J179: UZOKWE Lisa-marie | K179: RAYMONT Lizzie | L179: SAXBY ELLA | M179: NKEREUWEN DJAMILLA | N179: O'HARA Jessica | O179: BURGESS Katie
A180: 10 | B180: 4 | C180: 800 | D180: BURRELL Grace | E180: 0 | F180: SINGH Antara | G180: 0 | H180: WRIGHT Charlotte | I180: KILNER Amy | J180: 0 | K180: 0 | L180: LEE FREYA | M180: 0 | N180: BURGESS Katie | O180: KINGSTON Lucy
A181: 11 | B181: 5 | C181: 800M NS | D181: 0 | E181: 0 | F181: 0 | G181: 0 | H181: 0 | I181: 0 | J181: 0 | K181: 0 | L181: 0 | M181: 0 | N181: 0 | O181: 0
A182: 12 | B182: 6 | C182: 1500 | D182: REX Hollie | E182: 0 | F182: 0 | G182: 0 | H182: SWEETMAN Molly | I182: 0 | J182: RAYMONT Lizzie | K182: 0 | L182: MACKEY Ciara | M182: 0 | N182: GOODGE Katie | O182: 0
A183: 13 | B183: 7 | C183: Sp H | D183: VANDERPUIJE JUDITH | E183: SIBBONS Aleeya | F183: LARGIE-POLEON Racheal | G183: CHUKWU Jennifer | H183: 0 | I183: 0 | J183: HETHERINGTON Christa | K183: 0 | L183: MACEY LAUREN | M183: 0 | N183: O'BRIEN Rebekah | O183: ALI Sohaila
A184: 14 | B184: 8 | C184: 3000 | D184: HUDSON Fraya | E184: 0 | F184: 0 | G184: 0 | H184: DUKELOW Grace | I184: 0 | J184: 0 | K184: 0 | L184: 0 | M184: 0 | N184: 0 | O184: 0
A185: 15 | B185: 9 | C185: SChase | D185: BURRELL Grace | E185: 0 | F185: 0 | G185: 0 | H185: 0 | I185: 0 | J185: 0 | K185: 0 | L185: MACKEY Ciara | M185: 0 | N185: HESLOP Elizabeth | O185: 0
A186: 16 | B186: 10 | C186: 400mH | D186: BAINSFAIR Kiera | E186: VANDERPUIJE JUDITH | F186: CHUKWU Jennifer | G186: 0 | H186: 0 | I186: 0 | J186: 0 | K186: 0 | L186: MACEY LAUREN | M186: 0 | N186: O'BRIEN Rebekah | O186: ALI Sohaila
A187: 17 | B187: 11 | C187: Discus | D187: RIXSON Zoe | E187: ALATISE GRACE | F187: OWOLABI Naomi | G187: BROWN Nayana | H187: ADENIJI Alexandrea | I187: MOODY Robyn | J187: TAYLOR Libby | K187: 0 | L187: RYDER Rebecca | M187: 0 | N187: EBBAGE Kirsty Ann | O187: NIKHWAI Elle
A188: 18 | B188: 12 | C188: Hammer | D188: 0 | E188: 0 | F188: DACOSTA Glalys | G188: 0 | H188: ADENIJI Alexandrea | I188: 0 | J188: TAYLOR Libby | K188: 0 | L188: RYDER Rebecca | M188: TAYLOR Sophie | N188: EBBAGE Kirsty Ann | O188: NIKHWAI Elle
A189: 19 | B189: 13 | C189: Javelin | D189: REX Hollie | E189: 0 | F189: DAKE Zoe | G189: 0 | H189: THATCHER-GRAY Adelaide | I189: 0 | J189: SHEPHARD-GAZELY Georgia | K189: 0 | L189: MACEY LAUREN | M189: 0 | N189: ALI Sohaila | O189: 0
A190: 20 | B190: 14 | C190: Shot | D190: RIXSON Zoe | E190: ALATISE GRACE | F190: OWOLABI Naomi | G190: 0 | H190: ADENIJI Alexandrea | I190: 0 | J190: TAYLOR Libby | K190: 0 | L190: RYDER Rebecca | M190: SADLER REEVES YASMIN | N190: EBBAGE Kirsty Ann | O190: RIXON Maisie
A191: 21 | B191: 15 | C191: Long J | D191: VANDERPUIJE JUDITH | E191: SIBBONS Aleeya | F191: 0 | G191: 0 | H191: ANDERSON Ayesha | I191: 0 | J191: 0 | K191: 0 | L191: SAXBY ELLA | M191: SADLER REEVES YASMIN | N191: 0 | O191: 0
A192: 22 | B192: 16 | C192: Triple J | D192: KRISE Jessica | E192: 0 | F192: LARGIE-POLEON Racheal | G192: 0 | H192: KILNER Amy | I192: 0 | J192: 0 | K192: 0 | L192: SADLER REEVES YASMIN | M192: 0 | N192: 0 | O192: 0
A193: 23 | B193: 17 | C193: =INDIRECT(CONCATENATE($A$102,"A",$A193)) -> High J | D193: KRISE Jessica | E193: BELL HANNAH | F193: DACOSTA Glalys | G193: 0 | H193: 0 | I193: 0 | J193: 0 | K193: 0 | L193: LEE FREYA | M193: 0 | N193: O'BRIEN Rebekah | O193: RIXON Maisie
A194: 24 | B194: 18 | C194: Pole V | D194: 0 | E194: 0 | F194: 0 | G194: 0 | H194: 0 | I194: 0 | J194: 0 | K194: 0 | L194: 0 | M194: 0 | N194: 0 | O194: 0
A195: 25 | B195: 19 | C195: r4x11/2: | D195: ALATISE GRACE | E195: VANDERPUIJE JUDITH | F195: PIPPIM Ella | G195: BOWLEY Kayla | H195: WRIGHT Charlotte | I195: AGNIMEL Esther | J195: 0 | K195: 0 | L195: SCRIVENS HANNAH | M195: SADLER REEVES YASMIN | N195: 0 | O195: 0
A196: 26 | B196: 20 | C196: r4x13/4: | D196: BELL HANNAH | E196: SIBBONS Aleeya | F196: BRYAN Toni | G196: LARGIE-POLEON Racheal | H196: ANDERSON Ayesha | I196: SWEETMAN Molly | J196: 0 | K196: 0 | L196: GARCIA Kimberley | M196: NKEREUWEN DJAMILLA | N196: 0 | O196: 0
A197: 27 | B197: 21 | C197: r4x41/2: | D197: VANDERPUIJE JUDITH | E197: BELL HANNAH | F197: MAKUWA Rowan | G197: DAKE Zoe | H197: WRIGHT Charlotte | I197: KILNER Amy | J197: 0 | K197: 0 | L197: SCRIVENS HANNAH | M197: NKEREUWEN DJAMILLA | N197: 0 | O197: 0
A198: 28 | B198: 22 | C198: r4x43/4: | D198: HUDSON Fraya | E198: TONGE Myomi | F198: CHUKWU Jennifer | G198: DACOSTA Glalys | H198: MOODY Robyn | I198: SWEETMAN Molly | J198: 0 | K198: 0 | L198: MACEY LAUREN | M198: SAXBY ELLA | N198: 0 | O198: 0
C200: COUNT
C201: U20W | D201: =D4 -> AWALA SHAW Dolita | E201: =IF(OR(D201=0,D201="",D201="-"),"",COUNTIF(D$201:D$242,D201)) -> 5 | F201: =F4 -> ANSAH Davina | G201: =IF(OR(F201=0,F201="",F201="-"),"",COUNTIF(F$201:F$242,F201)) -> 2 | H201: =H4 -> NASH Holly | I201: =IF(OR(H201=0,H201="",H201="-"),"",COUNTIF(H$201:H$242,H201)) -> 4 | J201: =J4 -> PICKARD Abigail | K201: =IF(OR(J201=0,J201="",J201="-"),"",COUNTIF(J$201:J$242,J201)) -> 6 | L201: =L4 -> SULLIVAN Grace | M201: =IF(OR(L201=0,L201="",L201="-"),"",COUNTIF(L$201:L$242,L201)) -> 4 | N201: =N4 -> ROOT Asha | O201: =IF(OR(N201=0,N201="",N201="-"),"",COUNTIF(N$201:N$242,N201)) -> 3 | P201: =P4 ->  | Q201: =IF(OR(P201=0,P201="",P201="-"),"",COUNTIF(P$201:P$242,P201)) ->  | R201: =R4 ->  | S201: =IF(OR(R201=0,R201="",R201="-"),"",COUNTIF(R$201:R$242,R201)) -> 
C202: U20W | D202: =D6 -> AWALA SHAW Dolita | E202: =IF(OR(D202=0,D202="",D202="-"),"",COUNTIF(D$201:D$242,D202)) -> 5 | F202: =F6 -> SALAMI Tosin | G202: 2 | H202: =H6 -> CHRISTIE Keturah | I202: =IF(OR(H202=0,H202="",H202="-"),"",COUNTIF(H$201:H$242,H202)) -> 3 | J202: =J6 -> DUKE Charlotte | K202: =IF(OR(J202=0,J202="",J202="-"),"",COUNTIF(J$201:J$242,J202)) -> 3 | L202: =L6 -> SCRIVENS HANNAH X | M202: =IF(OR(L202=0,L202="",L202="-"),"",COUNTIF(L$201:L$242,L202)) -> 1 | N202: =N6 -> ROOT Asha | O202: =IF(OR(N202=0,N202="",N202="-"),"",COUNTIF(N$201:N$242,N202)) -> 3 | P202: =P6 ->  | Q202: =IF(OR(P202=0,P202="",P202="-"),"",COUNTIF(P$201:P$242,P202)) ->  | R202: =R6 ->  | S202: =IF(OR(R202=0,R202="",R202="-"),"",COUNTIF(R$201:R$242,R202)) -> 
C203: U20W | D203: =D7 -> REX Abby | E203: 3 | F203: =F7 -> 0 | H203: =H7 -> DAWSON Katie | I203: =IF(OR(H203=0,H203="",H203="-"),"",COUNTIF(H$201:H$242,H203)) -> 2 | J203: =J7 -> DUKE Charlotte | K203: =IF(OR(J203=0,J203="",J203="-"),"",COUNTIF(J$201:J$242,J203)) -> 3 | L203: =L7 -> LEE FREYA X | M203: =IF(OR(L203=0,L203="",L203="-"),"",COUNTIF(L$201:L$242,L203)) -> 2 | N203: =N7 -> 0 | O203: =IF(OR(N203=0,N203="",N203="-"),"",COUNTIF(N$201:N$242,N203)) ->  | P203: =P7 ->  | Q203: =IF(OR(P203=0,P203="",P203="-"),"",COUNTIF(P$201:P$242,P203)) ->  | R203: =R7 ->  | S203: =IF(OR(R203=0,R203="",R203="-"),"",COUNTIF(R$201:R$242,R203)) -> 
C204: U20W | D204: =D8 -> REX Abby | E204: 3 | F204: =F8 -> MOORE Jessica | G204: 3 | H204: =H8 -> MITCHELL Jessica | I204: =IF(OR(H204=0,H204="",H204="-"),"",COUNTIF(H$201:H$242,H204)) -> 2 | J204: =J8 -> 0 | K204: =IF(OR(J204=0,J204="",J204="-"),"",COUNTIF(J$201:J$242,J204)) ->  | L204: =L8 -> 0 | M204: =IF(OR(L204=0,L204="",L204="-"),"",COUNTIF(L$201:L$242,L204)) ->  | N204: =N8 -> 0 | O204: =IF(OR(N204=0,N204="",N204="-"),"",COUNTIF(N$201:N$242,N204)) ->  | P204: =P8 ->  | Q204: =IF(OR(P204=0,P204="",P204="-"),"",COUNTIF(P$201:P$242,P204)) ->  | R204: =R8 ->  | S204: =IF(OR(R204=0,R204="",R204="-"),"",COUNTIF(R$201:R$242,R204)) -> 
... 169 more rows

Sheet Dashboard
B1: =MatchDay!C6 -> YES | D1: =MatchDay!$C$2&" "&MatchDay!$C$3&" "&MatchDay!$C$4&" MATCH "&MatchDay!$C$5&" "&MatchDay!$C$8 -> UPPER SOUTH Division 1B MATCH 3 @ Croydon | I1: =MatchDay!$C$7 -> 2018-07-01
B2: X
D3: Team Declarations | E3: =IF(MatchDay!$C$2="LOWER","LAG Boys","UAG Men") -> UAG Men | F3: =IF(MatchDay!$C$2="LOWER","LAG Girls","UAG Women") -> UAG Women | H3: =IF(MatchDay!$C$2="Upper","UPPER","LOWER") -> UPPER | I3: PRINT Field Cards & Track Start Lists | J3: =IF(MatchDay!$C$2="Upper","UPPER","LOWER") -> UPPER | L3: RESULTS PACKS | N3: TIMETABLE | P3: BY AGE GROUP
A4: A1 | D4: =MatchDay!C13 -> Basildon Beagles © | E4: =IF(D4<>"",HYPERLINK("#"&"'"&$E$3&"'!"&A4,"X"),"") -> X | F4: =IF(D4<>"",HYPERLINK("#"&"'"&$F$3&"'!"&A4,"X"),"") -> X | I4: Distance | L4: Track1 | M4: =IF(MatchDay!C2="Lower",CONCATENATE('Scorecard (Men)'!R1,"/",26),CONCATENATE('Scorecard (Men)'!R1,"/",24)) -> /24 | P4: =IF(MatchDay!$C$2="Upper", "U20M", "U15B") -> U20M | Q4: =CONCATENATE(U20M!R1,"/",19) -> 17/19 | T4: =IF(Q4="19/19","Y","X") -> X
A5: AA1 | D5: =MatchDay!C14 -> Croydon Harriers | E5: X | F5: X | I5: Height | L5: Dist Hurdles | M5: =CONCATENATE(SUM(Track1!R4+Track1!R15+Track1!R26+Track1!R37),"/",4) -> 3/4 | U5: =IF(M5="4/4","Y","X") -> X
A6: BA1 | D6: =MatchDay!C15 -> Havering AC | E6: X | F6: X | I6: U20 Men & U17 Men HAMMER | L6: 100m | M6: =CONCATENATE(SUM(Track1!R48+Track1!R59+Track1!R70+Track1!R81),"/",4) -> 4/4 | P6: =IF(MatchDay!$C$2="Upper", "U20W", "U15G") -> U20W | Q6: =CONCATENATE(U20W!R1,"/",19) -> 15/19 | T6: =IF(Q6="19/19","Y","X") -> X | U6: =IF(M6="4/4","Y","X") -> Y
A7: CA1 | D7: =MatchDay!C16 -> Stevenage & North Herts AC | E7: X | F7: X | I7: U20 Men & U17 Men LONG JUMP | L7: 400m/300m | M7: =CONCATENATE(SUM(Track1!R92+Track1!R103+Track1!R114+Track1!R125),"/",4) -> 4/4 | U7: Y
A8: DA1 | D8: =MatchDay!C17 -> Team ATIP © | E8: X | F8: X | I8: U20 Women & U17 Women POLE VAULT | L8: Sprint Hurdles | M8: =CONCATENATE(SUM(Track1!R136+Track1!R147+Track1!R158+Track1!R169),"/",4) -> 4/4 | P8: =IF(MatchDay!$C$2="Upper", "U17M", "U13B") -> U17M | Q8: =CONCATENATE(U17M!R1,"/",19) -> 17/19 | T8: =IF(Q8="19/19","Y","X") -> X | U8: Y
A9: EA1 | D9: =MatchDay!C18 -> Tonbridge AC | E9: X | F9: X | I9: U20 Women & U17 Women HAMMER | L9: 200m | M9: =CONCATENATE(SUM(Track1!R180+Track1!R191+Track1!R202+Track1!R213),"/",4) -> 4/4 | U9: Y
A10: FA1 | D10: =MatchDay!C19 ->  | I10: U20 Men & U17 Men HIGH JUMP | L10: 800m | M10: =CONCATENATE(SUM(Track1!R224+Track1!R235+Track1!R246+Track1!R257),"/",4) -> 4/4 | P10: =IF(MatchDay!$C$2="Upper", "U17W", "U13G") -> U17W | Q10: =CONCATENATE(U17W!R1,"/",19) -> 17/19 | T10: =IF(Q10="19/19","Y","X") -> X | U10: Y
A11: GA1 | D11: =MatchDay!C20 ->  | I11: U20 Women & U17 Women LONG JUMP | L11: Track2 | M11: =CONCATENATE(Track2!R1,"/",12) -> 11/12 | U11: X
I12: U20 Men & U17 Men JAVELIN | L12: 1500m | M12: =CONCATENATE(SUM(Track2!R4+Track2!R15+Track2!R26+Track2!R37),"/",4) -> 4/4 | P12: Non Scorers | U12: Y
A13: Lnk to T'table | B13: EventID | D13: Input Results | E13: Go To | F13: Scored | I13: U20 Women & U17 Women SHOT | L13: 3000m | M13: =CONCATENATE(SUM(Track1!R48+Track1!R59+Track1!R70+Track1!R81),"/",4) -> 4/4 | U13: Y
A14: 3 | B14: UT01 | D14: U20 Men 400m Hurdles | E14: =IFERROR(HYPERLINK("#"&VLOOKUP(B14,timetables,128,FALSE),"X"),"") -> X | F14: =IFERROR(IF(INDIRECT(VLOOKUP(B14,timetables,133,FALSE))=1,"þ",""),"") -> þ | I14: U20 Women & U17 Women JAVELIN | L14: S/Chase | M14: =CONCATENATE(SUM(Track2!R92+Track2!R103+Track2!R114+Track2!R125),"/",4) -> 4/4 | P14: FULL PACK | T14: =IF(AND(T4="y",T6="y",T8="y",T10="y"),"Y","X") -> X | U14: Y
A15: 4 | B15: UT02 | D15: U17 Men 400m Hurdles | E15: =IFERROR(HYPERLINK("#"&VLOOKUP(B15,timetables,128,FALSE),"X"),"") -> X | F15: =IFERROR(IF(INDIRECT(VLOOKUP(B15,timetables,133,FALSE))=1,"þ",""),"") -> þ | I15: U20 Men & U17 Men TRIPLE JUMP | L15: Relays | M15: =IF(MatchDay!C2="Lower",CONCATENATE(Relays!M1,"/",6),CONCATENATE(Relays!M1,"/",8)) -> 1/8 | U15: X
A16: 5 | B16: UT03 | D16: U20 Women 400m Hurdles | E16: X | I16: U20 Men & U17 Men POLE VAULT | L16: 4 x 100m | M16: =CONCATENATE(SUM(Relays!M4+Relays!M15+Relays!M26+Relays!M37),"/",4) -> 1/4 | P16: FOR ASSISTANCE WITH THE SOFTWARE, QUERIES, STUCK ABOUT WHAT TO DO? SOMETHING DOESN’T LOOK RIGHT? CALL SIMON 07507 853112 OR ALAN 07920 056324 Version UV2018_1.5 | U16: X
A17: 6 | B17: UT04 | D17: U17 Women 300m Hurdles | E17: X | F17: þ | I17: U20 Women & U17 Women HIGH JUMP | L17: 4 x 400m | M17: =CONCATENATE(SUM(Relays!T48+Relays!M59+Relays!M70+Relays!M81),"/",4) -> 0.0020974537037037/4 | U17: X
A18: 7 | B18: UTD01 | D18: U20 Men 1500m | E18: X | F18: þ | I18: U20 Men & U17 Men SHOT | L18: Field | M18: =IF(MatchDay!C2="Lower",CONCATENATE(Field!R1,"/",22),CONCATENATE(Field!R1,"/",32)) -> 31/32 | U18: X
A19: 8 | B19: UTD02 | D19: U17 Men 1500m | E19: X | F19: þ | I19: U20 Women & U17 Women DISCUS | L19: Hammer | M19: =CONCATENATE(SUM(Field!R4+Field!R15+Field!R26+Field!R37),"/",4) -> 4/4 | U19: Y
A20: 9 | B20: UTD03 | D20: U20 Women 1500m | E20: X | F20: þ | I20: U20 Women & U17 Women TRIPLE JUMP | L20: Javelin Men Shot Women | M20: =CONCATENATE(SUM(Field!R48+Field!R59+Field!R70+Field!R81),"/",4) -> 4/4 | U20: Y
A21: 10 | B21: UTD04 | D21: U17 Women 1500m | E21: X | F21: þ | I21: U20 Men & U17 Men DISCUS | L21: Javelin Women Shot Men | M21: =CONCATENATE(SUM(Field!R92+Field!R103+Field!R114+Field!R125),"/",4) -> 4/4 | U21: Y
A22: 11 | B22: UT05 | D22: U20 Men 100m | E22: X | F22: þ | L22: Discus | M22: =CONCATENATE(SUM(Field!R136+Field!R147+Field!R158+Field!R169),"/",4) -> 4/4 | U22: Y
A23: 12 | B23: UT06 | D23: U17 Men 100m | E23: X | F23: þ | H23: =H3 -> UPPER | I23: Track Lists | J23: =J3 -> UPPER | L23: Long Jump | M23: =CONCATENATE(SUM(Field!R180+Field!R191+Field!R202+Field!R213),"/",4) -> 4/4 | U23: Y
A24: 13 | B24: UT07 | D24: U20 Women 100m | E24: X | F24: þ | I24: STARTLIST FOR ALL TRACK & FIELD EVENTS | L24: Triple Jump | M24: =CONCATENATE(SUM(Field!R224+Field!R235+Field!R246+Field!R257),"/",4) -> 4/4 | U24: Y
A25: 14 | B25: UT08 | D25: U17 Women 100m | E25: X | F25: þ | L25: Pole V Women High J Men | M25: =CONCATENATE(SUM(Field!R268+Field!R279+Field!R290+Field!R301),"/",4) -> 3/4 | U25: X
A26: 15 | B26: UT09 | D26: U20 Men 400m | E26: X | F26: þ | I26: =D14&", "&D15&", "&D16&", "&D17 -> U20 Men 400m Hurdles, U17 Men 400m Hurdles, U20 Women 400m Hurdles, U17 Women 300m Hurdles | L26: Pole V Men High J Women High J Men | M26: =CONCATENATE(SUM(Field!R312+Field!R323+Field!R334+Field!R345),"/",4) -> 4/4 | U26: Y
A27: 16 | B27: UT10 | D27: U17 Men 400m | E27: X | F27: þ
A28: 17 | B28: UT11 | D28: U20 Women 400m | E28: X | F28: þ | I28: =D18&", "&D19&", "&D20&", "&D21 -> U20 Men 1500m, U17 Men 1500m, U20 Women 1500m, U17 Women 1500m
A29: 18 | B29: UT12 | D29: U17 Women 300m | E29: X | F29: þ
A30: 19 | B30: UT13 | D30: U17 Women 80m Hurdles | E30: X | F30: þ | I30: =D22&", "&D23&", "&D24&", "&D25 -> U20 Men 100m, U17 Men 100m, U20 Women 100m, U17 Women 100m
A31: 20 | B31: UTD05 | D31: U17 Men 3000m | E31: X | F31: þ
A32: 21 | B32: UTD06 | D32: U20 Men 3000m | E32: X | F32: þ | I32: =D26&", "&D27&", "&D28&", "&D29 -> U20 Men 400m, U17 Men 400m, U20 Women 400m, U17 Women 300m
A33: 22 | B33: UT14 | D33: U20 Women 100m Hurdles | E33: X | F33: þ
A34: 23 | B34: UT15 | D34: U17 Men 100m Hurdles | E34: X | F34: þ | I34: =D30&", "&D31&", "&D32&", "&D33 -> U17 Women 80m Hurdles, U17 Men 3000m, U20 Men 3000m, U20 Women 100m Hurdles
A35: 24 | B35: UTD07 | D35: U17 Women 3000m | E35: X | F35: þ
A36: 25 | B36: UTD08 | D36: U20 Women 3000m | E36: X | I36: =D34&", "&D35&", "&D36&", "&D37 -> U17 Men 100m Hurdles, U17 Women 3000m, U20 Women 3000m, U20 Men 110m Hurdles
A37: 26 | B37: UT16 | D37: U20 Men 110m Hurdles | E37: X | F37: þ
A38: 27 | B38: UT17 | D38: U20 Men 200m | E38: X | F38: þ | I38: =IF(MatchDay!C2="Lower",D38&", "&D39,D38&", "&D39&", "&D40&", "&D41) -> U20 Men 200m, U17 Men 200m, U20 Women 200m, U17 Women 200m
A39: 28 | B39: UT18 | D39: U17 Men 200m | E39: X | F39: þ
A40: 29 | B40: UT19 | D40: U20 Women 200m | E40: X | F40: þ | I40: =IF(MatchDay!C2="Lower",D40&", "&D41&", "&D42&", "&D43,D42&", "&D43&", "&D44&", "&D45) -> U20 Men 800m, U17 Men 800m, U20 Women 800m, U17 Women 800m
A41: 30 | B41: UT20 | D41: U17 Women 200m | E41: X | F41: þ
A42: 31 | B42: UTD81 | D42: U20 Men 800m | E42: X | F42: þ | I42: =IF(MatchDay!C2="Lower","-",D46&", "&D47&", "&D52&", "&D53) -> U17 Women 1500m s/c, U20 Women 1500m s/c, U20 Men 2000m s/c, U17 Men 1500m s/c
A43: 32 | B43: UTD82 | D43: U17 Men 800m | E43: X | F43: þ
A44: 33 | B44: UTD83 | D44: U20 Women 800m | E44: X | F44: þ | I44: =IF(MatchDay!C2="Lower",D44&", "&D45&", "&D46&", "&D47,D48&", "&D49&", "&D50&", "&D51) -> U17 Women 4 x 100m, U17 Men 4 x 100m, U20 Women 4 x 100m, U20 Men 4 x 100m
A45: 34 | B45: UTD84 | D45: U17 Women 800m | E45: X | F45: þ
A46: 35 | B46: UTD09 | D46: U17 Women 1500m s/c | E46: =IFERROR(HYPERLINK("#"&VLOOKUP(B46,timetables,128,FALSE),"X"),"") -> X | F46: =IFERROR(IF(INDIRECT(VLOOKUP(B46,timetables,133,FALSE))=1,"þ",""),"") -> þ | I46: =IF(MatchDay!C2="Lower",D48&", "&D49,D54&", "&D55&", "&D56&", "&D57) -> U17 Women 4 x 300m, U17 Men 4 x 400m, U20 Women 4 x 400m, U20 Men 4 x 400m
A47: 36 | B47: UTD10 | D47: U20 Women 1500m s/c | E47: X | F47: þ
A48: 37 | B48: UTR1 | D48: U17 Women 4 x 100m | E48: X | F48: þ
A49: 38 | B49: UTR2 | D49: U17 Men 4 x 100m | E49: X
A50: 39 | B50: UTR3 | D50: U20 Women 4 x 100m | E50: X
A51: 40 | B51: UTR4 | D51: U20 Men 4 x 100m | E51: X
A52: 41 | B52: UTD11 | D52: U20 Men 2000m s/c | E52: X | F52: þ
A53: 42 | B53: UTD12 | D53: U17 Men 1500m s/c | E53: X | F53: þ
A54: 43 | B54: UTDR1 | D54: U17 Women 4 x 300m | E54: X
A55: 44 | B55: UTDR2 | D55: U17 Men 4 x 400m | E55: X
A56: 45 | B56: UTDR3 | D56: U20 Women 4 x 400m | E56: X
A57: 46 | B57: UTDR4 | D57: U20 Men 4 x 400m | E57: X
A58: 47 | B58: UFD01 | D58: U20 Men Hammer | E58: X | F58: þ
A59: 48 | B59: UFD02 | D59: U17 Men Hammer | E59: X | F59: þ
A60: 49 | B60: UFW01 | D60: U20 Men Long Jump | E60: X | F60: =IFERROR(IF(INDIRECT(VLOOKUP(B60,timetables,133,FALSE))=1,"þ",""),"") -> þ
A61: 50 | B61: UFW02 | D61: U17 Men Long Jump | E61: X | F61: =IFERROR(IF(INDIRECT(VLOOKUP(B61,timetables,133,FALSE))=1,"þ",""),"") -> þ
A62: 51 | B62: UFH01 | D62: U20 Women Pole Vault | E62: X | F62: þ
A63: 52 | B63: UFH02 | D63: U17 Women Pole Vault | E63: X
A64: 53 | B64: UFD03 | D64: U20 Women Hammer | E64: X | F64: þ
A65: 54 | B65: UFD04 | D65: U17 Women Hammer | E65: X | F65: þ
A66: 55 | B66: UFH03 | D66: U20 Men High Jump | E66: X | F66: þ
A67: 56 | B67: UFH04 | D67: U17 Men High Jump | E67: X | F67: þ
A68: 57 | B68: UFW03 | D68: U20 Women Long Jump | E68: X | F68: þ
A69: 58 | B69: UFW04 | D69: U17 Women Long Jump | E69: X | F69: þ
A70: 59 | B70: UFD05 | D70: U20 Men Javelin | E70: X | F70: þ
A71: 60 | B71: UFD06 | D71: U17 Men Javelin | E71: X | F71: þ
A72: 61 | B72: UFD07 | D72: U20 Women Shot | E72: X | F72: þ
A73: 62 | B73: UFD08 | D73: U17 Women Shot | E73: X | F73: þ
A74: 63 | B74: UFD09 | D74: U20 Women Javelin | E74: X | F74: þ
A75: 64 | B75: UFD10 | D75: U17 Women Javelin | E75: X | F75: þ
A76: 65 | B76: UFW05 | D76: U20 Men Triple Jump | E76: X | F76: þ
A77: 66 | B77: UFW06 | D77: U17 Men Triple Jump | E77: X | F77: þ
A78: 67 | B78: UFH05 | D78: U20 Men Pole Vault | E78: =IFERROR(HYPERLINK("#"&VLOOKUP(B78,timetables,128,FALSE),"X"),"") -> X | F78: =IFERROR(IF(INDIRECT(VLOOKUP(B78,timetables,133,FALSE))=1,"þ",""),"") -> þ
A79: 68 | B79: UFH06 | D79: U17 Men Pole Vault | E79: X | F79: þ
A80: 69 | B80: UFH07 | D80: U20 Women High Jump | E80: X | F80: þ
A81: 70 | B81: UFH08 | D81: U17 Women High Jump | E81: X | F81: þ
A82: 71 | B82: UFD11 | D82: U20 Men Shot | E82: X | F82: þ
A83: 72 | B83: UFD12 | D83: U17 Men Shot | E83: X | F83: þ
A84: 73 | B84: UFD13 | D84: U20 Women Discus | E84: X | F84: þ
A85: 74 | B85: UFD14 | D85: U17 Women Discus | E85: X | F85: þ
A86: 75 | B86: UFW07 | D86: U20 Women Triple Jump | E86: X | F86: þ
A87: 76 | B87: UFW08 | D87: U17 Women Triple Jump | E87: X | F87: þ
A88: 77 | B88: UFD15 | D88: U20 Men Discus | E88: X | F88: þ
A89: 78 | B89: UFD16 | D89: U17 Men Discus | E89: X | F89: þ

Sheet MatchDay
AA1: UV2018_1.5
B2: LEVEL | C2: UPPER | D2: Track Events Start in Lane | M2: Level | N2: Region | O2: Match | S2: Number of Teams | U2: =IFERROR(COUNTIFS(Teams!$F:$F,MatchDay!C2,Teams!$G:$G,MatchDay!C3,Teams!$H:$H,MatchDay!C4),"X") -> 6 | W2: =IFERROR(CONCATENATE("points",U2),"") -> points6 | Y2: =LEFT(C2,1)&"AG"&LEFT(C3,2) -> UAGSO
B3: REGION | C3: SOUTH | M3: LOWER | N3: NORTH | O3: 1 | S3: Field Timetable Rows | U3: =IF(C2="Upper",44,36) -> 44
B4: DIVISION | C4: Division 1B | M4: UPPER | N4: SOUTH | O4: 2 | S4: Lane Draws Start | U4: =IFERROR(VLOOKUP(U2*10+C5,Timetables!$DN$3:$DR$18,5,FALSE),"X") -> 83
B5: MATCH | C5: 3 | N5: MIDLAND | O5: 3
B6: P/FINISH | C6: YES | D6: 1 | N6: YDL | O6: 4 | S6: Premier Match | U6: =IFERROR(SEARCH("Premier",C4),"X") -> X | AA6: Use this to refresh team changes | AE6: You only need to use this once prior to the start
B7: Date | C7: =IFERROR(VLOOKUP($C$2&$C$3&$C$4&"Match "&$C$5,'Dates & Venues'!$A:$H,6,FALSE),"") -> 2018-07-01 | S7: Time Starts | U7: =IFERROR(SEARCH("Premier",C4),0) -> 0 | AE7: It downloads League Records and Current Standings
B8: Venue | C8: =IFERROR(VLOOKUP($C$2&$C$3&$C$4&"Match "&$C$5,'Dates & Venues'!$A:$H,8,FALSE),"") -> @ Croydon | S8: YES | U8: =IFERROR(VLOOKUP(S8,$C$6,1,FALSE),"X") -> YES | AE8: These are not going to change during your match
B9: Host Club | C9: =IFERROR(VLOOKUP($C$2&$C$3&$C$4&"Match "&$C$5,'Dates & Venues'!$A:$H,7,FALSE),"") -> Croydon Harriers | M9: FIXTURE ID | O9: =IFERROR(VLOOKUP($C$2&$C$3&$C$4&"Match "&$C$5,'Dates & Venues'!$A:$J,9,FALSE),"") -> 50 | S9: NO | U9: =IFERROR(VLOOKUP(S9,$C$6,1,FALSE),"X") -> X
B12: Bib | C12: Team Name | D12: Abbrev. | E12: Officials | F12: Track1 | G12: Track2 | H12: Relays | I12: Field | J12: Total | K12: Posn
A13: =IFERROR(RANK(L13,$L$13:$L$20),"") -> 3 | B13: 1 | C13: =IFERROR(VLOOKUP($C$2&$C$3&$C$4&$B13,Teams!$A:$E,3,FALSE),"") -> Basildon Beagles © | D13: =IFERROR(VLOOKUP($C$2&$C$3&$C$4&$B13,Teams!$A:$E,4,FALSE),"") -> Bas/NEB | E13: 55 | F13: =SUMIF(Track1!$E:$E,MatchDay!D13,Track1!$P:$P)+SUMIF(Track1!$L:$L,MatchDay!D13,Track1!$Q:$Q) -> 197 | G13: =SUMIF(Track2!$E:$E,MatchDay!D13,Track2!$P:$P)+SUMIF(Track2!$L:$L,MatchDay!D13,Track2!$Q:$Q) -> 43 | H13: =SUMIF(Relays!$D:$D,MatchDay!D13,Relays!$L:$L) -> 55 | I13: =SUMIF(Field!$E:$E,MatchDay!D13,Field!$P:$P)+SUMIF(Field!$L:$L,MatchDay!D13,Field!$Q:$Q) -> 194 | J13: =IFERROR(IF(F13+I13+G13+H13+I13=0,"",F13+I13+G13+H13+E13),"") -> 544 | K13: =IFERROR(RANK(J13,$J$13:$J$20,0),"") -> 3 | L13: =IFERROR(J13+B13/100000,"") -> 544.00001 | M13: =C13 -> Basildon Beagles © | N13: =IFERROR(VLOOKUP(Table1[[#This Row],[Bib]],downloads!$AN$3:$AP$10,2,FALSE),0) -> 11 | O13: =IFERROR(VLOOKUP(Table1[[#This Row],[Bib]],downloads!$AN$3:$AP$11,3,FALSE),0) -> 1194.5 | P13: 1 | Q13: =U2 -> 6 | R13: =COUNTIF(Table2[Posn],P13) -> 1 | S13: =IF(R13=2,(Q13+Q14)/2,IF(R13=3,(Q13+Q14+Q15)/3,IF(R13=4,(Q13+Q14+Q15+Q16)/4,IF(R13=5,(Q13+Q14+Q15+Q16+Q17)/5,IF(R13=6,(Q13+Q14+Q15+Q16+Q17+Q18)/6,IF(R13=7,(Q13+Q14+Q15+Q16+Q17+Q18+Q19)/7,IF(R13=8,(Q13+Q14+Q15+Q16+Q17+Q18+Q19+Q20)/8,Q13))))))) -> 6 | U13: A | V13: =M13 -> Basildon Beagles ©
A14: 4 | B14: 2 | C14: =IFERROR(VLOOKUP($C$2&$C$3&$C$4&$B14,Teams!$A:$E,3,FALSE),"") -> Croydon Harriers | D14: =IFERROR(VLOOKUP($C$2&$C$3&$C$4&$B14,Teams!$A:$E,4,FALSE),"") -> Croy | E14: 55 | F14: =SUMIF(Track1!$E:$E,MatchDay!D14,Track1!$P:$P)+SUMIF(Track1!$L:$L,MatchDay!D14,Track1!$Q:$Q) -> 196 | G14: =SUMIF(Track2!$E:$E,MatchDay!D14,Track2!$P:$P)+SUMIF(Track2!$L:$L,MatchDay!D14,Track2!$Q:$Q) -> 32 | H14: =SUMIF(Relays!$D:$D,MatchDay!D14,Relays!$L:$L) -> 52 | I14: =SUMIF(Field!$E:$E,MatchDay!D14,Field!$P:$P)+SUMIF(Field!$L:$L,MatchDay!D14,Field!$Q:$Q) -> 149 | J14: =IFERROR(IF(F14+I14+G14+H14+I14=0,"",F14+I14+G14+H14+E14),"") -> 484 | K14: =IFERROR(RANK(J14,$J$13:$J$20,0),"") -> 4 | L14: 484.00002 | M14: Croydon Harriers | N14: =IFERROR(VLOOKUP(Table1[[#This Row],[Bib]],downloads!$AN$3:$AP$10,2,FALSE),0) -> 3 | O14: =IFERROR(VLOOKUP(Table1[[#This Row],[Bib]],downloads!$AN$3:$AP$11,3,FALSE),0) -> 864 | P14: 2 | Q14: =(IF(Q13-1<0,0,Q13-1)) -> 5 | R14: =COUNTIF(Table2[Posn],P14) -> 1 | S14: =IF(R14=2,(Q14+Q15)/2,IF(R14=3,(Q14+Q15+Q16)/3,IF(R14=4,(Q14+Q15+Q16+Q17)/4,IF(R14=5,(Q14+Q15+Q16+Q17+Q18)/5,IF(R14=6,(Q14+Q15+Q16+Q17+Q18+Q19)/6,IF(R14=7,(Q14+Q15+Q16+Q17+Q18+Q19+Q20)/7,Q14)))))) -> 5 | U14: B | V14: =M14 -> Croydon Harriers
A15: 1 | B15: 3 | C15: =IFERROR(VLOOKUP($C$2&$C$3&$C$4&$B15,Teams!$A:$E,3,FALSE),"") -> Havering AC | D15: =IFERROR(VLOOKUP($C$2&$C$3&$C$4&$B15,Teams!$A:$E,4,FALSE),"") -> Have | E15: 55 | F15: =SUMIF(Track1!$E:$E,MatchDay!D15,Track1!$P:$P)+SUMIF(Track1!$L:$L,MatchDay!D15,Track1!$Q:$Q) -> 142 | G15: =SUMIF(Track2!$E:$E,MatchDay!D15,Track2!$P:$P)+SUMIF(Track2!$L:$L,MatchDay!D15,Track2!$Q:$Q) -> 105 | H15: =SUMIF(Relays!$D:$D,MatchDay!D15,Relays!$L:$L) -> 53 | I15: =SUMIF(Field!$E:$E,MatchDay!D15,Field!$P:$P)+SUMIF(Field!$L:$L,MatchDay!D15,Field!$Q:$Q) -> 254 | J15: 609 | K15: 1 | L15: 609.00003 | M15: Havering AC | N15: =IFERROR(VLOOKUP(Table1[[#This Row],[Bib]],downloads!$AN$3:$AP$10,2,FALSE),0) -> 11 | O15: =IFERROR(VLOOKUP(Table1[[#This Row],[Bib]],downloads!$AN$3:$AP$11,3,FALSE),0) -> 1207 | P15: 3 | Q15: =(IF(Q14-1<0,0,Q14-1)) -> 4 | R15: =COUNTIF(Table2[Posn],P15) -> 1 | S15: =IF(R15=2,(Q15+Q16)/2,IF(R15=3,(Q15+Q16+Q17)/3,IF(R15=4,(Q15+Q16+Q17+Q18)/4,IF(R15=5,(Q15+Q16+Q17+Q18+Q19)/5,IF(R15=6,(Q15+Q16+Q17+Q18+Q19+Q20)/6,Q15))))) -> 4 | U15: C | V15: Havering AC
A16: 6 | B16: 4 | C16: =IFERROR(VLOOKUP($C$2&$C$3&$C$4&$B16,Teams!$A:$E,3,FALSE),"") -> Stevenage & North Herts AC | D16: =IFERROR(VLOOKUP($C$2&$C$3&$C$4&$B16,Teams!$A:$E,4,FALSE),"") -> SNH | E16: 55 | F16: =SUMIF(Track1!$E:$E,MatchDay!D16,Track1!$P:$P)+SUMIF(Track1!$L:$L,MatchDay!D16,Track1!$Q:$Q) -> 105 | G16: =SUMIF(Track2!$E:$E,MatchDay!D16,Track2!$P:$P)+SUMIF(Track2!$L:$L,MatchDay!D16,Track2!$Q:$Q) -> 14 | H16: =SUMIF(Relays!$D:$D,MatchDay!D16,Relays!$L:$L) -> 10 | I16: =SUMIF(Field!$E:$E,MatchDay!D16,Field!$P:$P)+SUMIF(Field!$L:$L,MatchDay!D16,Field!$Q:$Q) -> 136 | J16: 320 | K16: 6 | L16: 320.00004 | M16: Stevenage & North Herts AC | N16: =IFERROR(VLOOKUP(Table1[[#This Row],[Bib]],downloads!$AN$3:$AP$10,2,FALSE),0) -> 5 | O16: =IFERROR(VLOOKUP(Table1[[#This Row],[Bib]],downloads!$AN$3:$AP$11,3,FALSE),0) -> 841.2 | P16: 4 | Q16: =(IF(Q15-1<0,0,Q15-1)) -> 3 | R16: =COUNTIF(Table2[Posn],P16) -> 1 | S16: =IF(R16=2,(Q16+Q17)/2,IF(R16=3,(Q16+Q17+Q18)/3,IF(R16=4,(Q16+Q17+Q18+Q19)/4,IF(R16=5,(Q16+Q17+Q18+Q19+Q20)/5,Q16)))) -> 3 | U16: D | V16: Stevenage & North Herts AC
A17: 5 | B17: 5 | C17: =IFERROR(VLOOKUP($C$2&$C$3&$C$4&$B17,Teams!$A:$E,3,FALSE),"") -> Team ATIP © | D17: =IFERROR(VLOOKUP($C$2&$C$3&$C$4&$B17,Teams!$A:$E,4,FALSE),"") -> ATIP | E17: 55 | F17: =SUMIF(Track1!$E:$E,MatchDay!D17,Track1!$P:$P)+SUMIF(Track1!$L:$L,MatchDay!D17,Track1!$Q:$Q) -> 140 | G17: =SUMIF(Track2!$E:$E,MatchDay!D17,Track2!$P:$P)+SUMIF(Track2!$L:$L,MatchDay!D17,Track2!$Q:$Q) -> 25 | H17: =SUMIF(Relays!$D:$D,MatchDay!D17,Relays!$L:$L) -> 19 | I17: =SUMIF(Field!$E:$E,MatchDay!D17,Field!$P:$P)+SUMIF(Field!$L:$L,MatchDay!D17,Field!$Q:$Q) -> 120 | J17: 359 | K17: 5 | L17: 359.00005 | M17: Team ATIP © | N17: =IFERROR(VLOOKUP(Table1[[#This Row],[Bib]],downloads!$AN$3:$AP$10,2,FALSE),0) -> 6 | O17: =IFERROR(VLOOKUP(Table1[[#This Row],[Bib]],downloads!$AN$3:$AP$11,3,FALSE),0) -> 931.5 | P17: 5 | Q17: =(IF(Q16-1<0,0,Q16-1)) -> 2 | R17: =COUNTIF(Table2[Posn],P17) -> 1 | S17: =IF(R17=2,(Q17+Q18)/2,IF(R17=3,(Q17+Q18+Q19)/3,IF(R17=4,(Q17+Q18+Q19+Q20)/4,Q17))) -> 2 | U17: E | V17: Team ATIP ©
A18: 2 | B18: =IF(6>U2,"-",6) -> 6 | C18: =IFERROR(VLOOKUP($C$2&$C$3&$C$4&$B18,Teams!$A:$E,3,FALSE),"") -> Tonbridge AC | D18: =IFERROR(VLOOKUP($C$2&$C$3&$C$4&$B18,Teams!$A:$E,4,FALSE),"") -> Ton | E18: 30 | F18: =SUMIF(Track1!$E:$E,MatchDay!D18,Track1!$P:$P)+SUMIF(Track1!$L:$L,MatchDay!D18,Track1!$Q:$Q) -> 185 | G18: =SUMIF(Track2!$E:$E,MatchDay!D18,Track2!$P:$P)+SUMIF(Track2!$L:$L,MatchDay!D18,Track2!$Q:$Q) -> 79 | H18: =SUMIF(Relays!$D:$D,MatchDay!D18,Relays!$L:$L) -> 25 | I18: =SUMIF(Field!$E:$E,MatchDay!D18,Field!$P:$P)+SUMIF(Field!$L:$L,MatchDay!D18,Field!$Q:$Q) -> 235 | J18: 554 | K18: 2 | L18: 554.00006 | M18: Tonbridge AC | N18: =IFERROR(VLOOKUP(Table1[[#This Row],[Bib]],downloads!$AN$3:$AP$10,2,FALSE),0) -> 6 | O18: =IFERROR(VLOOKUP(Table1[[#This Row],[Bib]],downloads!$AN$3:$AP$11,3,FALSE),0) -> 939.7 | P18: 6 | Q18: =(IF(Q17-1<0,0,Q17-1)) -> 1 | R18: =COUNTIF(Table2[Posn],P18) -> 1 | S18: =IF(R18=2,(Q18+Q19)/2,IF(R18=3,(Q18+Q19+Q20)/3,Q18)) -> 1 | U18: F | V18: Tonbridge AC
B19: =IF(7>U2,"-",7) -> - | C19: =IFERROR(VLOOKUP($C$2&$C$3&$C$4&$B19,Teams!$A:$E,3,FALSE),"") ->  | D19: =IFERROR(VLOOKUP($C$2&$C$3&$C$4&$B19,Teams!$A:$E,4,FALSE),"") ->  | F19: =SUMIF(Track1!$E:$E,MatchDay!D19,Track1!$P:$P)+SUMIF(Track1!$L:$L,MatchDay!D19,Track1!$Q:$Q) -> 0 | G19: =SUMIF(Track2!$E:$E,MatchDay!D19,Track2!$P:$P)+SUMIF(Track2!$L:$L,MatchDay!D19,Track2!$Q:$Q) -> 0 | H19: =SUMIF(Relays!$D:$D,MatchDay!D19,Relays!$L:$L) -> 0 | I19: =SUMIF(Field!$E:$E,MatchDay!D19,Field!$P:$P)+SUMIF(Field!$L:$L,MatchDay!D19,Field!$Q:$Q) -> 0 | N19: =IFERROR(VLOOKUP(Table1[[#This Row],[Bib]],downloads!$AN$3:$AP$10,2,FALSE),0) -> 0 | O19: =IFERROR(VLOOKUP(Table1[[#This Row],[Bib]],downloads!$AN$3:$AP$11,3,FALSE),0) -> 0 | P19: 7 | Q19: =(IF(Q18-1<=0,0,Q18-1)) -> 0 | R19: =COUNTIF(Table2[Posn],P19) -> 0 | S19: =IF(R19=2,(Q19+Q20)/2,Q19) -> 0 | U19: G
A20: =IFERROR(RANK(L20,$L$13:$L$20),"") ->  | B20: =IF(8>U2,"-",8) -> - | C20: =IFERROR(VLOOKUP($C$2&$C$3&$C$4&$B20,Teams!$A:$E,3,FALSE),"") ->  | D20: =IFERROR(VLOOKUP($C$2&$C$3&$C$4&$B20,Teams!$A:$E,4,FALSE),"") ->  | E20: 0 | F20: =SUMIF(Track1!$E:$E,MatchDay!D20,Track1!$P:$P)+SUMIF(Track1!$L:$L,MatchDay!D20,Track1!$Q:$Q) -> 0 | G20: =SUMIF(Track2!$E:$E,MatchDay!D20,Track2!$P:$P)+SUMIF(Track2!$L:$L,MatchDay!D20,Track2!$Q:$Q) -> 0 | H20: =SUMIF(Relays!$D:$D,MatchDay!D20,Relays!$L:$L) -> 0 | I20: =SUMIF(Field!$E:$E,MatchDay!D20,Field!$P:$P)+SUMIF(Field!$L:$L,MatchDay!D20,Field!$Q:$Q) -> 0 | N20: =IFERROR(VLOOKUP(Table1[[#This Row],[Bib]],downloads!$AN$3:$AP$10,2,FALSE),0) -> 0 | O20: =IFERROR(VLOOKUP(Table1[[#This Row],[Bib]],downloads!$AN$3:$AP$11,3,FALSE),0) -> 0 | P20: 8 | Q20: =(IF(Q19-1<=0,0,Q19-1)) -> 0 | R20: =COUNTIF(Table2[Posn],P20) -> 0 | S20: =Q20 -> 0 | U20: H
B22: Posn | C22: Team Name | D22: Points | E22: League | F22: B/fwd M | G22: B/fwd L | H22: Total M | I22: Total L | J22: Standings
A23: 1 | B23: =IFERROR(VLOOKUP(A23,$A$13:$M$20,11,FALSE),"") -> 1 | C23: =IFERROR(IF($G$36=76,VLOOKUP(A23,downloads!$AL$3:$AP$10,2,FALSE),VLOOKUP($A23,$A$13:$M$20,3,FALSE)),"") -> Havering AC | D23: =IFERROR(VLOOKUP($A23,$A$13:$M$20,10,FALSE),0) -> 609 | E23: =IFERROR(VLOOKUP(Table2[[#This Row],[Posn]],$P$13:$S$20,4,FALSE),0) -> 6 | F23: =IFERROR(VLOOKUP(Table2[[#This Row],[Team Name]],$M$13:$O$20,3,FALSE),0) -> 1207 | G23: =IFERROR(VLOOKUP(Table2[[#This Row],[Team Name]],$M$13:$O$20,2,FALSE),0) -> 11 | H23: =Table2[[#This Row],[Points]]+Table2[[#This Row],[B/fwd M]] -> 1816 | I23: =Table2[[#This Row],[League]]+Table2[[#This Row],[B/fwd L]] -> 17 | J23: =IF(Table2[[#This Row],[Posn]]="-","",IF(RANK(M23,$M$23:$M$30,0)>$U$2,"",RANK(M23,$M$23:$M$30,0))) -> 1 | M23: =Table2[[#This Row],[Total L]]+(Table2[[#This Row],[Total M]]/100000) -> 17.01816
A24: 2 | B24: 2 | C24: =IFERROR(IF($G$36=76,VLOOKUP(A24,downloads!$AL$3:$AP$10,2,FALSE),VLOOKUP($A24,$A$13:$M$20,3,FALSE)),"") -> Tonbridge AC | D24: 554 | E24: =IFERROR(VLOOKUP(Table2[[#This Row],[Posn]],$P$13:$S$20,4,FALSE),0) -> 5 | F24: =IFERROR(VLOOKUP(Table2[[#This Row],[Team Name]],$M$13:$O$20,3,FALSE),0) -> 939.7 | G24: =IFERROR(VLOOKUP(Table2[[#This Row],[Team Name]],$M$13:$O$20,2,FALSE),0) -> 6 | H24: =Table2[[#This Row],[Points]]+Table2[[#This Row],[B/fwd M]] -> 1493.7 | I24: =Table2[[#This Row],[League]]+Table2[[#This Row],[B/fwd L]] -> 11 | J24: =IF(Table2[[#This Row],[Posn]]="-","",IF(RANK(M24,$M$23:$M$30,0)>$U$2,"",RANK(M24,$M$23:$M$30,0))) -> 3 | M24: =Table2[[#This Row],[Total L]]+(Table2[[#This Row],[Total M]]/100000) -> 11.014937
A25: 3 | B25: 3 | C25: =IFERROR(IF($G$36=76,VLOOKUP(A25,downloads!$AL$3:$AP$10,2,FALSE),VLOOKUP($A25,$A$13:$M$20,3,FALSE)),"") -> Basildon Beagles © | D25: 544 | E25: =IFERROR(VLOOKUP(Table2[[#This Row],[Posn]],$P$13:$S$20,4,FALSE),0) -> 4 | F25: =IFERROR(VLOOKUP(Table2[[#This Row],[Team Name]],$M$13:$O$20,3,FALSE),0) -> 1194.5 | G25: =IFERROR(VLOOKUP(Table2[[#This Row],[Team Name]],$M$13:$O$20,2,FALSE),0) -> 11 | H25: =Table2[[#This Row],[Points]]+Table2[[#This Row],[B/fwd M]] -> 1738.5 | I25: =Table2[[#This Row],[League]]+Table2[[#This Row],[B/fwd L]] -> 15 | J25: =IF(Table2[[#This Row],[Posn]]="-","",IF(RANK(M25,$M$23:$M$30,0)>$U$2,"",RANK(M25,$M$23:$M$30,0))) -> 2 | M25: =Table2[[#This Row],[Total L]]+(Table2[[#This Row],[Total M]]/100000) -> 15.017385
A26: 4 | B26: 4 | C26: =IFERROR(IF($G$36=76,VLOOKUP(A26,downloads!$AL$3:$AP$10,2,FALSE),VLOOKUP($A26,$A$13:$M$20,3,FALSE)),"") -> Croydon Harriers | D26: 484 | E26: =IFERROR(VLOOKUP(Table2[[#This Row],[Posn]],$P$13:$S$20,4,FALSE),0) -> 3 | F26: =IFERROR(VLOOKUP(Table2[[#This Row],[Team Name]],$M$13:$O$20,3,FALSE),0) -> 864 | G26: =IFERROR(VLOOKUP(Table2[[#This Row],[Team Name]],$M$13:$O$20,2,FALSE),0) -> 3 | H26: =Table2[[#This Row],[Points]]+Table2[[#This Row],[B/fwd M]] -> 1348 | I26: =Table2[[#This Row],[League]]+Table2[[#This Row],[B/fwd L]] -> 6 | J26: =IF(Table2[[#This Row],[Posn]]="-","",IF(RANK(M26,$M$23:$M$30,0)>$U$2,"",RANK(M26,$M$23:$M$30,0))) -> 5 | M26: =Table2[[#This Row],[Total L]]+(Table2[[#This Row],[Total M]]/100000) -> 6.01348
A27: 5 | B27: 5 | C27: =IFERROR(IF($G$36=76,VLOOKUP(A27,downloads!$AL$3:$AP$10,2,FALSE),VLOOKUP($A27,$A$13:$M$20,3,FALSE)),"") -> Team ATIP © | D27: 359 | E27: =IFERROR(VLOOKUP(Table2[[#This Row],[Posn]],$P$13:$S$20,4,FALSE),0) -> 2 | F27: =IFERROR(VLOOKUP(Table2[[#This Row],[Team Name]],$M$13:$O$20,3,FALSE),0) -> 931.5 | G27: =IFERROR(VLOOKUP(Table2[[#This Row],[Team Name]],$M$13:$O$20,2,FALSE),0) -> 6 | H27: =Table2[[#This Row],[Points]]+Table2[[#This Row],[B/fwd M]] -> 1290.5 | I27: =Table2[[#This Row],[League]]+Table2[[#This Row],[B/fwd L]] -> 8 | J27: =IF(Table2[[#This Row],[Posn]]="-","",IF(RANK(M27,$M$23:$M$30,0)>$U$2,"",RANK(M27,$M$23:$M$30,0))) -> 4 | M27: =Table2[[#This Row],[Total L]]+(Table2[[#This Row],[Total M]]/100000) -> 8.012905
A28: 6 | B28: 6 | C28: =IFERROR(IF($G$36=76,VLOOKUP(A28,downloads!$AL$3:$AP$10,2,FALSE),VLOOKUP($A28,$A$13:$M$20,3,FALSE)),"") -> Stevenage & North Herts AC | D28: 320 | E28: =IFERROR(VLOOKUP(Table2[[#This Row],[Posn]],$P$13:$S$20,4,FALSE),0) -> 1 | F28: =IFERROR(VLOOKUP(Table2[[#This Row],[Team Name]],$M$13:$O$20,3,FALSE),0) -> 841.2 | G28: =IFERROR(VLOOKUP(Table2[[#This Row],[Team Name]],$M$13:$O$20,2,FALSE),0) -> 5 | H28: =Table2[[#This Row],[Points]]+Table2[[#This Row],[B/fwd M]] -> 1161.2 | I28: =Table2[[#This Row],[League]]+Table2[[#This Row],[B/fwd L]] -> 6 | J28: =IF(Table2[[#This Row],[Posn]]="-","",IF(RANK(M28,$M$23:$M$30,0)>$U$2,"",RANK(M28,$M$23:$M$30,0))) -> 6 | M28: =Table2[[#This Row],[Total L]]+(Table2[[#This Row],[Total M]]/100000) -> 6.011612
A29: 7 | C29: =IFERROR(IF($G$36=76,VLOOKUP(A29,downloads!$AL$3:$AP$10,2,FALSE),VLOOKUP($A29,$A$13:$M$20,3,FALSE)),"") ->  | D29: 0 | E29: =IFERROR(VLOOKUP(Table2[[#This Row],[Posn]],$P$13:$S$20,4,FALSE),0) -> 0 | F29: =IFERROR(VLOOKUP(Table2[[#This Row],[Team Name]],$M$13:$O$20,3,FALSE),0) -> 0 | G29: =IFERROR(VLOOKUP(Table2[[#This Row],[Team Name]],$M$13:$O$20,2,FALSE),0) -> 0 | H29: =Table2[[#This Row],[Points]]+Table2[[#This Row],[B/fwd M]] -> 0 | I29: =Table2[[#This Row],[League]]+Table2[[#This Row],[B/fwd L]] -> 0 | J29: =IF(Table2[[#This Row],[Posn]]="-","",IF(RANK(M29,$M$23:$M$30,0)>$U$2,"",RANK(M29,$M$23:$M$30,0))) ->  | M29: =Table2[[#This Row],[Total L]]+(Table2[[#This Row],[Total M]]/100000) -> 0
A30: 8 | C30: =IFERROR(IF($G$36=76,VLOOKUP(A30,downloads!$AL$3:$AP$10,2,FALSE),VLOOKUP($A30,$A$13:$M$20,3,FALSE)),"") ->  | D30: 0 | E30: =IFERROR(VLOOKUP(Table2[[#This Row],[Posn]],$P$13:$S$20,4,FALSE),0) -> 0 | F30: =IFERROR(VLOOKUP(Table2[[#This Row],[Team Name]],$M$13:$O$20,3,FALSE),0) -> 0 | G30: =IFERROR(VLOOKUP(Table2[[#This Row],[Team Name]],$M$13:$O$20,2,FALSE),0) -> 0 | H30: =Table2[[#This Row],[Points]]+Table2[[#This Row],[B/fwd M]] -> 0 | I30: =Table2[[#This Row],[League]]+Table2[[#This Row],[B/fwd L]] -> 0 | J30: =IF(Table2[[#This Row],[Posn]]="-","",IF(RANK(M30,$M$23:$M$30,0)>$U$2,"",RANK(M30,$M$23:$M$30,0))) ->  | M30: =Table2[[#This Row],[Total L]]+(Table2[[#This Row],[Total M]]/100000) -> 0
C33: TOTAL EVENTS | G33: 76
C34: NO COMPETITORS/EVENT CANCELLED/NMR | G34: =Track1!S1+Track2!S1+Field!S1+Relays!N1 -> 0
C35: EVENT SCORED | G35: =Track1!R1+Track2!R1+Relays!M1+Field!R1-G34 -> 66
C36: REMAINING | G36: =G33-G34-G35 -> 10

Sheet U20Me
A1: UK ATHLETICS :: YOUTH DEVELOPMENT LEAGUE 2017 | B1: =Dashboard!D1 -> UPPER SOUTH Division 1B MATCH 3 @ Croydon | L1: =Dashboard!I1 -> 2018-07-01 | R1: =SUM(R2:R300) -> 17
A2: UT05 | B2: =IFERROR(INDIRECT(CONCATENATE("Track1!B",A3)),"") -> 100m U20 Men A | E2: Wind | F2: =IFERROR(INDIRECT(CONCATENATE("Track1!F",$A3)),"") -> 0 | G2: =Track1!G46 ->  | I2: =IFERROR(INDIRECT(CONCATENATE("Track1!I",A3)),"") -> 100m U20 Men B | L2: Wind | M2: =IFERROR(INDIRECT(CONCATENATE("Track1!M",$A3)),"") -> 0
A3: =IFERROR(MATCH(A2,Track1!A:A,0),"") -> 46 | B3: =IFERROR(INDIRECT(CONCATENATE("Track1!B",A3+1)),"") -> Posn | C3: =IFERROR(INDIRECT(CONCATENATE("Track1!C",A3+1)),"") -> No. | D3: =IFERROR(INDIRECT(CONCATENATE("Track1!D",A3+1)),"") -> Athlete | E3: =IFERROR(INDIRECT(CONCATENATE("Track1!E",A3+1)),"") -> Club | F3: =IFERROR(INDIRECT(CONCATENATE("Track1!F",A3+1)),"") -> Perf | G3: =IFERROR(INDIRECT(CONCATENATE("Track1!G",A3+1)),"") -> AAA | I3: =IFERROR(INDIRECT(CONCATENATE("Track1!I",A3+1)),"") -> Posn | J3: =IFERROR(INDIRECT(CONCATENATE("Track1!J",A3+1)),"") -> No. | K3: =IFERROR(INDIRECT(CONCATENATE("Track1!K",A3+1)),"") -> Athlete | L3: =IFERROR(INDIRECT(CONCATENATE("Track1!L",A3+1)),"") -> Club | M3: =IFERROR(INDIRECT(CONCATENATE("Track1!M",A3+1)),"") -> Perf | N3: =IFERROR(INDIRECT(CONCATENATE("Track1!N",A3+1)),"") -> AAA
B4: =IFERROR(INDIRECT(CONCATENATE("Track1!B",A3+2)),"") -> 1 | C4: =IFERROR(INDIRECT(CONCATENATE("Track1!C",A3+2)),"") -> 2 | D4: =IFERROR(INDIRECT(CONCATENATE("Track1!D",A3+2)),"") -> FRANCIS-DWYER Micah | E4: =IFERROR(INDIRECT(CONCATENATE("Track1!E",A3+2)),"") -> Croy | F4: =IFERROR(INDIRECT(CONCATENATE("Track1!F",A3+2)),"") -> 10.94 | G4: =IFERROR(INDIRECT(CONCATENATE("Track1!G",A3+2)),"") -> 2 | I4: =IFERROR(INDIRECT(CONCATENATE("Track1!I",A3+2)),"") -> 1 | J4: =IFERROR(INDIRECT(CONCATENATE("Track1!J",A3+2)),"") -> 22 | K4: =IFERROR(INDIRECT(CONCATENATE("Track1!K",A3+2)),"") -> DANIEL Cameron Ayo | L4: =IFERROR(INDIRECT(CONCATENATE("Track1!L",A3+2)),"") -> Croy | M4: =IFERROR(INDIRECT(CONCATENATE("Track1!M",A3+2)),"") -> 11.57 | N4: =IFERROR(INDIRECT(CONCATENATE("Track1!N",$A$3+2)),"") ->  | R4: =IFERROR(INDIRECT(CONCATENATE("Track1!R",$A3+2)),"") -> 1
B5: =IFERROR(INDIRECT(CONCATENATE("Track1!B",A3+3)),"") -> 2 | C5: =IFERROR(INDIRECT(CONCATENATE("Track1!C",A3+3)),"") -> 1 | D5: =IFERROR(INDIRECT(CONCATENATE("Track1!D",A3+3)),"") -> JAMES Chosen | E5: =IFERROR(INDIRECT(CONCATENATE("Track1!E",A3+3)),"") -> Bas/NEB | F5: =IFERROR(INDIRECT(CONCATENATE("Track1!F",A3+3)),"") -> 11.42 | G5: =IFERROR(INDIRECT(CONCATENATE("Track1!G",A3+3)),"") ->  | I5: =IFERROR(INDIRECT(CONCATENATE("Track1!I",A3+3)),"") -> 2 | J5: =IFERROR(INDIRECT(CONCATENATE("Track1!J",A3+3)),"") -> 11 | K5: =IFERROR(INDIRECT(CONCATENATE("Track1!K",A3+3)),"") -> ELLIS Cameron X | L5: =IFERROR(INDIRECT(CONCATENATE("Track1!L",A3+3)),"") -> Bas/NEB | M5: =IFERROR(INDIRECT(CONCATENATE("Track1!M",A3+3)),"") -> 11.63 | N5: =IFERROR(INDIRECT(CONCATENATE("Track1!N",A3+3)),"") -> 
B6: =IFERROR(INDIRECT(CONCATENATE("Track1!B",A3+4)),"") -> 3 | C6: =IFERROR(INDIRECT(CONCATENATE("Track1!C",A3+4)),"") -> 4 | D6: =IFERROR(INDIRECT(CONCATENATE("Track1!D",A3+4)),"") -> HORLESTON Joshua X | E6: =IFERROR(INDIRECT(CONCATENATE("Track1!E",A3+4)),"") -> SNH | F6: =IFERROR(INDIRECT(CONCATENATE("Track1!F",A3+4)),"") -> 11.64 | G6: =IFERROR(INDIRECT(CONCATENATE("Track1!G",A3+4)),"") ->  | I6: =IFERROR(INDIRECT(CONCATENATE("Track1!I",A3+4)),"") -> 3 | J6: =IFERROR(INDIRECT(CONCATENATE("Track1!J",A3+4)),"") -> 44 | K6: =IFERROR(INDIRECT(CONCATENATE("Track1!K",A3+4)),"") -> MORRIS Brent | L6: =IFERROR(INDIRECT(CONCATENATE("Track1!L",A3+4)),"") -> SNH | M6: =IFERROR(INDIRECT(CONCATENATE("Track1!M",A3+4)),"") -> 12.03 | N6: =IFERROR(INDIRECT(CONCATENATE("Track1!N",A3+4)),"") -> 
B7: =IFERROR(INDIRECT(CONCATENATE("Track1!B",A3+5)),"") -> 4 | C7: =IFERROR(INDIRECT(CONCATENATE("Track1!C",A3+5)),"") -> 6 | D7: =IFERROR(INDIRECT(CONCATENATE("Track1!D",A3+5)),"") -> RIGBY Callum | E7: =IFERROR(INDIRECT(CONCATENATE("Track1!E",A3+5)),"") -> Ton | F7: =IFERROR(INDIRECT(CONCATENATE("Track1!F",A3+5)),"") -> 11.9 | G7: =IFERROR(INDIRECT(CONCATENATE("Track1!G",A3+5)),"") ->  | I7: =IFERROR(INDIRECT(CONCATENATE("Track1!I",A3+5)),"") -> 4 | J7: =IFERROR(INDIRECT(CONCATENATE("Track1!J",A3+5)),"") -> 66 | K7: =IFERROR(INDIRECT(CONCATENATE("Track1!K",A3+5)),"") -> NORMAN Oscar | L7: =IFERROR(INDIRECT(CONCATENATE("Track1!L",A3+5)),"") -> Ton | M7: =IFERROR(INDIRECT(CONCATENATE("Track1!M",A3+5)),"") -> 12.18 | N7: =IFERROR(INDIRECT(CONCATENATE("Track1!N",A3+5)),"") -> 
B8: =IFERROR(INDIRECT(CONCATENATE("Track1!B",A3+6)),"") -> 5 | C8: =IFERROR(INDIRECT(CONCATENATE("Track1!C",A3+6)),"") -> 3 | D8: =IFERROR(INDIRECT(CONCATENATE("Track1!D",A3+6)),"") -> ADDISON Elliott | E8: =IFERROR(INDIRECT(CONCATENATE("Track1!E",A3+6)),"") -> Have | F8: =IFERROR(INDIRECT(CONCATENATE("Track1!F",A3+6)),"") -> 12.12 | G8: =IFERROR(INDIRECT(CONCATENATE("Track1!G",A3+6)),"") ->  | I8: =IFERROR(INDIRECT(CONCATENATE("Track1!I",A3+6)),"") -> 5 | J8: =IFERROR(INDIRECT(CONCATENATE("Track1!J",A3+6)),"") -> 33 | K8: =IFERROR(INDIRECT(CONCATENATE("Track1!K",A3+6)),"") -> FRESHWATER Aaron X | L8: =IFERROR(INDIRECT(CONCATENATE("Track1!L",A3+6)),"") -> Have | M8: =IFERROR(INDIRECT(CONCATENATE("Track1!M",A3+6)),"") -> 12.69 | N8: =IFERROR(INDIRECT(CONCATENATE("Track1!N",A3+6)),"") -> 
B9: =IFERROR(INDIRECT(CONCATENATE("Track1!B",A3+7)),"") -> 6 | C9: =IFERROR(INDIRECT(CONCATENATE("Track1!C",A3+7)),"") -> 5 | D9: =IFERROR(INDIRECT(CONCATENATE("Track1!D",A3+7)),"") -> DOUGAL BARNABY | E9: =IFERROR(INDIRECT(CONCATENATE("Track1!E",A3+7)),"") -> ATIP | F9: =IFERROR(INDIRECT(CONCATENATE("Track1!F",A3+7)),"") -> 12.54 | G9: =IFERROR(INDIRECT(CONCATENATE("Track1!G",A3+7)),"") ->  | I9: =IFERROR(INDIRECT(CONCATENATE("Track1!I",A3+7)),"") -> 6 | J9: =IFERROR(INDIRECT(CONCATENATE("Track1!J",A3+7)),"") -> 0 | K9: =IFERROR(INDIRECT(CONCATENATE("Track1!K",A3+7)),"") ->  | L9: =IFERROR(INDIRECT(CONCATENATE("Track1!L",A3+7)),"") ->  | M9: =IFERROR(INDIRECT(CONCATENATE("Track1!M",A3+7)),"") -> 0 | N9: =IFERROR(INDIRECT(CONCATENATE("Track1!N",A3+7)),"") -> 
B10: =IFERROR(INDIRECT(CONCATENATE("Track1!B",A3+8)),"") -> 7 | C10: =IFERROR(INDIRECT(CONCATENATE("Track1!C",A3+8)),"") -> 0 | D10: =IFERROR(INDIRECT(CONCATENATE("Track1!D",A3+8)),"") ->  | E10: =IFERROR(INDIRECT(CONCATENATE("Track1!E",A3+8)),"") ->  | F10: =IFERROR(INDIRECT(CONCATENATE("Track1!F",A3+8)),"") -> 0 | G10: =IFERROR(INDIRECT(CONCATENATE("Track1!G",A3+8)),"") ->  | I10: =IFERROR(INDIRECT(CONCATENATE("Track1!I",A3+8)),"") -> 7 | J10: =IFERROR(INDIRECT(CONCATENATE("Track1!J",A3+8)),"") -> 0 | K10: =IFERROR(INDIRECT(CONCATENATE("Track1!K",A3+8)),"") ->  | L10: =IFERROR(INDIRECT(CONCATENATE("Track1!L",A3+8)),"") ->  | M10: =IFERROR(INDIRECT(CONCATENATE("Track1!M",A3+8)),"") -> 0 | N10: =IFERROR(INDIRECT(CONCATENATE("Track1!N",A3+8)),"") -> 
B11: =IFERROR(INDIRECT(CONCATENATE("Track1!B",A3+9)),"") -> 8 | C11: =IFERROR(INDIRECT(CONCATENATE("Track1!C",A3+9)),"") -> 0 | D11: =IFERROR(INDIRECT(CONCATENATE("Track1!D",A3+9)),"") ->  | E11: =IFERROR(INDIRECT(CONCATENATE("Track1!E",A3+9)),"") ->  | F11: =IFERROR(INDIRECT(CONCATENATE("Track1!F",A3+9)),"") -> 0 | G11: =IFERROR(INDIRECT(CONCATENATE("Track1!G",A3+9)),"") ->  | I11: =IFERROR(INDIRECT(CONCATENATE("Track1!I",A3+9)),"") -> 8 | J11: =IFERROR(INDIRECT(CONCATENATE("Track1!J",A3+9)),"") -> 0 | K11: =IFERROR(INDIRECT(CONCATENATE("Track1!K",A3+9)),"") ->  | L11: =IFERROR(INDIRECT(CONCATENATE("Track1!L",A3+9)),"") ->  | M11: =IFERROR(INDIRECT(CONCATENATE("Track1!M",A3+9)),"") -> 0 | N11: =IFERROR(INDIRECT(CONCATENATE("Track1!N",A3+9)),"") -> 
A13: UT17 | B13: =IFERROR(INDIRECT(CONCATENATE("Track1!B",A14)),"") -> 200m U20 Men A | E13: Wind | F13: =IFERROR(INDIRECT(CONCATENATE("Track1!F",$A14)),"") -> 0 | G13: =Track1!G57 ->  | I13: =IFERROR(INDIRECT(CONCATENATE("Track1!I",A14)),"") -> 200m U20 Men B | L13: Wind | M13: =IFERROR(INDIRECT(CONCATENATE("Track1!M",A14)),"") -> 0
A14: =IFERROR(MATCH(A13,Track1!A:A,0),"") -> 178 | B14: =IFERROR(INDIRECT(CONCATENATE("Track1!B",A14+1)),"") -> Posn | C14: =IFERROR(INDIRECT(CONCATENATE("Track1!C",A14+1)),"") -> No. | D14: =IFERROR(INDIRECT(CONCATENATE("Track1!D",A14+1)),"") -> Athlete | E14: =IFERROR(INDIRECT(CONCATENATE("Track1!E",A14+1)),"") -> Club | F14: =IFERROR(INDIRECT(CONCATENATE("Track1!F",A14+1)),"") -> Perf | G14: =IFERROR(INDIRECT(CONCATENATE("Track1!G",A14+1)),"") -> AAA | I14: =IFERROR(INDIRECT(CONCATENATE("Track1!I",A14+1)),"") -> Posn | J14: =IFERROR(INDIRECT(CONCATENATE("Track1!J",A14+1)),"") -> No. | K14: =IFERROR(INDIRECT(CONCATENATE("Track1!K",A14+1)),"") -> Athlete | L14: =IFERROR(INDIRECT(CONCATENATE("Track1!L",A14+1)),"") -> Club | M14: =IFERROR(INDIRECT(CONCATENATE("Track1!M",A14+1)),"") -> Perf | N14: =IFERROR(INDIRECT(CONCATENATE("Track1!N",A14+1)),"") -> AAA
B15: =IFERROR(INDIRECT(CONCATENATE("Track1!B",A14+2)),"") -> 1 | C15: =IFERROR(INDIRECT(CONCATENATE("Track1!C",A14+2)),"") -> 2 | D15: =IFERROR(INDIRECT(CONCATENATE("Track1!D",A14+2)),"") -> DACOSTA Dylan | E15: =IFERROR(INDIRECT(CONCATENATE("Track1!E",A14+2)),"") -> Croy | F15: =IFERROR(INDIRECT(CONCATENATE("Track1!F",A14+2)),"") -> 21.39 | G15: =IFERROR(INDIRECT(CONCATENATE("Track1!G",A14+2)),"") -> 1 | I15: =IFERROR(INDIRECT(CONCATENATE("Track1!I",A14+2)),"") -> 1 | J15: =IFERROR(INDIRECT(CONCATENATE("Track1!J",A14+2)),"") -> 22 | K15: =IFERROR(INDIRECT(CONCATENATE("Track1!K",A14+2)),"") -> OSPINA Israel X | L15: =IFERROR(INDIRECT(CONCATENATE("Track1!L",A14+2)),"") -> Croy | M15: =IFERROR(INDIRECT(CONCATENATE("Track1!M",A14+2)),"") -> 22.8 | N15: =IFERROR(INDIRECT(CONCATENATE("Track1!N",A14+2)),"") ->  | R15: =IFERROR(INDIRECT(CONCATENATE("Track1!R",$A14+2)),"") -> 1
B16: =IFERROR(INDIRECT(CONCATENATE("Track1!B",A14+3)),"") -> 2 | C16: =IFERROR(INDIRECT(CONCATENATE("Track1!C",A14+3)),"") -> 1 | D16: =IFERROR(INDIRECT(CONCATENATE("Track1!D",A14+3)),"") -> OSUNSAMI Mayowa | E16: =IFERROR(INDIRECT(CONCATENATE("Track1!E",A14+3)),"") -> Bas/NEB | F16: =IFERROR(INDIRECT(CONCATENATE("Track1!F",A14+3)),"") -> 21.7 | G16: =IFERROR(INDIRECT(CONCATENATE("Track1!G",A14+3)),"") -> 1 | I16: =IFERROR(INDIRECT(CONCATENATE("Track1!I",A14+3)),"") -> 2 | J16: =IFERROR(INDIRECT(CONCATENATE("Track1!J",A14+3)),"") -> 11 | K16: =IFERROR(INDIRECT(CONCATENATE("Track1!K",A14+3)),"") -> JAMES Chosen | L16: =IFERROR(INDIRECT(CONCATENATE("Track1!L",A14+3)),"") -> Bas/NEB | M16: =IFERROR(INDIRECT(CONCATENATE("Track1!M",A14+3)),"") -> 22.9 | N16: =IFERROR(INDIRECT(CONCATENATE("Track1!N",A14+3)),"") -> 
B17: =IFERROR(INDIRECT(CONCATENATE("Track1!B",A14+4)),"") -> 3 | C17: =IFERROR(INDIRECT(CONCATENATE("Track1!C",A14+4)),"") -> 3 | D17: =IFERROR(INDIRECT(CONCATENATE("Track1!D",A14+4)),"") -> ADDISON Elliott | E17: =IFERROR(INDIRECT(CONCATENATE("Track1!E",A14+4)),"") -> Have | F17: =IFERROR(INDIRECT(CONCATENATE("Track1!F",A14+4)),"") -> 23.42 | G17: =IFERROR(INDIRECT(CONCATENATE("Track1!G",A14+4)),"") ->  | I17: =IFERROR(INDIRECT(CONCATENATE("Track1!I",A14+4)),"") -> 3 | J17: =IFERROR(INDIRECT(CONCATENATE("Track1!J",A14+4)),"") -> 33 | K17: =IFERROR(INDIRECT(CONCATENATE("Track1!K",A14+4)),"") -> DUNCAN Jordon | L17: =IFERROR(INDIRECT(CONCATENATE("Track1!L",A14+4)),"") -> Have | M17: =IFERROR(INDIRECT(CONCATENATE("Track1!M",A14+4)),"") -> 23.3 | N17: =IFERROR(INDIRECT(CONCATENATE("Track1!N",A14+4)),"") -> 
B18: =IFERROR(INDIRECT(CONCATENATE("Track1!B",A14+5)),"") -> 4 | C18: =IFERROR(INDIRECT(CONCATENATE("Track1!C",A14+5)),"") -> 4 | D18: =IFERROR(INDIRECT(CONCATENATE("Track1!D",A14+5)),"") -> MORRIS Brent | E18: =IFERROR(INDIRECT(CONCATENATE("Track1!E",A14+5)),"") -> SNH | F18: =IFERROR(INDIRECT(CONCATENATE("Track1!F",A14+5)),"") -> 23.48 | G18: =IFERROR(INDIRECT(CONCATENATE("Track1!G",A14+5)),"") ->  | I18: =IFERROR(INDIRECT(CONCATENATE("Track1!I",A14+5)),"") -> 4 | J18: =IFERROR(INDIRECT(CONCATENATE("Track1!J",A14+5)),"") -> 55 | K18: =IFERROR(INDIRECT(CONCATENATE("Track1!K",A14+5)),"") -> NGASSA Sebastian X | L18: =IFERROR(INDIRECT(CONCATENATE("Track1!L",A14+5)),"") -> ATIP | M18: =IFERROR(INDIRECT(CONCATENATE("Track1!M",A14+5)),"") -> 23.4 | N18: =IFERROR(INDIRECT(CONCATENATE("Track1!N",A14+5)),"") -> 
B19: =IFERROR(INDIRECT(CONCATENATE("Track1!B",A14+6)),"") -> 5 | C19: =IFERROR(INDIRECT(CONCATENATE("Track1!C",A14+6)),"") -> 6 | D19: =IFERROR(INDIRECT(CONCATENATE("Track1!D",A14+6)),"") -> FULLBROOK David | E19: =IFERROR(INDIRECT(CONCATENATE("Track1!E",A14+6)),"") -> Ton | F19: =IFERROR(INDIRECT(CONCATENATE("Track1!F",A14+6)),"") -> 23.7 | G19: =IFERROR(INDIRECT(CONCATENATE("Track1!G",A14+6)),"") ->  | I19: =IFERROR(INDIRECT(CONCATENATE("Track1!I",A14+6)),"") -> 5 | J19: =IFERROR(INDIRECT(CONCATENATE("Track1!J",A14+6)),"") -> 44 | K19: =IFERROR(INDIRECT(CONCATENATE("Track1!K",A14+6)),"") -> BWALYA Semba X | L19: =IFERROR(INDIRECT(CONCATENATE("Track1!L",A14+6)),"") -> SNH | M19: =IFERROR(INDIRECT(CONCATENATE("Track1!M",A14+6)),"") -> 23.5 | N19: =IFERROR(INDIRECT(CONCATENATE("Track1!N",A14+6)),"") -> 
B20: =IFERROR(INDIRECT(CONCATENATE("Track1!B",A14+7)),"") -> 6 | C20: =IFERROR(INDIRECT(CONCATENATE("Track1!C",A14+7)),"") -> 5 | D20: =IFERROR(INDIRECT(CONCATENATE("Track1!D",A14+7)),"") -> DOUGAL BARNABY | E20: =IFERROR(INDIRECT(CONCATENATE("Track1!E",A14+7)),"") -> ATIP | F20: =IFERROR(INDIRECT(CONCATENATE("Track1!F",A14+7)),"") -> 24.36 | G20: =IFERROR(INDIRECT(CONCATENATE("Track1!G",A14+7)),"") ->  | I20: =IFERROR(INDIRECT(CONCATENATE("Track1!I",A14+7)),"") -> 6 | J20: =IFERROR(INDIRECT(CONCATENATE("Track1!J",A14+7)),"") -> 66 | K20: =IFERROR(INDIRECT(CONCATENATE("Track1!K",A14+7)),"") -> RIGBY Callum | L20: =IFERROR(INDIRECT(CONCATENATE("Track1!L",A14+7)),"") -> Ton | M20: =IFERROR(INDIRECT(CONCATENATE("Track1!M",A14+7)),"") -> 23.7 | N20: =IFERROR(INDIRECT(CONCATENATE("Track1!N",A14+7)),"") -> 
B21: =IFERROR(INDIRECT(CONCATENATE("Track1!B",A14+8)),"") -> 7 | C21: =IFERROR(INDIRECT(CONCATENATE("Track1!C",A14+8)),"") -> 0 | D21: =IFERROR(INDIRECT(CONCATENATE("Track1!D",A14+8)),"") ->  | E21: =IFERROR(INDIRECT(CONCATENATE("Track1!E",A14+8)),"") ->  | F21: =IFERROR(INDIRECT(CONCATENATE("Track1!F",A14+8)),"") -> 0 | G21: =IFERROR(INDIRECT(CONCATENATE("Track1!G",A14+8)),"") ->  | I21: =IFERROR(INDIRECT(CONCATENATE("Track1!I",A14+8)),"") -> 7 | J21: =IFERROR(INDIRECT(CONCATENATE("Track1!J",A14+8)),"") -> 0 | K21: =IFERROR(INDIRECT(CONCATENATE("Track1!K",A14+8)),"") ->  | L21: =IFERROR(INDIRECT(CONCATENATE("Track1!L",A14+8)),"") ->  | M21: =IFERROR(INDIRECT(CONCATENATE("Track1!M",A14+8)),"") -> 0 | N21: =IFERROR(INDIRECT(CONCATENATE("Track1!N",A14+8)),"") -> 
B22: =IFERROR(INDIRECT(CONCATENATE("Track1!B",A14+9)),"") -> 8 | C22: =IFERROR(INDIRECT(CONCATENATE("Track1!C",A14+9)),"") -> 0 | D22: =IFERROR(INDIRECT(CONCATENATE("Track1!D",A14+9)),"") ->  | E22: =IFERROR(INDIRECT(CONCATENATE("Track1!E",A14+9)),"") ->  | F22: =IFERROR(INDIRECT(CONCATENATE("Track1!F",A14+9)),"") -> 0 | G22: =IFERROR(INDIRECT(CONCATENATE("Track1!G",A14+9)),"") ->  | I22: =IFERROR(INDIRECT(CONCATENATE("Track1!I",A14+9)),"") -> 8 | J22: =IFERROR(INDIRECT(CONCATENATE("Track1!J",A14+9)),"") -> 0 | K22: =IFERROR(INDIRECT(CONCATENATE("Track1!K",A14+9)),"") ->  | L22: =IFERROR(INDIRECT(CONCATENATE("Track1!L",A14+9)),"") ->  | M22: =IFERROR(INDIRECT(CONCATENATE("Track1!M",A14+9)),"") -> 0 | N22: =IFERROR(INDIRECT(CONCATENATE("Track1!N",A14+9)),"") -> 
A24: UT09 | B24: =IFERROR(INDIRECT(CONCATENATE("Track1!B",A25)),"") -> 400m U20 Men A | G24: =Track1!G68 ->  | I24: =IFERROR(INDIRECT(CONCATENATE("Track1!I",A25)),"") -> 400m U20 Men B
A25: =IFERROR(MATCH(A24,Track1!A:A,0),"") -> 90 | B25: =IFERROR(INDIRECT(CONCATENATE("Track1!B",A25+1)),"") -> Posn | C25: =IFERROR(INDIRECT(CONCATENATE("Track1!C",A25+1)),"") -> No. | D25: =IFERROR(INDIRECT(CONCATENATE("Track1!D",A25+1)),"") -> Athlete | E25: =IFERROR(INDIRECT(CONCATENATE("Track1!E",A25+1)),"") -> Club | F25: =IFERROR(INDIRECT(CONCATENATE("Track1!F",A25+1)),"") -> Perf | G25: =IFERROR(INDIRECT(CONCATENATE("Track1!G",A25+1)),"") -> AAA | I25: =IFERROR(INDIRECT(CONCATENATE("Track1!I",A25+1)),"") -> Posn | J25: =IFERROR(INDIRECT(CONCATENATE("Track1!J",A25+1)),"") -> No. | K25: =IFERROR(INDIRECT(CONCATENATE("Track1!K",A25+1)),"") -> Athlete | L25: =IFERROR(INDIRECT(CONCATENATE("Track1!L",A25+1)),"") -> Club | M25: =IFERROR(INDIRECT(CONCATENATE("Track1!M",A25+1)),"") -> Perf | N25: =IFERROR(INDIRECT(CONCATENATE("Track1!N",A25+1)),"") -> AAA
B26: =IFERROR(INDIRECT(CONCATENATE("Track1!B",A25+2)),"") -> 1 | C26: =IFERROR(INDIRECT(CONCATENATE("Track1!C",A25+2)),"") -> 4 | D26: =IFERROR(INDIRECT(CONCATENATE("Track1!D",A25+2)),"") -> MORRIS Brent | E26: =IFERROR(INDIRECT(CONCATENATE("Track1!E",A25+2)),"") -> SNH | F26: =IFERROR(INDIRECT(CONCATENATE("Track1!F",A25+2)),"") -> 51.22 | G26: =IFERROR(INDIRECT(CONCATENATE("Track1!G",A25+2)),"") ->  | I26: =IFERROR(INDIRECT(CONCATENATE("Track1!I",A25+2)),"") -> 1 | J26: =IFERROR(INDIRECT(CONCATENATE("Track1!J",A25+2)),"") -> 66 | K26: =IFERROR(INDIRECT(CONCATENATE("Track1!K",A25+2)),"") -> SEAL Toby | L26: =IFERROR(INDIRECT(CONCATENATE("Track1!L",A25+2)),"") -> Ton | M26: =IFERROR(INDIRECT(CONCATENATE("Track1!M",A25+2)),"") -> 53.48 | N26: =IFERROR(INDIRECT(CONCATENATE("Track1!N",A25+2)),"") ->  | R26: =IFERROR(INDIRECT(CONCATENATE("Track1!R",$A25+2)),"") -> 1
B27: =IFERROR(INDIRECT(CONCATENATE("Track1!B",A25+3)),"") -> 2 | C27: =IFERROR(INDIRECT(CONCATENATE("Track1!C",A25+3)),"") -> 1 | D27: =IFERROR(INDIRECT(CONCATENATE("Track1!D",A25+3)),"") -> CHAPMAN Harrison | E27: =IFERROR(INDIRECT(CONCATENATE("Track1!E",A25+3)),"") -> Bas/NEB | F27: =IFERROR(INDIRECT(CONCATENATE("Track1!F",A25+3)),"") -> 51.43 | G27: =IFERROR(INDIRECT(CONCATENATE("Track1!G",A25+3)),"") ->  | I27: =IFERROR(INDIRECT(CONCATENATE("Track1!I",A25+3)),"") -> 2 | J27: =IFERROR(INDIRECT(CONCATENATE("Track1!J",A25+3)),"") -> 11 | K27: =IFERROR(INDIRECT(CONCATENATE("Track1!K",A25+3)),"") -> BROWN Isaac | L27: =IFERROR(INDIRECT(CONCATENATE("Track1!L",A25+3)),"") -> Bas/NEB | M27: =IFERROR(INDIRECT(CONCATENATE("Track1!M",A25+3)),"") -> 53.86 | N27: =IFERROR(INDIRECT(CONCATENATE("Track1!N",A25+3)),"") -> 
B28: =IFERROR(INDIRECT(CONCATENATE("Track1!B",A25+4)),"") -> 3 | C28: =IFERROR(INDIRECT(CONCATENATE("Track1!C",A25+4)),"") -> 6 | D28: =IFERROR(INDIRECT(CONCATENATE("Track1!D",A25+4)),"") -> CRICK Samuel | E28: =IFERROR(INDIRECT(CONCATENATE("Track1!E",A25+4)),"") -> Ton | F28: =IFERROR(INDIRECT(CONCATENATE("Track1!F",A25+4)),"") -> 52.21 | G28: =IFERROR(INDIRECT(CONCATENATE("Track1!G",A25+4)),"") ->  | I28: =IFERROR(INDIRECT(CONCATENATE("Track1!I",A25+4)),"") -> 3 | J28: =IFERROR(INDIRECT(CONCATENATE("Track1!J",A25+4)),"") -> 55 | K28: =IFERROR(INDIRECT(CONCATENATE("Track1!K",A25+4)),"") -> TREMAIN HARRISON | L28: =IFERROR(INDIRECT(CONCATENATE("Track1!L",A25+4)),"") -> ATIP | M28: =IFERROR(INDIRECT(CONCATENATE("Track1!M",A25+4)),"") -> 53.93 | N28: =IFERROR(INDIRECT(CONCATENATE("Track1!N",A25+4)),"") -> 
B29: =IFERROR(INDIRECT(CONCATENATE("Track1!B",A25+5)),"") -> 4 | C29: =IFERROR(INDIRECT(CONCATENATE("Track1!C",A25+5)),"") -> 5 | D29: =IFERROR(INDIRECT(CONCATENATE("Track1!D",A25+5)),"") -> HAMBROOK Matt | E29: =IFERROR(INDIRECT(CONCATENATE("Track1!E",A25+5)),"") -> ATIP | F29: =IFERROR(INDIRECT(CONCATENATE("Track1!F",A25+5)),"") -> 53.28 | G29: =IFERROR(INDIRECT(CONCATENATE("Track1!G",A25+5)),"") ->  | I29: =IFERROR(INDIRECT(CONCATENATE("Track1!I",A25+5)),"") -> 4 | J29: =IFERROR(INDIRECT(CONCATENATE("Track1!J",A25+5)),"") -> 33 | K29: =IFERROR(INDIRECT(CONCATENATE("Track1!K",A25+5)),"") -> O'HARA Kieran | L29: =IFERROR(INDIRECT(CONCATENATE("Track1!L",A25+5)),"") -> Have | M29: =IFERROR(INDIRECT(CONCATENATE("Track1!M",A25+5)),"") -> 59.24 | N29: =IFERROR(INDIRECT(CONCATENATE("Track1!N",A25+5)),"") -> 
B30: =IFERROR(INDIRECT(CONCATENATE("Track1!B",A25+6)),"") -> 5 | C30: =IFERROR(INDIRECT(CONCATENATE("Track1!C",A25+6)),"") -> 3 | D30: =IFERROR(INDIRECT(CONCATENATE("Track1!D",A25+6)),"") -> DEBENHAM Lewis | E30: =IFERROR(INDIRECT(CONCATENATE("Track1!E",A25+6)),"") -> Have | F30: =IFERROR(INDIRECT(CONCATENATE("Track1!F",A25+6)),"") -> 55.11 | G30: =IFERROR(INDIRECT(CONCATENATE("Track1!G",A25+6)),"") ->  | I30: =IFERROR(INDIRECT(CONCATENATE("Track1!I",A25+6)),"") -> 5 | J30: =IFERROR(INDIRECT(CONCATENATE("Track1!J",A25+6)),"") -> 44 | K30: =IFERROR(INDIRECT(CONCATENATE("Track1!K",A25+6)),"") -> STOCKER Michael | L30: =IFERROR(INDIRECT(CONCATENATE("Track1!L",A25+6)),"") -> SNH | M30: =IFERROR(INDIRECT(CONCATENATE("Track1!M",A25+6)),"") -> 61.02 | N30: =IFERROR(INDIRECT(CONCATENATE("Track1!N",A25+6)),"") -> 
B31: =IFERROR(INDIRECT(CONCATENATE("Track1!B",A25+7)),"") -> 6 | C31: =IFERROR(INDIRECT(CONCATENATE("Track1!C",A25+7)),"") -> 2 | D31: =IFERROR(INDIRECT(CONCATENATE("Track1!D",A25+7)),"") -> VANANATHAN Nithipan | E31: =IFERROR(INDIRECT(CONCATENATE("Track1!E",A25+7)),"") -> Croy | F31: =IFERROR(INDIRECT(CONCATENATE("Track1!F",A25+7)),"") -> 56.14 | G31: =IFERROR(INDIRECT(CONCATENATE("Track1!G",A25+7)),"") ->  | I31: =IFERROR(INDIRECT(CONCATENATE("Track1!I",A25+7)),"") -> 6 | J31: =IFERROR(INDIRECT(CONCATENATE("Track1!J",A25+7)),"") -> 0 | K31: =IFERROR(INDIRECT(CONCATENATE("Track1!K",A25+7)),"") ->  | L31: =IFERROR(INDIRECT(CONCATENATE("Track1!L",A25+7)),"") ->  | M31: =IFERROR(INDIRECT(CONCATENATE("Track1!M",A25+7)),"") -> 0 | N31: =IFERROR(INDIRECT(CONCATENATE("Track1!N",A25+7)),"") -> 
B32: =IFERROR(INDIRECT(CONCATENATE("Track1!B",A25+8)),"") -> 7 | C32: =IFERROR(INDIRECT(CONCATENATE("Track1!C",A25+8)),"") -> 0 | D32: =IFERROR(INDIRECT(CONCATENATE("Track1!D",A25+8)),"") ->  | E32: =IFERROR(INDIRECT(CONCATENATE("Track1!E",A25+8)),"") ->  | F32: =IFERROR(INDIRECT(CONCATENATE("Track1!F",A25+8)),"") -> 0 | G32: =IFERROR(INDIRECT(CONCATENATE("Track1!G",A25+8)),"") ->  | I32: =IFERROR(INDIRECT(CONCATENATE("Track1!I",A25+8)),"") -> 7 | J32: =IFERROR(INDIRECT(CONCATENATE("Track1!J",A25+8)),"") -> 0 | K32: =IFERROR(INDIRECT(CONCATENATE("Track1!K",A25+8)),"") ->  | L32: =IFERROR(INDIRECT(CONCATENATE("Track1!L",A25+8)),"") ->  | M32: =IFERROR(INDIRECT(CONCATENATE("Track1!M",A25+8)),"") -> 0 | N32: =IFERROR(INDIRECT(CONCATENATE("Track1!N",A25+8)),"") -> 
B33: =IFERROR(INDIRECT(CONCATENATE("Track1!B",A25+9)),"") -> 8 | C33: =IFERROR(INDIRECT(CONCATENATE("Track1!C",A25+9)),"") -> 0 | D33: =IFERROR(INDIRECT(CONCATENATE("Track1!D",A25+9)),"") ->  | E33: =IFERROR(INDIRECT(CONCATENATE("Track1!E",A25+9)),"") ->  | F33: =IFERROR(INDIRECT(CONCATENATE("Track1!F",A25+9)),"") -> 0 | G33: =IFERROR(INDIRECT(CONCATENATE("Track1!G",A25+9)),"") ->  | I33: =IFERROR(INDIRECT(CONCATENATE("Track1!I",A25+9)),"") -> 8 | J33: =IFERROR(INDIRECT(CONCATENATE("Track1!J",A25+9)),"") -> 0 | K33: =IFERROR(INDIRECT(CONCATENATE("Track1!K",A25+9)),"") ->  | L33: =IFERROR(INDIRECT(CONCATENATE("Track1!L",A25+9)),"") ->  | M33: =IFERROR(INDIRECT(CONCATENATE("Track1!M",A25+9)),"") -> 0 | N33: =IFERROR(INDIRECT(CONCATENATE("Track1!N",A25+9)),"") -> 
A35: UTD81 | B35: =IFERROR(INDIRECT(CONCATENATE("Track1!B",A36)),"") -> 800m U20 Men A | G35: =Track1!G79 ->  | I35: =IFERROR(INDIRECT(CONCATENATE("Track1!I",A36)),"") -> 800m U20 Men B
A36: =IFERROR(MATCH(A35,Track1!A:A,0),"") -> 222 | B36: =IFERROR(INDIRECT(CONCATENATE("Track1!B",A36+1)),"") -> Posn | C36: =IFERROR(INDIRECT(CONCATENATE("Track1!C",A36+1)),"") -> No. | D36: =IFERROR(INDIRECT(CONCATENATE("Track1!D",A36+1)),"") -> Athlete | E36: =IFERROR(INDIRECT(CONCATENATE("Track1!E",A36+1)),"") -> Club | F36: =IFERROR(INDIRECT(CONCATENATE("Track1!F",A36+1)),"") -> Perf | G36: =IFERROR(INDIRECT(CONCATENATE("Track1!G",A36+1)),"") -> AAA | I36: =IFERROR(INDIRECT(CONCATENATE("Track1!I",A36+1)),"") -> Posn | J36: =IFERROR(INDIRECT(CONCATENATE("Track1!J",A36+1)),"") -> No. | K36: =IFERROR(INDIRECT(CONCATENATE("Track1!K",A36+1)),"") -> Athlete | L36: =IFERROR(INDIRECT(CONCATENATE("Track1!L",A36+1)),"") -> Club | M36: =IFERROR(INDIRECT(CONCATENATE("Track1!M",A36+1)),"") -> Perf | N36: =IFERROR(INDIRECT(CONCATENATE("Track1!N",A36+1)),"") -> AAA
B37: =IFERROR(INDIRECT(CONCATENATE("Track1!B",A36+2)),"") -> 1 | C37: =IFERROR(INDIRECT(CONCATENATE("Track1!C",A36+2)),"") -> 3 | D37: =IFERROR(INDIRECT(CONCATENATE("Track1!D",A36+2)),"") -> DAVIS Ben | E37: =IFERROR(INDIRECT(CONCATENATE("Track1!E",A36+2)),"") -> Have | F37: =IFERROR(INDIRECT(CONCATENATE("Track1!T",A36+2)),"") -> 00:02:00.860 | G37: =IFERROR(INDIRECT(CONCATENATE("Track1!G",A36+2)),"") ->  | I37: =IFERROR(INDIRECT(CONCATENATE("Track1!I",A36+2)),"") -> 1 | J37: =IFERROR(INDIRECT(CONCATENATE("Track1!J",A36+2)),"") -> 33 | K37: =IFERROR(INDIRECT(CONCATENATE("Track1!K",A36+2)),"") -> CORDERY Elliot | L37: =IFERROR(INDIRECT(CONCATENATE("Track1!L",A36+2)),"") -> Have | M37: =IFERROR(INDIRECT(CONCATENATE("Track1!U",A36+2)),"") -> 00:02:02.400 | N37: =IFERROR(INDIRECT(CONCATENATE("Track1!N",A36+2)),"") ->  | R37: =IFERROR(INDIRECT(CONCATENATE("Track1!R",$A36+2)),"") -> 1
B38: =IFERROR(INDIRECT(CONCATENATE("Track1!B",A36+3)),"") -> 2 | C38: =IFERROR(INDIRECT(CONCATENATE("Track1!C",A36+3)),"") -> 6 | D38: =IFERROR(INDIRECT(CONCATENATE("Track1!D",A36+3)),"") -> CRICK Samuel | E38: =IFERROR(INDIRECT(CONCATENATE("Track1!E",A36+3)),"") -> Ton | F38: =IFERROR(INDIRECT(CONCATENATE("Track1!T",A36+3)),"") -> 00:02:03.390 | G38: =IFERROR(INDIRECT(CONCATENATE("Track1!G",A36+3)),"") ->  | I38: =IFERROR(INDIRECT(CONCATENATE("Track1!I",A36+3)),"") -> 2 | J38: =IFERROR(INDIRECT(CONCATENATE("Track1!J",A36+3)),"") -> 22 | K38: =IFERROR(INDIRECT(CONCATENATE("Track1!K",A36+3)),"") -> TAMBLING Robbie X | L38: =IFERROR(INDIRECT(CONCATENATE("Track1!L",A36+3)),"") -> Croy | M38: =IFERROR(INDIRECT(CONCATENATE("Track1!U",A36+3)),"") -> 00:02:09.700 | N38: =IFERROR(INDIRECT(CONCATENATE("Track1!N",A36+3)),"") -> 
B39: =IFERROR(INDIRECT(CONCATENATE("Track1!B",A36+4)),"") -> 3 | C39: =IFERROR(INDIRECT(CONCATENATE("Track1!C",A36+4)),"") -> 1 | D39: =IFERROR(INDIRECT(CONCATENATE("Track1!D",A36+4)),"") -> RASHBROOK Jamie X | E39: =IFERROR(INDIRECT(CONCATENATE("Track1!E",A36+4)),"") -> Bas/NEB | F39: =IFERROR(INDIRECT(CONCATENATE("Track1!T",A36+4)),"") -> 00:02:04.580 | G39: =IFERROR(INDIRECT(CONCATENATE("Track1!G",A36+4)),"") ->  | I39: =IFERROR(INDIRECT(CONCATENATE("Track1!I",A36+4)),"") -> 3 | J39: =IFERROR(INDIRECT(CONCATENATE("Track1!J",A36+4)),"") -> 0 | K39: =IFERROR(INDIRECT(CONCATENATE("Track1!K",A36+4)),"") ->  | L39: =IFERROR(INDIRECT(CONCATENATE("Track1!L",A36+4)),"") ->  | M39: =IFERROR(INDIRECT(CONCATENATE("Track1!U",A36+4)),"") -> 00:00:00 | N39: =IFERROR(INDIRECT(CONCATENATE("Track1!N",A36+4)),"") -> 
B40: =IFERROR(INDIRECT(CONCATENATE("Track1!B",A36+5)),"") -> 4 | C40: =IFERROR(INDIRECT(CONCATENATE("Track1!C",A36+5)),"") -> 2 | D40: =IFERROR(INDIRECT(CONCATENATE("Track1!D",A36+5)),"") -> AIMIA Tim | E40: =IFERROR(INDIRECT(CONCATENATE("Track1!E",A36+5)),"") -> Croy | F40: =IFERROR(INDIRECT(CONCATENATE("Track1!T",A36+5)),"") -> 00:02:06.770 | G40: =IFERROR(INDIRECT(CONCATENATE("Track1!G",A36+5)),"") ->  | I40: =IFERROR(INDIRECT(CONCATENATE("Track1!I",A36+5)),"") -> 4 | J40: =IFERROR(INDIRECT(CONCATENATE("Track1!J",A36+5)),"") -> 0 | K40: =IFERROR(INDIRECT(CONCATENATE("Track1!K",A36+5)),"") ->  | L40: =IFERROR(INDIRECT(CONCATENATE("Track1!L",A36+5)),"") ->  | M40: =IFERROR(INDIRECT(CONCATENATE("Track1!U",A36+5)),"") -> 00:00:00 | N40: =IFERROR(INDIRECT(CONCATENATE("Track1!N",A36+5)),"") -> 
B41: =IFERROR(INDIRECT(CONCATENATE("Track1!B",A36+6)),"") -> 5 | C41: =IFERROR(INDIRECT(CONCATENATE("Track1!C",A36+6)),"") -> 5 | D41: =IFERROR(INDIRECT(CONCATENATE("Track1!D",A36+6)),"") -> TREMAIN HARRISON | E41: =IFERROR(INDIRECT(CONCATENATE("Track1!E",A36+6)),"") -> ATIP | F41: =IFERROR(INDIRECT(CONCATENATE("Track1!T",A36+6)),"") -> 00:02:07.890 | G41: =IFERROR(INDIRECT(CONCATENATE("Track1!G",A36+6)),"") ->  | I41: =IFERROR(INDIRECT(CONCATENATE("Track1!I",A36+6)),"") -> 5 | J41: =IFERROR(INDIRECT(CONCATENATE("Track1!J",A36+6)),"") -> 0 | K41: =IFERROR(INDIRECT(CONCATENATE("Track1!K",A36+6)),"") ->  | L41: =IFERROR(INDIRECT(CONCATENATE("Track1!L",A36+6)),"") ->  | M41: =IFERROR(INDIRECT(CONCATENATE("Track1!U",A36+6)),"") -> 00:00:00 | N41: =IFERROR(INDIRECT(CONCATENATE("Track1!N",A36+6)),"") -> 
B42: =IFERROR(INDIRECT(CONCATENATE("Track1!B",A36+7)),"") -> 6 | C42: =IFERROR(INDIRECT(CONCATENATE("Track1!C",A36+7)),"") -> 0 | D42: =IFERROR(INDIRECT(CONCATENATE("Track1!D",A36+7)),"") ->  | E42: =IFERROR(INDIRECT(CONCATENATE("Track1!E",A36+7)),"") ->  | F42: =IFERROR(INDIRECT(CONCATENATE("Track1!T",A36+7)),"") -> 00:00:00 | G42: =IFERROR(INDIRECT(CONCATENATE("Track1!G",A36+7)),"") ->  | I42: =IFERROR(INDIRECT(CONCATENATE("Track1!I",A36+7)),"") -> 6 | J42: =IFERROR(INDIRECT(CONCATENATE("Track1!J",A36+7)),"") -> 0 | K42: =IFERROR(INDIRECT(CONCATENATE("Track1!K",A36+7)),"") ->  | L42: =IFERROR(INDIRECT(CONCATENATE("Track1!L",A36+7)),"") ->  | M42: =IFERROR(INDIRECT(CONCATENATE("Track1!U",A36+7)),"") -> 00:00:00 | N42: =IFERROR(INDIRECT(CONCATENATE("Track1!N",A36+7)),"") -> 
B43: =IFERROR(INDIRECT(CONCATENATE("Track1!B",A36+8)),"") -> 7 | C43: =IFERROR(INDIRECT(CONCATENATE("Track1!C",A36+8)),"") -> 0 | D43: =IFERROR(INDIRECT(CONCATENATE("Track1!D",A36+8)),"") ->  | E43: =IFERROR(INDIRECT(CONCATENATE("Track1!E",A36+8)),"") ->  | F43: =IFERROR(INDIRECT(CONCATENATE("Track1!T",A36+8)),"") -> 00:00:00 | G43: =IFERROR(INDIRECT(CONCATENATE("Track1!G",A36+8)),"") ->  | I43: =IFERROR(INDIRECT(CONCATENATE("Track1!I",A36+8)),"") -> 7 | J43: =IFERROR(INDIRECT(CONCATENATE("Track1!J",A36+8)),"") -> 0 | K43: =IFERROR(INDIRECT(CONCATENATE("Track1!K",A36+8)),"") ->  | L43: =IFERROR(INDIRECT(CONCATENATE("Track1!L",A36+8)),"") ->  | M43: =IFERROR(INDIRECT(CONCATENATE("Track1!U",A36+8)),"") -> 00:00:00 | N43: =IFERROR(INDIRECT(CONCATENATE("Track1!N",A36+8)),"") -> 
B44: =IFERROR(INDIRECT(CONCATENATE("Track1!B",A36+9)),"") -> 8 | C44: =IFERROR(INDIRECT(CONCATENATE("Track1!C",A36+9)),"") -> 0 | D44: =IFERROR(INDIRECT(CONCATENATE("Track1!D",A36+9)),"") ->  | E44: =IFERROR(INDIRECT(CONCATENATE("Track1!E",A36+9)),"") ->  | F44: =IFERROR(INDIRECT(CONCATENATE("Track1!T",A36+9)),"") -> 00:00:00 | G44: =IFERROR(INDIRECT(CONCATENATE("Track1!G",A36+9)),"") ->  | I44: =IFERROR(INDIRECT(CONCATENATE("Track1!I",A36+9)),"") -> 8 | J44: =IFERROR(INDIRECT(CONCATENATE("Track1!J",A36+9)),"") -> 0 | K44: =IFERROR(INDIRECT(CONCATENATE("Track1!K",A36+9)),"") ->  | L44: =IFERROR(INDIRECT(CONCATENATE("Track1!L",A36+9)),"") ->  | M44: =IFERROR(INDIRECT(CONCATENATE("Track1!U",A36+9)),"") -> 00:00:00 | N44: =IFERROR(INDIRECT(CONCATENATE("Track1!N",A36+9)),"") -> 
A46: UTD01 | B46: =IFERROR(INDIRECT(CONCATENATE("Track2!B",A47)),"") -> 1500m U20 Men A | G46: =Track1!G90 ->  | I46: =IFERROR(INDIRECT(CONCATENATE("Track2!I",A47)),"") -> 1500m U20 Men B
A47: =IFERROR(MATCH(A46,Track2!A:A,0),"") -> 2 | B47: =IFERROR(INDIRECT(CONCATENATE("Track2!B",A47+1)),"") -> Posn | C47: =IFERROR(INDIRECT(CONCATENATE("Track2!C",A47+1)),"") -> No. | D47: =IFERROR(INDIRECT(CONCATENATE("Track2!D",A47+1)),"") -> Athlete | E47: =IFERROR(INDIRECT(CONCATENATE("Track2!E",A47+1)),"") -> Club | F47: =IFERROR(INDIRECT(CONCATENATE("Track2!F",A47+1)),"") -> Perf | G47: =IFERROR(INDIRECT(CONCATENATE("Track2!G",A47+1)),"") -> AAA | I47: =IFERROR(INDIRECT(CONCATENATE("Track2!I",A47+1)),"") -> Posn | J47: =IFERROR(INDIRECT(CONCATENATE("Track2!J",A47+1)),"") -> No. | K47: =IFERROR(INDIRECT(CONCATENATE("Track2!K",A47+1)),"") -> Athlete | L47: =IFERROR(INDIRECT(CONCATENATE("Track2!L",A47+1)),"") -> Club | M47: =IFERROR(INDIRECT(CONCATENATE("Track2!M",A47+1)),"") -> Perf | N47: =IFERROR(INDIRECT(CONCATENATE("Track2!N",A47+1)),"") -> AAA
B48: =IFERROR(INDIRECT(CONCATENATE("Track2!B",A47+2)),"") -> 1 | C48: =IFERROR(INDIRECT(CONCATENATE("Track2!C",A47+2)),"") -> 3 | D48: =IFERROR(INDIRECT(CONCATENATE("Track2!D",A47+2)),"") -> KEEVIL Thomas | E48: =IFERROR(INDIRECT(CONCATENATE("Track2!E",A47+2)),"") -> Have | F48: =IFERROR(INDIRECT(CONCATENATE("Track2!F",A47+2)),"") -> 00:04:08.150 | G48: =IFERROR(INDIRECT(CONCATENATE("Track2!G",A47+2)),"") ->  | I48: =IFERROR(INDIRECT(CONCATENATE("Track2!I",A47+2)),"") -> 1 | J48: =IFERROR(INDIRECT(CONCATENATE("Track2!J",A47+2)),"") -> 66 | K48: =IFERROR(INDIRECT(CONCATENATE("Track2!K",A47+2)),"") -> PITCAIRN-KNOWLES Bede | L48: =IFERROR(INDIRECT(CONCATENATE("Track2!L",A47+2)),"") -> Ton | M48: =IFERROR(INDIRECT(CONCATENATE("Track2!M",A47+2)),"") -> 00:04:16.740 | N48: =IFERROR(INDIRECT(CONCATENATE("Track2!N",A47+2)),"") ->  | R48: =IFERROR(INDIRECT(CONCATENATE("Track2!R",$A47+2)),"") -> 1
B49: =IFERROR(INDIRECT(CONCATENATE("Track2!B",A47+3)),"") -> 2 | C49: =IFERROR(INDIRECT(CONCATENATE("Track2!C",A47+3)),"") -> 6 | D49: =IFERROR(INDIRECT(CONCATENATE("Track2!D",A47+3)),"") -> GOODGE Jamie | E49: =IFERROR(INDIRECT(CONCATENATE("Track2!E",A47+3)),"") -> Ton | F49: =IFERROR(INDIRECT(CONCATENATE("Track2!F",A47+3)),"") -> 00:04:11.450 | G49: =IFERROR(INDIRECT(CONCATENATE("Track2!G",A47+3)),"") ->  | I49: =IFERROR(INDIRECT(CONCATENATE("Track2!I",A47+3)),"") -> 2 | J49: =IFERROR(INDIRECT(CONCATENATE("Track2!J",A47+3)),"") -> 33 | K49: =IFERROR(INDIRECT(CONCATENATE("Track2!K",A47+3)),"") -> O'HARA Kieran | L49: =IFERROR(INDIRECT(CONCATENATE("Track2!L",A47+3)),"") -> Have | M49: =IFERROR(INDIRECT(CONCATENATE("Track2!M",A47+3)),"") -> 00:04:23.730 | N49: =IFERROR(INDIRECT(CONCATENATE("Track2!N",A47+3)),"") -> 
B50: =IFERROR(INDIRECT(CONCATENATE("Track2!B",A47+4)),"") -> 3 | C50: =IFERROR(INDIRECT(CONCATENATE("Track2!C",A47+4)),"") -> 1 | D50: =IFERROR(INDIRECT(CONCATENATE("Track2!D",A47+4)),"") -> BROWN Isaac | E50: =IFERROR(INDIRECT(CONCATENATE("Track2!E",A47+4)),"") -> Bas/NEB | F50: =IFERROR(INDIRECT(CONCATENATE("Track2!F",A47+4)),"") -> 00:04:15.700 | G50: =IFERROR(INDIRECT(CONCATENATE("Track2!G",A47+4)),"") ->  | I50: =IFERROR(INDIRECT(CONCATENATE("Track2!I",A47+4)),"") -> 3 | J50: =IFERROR(INDIRECT(CONCATENATE("Track2!J",A47+4)),"") ->  | K50: =IFERROR(INDIRECT(CONCATENATE("Track2!K",A47+4)),"") ->  | L50: =IFERROR(INDIRECT(CONCATENATE("Track2!L",A47+4)),"") ->  | M50: =IFERROR(INDIRECT(CONCATENATE("Track2!M",A47+4)),"") ->  | N50: =IFERROR(INDIRECT(CONCATENATE("Track2!N",A47+4)),"") -> 
B51: =IFERROR(INDIRECT(CONCATENATE("Track2!B",A47+5)),"") -> 4 | C51: =IFERROR(INDIRECT(CONCATENATE("Track2!C",A47+5)),"") -> 5 | D51: =IFERROR(INDIRECT(CONCATENATE("Track2!D",A47+5)),"") -> YOUNG HARRY | E51: =IFERROR(INDIRECT(CONCATENATE("Track2!E",A47+5)),"") -> ATIP | F51: =IFERROR(INDIRECT(CONCATENATE("Track2!F",A47+5)),"") -> 00:04:41.780 | G51: =IFERROR(INDIRECT(CONCATENATE("Track2!G",A47+5)),"") ->  | I51: =IFERROR(INDIRECT(CONCATENATE("Track2!I",A47+5)),"") -> 4 | J51: =IFERROR(INDIRECT(CONCATENATE("Track2!J",A47+5)),"") ->  | K51: =IFERROR(INDIRECT(CONCATENATE("Track2!K",A47+5)),"") ->  | L51: =IFERROR(INDIRECT(CONCATENATE("Track2!L",A47+5)),"") ->  | M51: =IFERROR(INDIRECT(CONCATENATE("Track2!M",A47+5)),"") ->  | N51: =IFERROR(INDIRECT(CONCATENATE("Track2!N",A47+5)),"") -> 
B52: =IFERROR(INDIRECT(CONCATENATE("Track2!B",A47+6)),"") -> 5 | C52: =IFERROR(INDIRECT(CONCATENATE("Track2!C",A47+6)),"") -> 2 | D52: =IFERROR(INDIRECT(CONCATENATE("Track2!D",A47+6)),"") -> FLANAGAN Isaac X | E52: =IFERROR(INDIRECT(CONCATENATE("Track2!E",A47+6)),"") -> Croy | F52: =IFERROR(INDIRECT(CONCATENATE("Track2!F",A47+6)),"") -> 00:04:53.040 | G52: =IFERROR(INDIRECT(CONCATENATE("Track2!G",A47+6)),"") ->  | I52: =IFERROR(INDIRECT(CONCATENATE("Track2!I",A47+6)),"") -> 5 | J52: =IFERROR(INDIRECT(CONCATENATE("Track2!J",A47+6)),"") ->  | K52: =IFERROR(INDIRECT(CONCATENATE("Track2!K",A47+6)),"") ->  | L52: =IFERROR(INDIRECT(CONCATENATE("Track2!L",A47+6)),"") ->  | M52: =IFERROR(INDIRECT(CONCATENATE("Track2!M",A47+6)),"") ->  | N52: =IFERROR(INDIRECT(CONCATENATE("Track2!N",A47+6)),"") -> 
B53: =IFERROR(INDIRECT(CONCATENATE("Track2!B",A47+7)),"") -> 6 | C53: =IFERROR(INDIRECT(CONCATENATE("Track2!C",A47+7)),"") ->  | D53: =IFERROR(INDIRECT(CONCATENATE("Track2!D",A47+7)),"") ->  | E53: =IFERROR(INDIRECT(CONCATENATE("Track2!E",A47+7)),"") ->  | F53: =IFERROR(INDIRECT(CONCATENATE("Track2!F",A47+7)),"") ->  | G53: =IFERROR(INDIRECT(CONCATENATE("Track2!G",A47+7)),"") ->  | I53: =IFERROR(INDIRECT(CONCATENATE("Track2!I",A47+7)),"") -> 6 | J53: =IFERROR(INDIRECT(CONCATENATE("Track2!J",A47+7)),"") ->  | K53: =IFERROR(INDIRECT(CONCATENATE("Track2!K",A47+7)),"") ->  | L53: =IFERROR(INDIRECT(CONCATENATE("Track2!L",A47+7)),"") ->  | M53: =IFERROR(INDIRECT(CONCATENATE("Track2!M",A47+7)),"") ->  | N53: =IFERROR(INDIRECT(CONCATENATE("Track2!N",A47+7)),"") -> 
B54: =IFERROR(INDIRECT(CONCATENATE("Track2!B",A47+8)),"") -> 7 | C54: =IFERROR(INDIRECT(CONCATENATE("Track2!C",A47+8)),"") ->  | D54: =IFERROR(INDIRECT(CONCATENATE("Track2!D",A47+8)),"") ->  | E54: =IFERROR(INDIRECT(CONCATENATE("Track2!E",A47+8)),"") ->  | F54: =IFERROR(INDIRECT(CONCATENATE("Track2!F",A47+8)),"") ->  | G54: =IFERROR(INDIRECT(CONCATENATE("Track2!G",A47+8)),"") ->  | I54: =IFERROR(INDIRECT(CONCATENATE("Track2!I",A47+8)),"") -> 7 | J54: =IFERROR(INDIRECT(CONCATENATE("Track2!J",A47+8)),"") ->  | K54: =IFERROR(INDIRECT(CONCATENATE("Track2!K",A47+8)),"") ->  | L54: =IFERROR(INDIRECT(CONCATENATE("Track2!L",A47+8)),"") ->  | M54: =IFERROR(INDIRECT(CONCATENATE("Track2!M",A47+8)),"") ->  | N54: =IFERROR(INDIRECT(CONCATENATE("Track2!N",A47+8)),"") -> 
B55: =IFERROR(INDIRECT(CONCATENATE("Track2!B",A47+9)),"") -> 8 | C55: =IFERROR(INDIRECT(CONCATENATE("Track2!C",A47+9)),"") ->  | D55: =IFERROR(INDIRECT(CONCATENATE("Track2!D",A47+9)),"") ->  | E55: =IFERROR(INDIRECT(CONCATENATE("Track2!E",A47+9)),"") ->  | F55: =IFERROR(INDIRECT(CONCATENATE("Track2!F",A47+9)),"") ->  | G55: =IFERROR(INDIRECT(CONCATENATE("Track2!G",A47+9)),"") ->  | I55: =IFERROR(INDIRECT(CONCATENATE("Track2!I",A47+9)),"") -> 8 | J55: =IFERROR(INDIRECT(CONCATENATE("Track2!J",A47+9)),"") ->  | K55: =IFERROR(INDIRECT(CONCATENATE("Track2!K",A47+9)),"") ->  | L55: =IFERROR(INDIRECT(CONCATENATE("Track2!L",A47+9)),"") ->  | M55: =IFERROR(INDIRECT(CONCATENATE("Track2!M",A47+9)),"") ->  | N55: =IFERROR(INDIRECT(CONCATENATE("Track2!N",A47+9)),"") -> 
A57: UTD06 | B57: =IFERROR(INDIRECT(CONCATENATE("Track2!B",A58)),"") -> 3000m U20 Men A | G57: =Track1!G101 ->  | I57: =IFERROR(INDIRECT(CONCATENATE("Track2!I",A58)),"") -> 3000m U20 Men B
A58: =IFERROR(MATCH(A57,Track2!A:A,0),"") -> 57 | B58: =IFERROR(INDIRECT(CONCATENATE("Track2!B",A58+1)),"") -> Posn | C58: =IFERROR(INDIRECT(CONCATENATE("Track2!C",A58+1)),"") -> No. | D58: =IFERROR(INDIRECT(CONCATENATE("Track2!D",A58+1)),"") -> Athlete | E58: =IFERROR(INDIRECT(CONCATENATE("Track2!E",A58+1)),"") -> Club | F58: =IFERROR(INDIRECT(CONCATENATE("Track2!F",A58+1)),"") -> Perf | G58: =IFERROR(INDIRECT(CONCATENATE("Track2!G",A58+1)),"") -> AAA | I58: =IFERROR(INDIRECT(CONCATENATE("Track2!I",A58+1)),"") -> Posn | J58: =IFERROR(INDIRECT(CONCATENATE("Track2!J",A58+1)),"") -> No. | K58: =IFERROR(INDIRECT(CONCATENATE("Track2!K",A58+1)),"") -> Athlete | L58: =IFERROR(INDIRECT(CONCATENATE("Track2!L",A58+1)),"") -> Club | M58: =IFERROR(INDIRECT(CONCATENATE("Track2!M",A58+1)),"") -> Perf | N58: =IFERROR(INDIRECT(CONCATENATE("Track2!N",A58+1)),"") -> AAA
B59: =IFERROR(INDIRECT(CONCATENATE("Track2!B",A58+2)),"") -> 1 | C59: =IFERROR(INDIRECT(CONCATENATE("Track2!C",A58+2)),"") -> 1 | D59: =IFERROR(INDIRECT(CONCATENATE("Track2!D",A58+2)),"") -> SMITH Harrison | E59: =IFERROR(INDIRECT(CONCATENATE("Track2!E",A58+2)),"") -> Bas/NEB | F59: =IFERROR(INDIRECT(CONCATENATE("Track2!F",A58+2)),"") -> 00:09:15.670 | G59: =IFERROR(INDIRECT(CONCATENATE("Track2!G",A58+2)),"") ->  | I59: =IFERROR(INDIRECT(CONCATENATE("Track2!I",A58+2)),"") -> 1 | J59: =IFERROR(INDIRECT(CONCATENATE("Track2!J",A58+2)),"") -> 33 | K59: =IFERROR(INDIRECT(CONCATENATE("Track2!K",A58+2)),"") -> STEWART James | L59: =IFERROR(INDIRECT(CONCATENATE("Track2!L",A58+2)),"") -> Have | M59: =IFERROR(INDIRECT(CONCATENATE("Track2!M",A58+2)),"") -> 00:09:58.640 | N59: =IFERROR(INDIRECT(CONCATENATE("Track2!N",A58+2)),"") ->  | R59: =IFERROR(INDIRECT(CONCATENATE("Track2!R",$A58+2)),"") -> 1
B60: =IFERROR(INDIRECT(CONCATENATE("Track2!B",A58+3)),"") -> 2 | C60: =IFERROR(INDIRECT(CONCATENATE("Track2!C",A58+3)),"") -> 3 | D60: =IFERROR(INDIRECT(CONCATENATE("Track2!D",A58+3)),"") -> ATKINS Samuel | E60: =IFERROR(INDIRECT(CONCATENATE("Track2!E",A58+3)),"") -> Have | F60: =IFERROR(INDIRECT(CONCATENATE("Track2!F",A58+3)),"") -> 00:09:18.370 | G60: =IFERROR(INDIRECT(CONCATENATE("Track2!G",A58+3)),"") ->  | I60: =IFERROR(INDIRECT(CONCATENATE("Track2!I",A58+3)),"") -> 2 | J60: =IFERROR(INDIRECT(CONCATENATE("Track2!J",A58+3)),"") ->  | K60: =IFERROR(INDIRECT(CONCATENATE("Track2!K",A58+3)),"") ->  | L60: =IFERROR(INDIRECT(CONCATENATE("Track2!L",A58+3)),"") ->  | M60: =IFERROR(INDIRECT(CONCATENATE("Track2!M",A58+3)),"") ->  | N60: =IFERROR(INDIRECT(CONCATENATE("Track2!N",A58+3)),"") -> 
B61: =IFERROR(INDIRECT(CONCATENATE("Track2!B",A58+4)),"") -> 3 | C61: =IFERROR(INDIRECT(CONCATENATE("Track2!C",A58+4)),"") -> 6 | D61: =IFERROR(INDIRECT(CONCATENATE("Track2!D",A58+4)),"") -> PITCAIRN-KNOWLES Bede | E61: =IFERROR(INDIRECT(CONCATENATE("Track2!E",A58+4)),"") -> Ton | F61: =IFERROR(INDIRECT(CONCATENATE("Track2!F",A58+4)),"") -> 00:09:55.610 | G61: =IFERROR(INDIRECT(CONCATENATE("Track2!G",A58+4)),"") ->  | I61: =IFERROR(INDIRECT(CONCATENATE("Track2!I",A58+4)),"") -> 3 | J61: =IFERROR(INDIRECT(CONCATENATE("Track2!J",A58+4)),"") ->  | K61: =IFERROR(INDIRECT(CONCATENATE("Track2!K",A58+4)),"") ->  | L61: =IFERROR(INDIRECT(CONCATENATE("Track2!L",A58+4)),"") ->  | M61: =IFERROR(INDIRECT(CONCATENATE("Track2!M",A58+4)),"") ->  | N61: =IFERROR(INDIRECT(CONCATENATE("Track2!N",A58+4)),"") -> 
B62: =IFERROR(INDIRECT(CONCATENATE("Track2!B",A58+5)),"") -> 4 | C62: =IFERROR(INDIRECT(CONCATENATE("Track2!C",A58+5)),"") ->  | D62: =IFERROR(INDIRECT(CONCATENATE("Track2!D",A58+5)),"") ->  | E62: =IFERROR(INDIRECT(CONCATENATE("Track2!E",A58+5)),"") ->  | F62: =IFERROR(INDIRECT(CONCATENATE("Track2!F",A58+5)),"") ->  | G62: =IFERROR(INDIRECT(CONCATENATE("Track2!G",A58+5)),"") ->  | I62: =IFERROR(INDIRECT(CONCATENATE("Track2!I",A58+5)),"") -> 4 | J62: =IFERROR(INDIRECT(CONCATENATE("Track2!J",A58+5)),"") ->  | K62: =IFERROR(INDIRECT(CONCATENATE("Track2!K",A58+5)),"") ->  | L62: =IFERROR(INDIRECT(CONCATENATE("Track2!L",A58+5)),"") ->  | M62: =IFERROR(INDIRECT(CONCATENATE("Track2!M",A58+5)),"") ->  | N62: =IFERROR(INDIRECT(CONCATENATE("Track2!N",A58+5)),"") -> 
B63: =IFERROR(INDIRECT(CONCATENATE("Track2!B",A58+6)),"") -> 5 | C63: =IFERROR(INDIRECT(CONCATENATE("Track2!C",A58+6)),"") ->  | D63: =IFERROR(INDIRECT(CONCATENATE("Track2!D",A58+6)),"") ->  | E63: =IFERROR(INDIRECT(CONCATENATE("Track2!E",A58+6)),"") ->  | F63: =IFERROR(INDIRECT(CONCATENATE("Track2!F",A58+6)),"") ->  | G63: =IFERROR(INDIRECT(CONCATENATE("Track2!G",A58+6)),"") ->  | I63: =IFERROR(INDIRECT(CONCATENATE("Track2!I",A58+6)),"") -> 5 | J63: =IFERROR(INDIRECT(CONCATENATE("Track2!J",A58+6)),"") ->  | K63: =IFERROR(INDIRECT(CONCATENATE("Track2!K",A58+6)),"") ->  | L63: =IFERROR(INDIRECT(CONCATENATE("Track2!L",A58+6)),"") ->  | M63: =IFERROR(INDIRECT(CONCATENATE("Track2!M",A58+6)),"") ->  | N63: =IFERROR(INDIRECT(CONCATENATE("Track2!N",A58+6)),"") -> 
B64: =IFERROR(INDIRECT(CONCATENATE("Track2!B",A58+7)),"") -> 6 | C64: =IFERROR(INDIRECT(CONCATENATE("Track2!C",A58+7)),"") ->  | D64: =IFERROR(INDIRECT(CONCATENATE("Track2!D",A58+7)),"") ->  | E64: =IFERROR(INDIRECT(CONCATENATE("Track2!E",A58+7)),"") ->  | F64: =IFERROR(INDIRECT(CONCATENATE("Track2!F",A58+7)),"") ->  | G64: =IFERROR(INDIRECT(CONCATENATE("Track2!G",A58+7)),"") ->  | I64: =IFERROR(INDIRECT(CONCATENATE("Track2!I",A58+7)),"") -> 6 | J64: =IFERROR(INDIRECT(CONCATENATE("Track2!J",A58+7)),"") ->  | K64: =IFERROR(INDIRECT(CONCATENATE("Track2!K",A58+7)),"") ->  | L64: =IFERROR(INDIRECT(CONCATENATE("Track2!L",A58+7)),"") ->  | M64: =IFERROR(INDIRECT(CONCATENATE("Track2!M",A58+7)),"") ->  | N64: =IFERROR(INDIRECT(CONCATENATE("Track2!N",A58+7)),"") -> 
B65: =IFERROR(INDIRECT(CONCATENATE("Track2!B",A58+8)),"") -> 7 | C65: =IFERROR(INDIRECT(CONCATENATE("Track2!C",A58+8)),"") ->  | D65: =IFERROR(INDIRECT(CONCATENATE("Track2!D",A58+8)),"") ->  | E65: =IFERROR(INDIRECT(CONCATENATE("Track2!E",A58+8)),"") ->  | F65: =IFERROR(INDIRECT(CONCATENATE("Track2!F",A58+8)),"") ->  | G65: =IFERROR(INDIRECT(CONCATENATE("Track2!G",A58+8)),"") ->  | I65: =IFERROR(INDIRECT(CONCATENATE("Track2!I",A58+8)),"") -> 7 | J65: =IFERROR(INDIRECT(CONCATENATE("Track2!J",A58+8)),"") ->  | K65: =IFERROR(INDIRECT(CONCATENATE("Track2!K",A58+8)),"") ->  | L65: =IFERROR(INDIRECT(CONCATENATE("Track2!L",A58+8)),"") ->  | M65: =IFERROR(INDIRECT(CONCATENATE("Track2!M",A58+8)),"") ->  | N65: =IFERROR(INDIRECT(CONCATENATE("Track2!N",A58+8)),"") -> 
B66: =IFERROR(INDIRECT(CONCATENATE("Track2!B",A58+9)),"") -> 8 | C66: =IFERROR(INDIRECT(CONCATENATE("Track2!C",A58+9)),"") ->  | D66: =IFERROR(INDIRECT(CONCATENATE("Track2!D",A58+9)),"") ->  | E66: =IFERROR(INDIRECT(CONCATENATE("Track2!E",A58+9)),"") ->  | F66: =IFERROR(INDIRECT(CONCATENATE("Track2!F",A58+9)),"") ->  | G66: =IFERROR(INDIRECT(CONCATENATE("Track2!G",A58+9)),"") ->  | I66: =IFERROR(INDIRECT(CONCATENATE("Track2!I",A58+9)),"") -> 8 | J66: =IFERROR(INDIRECT(CONCATENATE("Track2!J",A58+9)),"") ->  | K66: =IFERROR(INDIRECT(CONCATENATE("Track2!K",A58+9)),"") ->  | L66: =IFERROR(INDIRECT(CONCATENATE("Track2!L",A58+9)),"") ->  | M66: =IFERROR(INDIRECT(CONCATENATE("Track2!M",A58+9)),"") ->  | N66: =IFERROR(INDIRECT(CONCATENATE("Track2!N",A58+9)),"") -> 
A68: UT16 | B68: =IFERROR(INDIRECT(CONCATENATE("Track1!B",A69)),"") -> 110m Hurdles U20 Men A | E68: Wind | F68: =IFERROR(INDIRECT(CONCATENATE("Track1!F",$A69)),"") -> 0 | G68: =Track1!G112 ->  | I68: =IFERROR(INDIRECT(CONCATENATE("Track1!I",A69)),"") -> 110m Hurdles U20 Men B | L68: Wind | M68: =IFERROR(INDIRECT(CONCATENATE("Track1!M",A69)),"") -> 0
A69: =IFERROR(MATCH(A68,Track1!A:A,0),"") -> 167 | B69: =IFERROR(INDIRECT(CONCATENATE("Track1!B",A69+1)),"") -> Posn | C69: =IFERROR(INDIRECT(CONCATENATE("Track1!C",A69+1)),"") -> No. | D69: =IFERROR(INDIRECT(CONCATENATE("Track1!D",A69+1)),"") -> Athlete | E69: =IFERROR(INDIRECT(CONCATENATE("Track1!E",A69+1)),"") -> Club | F69: =IFERROR(INDIRECT(CONCATENATE("Track1!F",A69+1)),"") -> Perf | G69: =IFERROR(INDIRECT(CONCATENATE("Track1!G",A69+1)),"") -> AAA | I69: =IFERROR(INDIRECT(CONCATENATE("Track1!I",A69+1)),"") -> Posn | J69: =IFERROR(INDIRECT(CONCATENATE("Track1!J",A69+1)),"") -> No. | K69: =IFERROR(INDIRECT(CONCATENATE("Track1!K",A69+1)),"") -> Athlete | L69: =IFERROR(INDIRECT(CONCATENATE("Track1!L",A69+1)),"") -> Club | M69: =IFERROR(INDIRECT(CONCATENATE("Track1!M",A69+1)),"") -> Perf | N69: =IFERROR(INDIRECT(CONCATENATE("Track1!N",A69+1)),"") -> AAA
B70: =IFERROR(INDIRECT(CONCATENATE("Track1!B",A69+2)),"") -> 1 | C70: =IFERROR(INDIRECT(CONCATENATE("Track1!C",A69+2)),"") -> 1 | D70: =IFERROR(INDIRECT(CONCATENATE("Track1!D",A69+2)),"") -> ADEYEYE William | E70: =IFERROR(INDIRECT(CONCATENATE("Track1!E",A69+2)),"") -> Bas/NEB | F70: =IFERROR(INDIRECT(CONCATENATE("Track1!F",A69+2)),"") -> 14.97 | G70: =IFERROR(INDIRECT(CONCATENATE("Track1!G",A69+2)),"") -> 3 | I70: =IFERROR(INDIRECT(CONCATENATE("Track1!I",A69+2)),"") -> 1 | J70: =IFERROR(INDIRECT(CONCATENATE("Track1!J",A69+2)),"") -> 0 | K70: =IFERROR(INDIRECT(CONCATENATE("Track1!K",A69+2)),"") ->  | L70: =IFERROR(INDIRECT(CONCATENATE("Track1!L",A69+2)),"") ->  | M70: =IFERROR(INDIRECT(CONCATENATE("Track1!M",A69+2)),"") -> 0 | N70: =IFERROR(INDIRECT(CONCATENATE("Track1!N",A69+2)),"") ->  | R70: =IFERROR(INDIRECT(CONCATENATE("Track1!R",$A69+2)),"") -> 1
B71: =IFERROR(INDIRECT(CONCATENATE("Track1!B",A69+3)),"") -> 2 | C71: =IFERROR(INDIRECT(CONCATENATE("Track1!C",A69+3)),"") -> 2 | D71: =IFERROR(INDIRECT(CONCATENATE("Track1!D",A69+3)),"") -> RODRIQUES Ezra | E71: =IFERROR(INDIRECT(CONCATENATE("Track1!E",A69+3)),"") -> Croy | F71: =IFERROR(INDIRECT(CONCATENATE("Track1!F",A69+3)),"") -> 15.18 | G71: =IFERROR(INDIRECT(CONCATENATE("Track1!G",A69+3)),"") -> 3 | I71: =IFERROR(INDIRECT(CONCATENATE("Track1!I",A69+3)),"") -> 2 | J71: =IFERROR(INDIRECT(CONCATENATE("Track1!J",A69+3)),"") -> 0 | K71: =IFERROR(INDIRECT(CONCATENATE("Track1!K",A69+3)),"") ->  | L71: =IFERROR(INDIRECT(CONCATENATE("Track1!L",A69+3)),"") ->  | M71: =IFERROR(INDIRECT(CONCATENATE("Track1!M",A69+3)),"") -> 0 | N71: =IFERROR(INDIRECT(CONCATENATE("Track1!N",A69+3)),"") -> 
B72: =IFERROR(INDIRECT(CONCATENATE("Track1!B",A69+4)),"") -> 3 | C72: =IFERROR(INDIRECT(CONCATENATE("Track1!C",A69+4)),"") -> 5 | D72: =IFERROR(INDIRECT(CONCATENATE("Track1!D",A69+4)),"") -> FARRALL KONRAD | E72: =IFERROR(INDIRECT(CONCATENATE("Track1!E",A69+4)),"") -> ATIP | F72: =IFERROR(INDIRECT(CONCATENATE("Track1!F",A69+4)),"") -> 16.15 | G72: =IFERROR(INDIRECT(CONCATENATE("Track1!G",A69+4)),"") ->  | I72: =IFERROR(INDIRECT(CONCATENATE("Track1!I",A69+4)),"") -> 3 | J72: =IFERROR(INDIRECT(CONCATENATE("Track1!J",A69+4)),"") -> 0 | K72: =IFERROR(INDIRECT(CONCATENATE("Track1!K",A69+4)),"") ->  | L72: =IFERROR(INDIRECT(CONCATENATE("Track1!L",A69+4)),"") ->  | M72: =IFERROR(INDIRECT(CONCATENATE("Track1!M",A69+4)),"") -> 0 | N72: =IFERROR(INDIRECT(CONCATENATE("Track1!N",A69+4)),"") -> 
B73: =IFERROR(INDIRECT(CONCATENATE("Track1!B",A69+5)),"") -> 4 | C73: =IFERROR(INDIRECT(CONCATENATE("Track1!C",A69+5)),"") -> 3 | D73: =IFERROR(INDIRECT(CONCATENATE("Track1!D",A69+5)),"") -> 0 | E73: =IFERROR(INDIRECT(CONCATENATE("Track1!E",A69+5)),"") -> Have | F73: =IFERROR(INDIRECT(CONCATENATE("Track1!F",A69+5)),"") -> X | G73: =IFERROR(INDIRECT(CONCATENATE("Track1!G",A69+5)),"") ->  | I73: =IFERROR(INDIRECT(CONCATENATE("Track1!I",A69+5)),"") -> 4 | J73: =IFERROR(INDIRECT(CONCATENATE("Track1!J",A69+5)),"") -> 0 | K73: =IFERROR(INDIRECT(CONCATENATE("Track1!K",A69+5)),"") ->  | L73: =IFERROR(INDIRECT(CONCATENATE("Track1!L",A69+5)),"") ->  | M73: =IFERROR(INDIRECT(CONCATENATE("Track1!M",A69+5)),"") -> 0 | N73: =IFERROR(INDIRECT(CONCATENATE("Track1!N",A69+5)),"") -> 
B74: =IFERROR(INDIRECT(CONCATENATE("Track1!B",A69+6)),"") -> 5 | C74: =IFERROR(INDIRECT(CONCATENATE("Track1!C",A69+6)),"") -> 4 | D74: =IFERROR(INDIRECT(CONCATENATE("Track1!D",A69+6)),"") -> 0 | E74: =IFERROR(INDIRECT(CONCATENATE("Track1!E",A69+6)),"") -> SNH | F74: =IFERROR(INDIRECT(CONCATENATE("Track1!F",A69+6)),"") -> X | G74: =IFERROR(INDIRECT(CONCATENATE("Track1!G",A69+6)),"") ->  | I74: =IFERROR(INDIRECT(CONCATENATE("Track1!I",A69+6)),"") -> 5 | J74: =IFERROR(INDIRECT(CONCATENATE("Track1!J",A69+6)),"") -> 0 | K74: =IFERROR(INDIRECT(CONCATENATE("Track1!K",A69+6)),"") ->  | L74: =IFERROR(INDIRECT(CONCATENATE("Track1!L",A69+6)),"") ->  | M74: =IFERROR(INDIRECT(CONCATENATE("Track1!M",A69+6)),"") -> 0 | N74: =IFERROR(INDIRECT(CONCATENATE("Track1!N",A69+6)),"") -> 
B75: =IFERROR(INDIRECT(CONCATENATE("Track1!B",A69+7)),"") -> 6 | C75: =IFERROR(INDIRECT(CONCATENATE("Track1!C",A69+7)),"") -> 0 | D75: =IFERROR(INDIRECT(CONCATENATE("Track1!D",A69+7)),"") ->  | E75: =IFERROR(INDIRECT(CONCATENATE("Track1!E",A69+7)),"") ->  | F75: =IFERROR(INDIRECT(CONCATENATE("Track1!F",A69+7)),"") -> 0 | G75: =IFERROR(INDIRECT(CONCATENATE("Track1!G",A69+7)),"") ->  | I75: =IFERROR(INDIRECT(CONCATENATE("Track1!I",A69+7)),"") -> 6 | J75: =IFERROR(INDIRECT(CONCATENATE("Track1!J",A69+7)),"") -> 0 | K75: =IFERROR(INDIRECT(CONCATENATE("Track1!K",A69+7)),"") ->  | L75: =IFERROR(INDIRECT(CONCATENATE("Track1!L",A69+7)),"") ->  | M75: =IFERROR(INDIRECT(CONCATENATE("Track1!M",A69+7)),"") -> 0 | N75: =IFERROR(INDIRECT(CONCATENATE("Track1!N",A69+7)),"") -> 
B76: =IFERROR(INDIRECT(CONCATENATE("Track1!B",A69+8)),"") -> 7 | C76: =IFERROR(INDIRECT(CONCATENATE("Track1!C",A69+8)),"") -> 0 | D76: =IFERROR(INDIRECT(CONCATENATE("Track1!D",A69+8)),"") ->  | E76: =IFERROR(INDIRECT(CONCATENATE("Track1!E",A69+8)),"") ->  | F76: =IFERROR(INDIRECT(CONCATENATE("Track1!F",A69+8)),"") -> 0 | G76: =IFERROR(INDIRECT(CONCATENATE("Track1!G",A69+8)),"") ->  | I76: =IFERROR(INDIRECT(CONCATENATE("Track1!I",A69+8)),"") -> 7 | J76: =IFERROR(INDIRECT(CONCATENATE("Track1!J",A69+8)),"") -> 0 | K76: =IFERROR(INDIRECT(CONCATENATE("Track1!K",A69+8)),"") ->  | L76: =IFERROR(INDIRECT(CONCATENATE("Track1!L",A69+8)),"") ->  | M76: =IFERROR(INDIRECT(CONCATENATE("Track1!M",A69+8)),"") -> 0 | N76: =IFERROR(INDIRECT(CONCATENATE("Track1!N",A69+8)),"") -> 
B77: =IFERROR(INDIRECT(CONCATENATE("Track1!B",A69+9)),"") -> 8 | C77: =IFERROR(INDIRECT(CONCATENATE("Track1!C",A69+9)),"") -> 0 | D77: =IFERROR(INDIRECT(CONCATENATE("Track1!D",A69+9)),"") ->  | E77: =IFERROR(INDIRECT(CONCATENATE("Track1!E",A69+9)),"") ->  | F77: =IFERROR(INDIRECT(CONCATENATE("Track1!F",A69+9)),"") -> 0 | G77: =IFERROR(INDIRECT(CONCATENATE("Track1!G",A69+9)),"") ->  | I77: =IFERROR(INDIRECT(CONCATENATE("Track1!I",A69+9)),"") -> 8 | J77: =IFERROR(INDIRECT(CONCATENATE("Track1!J",A69+9)),"") -> 0 | K77: =IFERROR(INDIRECT(CONCATENATE("Track1!K",A69+9)),"") ->  | L77: =IFERROR(INDIRECT(CONCATENATE("Track1!L",A69+9)),"") ->  | M77: =IFERROR(INDIRECT(CONCATENATE("Track1!M",A69+9)),"") -> 0 | N77: =IFERROR(INDIRECT(CONCATENATE("Track1!N",A69+9)),"") -> 
A79: UT01 | B79: =IFERROR(INDIRECT(CONCATENATE("Track1!B",A80)),"") -> 400m Hurdles U20 Men A | G79: =Track1!G123 ->  | I79: =IFERROR(INDIRECT(CONCATENATE("Track1!I",A80)),"") -> 400m Hurdles U20 Men B
A80: =IFERROR(MATCH(A79,Track1!A:A,0),"") -> 2 | B80: =IFERROR(INDIRECT(CONCATENATE("Track1!B",A80+1)),"") -> Posn | C80: =IFERROR(INDIRECT(CONCATENATE("Track1!C",A80+1)),"") -> No. | D80: =IFERROR(INDIRECT(CONCATENATE("Track1!D",A80+1)),"") -> Athlete | E80: =IFERROR(INDIRECT(CONCATENATE("Track1!E",A80+1)),"") -> Club | F80: =IFERROR(INDIRECT(CONCATENATE("Track1!F",A80+1)),"") -> Perf | G80: =IFERROR(INDIRECT(CONCATENATE("Track1!G",A80+1)),"") -> AAA | I80: =IFERROR(INDIRECT(CONCATENATE("Track1!I",A80+1)),"") -> Posn | J80: =IFERROR(INDIRECT(CONCATENATE("Track1!J",A80+1)),"") -> No. | K80: =IFERROR(INDIRECT(CONCATENATE("Track1!K",A80+1)),"") -> Athlete | L80: =IFERROR(INDIRECT(CONCATENATE("Track1!L",A80+1)),"") -> Club | M80: =IFERROR(INDIRECT(CONCATENATE("Track1!M",A80+1)),"") -> Perf | N80: =IFERROR(INDIRECT(CONCATENATE("Track1!N",A80+1)),"") -> AAA
B81: =IFERROR(INDIRECT(CONCATENATE("Track1!B",A80+2)),"") -> 1 | C81: =IFERROR(INDIRECT(CONCATENATE("Track1!C",A80+2)),"") -> 2 | D81: =IFERROR(INDIRECT(CONCATENATE("Track1!D",A80+2)),"") -> RODRIQUES Ezra | E81: =IFERROR(INDIRECT(CONCATENATE("Track1!E",A80+2)),"") -> Croy | F81: =IFERROR(INDIRECT(CONCATENATE("Track1!F",A80+2)),"") -> 64.6 | G81: =IFERROR(INDIRECT(CONCATENATE("Track1!G",A80+2)),"") ->  | I81: =IFERROR(INDIRECT(CONCATENATE("Track1!I",A80+2)),"") -> 1 | J81: =IFERROR(INDIRECT(CONCATENATE("Track1!J",A80+2)),"") -> 0 | K81: =IFERROR(INDIRECT(CONCATENATE("Track1!K",A80+2)),"") ->  | L81: =IFERROR(INDIRECT(CONCATENATE("Track1!L",A80+2)),"") ->  | M81: =IFERROR(INDIRECT(CONCATENATE("Track1!M",A80+2)),"") -> 0 | N81: =IFERROR(INDIRECT(CONCATENATE("Track1!N",A80+2)),"") ->  | R81: =IFERROR(INDIRECT(CONCATENATE("Track1!R",$A80+2)),"") -> 1
B82: =IFERROR(INDIRECT(CONCATENATE("Track1!B",A80+3)),"") -> 2 | C82: =IFERROR(INDIRECT(CONCATENATE("Track1!C",A80+3)),"") -> 6 | D82: =IFERROR(INDIRECT(CONCATENATE("Track1!D",A80+3)),"") -> NORMAN Oscar | E82: =IFERROR(INDIRECT(CONCATENATE("Track1!E",A80+3)),"") -> Ton | F82: =IFERROR(INDIRECT(CONCATENATE("Track1!F",A80+3)),"") -> 67.7 | G82: =IFERROR(INDIRECT(CONCATENATE("Track1!G",A80+3)),"") ->  | I82: =IFERROR(INDIRECT(CONCATENATE("Track1!I",A80+3)),"") -> 2 | J82: =IFERROR(INDIRECT(CONCATENATE("Track1!J",A80+3)),"") -> 0 | K82: =IFERROR(INDIRECT(CONCATENATE("Track1!K",A80+3)),"") ->  | L82: =IFERROR(INDIRECT(CONCATENATE("Track1!L",A80+3)),"") ->  | M82: =IFERROR(INDIRECT(CONCATENATE("Track1!M",A80+3)),"") -> 0 | N82: =IFERROR(INDIRECT(CONCATENATE("Track1!N",A80+3)),"") -> 
B83: =IFERROR(INDIRECT(CONCATENATE("Track1!B",A80+4)),"") -> 3 | C83: =IFERROR(INDIRECT(CONCATENATE("Track1!C",A80+4)),"") -> 5 | D83: =IFERROR(INDIRECT(CONCATENATE("Track1!D",A80+4)),"") -> FARRALL KONRAD | E83: =IFERROR(INDIRECT(CONCATENATE("Track1!E",A80+4)),"") -> ATIP | F83: =IFERROR(INDIRECT(CONCATENATE("Track1!F",A80+4)),"") -> 80.3 | G83: =IFERROR(INDIRECT(CONCATENATE("Track1!G",A80+4)),"") ->  | I83: =IFERROR(INDIRECT(CONCATENATE("Track1!I",A80+4)),"") -> 3 | J83: =IFERROR(INDIRECT(CONCATENATE("Track1!J",A80+4)),"") -> 0 | K83: =IFERROR(INDIRECT(CONCATENATE("Track1!K",A80+4)),"") ->  | L83: =IFERROR(INDIRECT(CONCATENATE("Track1!L",A80+4)),"") ->  | M83: =IFERROR(INDIRECT(CONCATENATE("Track1!M",A80+4)),"") -> 0 | N83: =IFERROR(INDIRECT(CONCATENATE("Track1!N",A80+4)),"") -> 
B84: =IFERROR(INDIRECT(CONCATENATE("Track1!B",A80+5)),"") -> 4 | C84: =IFERROR(INDIRECT(CONCATENATE("Track1!C",A80+5)),"") -> 0 | D84: =IFERROR(INDIRECT(CONCATENATE("Track1!D",A80+5)),"") ->  | E84: =IFERROR(INDIRECT(CONCATENATE("Track1!E",A80+5)),"") ->  | F84: =IFERROR(INDIRECT(CONCATENATE("Track1!F",A80+5)),"") -> 0 | G84: =IFERROR(INDIRECT(CONCATENATE("Track1!G",A80+5)),"") ->  | I84: =IFERROR(INDIRECT(CONCATENATE("Track1!I",A80+5)),"") -> 4 | J84: =IFERROR(INDIRECT(CONCATENATE("Track1!J",A80+5)),"") -> 0 | K84: =IFERROR(INDIRECT(CONCATENATE("Track1!K",A80+5)),"") ->  | L84: =IFERROR(INDIRECT(CONCATENATE("Track1!L",A80+5)),"") ->  | M84: =IFERROR(INDIRECT(CONCATENATE("Track1!M",A80+5)),"") -> 0 | N84: =IFERROR(INDIRECT(CONCATENATE("Track1!N",A80+5)),"") -> 
B85: =IFERROR(INDIRECT(CONCATENATE("Track1!B",A80+6)),"") -> 5 | C85: =IFERROR(INDIRECT(CONCATENATE("Track1!C",A80+6)),"") -> 0 | D85: =IFERROR(INDIRECT(CONCATENATE("Track1!D",A80+6)),"") ->  | E85: =IFERROR(INDIRECT(CONCATENATE("Track1!E",A80+6)),"") ->  | F85: =IFERROR(INDIRECT(CONCATENATE("Track1!F",A80+6)),"") -> 0 | G85: =IFERROR(INDIRECT(CONCATENATE("Track1!G",A80+6)),"") ->  | I85: =IFERROR(INDIRECT(CONCATENATE("Track1!I",A80+6)),"") -> 5 | J85: =IFERROR(INDIRECT(CONCATENATE("Track1!J",A80+6)),"") -> 0 | K85: =IFERROR(INDIRECT(CONCATENATE("Track1!K",A80+6)),"") ->  | L85: =IFERROR(INDIRECT(CONCATENATE("Track1!L",A80+6)),"") ->  | M85: =IFERROR(INDIRECT(CONCATENATE("Track1!M",A80+6)),"") -> 0 | N85: =IFERROR(INDIRECT(CONCATENATE("Track1!N",A80+6)),"") -> 
B86: =IFERROR(INDIRECT(CONCATENATE("Track1!B",A80+7)),"") -> 6 | C86: =IFERROR(INDIRECT(CONCATENATE("Track1!C",A80+7)),"") -> 0 | D86: =IFERROR(INDIRECT(CONCATENATE("Track1!D",A80+7)),"") ->  | E86: =IFERROR(INDIRECT(CONCATENATE("Track1!E",A80+7)),"") ->  | F86: =IFERROR(INDIRECT(CONCATENATE("Track1!F",A80+7)),"") -> 0 | G86: =IFERROR(INDIRECT(CONCATENATE("Track1!G",A80+7)),"") ->  | I86: =IFERROR(INDIRECT(CONCATENATE("Track1!I",A80+7)),"") -> 6 | J86: =IFERROR(INDIRECT(CONCATENATE("Track1!J",A80+7)),"") -> 0 | K86: =IFERROR(INDIRECT(CONCATENATE("Track1!K",A80+7)),"") ->  | L86: =IFERROR(INDIRECT(CONCATENATE("Track1!L",A80+7)),"") ->  | M86: =IFERROR(INDIRECT(CONCATENATE("Track1!M",A80+7)),"") -> 0 | N86: =IFERROR(INDIRECT(CONCATENATE("Track1!N",A80+7)),"") -> 
B87: =IFERROR(INDIRECT(CONCATENATE("Track1!B",A80+8)),"") -> 7 | C87: =IFERROR(INDIRECT(CONCATENATE("Track1!C",A80+8)),"") -> 0 | D87: =IFERROR(INDIRECT(CONCATENATE("Track1!D",A80+8)),"") ->  | E87: =IFERROR(INDIRECT(CONCATENATE("Track1!E",A80+8)),"") ->  | F87: =IFERROR(INDIRECT(CONCATENATE("Track1!F",A80+8)),"") -> 0 | G87: =IFERROR(INDIRECT(CONCATENATE("Track1!G",A80+8)),"") ->  | I87: =IFERROR(INDIRECT(CONCATENATE("Track1!I",A80+8)),"") -> 7 | J87: =IFERROR(INDIRECT(CONCATENATE("Track1!J",A80+8)),"") -> 0 | K87: =IFERROR(INDIRECT(CONCATENATE("Track1!K",A80+8)),"") ->  | L87: =IFERROR(INDIRECT(CONCATENATE("Track1!L",A80+8)),"") ->  | M87: =IFERROR(INDIRECT(CONCATENATE("Track1!M",A80+8)),"") -> 0 | N87: =IFERROR(INDIRECT(CONCATENATE("Track1!N",A80+8)),"") -> 
B88: =IFERROR(INDIRECT(CONCATENATE("Track1!B",A80+9)),"") -> 8 | C88: =IFERROR(INDIRECT(CONCATENATE("Track1!C",A80+9)),"") -> 0 | D88: =IFERROR(INDIRECT(CONCATENATE("Track1!D",A80+9)),"") ->  | E88: =IFERROR(INDIRECT(CONCATENATE("Track1!E",A80+9)),"") ->  | F88: =IFERROR(INDIRECT(CONCATENATE("Track1!F",A80+9)),"") -> 0 | G88: =IFERROR(INDIRECT(CONCATENATE("Track1!G",A80+9)),"") ->  | I88: =IFERROR(INDIRECT(CONCATENATE("Track1!I",A80+9)),"") -> 8 | J88: =IFERROR(INDIRECT(CONCATENATE("Track1!J",A80+9)),"") -> 0 | K88: =IFERROR(INDIRECT(CONCATENATE("Track1!K",A80+9)),"") ->  | L88: =IFERROR(INDIRECT(CONCATENATE("Track1!L",A80+9)),"") ->  | M88: =IFERROR(INDIRECT(CONCATENATE("Track1!M",A80+9)),"") -> 0 | N88: =IFERROR(INDIRECT(CONCATENATE("Track1!N",A80+9)),"") -> 
A90: UTD11 | B90: =IFERROR(INDIRECT(CONCATENATE("Track2!B",A91)),"") -> 2000m s/c U20 Men A | G90: =Track1!G134 ->  | I90: =IFERROR(INDIRECT(CONCATENATE("Track2!I",A91)),"") -> 2000m s/c U20 Men B
A91: =IFERROR(MATCH(A90,Track2!A:A,0),"") -> 112 | B91: =IFERROR(INDIRECT(CONCATENATE("Track2!B",A91+1)),"") -> Posn | C91: =IFERROR(INDIRECT(CONCATENATE("Track2!C",A91+1)),"") -> No. | D91: =IFERROR(INDIRECT(CONCATENATE("Track2!D",A91+1)),"") -> Athlete | E91: =IFERROR(INDIRECT(CONCATENATE("Track2!E",A91+1)),"") -> Club | F91: =IFERROR(INDIRECT(CONCATENATE("Track2!F",A91+1)),"") -> Perf | G91: =IFERROR(INDIRECT(CONCATENATE("Track2!G",A91+1)),"") -> AAA | I91: =IFERROR(INDIRECT(CONCATENATE("Track2!I",A91+1)),"") -> Posn | J91: =IFERROR(INDIRECT(CONCATENATE("Track2!J",A91+1)),"") -> No. | K91: =IFERROR(INDIRECT(CONCATENATE("Track2!K",A91+1)),"") -> Athlete | L91: =IFERROR(INDIRECT(CONCATENATE("Track2!L",A91+1)),"") -> Club | M91: =IFERROR(INDIRECT(CONCATENATE("Track2!M",A91+1)),"") -> Perf | N91: =IFERROR(INDIRECT(CONCATENATE("Track2!N",A91+1)),"") -> AAA
B92: =IFERROR(INDIRECT(CONCATENATE("Track2!B",A91+2)),"") -> 1 | C92: =IFERROR(INDIRECT(CONCATENATE("Track2!C",A91+2)),"") -> 3 | D92: =IFERROR(INDIRECT(CONCATENATE("Track2!D",A91+2)),"") -> ATKINS Samuel | E92: =IFERROR(INDIRECT(CONCATENATE("Track2!E",A91+2)),"") -> Have | F92: =IFERROR(INDIRECT(CONCATENATE("Track2!F",A91+2)),"") -> 00:07:01.440 | G92: =IFERROR(INDIRECT(CONCATENATE("Track2!G",A91+2)),"") ->  | I92: =IFERROR(INDIRECT(CONCATENATE("Track2!I",A91+2)),"") -> 1 | J92: =IFERROR(INDIRECT(CONCATENATE("Track2!J",A91+2)),"") -> 33 | K92: =IFERROR(INDIRECT(CONCATENATE("Track2!K",A91+2)),"") -> KEEVIL Thomas | L92: =IFERROR(INDIRECT(CONCATENATE("Track2!L",A91+2)),"") -> Have | M92: =IFERROR(INDIRECT(CONCATENATE("Track2!M",A91+2)),"") -> 00:07:19.840 | N92: =IFERROR(INDIRECT(CONCATENATE("Track2!N",A91+2)),"") ->  | R92: =IFERROR(INDIRECT(CONCATENATE("Track2!R",$A91+2)),"") -> 1
B93: =IFERROR(INDIRECT(CONCATENATE("Track2!B",A91+3)),"") -> 2 | C93: =IFERROR(INDIRECT(CONCATENATE("Track2!C",A91+3)),"") ->  | D93: =IFERROR(INDIRECT(CONCATENATE("Track2!D",A91+3)),"") ->  | E93: =IFERROR(INDIRECT(CONCATENATE("Track2!E",A91+3)),"") ->  | F93: =IFERROR(INDIRECT(CONCATENATE("Track2!F",A91+3)),"") ->  | G93: =IFERROR(INDIRECT(CONCATENATE("Track2!G",A91+3)),"") ->  | I93: =IFERROR(INDIRECT(CONCATENATE("Track2!I",A91+3)),"") -> 2 | J93: =IFERROR(INDIRECT(CONCATENATE("Track2!J",A91+3)),"") ->  | K93: =IFERROR(INDIRECT(CONCATENATE("Track2!K",A91+3)),"") ->  | L93: =IFERROR(INDIRECT(CONCATENATE("Track2!L",A91+3)),"") ->  | M93: =IFERROR(INDIRECT(CONCATENATE("Track2!M",A91+3)),"") ->  | N93: =IFERROR(INDIRECT(CONCATENATE("Track2!N",A91+3)),"") -> 
B94: =IFERROR(INDIRECT(CONCATENATE("Track2!B",A91+4)),"") -> 3 | C94: =IFERROR(INDIRECT(CONCATENATE("Track2!C",A91+4)),"") ->  | D94: =IFERROR(INDIRECT(CONCATENATE("Track2!D",A91+4)),"") ->  | E94: =IFERROR(INDIRECT(CONCATENATE("Track2!E",A91+4)),"") ->  | F94: =IFERROR(INDIRECT(CONCATENATE("Track2!F",A91+4)),"") ->  | G94: =IFERROR(INDIRECT(CONCATENATE("Track2!G",A91+4)),"") ->  | I94: =IFERROR(INDIRECT(CONCATENATE("Track2!I",A91+4)),"") -> 3 | J94: =IFERROR(INDIRECT(CONCATENATE("Track2!J",A91+4)),"") ->  | K94: =IFERROR(INDIRECT(CONCATENATE("Track2!K",A91+4)),"") ->  | L94: =IFERROR(INDIRECT(CONCATENATE("Track2!L",A91+4)),"") ->  | M94: =IFERROR(INDIRECT(CONCATENATE("Track2!M",A91+4)),"") ->  | N94: =IFERROR(INDIRECT(CONCATENATE("Track2!N",A91+4)),"") -> 
B95: =IFERROR(INDIRECT(CONCATENATE("Track2!B",A91+5)),"") -> 4 | C95: =IFERROR(INDIRECT(CONCATENATE("Track2!C",A91+5)),"") ->  | D95: =IFERROR(INDIRECT(CONCATENATE("Track2!D",A91+5)),"") ->  | E95: =IFERROR(INDIRECT(CONCATENATE("Track2!E",A91+5)),"") ->  | F95: =IFERROR(INDIRECT(CONCATENATE("Track2!F",A91+5)),"") ->  | G95: =IFERROR(INDIRECT(CONCATENATE("Track2!G",A91+5)),"") ->  | I95: =IFERROR(INDIRECT(CONCATENATE("Track2!I",A91+5)),"") -> 4 | J95: =IFERROR(INDIRECT(CONCATENATE("Track2!J",A91+5)),"") ->  | K95: =IFERROR(INDIRECT(CONCATENATE("Track2!K",A91+5)),"") ->  | L95: =IFERROR(INDIRECT(CONCATENATE("Track2!L",A91+5)),"") ->  | M95: =IFERROR(INDIRECT(CONCATENATE("Track2!M",A91+5)),"") ->  | N95: =IFERROR(INDIRECT(CONCATENATE("Track2!N",A91+5)),"") -> 
B96: =IFERROR(INDIRECT(CONCATENATE("Track2!B",A91+6)),"") -> 5 | C96: =IFERROR(INDIRECT(CONCATENATE("Track2!C",A91+6)),"") ->  | D96: =IFERROR(INDIRECT(CONCATENATE("Track2!D",A91+6)),"") ->  | E96: =IFERROR(INDIRECT(CONCATENATE("Track2!E",A91+6)),"") ->  | F96: =IFERROR(INDIRECT(CONCATENATE("Track2!F",A91+6)),"") ->  | G96: =IFERROR(INDIRECT(CONCATENATE("Track2!G",A91+6)),"") ->  | I96: =IFERROR(INDIRECT(CONCATENATE("Track2!I",A91+6)),"") -> 5 | J96: =IFERROR(INDIRECT(CONCATENATE("Track2!J",A91+6)),"") ->  | K96: =IFERROR(INDIRECT(CONCATENATE("Track2!K",A91+6)),"") ->  | L96: =IFERROR(INDIRECT(CONCATENATE("Track2!L",A91+6)),"") ->  | M96: =IFERROR(INDIRECT(CONCATENATE("Track2!M",A91+6)),"") ->  | N96: =IFERROR(INDIRECT(CONCATENATE("Track2!N",A91+6)),"") -> 
B97: =IFERROR(INDIRECT(CONCATENATE("Track2!B",A91+7)),"") -> 6 | C97: =IFERROR(INDIRECT(CONCATENATE("Track2!C",A91+7)),"") ->  | D97: =IFERROR(INDIRECT(CONCATENATE("Track2!D",A91+7)),"") ->  | E97: =IFERROR(INDIRECT(CONCATENATE("Track2!E",A91+7)),"") ->  | F97: =IFERROR(INDIRECT(CONCATENATE("Track2!F",A91+7)),"") ->  | G97: =IFERROR(INDIRECT(CONCATENATE("Track2!G",A91+7)),"") ->  | I97: =IFERROR(INDIRECT(CONCATENATE("Track2!I",A91+7)),"") -> 6 | J97: =IFERROR(INDIRECT(CONCATENATE("Track2!J",A91+7)),"") ->  | K97: =IFERROR(INDIRECT(CONCATENATE("Track2!K",A91+7)),"") ->  | L97: =IFERROR(INDIRECT(CONCATENATE("Track2!L",A91+7)),"") ->  | M97: =IFERROR(INDIRECT(CONCATENATE("Track2!M",A91+7)),"") ->  | N97: =IFERROR(INDIRECT(CONCATENATE("Track2!N",A91+7)),"") -> 
B98: =IFERROR(INDIRECT(CONCATENATE("Track2!B",A91+8)),"") -> 7 | C98: =IFERROR(INDIRECT(CONCATENATE("Track2!C",A91+8)),"") ->  | D98: =IFERROR(INDIRECT(CONCATENATE("Track2!D",A91+8)),"") ->  | E98: =IFERROR(INDIRECT(CONCATENATE("Track2!E",A91+8)),"") ->  | F98: =IFERROR(INDIRECT(CONCATENATE("Track2!F",A91+8)),"") ->  | G98: =IFERROR(INDIRECT(CONCATENATE("Track2!G",A91+8)),"") ->  | I98: =IFERROR(INDIRECT(CONCATENATE("Track2!I",A91+8)),"") -> 7 | J98: =IFERROR(INDIRECT(CONCATENATE("Track2!J",A91+8)),"") ->  | K98: =IFERROR(INDIRECT(CONCATENATE("Track2!K",A91+8)),"") ->  | L98: =IFERROR(INDIRECT(CONCATENATE("Track2!L",A91+8)),"") ->  | M98: =IFERROR(INDIRECT(CONCATENATE("Track2!M",A91+8)),"") ->  | N98: =IFERROR(INDIRECT(CONCATENATE("Track2!N",A91+8)),"") -> 
B99: =IFERROR(INDIRECT(CONCATENATE("Track2!B",A91+9)),"") -> 8 | C99: =IFERROR(INDIRECT(CONCATENATE("Track2!C",A91+9)),"") ->  | D99: =IFERROR(INDIRECT(CONCATENATE("Track2!D",A91+9)),"") ->  | E99: =IFERROR(INDIRECT(CONCATENATE("Track2!E",A91+9)),"") ->  | F99: =IFERROR(INDIRECT(CONCATENATE("Track2!F",A91+9)),"") ->  | G99: =IFERROR(INDIRECT(CONCATENATE("Track2!G",A91+9)),"") ->  | I99: =IFERROR(INDIRECT(CONCATENATE("Track2!I",A91+9)),"") -> 8 | J99: =IFERROR(INDIRECT(CONCATENATE("Track2!J",A91+9)),"") ->  | K99: =IFERROR(INDIRECT(CONCATENATE("Track2!K",A91+9)),"") ->  | L99: =IFERROR(INDIRECT(CONCATENATE("Track2!L",A91+9)),"") ->  | M99: =IFERROR(INDIRECT(CONCATENATE("Track2!M",A91+9)),"") ->  | N99: =IFERROR(INDIRECT(CONCATENATE("Track2!N",A91+9)),"") -> 
A101: UFW01 | B101: =IFERROR(INDIRECT(CONCATENATE("Field!B",A102)),"") -> Long Jump U20 Men A | G101: =Track1!G145 ->  | I101: =IFERROR(INDIRECT(CONCATENATE("Field!I",A102)),"") -> Long Jump U20 Men B
A102: =IFERROR(MATCH(A101,Field!A:A,0),"") -> 178 | B102: =IFERROR(INDIRECT(CONCATENATE("Field!B",A102+1)),"") -> Posn | C102: =IFERROR(INDIRECT(CONCATENATE("Field!C",A102+1)),"") -> Bib | D102: =IFERROR(INDIRECT(CONCATENATE("Field!D",A102+1)),"") -> Athlete | E102: =IFERROR(INDIRECT(CONCATENATE("Field!E",A102+1)),"") -> Club | F102: =IFERROR(INDIRECT(CONCATENATE("Field!F",A102+1)),"") -> Perf | G102: =IFERROR(INDIRECT(CONCATENATE("Field!G",A102+1)),"") -> AAA | I102: =IFERROR(INDIRECT(CONCATENATE("Field!I",A102+1)),"") -> Posn | J102: =IFERROR(INDIRECT(CONCATENATE("Field!J",A102+1)),"") -> Bib | K102: =IFERROR(INDIRECT(CONCATENATE("Field!K",A102+1)),"") -> Athlete | L102: =IFERROR(INDIRECT(CONCATENATE("Field!L",A102+1)),"") -> Club | M102: =IFERROR(INDIRECT(CONCATENATE("Field!M",A102+1)),"") -> Perf | N102: =IFERROR(INDIRECT(CONCATENATE("Field!N",A102+1)),"") -> AAA
A103: ="_"&A101 -> _UFW01 | B103: =IFERROR(INDIRECT(CONCATENATE("Field!B",A102+2)),"") -> 1 | C103: =IFERROR(INDIRECT(CONCATENATE("Field!C",A102+2)),"") -> 3 | D103: =IFERROR(INDIRECT(CONCATENATE("Field!D",A102+2)),"") -> TAYLOR Shandell | E103: =IFERROR(INDIRECT(CONCATENATE("Field!E",A102+2)),"") -> Have | F103: =IFERROR(TEXT(INDIRECT(CONCATENATE("Field!F",$A102+2)),"#.#0")&" "&VLOOKUP(C103,INDIRECT($A$103),5,FALSE),"") -> 7.15 | G103: =IFERROR(INDIRECT(CONCATENATE("Field!G",A102+2)),"") -> 1 | I103: =IFERROR(INDIRECT(CONCATENATE("Field!I",A102+2)),"") -> 1 | J103: =IFERROR(INDIRECT(CONCATENATE("Field!J",A102+2)),"") -> 6 | K103: =IFERROR(INDIRECT(CONCATENATE("Field!K",A102+2)),"") -> FULLBROOK David | L103: =IFERROR(INDIRECT(CONCATENATE("Field!L",A102+2)),"") -> Ton | M103: =IFERROR(TEXT(INDIRECT(CONCATENATE("Field!M",$A102+2)),"#.#0")&" "&VLOOKUP(J103,INDIRECT($A$103),5,FALSE),"") -> 5.60 | N103: =IFERROR(INDIRECT(CONCATENATE("Field!N",A102+2)),"") ->  | R103: =IFERROR(INDIRECT(CONCATENATE("Field!R",$A102+2)),"") -> 1
B104: =IFERROR(INDIRECT(CONCATENATE("Field!B",A102+3)),"") -> 2 | C104: =IFERROR(INDIRECT(CONCATENATE("Field!C",A102+3)),"") -> 1 | D104: =IFERROR(INDIRECT(CONCATENATE("Field!D",A102+3)),"") -> ELLIS Cameron X | E104: =IFERROR(INDIRECT(CONCATENATE("Field!E",A102+3)),"") -> Bas/NEB | F104: =IFERROR(TEXT(INDIRECT(CONCATENATE("Field!F",$A102+3)),"#.#0")&" "&VLOOKUP(C104,INDIRECT($A$103),5,FALSE),"") -> 6.12 | G104: =IFERROR(INDIRECT(CONCATENATE("Field!G",A102+3)),"") ->  | I104: =IFERROR(INDIRECT(CONCATENATE("Field!I",A102+3)),"") -> 2 | J104: =IFERROR(INDIRECT(CONCATENATE("Field!J",A102+3)),"") ->  | K104: =IFERROR(INDIRECT(CONCATENATE("Field!K",A102+3)),"") ->  | L104: =IFERROR(INDIRECT(CONCATENATE("Field!L",A102+3)),"") ->  | M104: =IFERROR(TEXT(INDIRECT(CONCATENATE("Field!M",$A102+3)),"#.#0")&" "&VLOOKUP(J104,INDIRECT($A$103),5,FALSE),"") ->  | N104: =IFERROR(INDIRECT(CONCATENATE("Field!N",A102+3)),"") -> 
B105: =IFERROR(INDIRECT(CONCATENATE("Field!B",A102+4)),"") -> 3 | C105: =IFERROR(INDIRECT(CONCATENATE("Field!C",A102+4)),"") -> 4 | D105: =IFERROR(INDIRECT(CONCATENATE("Field!D",A102+4)),"") -> JOPP Oscar | E105: =IFERROR(INDIRECT(CONCATENATE("Field!E",A102+4)),"") -> SNH | F105: =IFERROR(TEXT(INDIRECT(CONCATENATE("Field!F",$A102+4)),"#.#0")&" "&VLOOKUP(C105,INDIRECT($A$103),5,FALSE),"") -> 6.10 | G105: =IFERROR(INDIRECT(CONCATENATE("Field!G",A102+4)),"") ->  | I105: =IFERROR(INDIRECT(CONCATENATE("Field!I",A102+4)),"") -> 3 | J105: =IFERROR(INDIRECT(CONCATENATE("Field!J",A102+4)),"") ->  | K105: =IFERROR(INDIRECT(CONCATENATE("Field!K",A102+4)),"") ->  | L105: =IFERROR(INDIRECT(CONCATENATE("Field!L",A102+4)),"") ->  | M105: =IFERROR(TEXT(INDIRECT(CONCATENATE("Field!M",$A102+4)),"#.#0")&" "&VLOOKUP(J105,INDIRECT($A$103),5,FALSE),"") ->  | N105: =IFERROR(INDIRECT(CONCATENATE("Field!N",A102+4)),"") -> 
B106: =IFERROR(INDIRECT(CONCATENATE("Field!B",A102+5)),"") -> 4 | C106: =IFERROR(INDIRECT(CONCATENATE("Field!C",A102+5)),"") -> 66 | D106: =IFERROR(INDIRECT(CONCATENATE("Field!D",A102+5)),"") -> SEAL Toby | E106: =IFERROR(INDIRECT(CONCATENATE("Field!E",A102+5)),"") -> Ton | F106: =IFERROR(TEXT(INDIRECT(CONCATENATE("Field!F",$A102+5)),"#.#0")&" "&VLOOKUP(C106,INDIRECT($A$103),5,FALSE),"") -> 5.72 | G106: =IFERROR(INDIRECT(CONCATENATE("Field!G",A102+5)),"") ->  | I106: =IFERROR(INDIRECT(CONCATENATE("Field!I",A102+5)),"") -> 4 | J106: =IFERROR(INDIRECT(CONCATENATE("Field!J",A102+5)),"") ->  | K106: =IFERROR(INDIRECT(CONCATENATE("Field!K",A102+5)),"") ->  | L106: =IFERROR(INDIRECT(CONCATENATE("Field!L",A102+5)),"") ->  | M106: =IFERROR(TEXT(INDIRECT(CONCATENATE("Field!M",$A102+5)),"#.#0")&" "&VLOOKUP(J106,INDIRECT($A$103),5,FALSE),"") ->  | N106: =IFERROR(INDIRECT(CONCATENATE("Field!N",A102+5)),"") -> 
B107: =IFERROR(INDIRECT(CONCATENATE("Field!B",A102+6)),"") -> 5 | C107: =IFERROR(INDIRECT(CONCATENATE("Field!C",A102+6)),"") ->  | D107: =IFERROR(INDIRECT(CONCATENATE("Field!D",A102+6)),"") ->  | E107: =IFERROR(INDIRECT(CONCATENATE("Field!E",A102+6)),"") ->  | F107: =IFERROR(TEXT(INDIRECT(CONCATENATE("Field!F",$A102+6)),"#.#0")&" "&VLOOKUP(C107,INDIRECT($A$103),5,FALSE),"") ->  | G107: =IFERROR(INDIRECT(CONCATENATE("Field!G",A102+6)),"") ->  | I107: =IFERROR(INDIRECT(CONCATENATE("Field!I",A102+6)),"") -> 5 | J107: =IFERROR(INDIRECT(CONCATENATE("Field!J",A102+6)),"") ->  | K107: =IFERROR(INDIRECT(CONCATENATE("Field!K",A102+6)),"") ->  | L107: =IFERROR(INDIRECT(CONCATENATE("Field!L",A102+6)),"") ->  | M107: =IFERROR(TEXT(INDIRECT(CONCATENATE("Field!M",$A102+6)),"#.#0")&" "&VLOOKUP(J107,INDIRECT($A$103),5,FALSE),"") ->  | N107: =IFERROR(INDIRECT(CONCATENATE("Field!N",A102+6)),"") -> 
